Workbook

Sheet Instrucciones
B3: CALIFICACIÓN DE LAS COMPETENCIAS CLAVE Y DE LAS MATERIAS 3º_ESO_Diversificación
B6: INSTRUCCIONES 1. INCORPORAR LOS CRITERIOS DE CALIFICACIÓN DE LAS COMPETENCIAS CLAVE BOTÓN: "INCORPORAR LOS CRITERIOS DE CALIFICACIÓN DE LAS COMPETENCIAS CLAVE." Para introducir los criterios de calificación de las competencias clave hay que seleccionar una opción en cada uno de los siguientes campos: -Pesos de los criterios de evaluación en el cálculo de la calificación de los descriptores operativos. -Pesos de los descriptores operativos en el cálculo de la calificación de las competencias clave. Si se considera, se puede bloquear la información introducida pulsado en el botón "PROTEGIDA" e introduciendo una contaseña. En caso de querer desbloquear la página se debe pulsar en el botón "DESPROTEGIDA" e introducir la contraseña marcada. 2. INCORPORAR EL NOMBRE DE LOS ALUMNOS QUE COMPONEN EL GRUPO. BOTÓN: "INCORPORAR EL LISTADO DE ALUMNOS" Introducir el nombre de todos los alumnos que componen el grupo-clase. Marcar las materias de opción que cursa cada alumno. Pulsando sobre el botón "informe" en cada alumnno se visualiza de forma individualizada la composición de las calificaciones de las materias y de las competencias clave a partir de las notas de los criterios de evaluación. Además, se incorporan dos botones para facilitar el trabajo colaborativo a través de TEAMS o Onedrive. El procedimiento es el siguiente: 1º Se pulsa el botón superior de esta sección TEAMS/Onedrive; 2º Una vez guardado el archivo, se comparte con las citadas aplicaciones; 3º Los docentes incorporan las céntésimas de redondeo de su materia en la pestaña "Redondeo" y las notas de los criterios de evaluación en la pestaña correspondiente a su materia; 4º Se descarga el archivo y se pulsa en el segundo botón de esta sección TEAMS/Onedrive para normalizar su funcionamiento y poder visualizar toda la información que esta herramienta ofrece. 3. INCORPORAR LAS CALIFICACIONES DE LOS CRITERIOS DE EVALUACIÓN DE LAS MATERIAS CURSADAS POR EL ALUMNO. BOTÓN: "INCORPORAR LA CALIFICACIÓN POR MATERIAS DE LOS CRITERIOS DE EVALUACIÓN " Seleccionar la materia. En la pestaña de destino introducir los pesos (ponderaciones) de cada criterio de evaluación (es decir, los criterios de calificación de la materia) y las calificaciones de los criterios de evaluación para los alumnos que cursen la materia o, en su caso, la calificación de la materia. 4. OBSERVAR LAS NOTAS DE LAS COMPETENCIAS CLAVE DE LOS ALUMNOS. BOTÓN: "VISUALIZAR LAS NOTAS DE LAS COMPETENCIAS CLAVE" Permite observar las notas de las competencias clave de cada alumno en función de los criterios de calificación de las competencias clave introducidos. Además, desde la pantalla de destino se puede generar un documento para exportar las notas de las competencias clave a STILUS. Para ello, previamente es necesario introducir las centésimas de redondeo de las notas de las competencias clave en la celda creada al efecto. 5. OBSERVAR LAS NOTAS DE LAS MATERIAS DE LOS ALUMNOS. BOTÓN: "VISUALIZAR LAS NOTAS DE LAS MATERIAS" Permite observar las notas de las materias de cada alumno, en función de los criterios de calificación de la materia introducidos. Además, desde la pantalla de destino se puede generar un documento para exportar las notas de las materias a STILUS.

Sheet Criterios de calificacion CClav
D4: CRITERIOS DE CALIFICACIÓN DE LAS COMPETENCIAS CLAVE
D6: Pesos de los criterios de evaluación en el cálculo de la calificación de los descriptores operativos
E8: MEDIA SIMPLE. Se aplica un criterio común para el cálculo de la calificación de todos los descriptores. Todos los criterios de evaluación pesan (ponderan) los mismo en la calificación de los descriptores operativos.
E10: MEDIA PONDERADA POR CARGA HORARIA. Se aplica un criterio común para el cálculo de la calificación de todos los descriptores. El peso de los criterios de evaluación se determina en función de la carga horaria de la materia. (RECOMENDADO)
E12: LIBRE. Se aplica un criterio común para el cálculo de la calificación de todos los descriptores. El peso de cada criterio de evaluación en la calificación de los descriptores se determina por el centro.
E14: LIBRE DIFERENCIADO POR DESCRIPTORES. Se aplica un criterio diferenciado para el cálculo de la calificación de cada descriptor. El peso de cada criterio de evaluación en la calificación de cada descriptor se determina por el centro.
D16: Pesos de los descriptores operativos en el cálculo de la calificación de las competencias clave
E18: MEDIA PONDERADA. El peso de los descriptores operativos en el cálculo de la calificación de la competencia clave se determina en proporción al número de vinculaciones de cada descriptor operativo con los criterios de evaluación (RECOMENDADO)
E20: LIBRE. El peso (ponderación) de los descriptores operativos en el cálculo de la calificación de la competencia clave se determina por el centro.
I873: =#REF! ->  | L873: =#REF! ->  | O873: =#REF! ->  | R873: =#REF! ->  | U873: =#REF! ->  | X873: =#REF! ->  | AA873: =#REF! ->  | AD873: =#REF! ->  | AG873: =#REF! ->  | AJ873: =#REF! ->  | AM873: =#REF! ->  | AP873: =#REF! ->  | AS873: =#REF! ->  | AV873: =#REF! ->  | AY873: =#REF! ->  | BB873: =#REF! ->  | BE873: =#REF! ->  | BH873: =#REF! ->  | BK873: =#REF! ->  | BN873: =#REF! ->  | BQ873: =#REF! ->  | BT873: =#REF! ->  | BW873: =#REF! ->  | BZ873: =#REF! ->  | CC873: =#REF! ->  | CF873: =#REF! ->  | CI873: =#REF! ->  | CL873: =#REF! ->  | CO873: =#REF! ->  | CR873: =#REF! ->  | CU873: =#REF! ->  | CX873: =#REF! ->  | DA873: =#REF! ->  | DD873: =#REF! -> 
I885: =#REF! ->  | L885: =#REF! ->  | O885: =#REF! ->  | R885: =#REF! ->  | U885: =#REF! ->  | X885: =#REF! ->  | AA885: =#REF! ->  | AD885: =#REF! ->  | AG885: =#REF! ->  | AJ885: =#REF! ->  | AM885: =#REF! ->  | AP885: =#REF! ->  | AS885: =#REF! ->  | AV885: =#REF! ->  | AY885: =#REF! ->  | BB885: =#REF! ->  | BE885: =#REF! ->  | BH885: =#REF! ->  | BK885: =#REF! ->  | BN885: =#REF! ->  | BQ885: =#REF! ->  | BT885: =#REF! ->  | BW885: =#REF! ->  | BZ885: =#REF! ->  | CC885: =#REF! ->  | CF885: =#REF! ->  | CI885: =#REF! ->  | CL885: =#REF! ->  | CO885: =#REF! ->  | CR885: =#REF! ->  | CU885: =#REF! ->  | CX885: =#REF! ->  | DA885: =#REF! ->  | DD885: =#REF! -> 

Sheet Peso criterios carga horaria
F4: PESO TODOS
B5: Ámbito científico-tecnológico | C5: Comp. Esp. 1 | D5: Criterio Evaluación 1.1 | F5: 8
D6: Criterio Evaluación 1.2 | F6: 8
D7: Criterio Evaluación 1.3 | F7: 8
C8: Comp. Esp. 2 | D8: Criterio Evaluación 2.1 | F8: 8
D9: Criterio Evaluación 2.2 | F9: 8
D10: Criterio Evaluación 2.3 | F10: 8
D11: Criterio Evaluación 2.4 | F11: 8
C12: Comp. Esp. 3 | D12: Criterio Evaluación 3.1 | F12: 8
D13: Criterio Evaluación 3.2 | F13: 8
D14: Criterio Evaluación 3.3 | F14: 8
D15: Criterio Evaluación 3.4 | F15: 8
D16: Criterio Evaluación 3.5 | F16: 8
C17: Comp. Esp. 4 | D17: Criterio Evaluación 4.1 | F17: 8
D18: Criterio Evaluación 4.2 | F18: 8
C19: Comp. Esp. 5 | D19: Criterio Evaluación 5.1 | F19: 8
D20: Criterio Evaluación 5.2 | F20: 8
D21: Criterio Evaluación 5.3 | F21: 8
C22: Comp. Esp. 6 | D22: Criterio Evaluación 6.1 | F22: 8
D23: Criterio Evaluación 6.2 | F23: 8
D24: Criterio Evaluación 6.3 | F24: 8
D25: Criterio Evaluación 6.4 | F25: 8
D26: Criterio Evaluación 6.5 | F26: 8
C27: Comp. Esp. 7 | D27: Criterio Evaluación 7.1 | F27: 8
D28: Criterio Evaluación 7.2 | F28: 8
B29: Ámbito lingüístico y social | C29: Comp. Esp. 1 | D29: Criterio Evaluación 1.1 | F29: 7
D30: Criterio Evaluación 1.2 | F30: 7
D31: Criterio Evaluación 1.3 | F31: 7
D32: Criterio Evaluación 1.4 | F32: 7
C33: Comp. Esp. 2 | D33: Criterio Evaluación 2.1 | F33: 7
D34: Criterio Evaluación 2.2 | F34: 7
D35: Criterio Evaluación 2.3 | F35: 7
D36: Criterio Evaluación 2.4 | F36: 7
C37: Comp. Esp. 3 | D37: Criterio Evaluación 3.1 | F37: 7
D38: Criterio Evaluación 3.2 | F38: 7
D39: Criterio Evaluación 3.3 | F39: 7
D40: Criterio Evaluación 3.4 | F40: 7
D41: Criterio Evaluación 3.5 | F41: 7
C42: Comp. Esp. 4 | D42: Criterio Evaluación 4.1 | F42: 7
D43: Criterio Evaluación 4.2 | F43: 7
C44: Comp. Esp. 5 | D44: Criterio Evaluación 5.1 | F44: 7
D45: Criterio Evaluación 5.2 | F45: 7
D46: Criterio Evaluación 5.3 | F46: 7
C47: Comp. Esp. 6 | D47: Criterio Evaluación 6.1 | F47: 7
D48: Criterio Evaluación 6.3 | F48: 7
C49: Comp. Esp. 7 | D49: Criterio Evaluación 7.1 | F49: 7
B50: Ámbito práctico | C50: Comp. Esp. 1 | D50: Criterio Evaluación 1.1 | F50: 2
D51: Criterio Evaluación 1.2 | F51: 2
D52: Criterio Evaluación 1.3 | F52: 2
C53: Comp. Esp. 2 | D53: Criterio Evaluación 2.1 | F53: 2
D54: Criterio Evaluación 2.2 | F54: 2
C55: Comp. Esp. 3 | D55: Criterio Evaluación 3.1 | F55: 2
D56: Criterio Evaluación 3.2 | F56: 2
C57: Comp. Esp. 4 | D57: Criterio Evaluación 4.1 | F57: 2
D58: Criterio Evaluación 4.2 | F58: 2
D59: Criterio Evaluación 4.3 | F59: 2
D60: Criterio Evaluación 4.4 | F60: 2
C61: Comp. Esp. 5 | D61: Criterio Evaluación 5.1 | F61: 2
D62: Criterio Evaluación 5.2 | F62: 2
D63: Criterio Evaluación 5.3 | F63: 2
C64: Comp. Esp. 6 | D64: Criterio Evaluación 6.1 | F64: 2
D65: Criterio Evaluación 6.2 | F65: 2
D66: Criterio Evaluación 6.3 | F66: 2
C67: Comp. Esp. 7 | D67: Criterio Evaluación 7.1 | F67: 2
D68: Criterio Evaluación 7.2 | F68: 2
B69: Conocimiento de las Matemáticas | C69: Comp. Esp. 1 | D69: Criterio Evaluación 1.1 | F69: 2
D70: Criterio Evaluación 1.2 | F70: 2
D71: Criterio Evaluación 1.3 | F71: 2
C72: Comp. Esp. 2 | D72: Criterio Evaluación 2.1 | F72: 2
D73: Criterio Evaluación 2.2 | F73: 2
C74: Comp. Esp. 3 | D74: Criterio Evaluación 3.1 | F74: 2
D75: Criterio Evaluación 3.2 | F75: 2
D76: Criterio Evaluación 3.3 | F76: 2
C77: Comp. Esp. 4 | D77: Criterio Evaluación 4.1 | F77: 2
D78: Criterio Evaluación 4.2 | F78: 2
D79: Criterio Evaluación 4.3 | F79: 2
C80: Comp. Esp. 5 | D80: Criterio Evaluación 5.1 | F80: 2
D81: Criterio Evaluación 5.2 | F81: 2
D82: Criterio Evaluación 5.3 | F82: 2
D83: Criterio Evaluación 5.4 | F83: 2
B84: Conocimiento del Lenguaje | C84: Comp. Esp. 1 | D84: Criterio Evaluación 1.1 | F84: 2
D85: Criterio Evaluación 1.2 | F85: 2
C86: Comp. Esp. 2 | D86: Criterio Evaluación 2.1 | F86: 2
D87: Criterio Evaluación 2.2 | F87: 2
C88: Comp. Esp. 3 | D88: Criterio Evaluación 3.1 | F88: 2
D89: Criterio Evaluación 3.2 | F89: 2
D90: Criterio Evaluación 3.3 | F90: 2
D91: Criterio Evaluación 3.4 | F91: 2
C92: Comp. Esp. 4 | D92: Criterio Evaluación 4.1 | F92: 2
C93: Comp. Esp. 5 | D93: Criterio Evaluación 5.1 | F93: 2
D94: Criterio Evaluación 5.2 | F94: 2
C95: Comp. Esp. 6 | D95: Criterio Evaluación 6.1 | F95: 2
D96: Criterio Evaluación 6.2 | F96: 2
B97: Educación en Valores Cívicos y Éticos | C97: Comp. Esp. 1 | D97: Criterio Evaluación 1.1 | F97: 1
D98: Criterio Evaluación 1.2 | F98: 1
D99: Criterio Evaluación 1.3 | F99: 1
C100: Comp. Esp. 2 | D100: Criterio Evaluación 2.1 | F100: 1
D101: Criterio Evaluación 2.2 | F101: 1
D102: Criterio Evaluación 2.3 | F102: 1
D103: Criterio Evaluación 2.4 | F103: 1
D104: Criterio Evaluación 2.5 | F104: 1
D105: Criterio Evaluación 2.6 | F105: 1
C106: Comp. Esp. 3 | D106: Criterio Evaluación 3.1 | F106: 1
D107: Criterio Evaluación 3.2 | F107: 1
D108: Criterio Evaluación 3.3 | F108: 1
C109: Comp. Esp. 4 | D109: Criterio Evaluación 4.1 | F109: 1
C110: Comp. Esp. 5 | D110: Criterio Evaluación 5.1 | F110: 1
B111: Educación Física | C111: Comp. Esp. 1 | D111: Criterio Evaluación 1.1 | F111: 2
D112: Criterio Evaluación 1.2 | F112: 2
D113: Criterio Evaluación 1.3 | F113: 2
D114: Criterio Evaluación 1.4 | F114: 2
D115: Criterio Evaluación 1.5 | F115: 2
D116: Criterio Evaluación 1.6 | F116: 2
D117: Criterio Evaluación 1.7 | F117: 2
D118: Criterio Evaluación 1.8 | F118: 2
D119: Criterio Evaluación 1.9 | F119: 2
C120: Comp. Esp. 2 | D120: Criterio Evaluación 2.1 | F120: 2
D121: Criterio Evaluación 2.2 | F121: 2
D122: Criterio Evaluación 2.3 | F122: 2
D123: Criterio Evaluación 2.4 | F123: 2
C124: Comp. Esp. 3 | D124: Criterio Evaluación 3.1 | F124: 2
D125: Criterio Evaluación 3.2 | F125: 2
D126: Criterio Evaluación 3.3 | F126: 2
C127: Comp. Esp. 4 | D127: Criterio Evaluación 4.1 | F127: 2
D128: Criterio Evaluación 4.2 | F128: 2
D129: Criterio Evaluación 4.3 | F129: 2
C130: Comp. Esp. 5 | D130: Criterio Evaluación 5.1 | F130: 2
D131: Criterio Evaluación 5.2 | F131: 2
B132: Educación Plástica, Visual y Audiovisual | C132: Comp. Esp. 1 | D132: Criterio Evaluación 1.1 | F132: 3
D133: Criterio Evaluación 1.2 | F133: 3
D134: Criterio Evaluación 1.3 | F134: 3
D135: Criterio Evaluación 1.4 | F135: 3
C136: Comp. Esp. 2 | D136: Criterio Evaluación 2.1 | F136: 3
D137: Criterio Evaluación 2.2 | F137: 3
C138: Comp. Esp. 3 | D138: Criterio Evaluación 3.1 | F138: 3
D139: Criterio Evaluación 3.2 | F139: 3
D140: Criterio Evaluación 3.3 | F140: 3
D141: Criterio Evaluación 3.4 | F141: 3
C142: Comp. Esp. 4 | D142: Criterio Evaluación 4.1 | F142: 3
D143: Criterio Evaluación 4.2 | F143: 3
C144: Comp. Esp. 5 | D144: Criterio Evaluación 5.1 | F144: 3
D145: Criterio Evaluación 5.2 | F145: 3
D146: Criterio Evaluación 5.3 | F146: 3
C147: Comp. Esp. 6 | D147: Criterio Evaluación 6.1 | F147: 3
D148: Criterio Evaluación 6.2 | F148: 3
C149: Comp. Esp. 7 | D149: Criterio Evaluación 7.1 | F149: 3
D150: Criterio Evaluación 7.2 | F150: 3
D151: Criterio Evaluación 7.3 | F151: 3
D152: Criterio Evaluación 7.4 | F152: 3
C153: Comp. Esp. 8 | D153: Criterio Evaluación 8.1 | F153: 3
D154: Criterio Evaluación 8.2 | F154: 3
D155: Criterio Evaluación 8.3 | F155: 3
B156: Lengua Extranjera | C156: Comp. Esp. 1 | D156: Criterio Evaluación 1.1 | F156: 3
D157: Criterio Evaluación 1.2 | F157: 3
D158: Criterio Evaluación 1.3 | F158: 3
C159: Comp. Esp. 2 | D159: Criterio Evaluación 2.1 | F159: 3
D160: Criterio Evaluación 2.2 | F160: 3
D161: Criterio Evaluación 2.3 | F161: 3
D162: Criterio Evaluación 2.4 | F162: 3
C163: Comp. Esp. 3 | D163: Criterio Evaluación 3.1 | F163: 3
D164: Criterio Evaluación 3.2 | F164: 3
D165: Criterio Evaluación 3.3 | F165: 3
D166: Criterio Evaluación 3.4 | F166: 3
C167: Comp. Esp. 4 | D167: Criterio Evaluación 4.1 | F167: 3
D168: Criterio Evaluación 4.2 | F168: 3
D169: Criterio Evaluación 4.3 | F169: 3
D170: Criterio Evaluación 4.4 | F170: 3
C171: Comp. Esp. 5 | D171: Criterio Evaluación 5.1 | F171: 3
D172: Criterio Evaluación 5.2 | F172: 3
D173: Criterio Evaluación 5.3 | F173: 3
C174: Comp. Esp. 6 | D174: Criterio Evaluación 6.1 | F174: 3
D175: Criterio Evaluación 6.2 | F175: 3
D176: Criterio Evaluación 6.3 | F176: 3
B177: Materia dirigida al alumnado que no cursa religión | C177: Comp. Esp. 1 | D177: Criterio Evaluación 1.1 | F177: 1
C178: Comp. Esp. 2 | D178: Criterio Evaluación 2.1 | F178: 1
C179: Comp. Esp. 3 | D179: Criterio Evaluación 3.1 | F179: 1
C180: Comp. Esp. 4 | D180: Criterio Evaluación 4.1 | F180: 1
C181: Comp. Esp. 5 | D181: Criterio Evaluación 5.1 | F181: 1
C182: Comp. Esp. 6 | D182: Criterio Evaluación 6.1 | F182: 1
B183: Música | C183: Comp. Esp. 1 | D183: Criterio Evaluación 1.1 | F183: 3
D184: Criterio Evaluación 1.2 | F184: 3
D185: Criterio Evaluación 1.3 | F185: 3
D186: Criterio Evaluación 1.4 | F186: 3
C187: Comp. Esp. 2 | D187: Criterio Evaluación 2.1 | F187: 3
D188: Criterio Evaluación 2.2 | F188: 3
D189: Criterio Evaluación 2.3 | F189: 3
C190: Comp. Esp. 3 | D190: Criterio Evaluación 3.1 | F190: 3
D191: Criterio Evaluación 3.2 | F191: 3
D192: Criterio Evaluación 3.3 | F192: 3
C193: Comp. Esp. 4 | D193: Criterio Evaluación 4.1 | F193: 3
D194: Criterio Evaluación 4.2 | F194: 3
D195: Criterio Evaluación 4.3 | F195: 3
D196: Criterio Evaluación 4.4 | F196: 3
B197: Religión | C197: Comp. Esp. 1 | D197: Criterio Evaluación 1.1 | F197: 1
C198: Comp. Esp. 2 | D198: Criterio Evaluación 2.1 | F198: 1
C199: Comp. Esp. 3 | D199: Criterio Evaluación 3.1 | F199: 1
C200: Comp. Esp. 4 | D200: Criterio Evaluación 4.1 | F200: 1
C201: Comp. Esp. 5 | D201: Criterio Evaluación 5.1 | F201: 1
C202: Comp. Esp. 6 | D202: Criterio Evaluación 6.1 | F202: 1
B203: Conocimiento de las Matemáticas | C203: Comp. Esp. 1 | D203: Criterio Evaluación 1.1 | F203: 2
... 457 more rows

Sheet Peso criterios libre
E4: PESO | F4: PORCENTAJE
A5: MATERIAS DE 3º ESO_Diversificación | B5: Ámbito científico-tecnológico | C5: Comp. Esp. 1 | D5: Criterio Evaluación 1.1 | E5: 1 | F5: =E5/SUM($E$5:$E$202) -> 0.005050505051
D6: Criterio Evaluación 1.2 | E6: 1 | F6: 0.005050505051
D7: Criterio Evaluación 1.3 | E7: 1 | F7: 0.005050505051
C8: Comp. Esp. 2 | D8: Criterio Evaluación 2.1 | E8: 1 | F8: 0.005050505051
D9: Criterio Evaluación 2.2 | E9: 1 | F9: 0.005050505051
D10: Criterio Evaluación 2.3 | E10: 1 | F10: 0.005050505051
D11: Criterio Evaluación 2.4 | E11: 1 | F11: 0.005050505051
C12: Comp. Esp. 3 | D12: Criterio Evaluación 3.1 | E12: 1 | F12: 0.005050505051
D13: Criterio Evaluación 3.2 | E13: 1 | F13: 0.005050505051
D14: Criterio Evaluación 3.3 | E14: 1 | F14: 0.005050505051
D15: Criterio Evaluación 3.4 | E15: 1 | F15: 0.005050505051
D16: Criterio Evaluación 3.5 | E16: 1 | F16: 0.005050505051
C17: Comp. Esp. 4 | D17: Criterio Evaluación 4.1 | E17: 1 | F17: 0.005050505051
D18: Criterio Evaluación 4.2 | E18: 1 | F18: 0.005050505051
C19: Comp. Esp. 5 | D19: Criterio Evaluación 5.1 | E19: 1 | F19: 0.005050505051
D20: Criterio Evaluación 5.2 | E20: 1 | F20: 0.005050505051
D21: Criterio Evaluación 5.3 | E21: 1 | F21: 0.005050505051
C22: Comp. Esp. 6 | D22: Criterio Evaluación 6.1 | E22: 1 | F22: 0.005050505051
D23: Criterio Evaluación 6.2 | E23: 1 | F23: 0.005050505051
D24: Criterio Evaluación 6.3 | E24: 1 | F24: 0.005050505051
D25: Criterio Evaluación 6.4 | E25: 1 | F25: 0.005050505051
D26: Criterio Evaluación 6.5 | E26: 1 | F26: 0.005050505051
C27: Comp. Esp. 7 | D27: Criterio Evaluación 7.1 | E27: 1 | F27: 0.005050505051
D28: Criterio Evaluación 7.2 | E28: 1 | F28: 0.005050505051
B29: Ámbito lingüístico y social | C29: Comp. Esp. 1 | D29: Criterio Evaluación 1.1 | E29: 1 | F29: 0.005050505051
D30: Criterio Evaluación 1.2 | E30: 1 | F30: 0.005050505051
D31: Criterio Evaluación 1.3 | E31: 1 | F31: 0.005050505051
D32: Criterio Evaluación 1.4 | E32: 1 | F32: 0.005050505051
C33: Comp. Esp. 2 | D33: Criterio Evaluación 2.1 | E33: 1 | F33: 0.005050505051
D34: Criterio Evaluación 2.2 | E34: 1 | F34: 0.005050505051
D35: Criterio Evaluación 2.3 | E35: 1 | F35: 0.005050505051
D36: Criterio Evaluación 2.4 | E36: 1 | F36: 0.005050505051
C37: Comp. Esp. 3 | D37: Criterio Evaluación 3.1 | E37: 1 | F37: =E37/SUM($E$5:$E$202) -> 0.005050505051
D38: Criterio Evaluación 3.2 | E38: 1 | F38: 0.005050505051
D39: Criterio Evaluación 3.3 | E39: 1 | F39: 0.005050505051
D40: Criterio Evaluación 3.4 | E40: 1 | F40: 0.005050505051
D41: Criterio Evaluación 3.5 | E41: 1 | F41: 0.005050505051
C42: Comp. Esp. 4 | D42: Criterio Evaluación 4.1 | E42: 1 | F42: 0.005050505051
D43: Criterio Evaluación 4.2 | E43: 1 | F43: 0.005050505051
C44: Comp. Esp. 5 | D44: Criterio Evaluación 5.1 | E44: 1 | F44: 0.005050505051
D45: Criterio Evaluación 5.2 | E45: 1 | F45: 0.005050505051
D46: Criterio Evaluación 5.3 | E46: 1 | F46: 0.005050505051
C47: Comp. Esp. 6 | D47: Criterio Evaluación 6.1 | E47: 1 | F47: 0.005050505051
D48: Criterio Evaluación 6.3 | E48: 1 | F48: 0.005050505051
C49: Comp. Esp. 7 | D49: Criterio Evaluación 7.1 | E49: 1 | F49: 0.005050505051
B50: Ámbito práctico | C50: Comp. Esp. 1 | D50: Criterio Evaluación 1.1 | E50: 1 | F50: 0.005050505051
D51: Criterio Evaluación 1.2 | E51: 1 | F51: 0.005050505051
D52: Criterio Evaluación 1.3 | E52: 1 | F52: 0.005050505051
C53: Comp. Esp. 2 | D53: Criterio Evaluación 2.1 | E53: 1 | F53: 0.005050505051
D54: Criterio Evaluación 2.2 | E54: 1 | F54: 0.005050505051
C55: Comp. Esp. 3 | D55: Criterio Evaluación 3.1 | E55: 1 | F55: 0.005050505051
D56: Criterio Evaluación 3.2 | E56: 1 | F56: 0.005050505051
C57: Comp. Esp. 4 | D57: Criterio Evaluación 4.1 | E57: 1 | F57: 0.005050505051
D58: Criterio Evaluación 4.2 | E58: 1 | F58: 0.005050505051
D59: Criterio Evaluación 4.3 | E59: 1 | F59: 0.005050505051
D60: Criterio Evaluación 4.4 | E60: 1 | F60: 0.005050505051
C61: Comp. Esp. 5 | D61: Criterio Evaluación 5.1 | E61: 1 | F61: 0.005050505051
D62: Criterio Evaluación 5.2 | E62: 1 | F62: 0.005050505051
D63: Criterio Evaluación 5.3 | E63: 1 | F63: 0.005050505051
C64: Comp. Esp. 6 | D64: Criterio Evaluación 6.1 | E64: 1 | F64: 0.005050505051
D65: Criterio Evaluación 6.2 | E65: 1 | F65: 0.005050505051
D66: Criterio Evaluación 6.3 | E66: 1 | F66: 0.005050505051
C67: Comp. Esp. 7 | D67: Criterio Evaluación 7.1 | E67: 1 | F67: 0.005050505051
D68: Criterio Evaluación 7.2 | E68: 1 | F68: 0.005050505051
B69: Conocimiento de las Matemáticas | C69: Comp. Esp. 1 | D69: Criterio Evaluación 1.1 | E69: 1 | F69: =E69/SUM($E$5:$E$202) -> 0.005050505051
D70: Criterio Evaluación 1.2 | E70: 1 | F70: 0.005050505051
D71: Criterio Evaluación 1.3 | E71: 1 | F71: 0.005050505051
C72: Comp. Esp. 2 | D72: Criterio Evaluación 2.1 | E72: 1 | F72: 0.005050505051
D73: Criterio Evaluación 2.2 | E73: 1 | F73: 0.005050505051
C74: Comp. Esp. 3 | D74: Criterio Evaluación 3.1 | E74: 1 | F74: 0.005050505051
D75: Criterio Evaluación 3.2 | E75: 1 | F75: 0.005050505051
D76: Criterio Evaluación 3.3 | E76: 1 | F76: 0.005050505051
C77: Comp. Esp. 4 | D77: Criterio Evaluación 4.1 | E77: 1 | F77: 0.005050505051
D78: Criterio Evaluación 4.2 | E78: 1 | F78: 0.005050505051
D79: Criterio Evaluación 4.3 | E79: 1 | F79: 0.005050505051
C80: Comp. Esp. 5 | D80: Criterio Evaluación 5.1 | E80: 1 | F80: 0.005050505051
D81: Criterio Evaluación 5.2 | E81: 1 | F81: 0.005050505051
D82: Criterio Evaluación 5.3 | E82: 1 | F82: 0.005050505051
D83: Criterio Evaluación 5.4 | E83: 1 | F83: 0.005050505051
B84: Conocimiento del Lenguaje | C84: Comp. Esp. 1 | D84: Criterio Evaluación 1.1 | E84: 1 | F84: 0.005050505051
D85: Criterio Evaluación 1.2 | E85: 1 | F85: 0.005050505051
C86: Comp. Esp. 2 | D86: Criterio Evaluación 2.1 | E86: 1 | F86: 0.005050505051
D87: Criterio Evaluación 2.2 | E87: 1 | F87: 0.005050505051
C88: Comp. Esp. 3 | D88: Criterio Evaluación 3.1 | E88: 1 | F88: 0.005050505051
D89: Criterio Evaluación 3.2 | E89: 1 | F89: 0.005050505051
D90: Criterio Evaluación 3.3 | E90: 1 | F90: 0.005050505051
D91: Criterio Evaluación 3.4 | E91: 1 | F91: 0.005050505051
C92: Comp. Esp. 4 | D92: Criterio Evaluación 4.1 | E92: 1 | F92: 0.005050505051
C93: Comp. Esp. 5 | D93: Criterio Evaluación 5.1 | E93: 1 | F93: 0.005050505051
D94: Criterio Evaluación 5.2 | E94: 1 | F94: 0.005050505051
C95: Comp. Esp. 6 | D95: Criterio Evaluación 6.1 | E95: 1 | F95: 0.005050505051
D96: Criterio Evaluación 6.2 | E96: 1 | F96: 0.005050505051
B97: Educación en Valores Cívicos y Éticos | C97: Comp. Esp. 1 | D97: Criterio Evaluación 1.1 | E97: 1 | F97: 0.005050505051
D98: Criterio Evaluación 1.2 | E98: 1 | F98: 0.005050505051
D99: Criterio Evaluación 1.3 | E99: 1 | F99: 0.005050505051
C100: Comp. Esp. 2 | D100: Criterio Evaluación 2.1 | E100: 1 | F100: 0.005050505051
D101: Criterio Evaluación 2.2 | E101: 1 | F101: =E101/SUM($E$5:$E$202) -> 0.005050505051
D102: Criterio Evaluación 2.3 | E102: 1 | F102: 0.005050505051
D103: Criterio Evaluación 2.4 | E103: 1 | F103: 0.005050505051
D104: Criterio Evaluación 2.5 | E104: 1 | F104: 0.005050505051
D105: Criterio Evaluación 2.6 | E105: 1 | F105: 0.005050505051
C106: Comp. Esp. 3 | D106: Criterio Evaluación 3.1 | E106: 1 | F106: 0.005050505051
D107: Criterio Evaluación 3.2 | E107: 1 | F107: 0.005050505051
D108: Criterio Evaluación 3.3 | E108: 1 | F108: 0.005050505051
C109: Comp. Esp. 4 | D109: Criterio Evaluación 4.1 | E109: 1 | F109: 0.005050505051
C110: Comp. Esp. 5 | D110: Criterio Evaluación 5.1 | E110: 1 | F110: 0.005050505051
B111: Educación Física | C111: Comp. Esp. 1 | D111: Criterio Evaluación 1.1 | E111: 1 | F111: 0.005050505051
D112: Criterio Evaluación 1.2 | E112: 1 | F112: 0.005050505051
D113: Criterio Evaluación 1.3 | E113: 1 | F113: 0.005050505051
D114: Criterio Evaluación 1.4 | E114: 1 | F114: 0.005050505051
D115: Criterio Evaluación 1.5 | E115: 1 | F115: 0.005050505051
D116: Criterio Evaluación 1.6 | E116: 1 | F116: 0.005050505051
D117: Criterio Evaluación 1.7 | E117: 1 | F117: 0.005050505051
D118: Criterio Evaluación 1.8 | E118: 1 | F118: 0.005050505051
D119: Criterio Evaluación 1.9 | E119: 1 | F119: 0.005050505051
C120: Comp. Esp. 2 | D120: Criterio Evaluación 2.1 | E120: 1 | F120: 0.005050505051
D121: Criterio Evaluación 2.2 | E121: 1 | F121: 0.005050505051
D122: Criterio Evaluación 2.3 | E122: 1 | F122: 0.005050505051
D123: Criterio Evaluación 2.4 | E123: 1 | F123: 0.005050505051
C124: Comp. Esp. 3 | D124: Criterio Evaluación 3.1 | E124: 1 | F124: 0.005050505051
D125: Criterio Evaluación 3.2 | E125: 1 | F125: 0.005050505051
D126: Criterio Evaluación 3.3 | E126: 1 | F126: 0.005050505051
C127: Comp. Esp. 4 | D127: Criterio Evaluación 4.1 | E127: 1 | F127: 0.005050505051
D128: Criterio Evaluación 4.2 | E128: 1 | F128: 0.005050505051
D129: Criterio Evaluación 4.3 | E129: 1 | F129: 0.005050505051
C130: Comp. Esp. 5 | D130: Criterio Evaluación 5.1 | E130: 1 | F130: 0.005050505051
D131: Criterio Evaluación 5.2 | E131: 1 | F131: 0.005050505051
B132: Educación Plástica, Visual y Audiovisual | C132: Comp. Esp. 1 | D132: Criterio Evaluación 1.1 | E132: 1 | F132: 0.005050505051
D133: Criterio Evaluación 1.2 | E133: 1 | F133: =E133/SUM($E$5:$E$202) -> 0.005050505051
D134: Criterio Evaluación 1.3 | E134: 1 | F134: 0.005050505051
D135: Criterio Evaluación 1.4 | E135: 1 | F135: 0.005050505051
C136: Comp. Esp. 2 | D136: Criterio Evaluación 2.1 | E136: 1 | F136: 0.005050505051
D137: Criterio Evaluación 2.2 | E137: 1 | F137: 0.005050505051
C138: Comp. Esp. 3 | D138: Criterio Evaluación 3.1 | E138: 1 | F138: 0.005050505051
D139: Criterio Evaluación 3.2 | E139: 1 | F139: 0.005050505051
D140: Criterio Evaluación 3.3 | E140: 1 | F140: 0.005050505051
D141: Criterio Evaluación 3.4 | E141: 1 | F141: 0.005050505051
C142: Comp. Esp. 4 | D142: Criterio Evaluación 4.1 | E142: 1 | F142: 0.005050505051
D143: Criterio Evaluación 4.2 | E143: 1 | F143: 0.005050505051
C144: Comp. Esp. 5 | D144: Criterio Evaluación 5.1 | E144: 1 | F144: 0.005050505051
D145: Criterio Evaluación 5.2 | E145: 1 | F145: 0.005050505051
D146: Criterio Evaluación 5.3 | E146: 1 | F146: 0.005050505051
C147: Comp. Esp. 6 | D147: Criterio Evaluación 6.1 | E147: 1 | F147: 0.005050505051
D148: Criterio Evaluación 6.2 | E148: 1 | F148: 0.005050505051
C149: Comp. Esp. 7 | D149: Criterio Evaluación 7.1 | E149: 1 | F149: 0.005050505051
D150: Criterio Evaluación 7.2 | E150: 1 | F150: 0.005050505051
D151: Criterio Evaluación 7.3 | E151: 1 | F151: 0.005050505051
D152: Criterio Evaluación 7.4 | E152: 1 | F152: 0.005050505051
C153: Comp. Esp. 8 | D153: Criterio Evaluación 8.1 | E153: 1 | F153: 0.005050505051
D154: Criterio Evaluación 8.2 | E154: 1 | F154: 0.005050505051
D155: Criterio Evaluación 8.3 | E155: 1 | F155: 0.005050505051
B156: Lengua Extranjera | C156: Comp. Esp. 1 | D156: Criterio Evaluación 1.1 | E156: 1 | F156: 0.005050505051
D157: Criterio Evaluación 1.2 | E157: 1 | F157: 0.005050505051
D158: Criterio Evaluación 1.3 | E158: 1 | F158: 0.005050505051
C159: Comp. Esp. 2 | D159: Criterio Evaluación 2.1 | E159: 1 | F159: 0.005050505051
D160: Criterio Evaluación 2.2 | E160: 1 | F160: 0.005050505051
D161: Criterio Evaluación 2.3 | E161: 1 | F161: 0.005050505051
D162: Criterio Evaluación 2.4 | E162: 1 | F162: 0.005050505051
C163: Comp. Esp. 3 | D163: Criterio Evaluación 3.1 | E163: 1 | F163: 0.005050505051
D164: Criterio Evaluación 3.2 | E164: 1 | F164: 0.005050505051
D165: Criterio Evaluación 3.3 | E165: 1 | F165: =E165/SUM($E$5:$E$202) -> 0.005050505051
D166: Criterio Evaluación 3.4 | E166: 1 | F166: 0.005050505051
C167: Comp. Esp. 4 | D167: Criterio Evaluación 4.1 | E167: 1 | F167: 0.005050505051
D168: Criterio Evaluación 4.2 | E168: 1 | F168: 0.005050505051
D169: Criterio Evaluación 4.3 | E169: 1 | F169: 0.005050505051
D170: Criterio Evaluación 4.4 | E170: 1 | F170: 0.005050505051
C171: Comp. Esp. 5 | D171: Criterio Evaluación 5.1 | E171: 1 | F171: 0.005050505051
D172: Criterio Evaluación 5.2 | E172: 1 | F172: 0.005050505051
D173: Criterio Evaluación 5.3 | E173: 1 | F173: 0.005050505051
C174: Comp. Esp. 6 | D174: Criterio Evaluación 6.1 | E174: 1 | F174: 0.005050505051
D175: Criterio Evaluación 6.2 | E175: 1 | F175: 0.005050505051
D176: Criterio Evaluación 6.3 | E176: 1 | F176: 0.005050505051
B177: Materia dirigida al alumnado que no cursa religión | C177: Comp. Esp. 1 | D177: Criterio Evaluación 1.1 | E177: 1 | F177: 0.005050505051
C178: Comp. Esp. 2 | D178: Criterio Evaluación 2.1 | E178: 1 | F178: 0.005050505051
C179: Comp. Esp. 3 | D179: Criterio Evaluación 3.1 | E179: 1 | F179: 0.005050505051
C180: Comp. Esp. 4 | D180: Criterio Evaluación 4.1 | E180: 1 | F180: 0.005050505051
C181: Comp. Esp. 5 | D181: Criterio Evaluación 5.1 | E181: 1 | F181: 0.005050505051
C182: Comp. Esp. 6 | D182: Criterio Evaluación 6.1 | E182: 1 | F182: 0.005050505051
B183: Música | C183: Comp. Esp. 1 | D183: Criterio Evaluación 1.1 | E183: 1 | F183: 0.005050505051
D184: Criterio Evaluación 1.2 | E184: 1 | F184: 0.005050505051
D185: Criterio Evaluación 1.3 | E185: 1 | F185: 0.005050505051
D186: Criterio Evaluación 1.4 | E186: 1 | F186: 0.005050505051
C187: Comp. Esp. 2 | D187: Criterio Evaluación 2.1 | E187: 1 | F187: 0.005050505051
D188: Criterio Evaluación 2.2 | E188: 1 | F188: 0.005050505051
D189: Criterio Evaluación 2.3 | E189: 1 | F189: 0.005050505051
C190: Comp. Esp. 3 | D190: Criterio Evaluación 3.1 | E190: 1 | F190: 0.005050505051
D191: Criterio Evaluación 3.2 | E191: 1 | F191: 0.005050505051
D192: Criterio Evaluación 3.3 | E192: 1 | F192: 0.005050505051
C193: Comp. Esp. 4 | D193: Criterio Evaluación 4.1 | E193: 1 | F193: 0.005050505051
D194: Criterio Evaluación 4.2 | E194: 1 | F194: 0.005050505051
D195: Criterio Evaluación 4.3 | E195: 1 | F195: 0.005050505051
D196: Criterio Evaluación 4.4 | E196: 1 | F196: 0.005050505051
B197: Religión | C197: Comp. Esp. 1 | D197: Criterio Evaluación 1.3 | E197: 1 | F197: =E197/SUM($E$5:$E$202) -> 0.005050505051
C198: Comp. Esp. 2 | D198: Criterio Evaluación 2.3 | E198: 1 | F198: 0.005050505051
C199: Comp. Esp. 3 | D199: Criterio Evaluación 3.3 | E199: 1 | F199: 0.005050505051
C200: Comp. Esp. 4 | D200: Criterio Evaluación 4.3 | E200: 1 | F200: 0.005050505051
C201: Comp. Esp. 5 | D201: Criterio Evaluación 5.3 | E201: 1 | F201: 0.005050505051
C202: Comp. Esp. 6 | D202: Criterio Evaluación 6.3 | E202: 1 | F202: 0.005050505051
A203: MATERIAS PENDIENTES DE 2º ESO | B203: Conocimiento de las Matemáticas | C203: Comp. Esp. 1 | D203: Criterio Evaluación 1.1 | E203: 1
... 458 more rows

Sheet Peso descrip. libre
E2: Competencia en Comunicación Lingüística | Y2: Competencia Plurilingüe | AK2: Competencia Matemática y Competencia en Ciencia, Tecnología e Ingeniería | BE2: Competencia Digital | BY2: Competencia Personal, Social y de Aprender a Aprender | CS2: Competencia Ciudadana | DI2: Competencia Emprendedora | DU2: Competencia en Conciencia y Expresión Culturales
E3: CCL 1 | I3: CCL 2 | M3: CCL 3 | Q3: CCL 4 | U3: CCL 5 | Y3: CP 1 | AC3: CP 2 | AG3: CP 3 | AK3: STEM 1 | AO3: STEM 2 | AS3: STEM 3 | AW3: STEM 4 | BA3: STEM 5 | BE3: CD 1 | BI3: CD 2 | BM3: CD 3 | BQ3: CD 4 | BU3: CD 5 | BY3: CPSAA 1 | CC3: CPSAA 2 | CG3: CPSAA 3 | CK3: CPSAA 4 | CO3: CPSAA 5 | CS3: CC 1 | CW3: CC 2 | DA3: CC 3 | DE3: CC 4 | DI3: CE 1 | DM3: CE 2 | DQ3: CE 3 | DU3: CCEC 1 | DY3: CCEC 2 | EC3: CCEC 3 | EG3: CCEC 4
B4: NO | C4: PESO DESCRIPTORES | E4: 1 | I4: 1 | M4: 1 | Q4: 1 | U4: 1 | Y4: 1 | AC4: 1 | AG4: 1 | AK4: 1 | AO4: 1 | AS4: 1 | AW4: 1 | BA4: 1 | BE4: 1 | BI4: 1 | BM4: 1 | BQ4: 1 | BU4: 1 | BY4: 1 | CC4: 1 | CG4: 1 | CK4: 1 | CO4: 1 | CS4: 1 | CW4: 1 | DA4: 1 | DE4: 1 | DI4: 1 | DM4: 1 | DQ4: 1 | DU4: 1 | DY4: 1 | EC4: 1 | EG4: 1
C5: PORCENTAJES | E5: =E4/SUM($E4:$U4) -> 0.2 | I5: =I4/SUM($E4:$U4) -> 0.2 | M5: =M4/SUM($E4:$U4) -> 0.2 | Q5: =Q4/SUM($E4:$U4) -> 0.2 | U5: =U4/SUM($E4:$U4) -> 0.2 | Y5: =Y4/SUM($Y4:$AG4) -> 0.3333333333 | AC5: =AC4/SUM($Y4:$AG4) -> 0.3333333333 | AG5: 0.3333333333 | AK5: =AK4/SUM($AK4:$BA4) -> 0.2 | AO5: =AO4/SUM($AK4:$BA4) -> 0.2 | AS5: 0.2 | AW5: 0.2 | BA5: 0.2 | BE5: =BE4/SUM($BE4:$BU4) -> 0.2 | BI5: =BI4/SUM($BE4:$BU4) -> 0.2 | BM5: 0.2 | BQ5: 0.2 | BU5: 0.2 | BY5: =BY4/SUM($BY4:$CO4) -> 0.2 | CC5: =CC4/SUM($BY4:$CO4) -> 0.2 | CG5: 0.2 | CK5: 0.2 | CO5: 0.2 | CS5: =CS4/SUM($CS4:$DE4) -> 0.25 | CW5: =CW4/SUM($CS4:$DE4) -> 0.25 | DA5: 0.25 | DE5: 0.25 | DI5: =DI4/SUM($DI4:$DQ4) -> 0.3333333333 | DM5: =DM4/SUM($DI4:$DQ4) -> 0.3333333333 | DQ5: 0.3333333333 | DU5: =DU4/SUM($DU4:$EG4) -> 0.25 | DY5: =DY4/SUM($DU4:$EG4) -> 0.25 | EC5: 0.25 | EG5: 0.25

Sheet Peso descrip. vinculaciones
E2: Competencia en Comunicación Lingüística | Y2: Competencia Plurilingüe | AK2: Competencia Matemática y Competencia en Ciencia, Tecnología e Ingeniería | BE2: Competencia Digital | BY2: Competencia Personal, Social y de Aprender a Aprender | CS2: Competencia Ciudadana | DI2: Competencia Emprendedora | DU2: Competencia en Conciencia y Expresión Culturales
E3: CCL 1 | I3: CCL 2 | M3: CCL 3 | Q3: CCL 4 | U3: CCL 5 | Y3: CP 1 | AC3: CP 2 | AG3: CP 3 | AK3: STEM 1 | AO3: STEM 2 | AS3: STEM 3 | AW3: STEM 4 | BA3: STEM 5 | BE3: CD 1 | BI3: CD 2 | BM3: CD 3 | BQ3: CD 4 | BU3: CD 5 | BY3: CPSAA 1 | CC3: CPSAA 2 | CG3: CPSAA 3 | CK3: CPSAA 4 | CO3: CPSAA 5 | CS3: CC 1 | CW3: CC 2 | DA3: CC 3 | DE3: CC 4 | DI3: CE 1 | DM3: CE 2 | DQ3: CE 3 | DU3: CCEC 1 | DY3: CCEC 2 | EC3: CCEC 3 | EG3: CCEC 4
B4: NO | C4: PESO DESCRIPTORES | E4: 0.2841328413 | I4: 0.2361623616 | M4: 0.2250922509 | Q4: 0.07011070111 | U4: 0.184501845 | Y4: 0.2772277228 | AC4: 0.3762376238 | AG4: 0.3465346535 | AK4: 0.2654867257 | AO4: 0.2168141593 | AS4: 0.1814159292 | AW4: 0.1592920354 | BA4: 0.1769911504 | BE4: 0.2094017094 | BI4: 0.2905982906 | BM4: 0.2521367521 | BQ4: 0.1452991453 | BU4: 0.1025641026 | BY4: 0.2033898305 | CC4: 0.1271186441 | CG4: 0.2669491525 | CK4: 0.2203389831 | CO4: 0.1822033898 | CS4: 0.2765957447 | CW4: 0.2127659574 | DA4: 0.3244680851 | DE4: 0.1861702128 | DI4: 0.427480916 | DM4: 0.1450381679 | DQ4: 0.427480916 | DU4: 0.246835443 | DY4: 0.2215189873 | EC4: 0.2974683544 | EG4: 0.2341772152
C5: PORCENTAJES | E5: =E4/SUM($E4:$U4) -> 0.2841328413 | I5: =I4/SUM($E4:$U4) -> 0.2361623616 | M5: =M4/SUM($E4:$U4) -> 0.2250922509 | Q5: =Q4/SUM($E4:$U4) -> 0.07011070111 | U5: =U4/SUM($E4:$U4) -> 0.184501845 | Y5: =Y4/SUM($Y4:$AG4) -> 0.2772277228 | AC5: =AC4/SUM($Y4:$AG4) -> 0.3762376238 | AG5: 0.3465346535 | AK5: =AK4/SUM($AK4:$BA4) -> 0.2654867257 | AO5: =AO4/SUM($AK4:$BA4) -> 0.2168141593 | AS5: 0.1814159292 | AW5: 0.1592920354 | BA5: 0.1769911504 | BE5: =BE4/SUM($BE4:$BU4) -> 0.2094017094 | BI5: =BI4/SUM($BE4:$BU4) -> 0.2905982906 | BM5: 0.2521367521 | BQ5: 0.1452991453 | BU5: 0.1025641026 | BY5: =BY4/SUM($BY4:$CO4) -> 0.2033898305 | CC5: =CC4/SUM($BY4:$CO4) -> 0.1271186441 | CG5: 0.2669491525 | CK5: 0.2203389831 | CO5: 0.1822033898 | CS5: =CS4/SUM($CS4:$DE4) -> 0.2765957447 | CW5: =CW4/SUM($CS4:$DE4) -> 0.2127659574 | DA5: 0.3244680851 | DE5: 0.1861702128 | DI5: =DI4/SUM($DI4:$DQ4) -> 0.427480916 | DM5: =DM4/SUM($DI4:$DQ4) -> 0.1450381679 | DQ5: 0.427480916 | DU5: =DU4/SUM($DU4:$EG4) -> 0.246835443 | DY5: =DY4/SUM($DU4:$EG4) -> 0.2215189873 | EC5: 0.2974683544 | EG5: 0.2341772152

Sheet Alumnos
A1: FALSE
C3: LISTADO DE ALUMNOS | F3: MATERIAS 3º ESO | L3: MATERIAS PENDIENTES DE 2ºESO | Z3: MATERIAS PENDIENTES DE 1ºESO
C4: Informe | D4: Grupo 3º _____ | E4: ID Matrícula | F4: EPVA | G4: MUS | H4: CMAT | I4: CLEN | J4: MNR | K4: REL | L4: EF | M4: LEX | N4: MUS | O4: CMAT | P4: CLEN | Q4: CCL | R4: LLCh | S4: 2ª LEX | X4: MNR | Y4: REL | Z4: EF | AA4: EPVA | AB4: LEX | AC4: CMAT | AD4: CLEN | AE4: LLCh | AF4: 2ª LEX | AK4: MNR | AL4: REL | AN4: TEAMS / Onedrive
S5: ALE | T5: FRA | U5: ING | V5: ITA | W5: POR | AF5: ALE | AG5: FRA | AH5: ING | AI5: ITA | AJ5: POR
D6: Nombre_Alumno_1 | E6: 0000_1 | F6: x | H6: x | J6: x | L6: x | P6: x | X6: x | AC6: x | AK6: x
C7: 2 | D7: Nombre_Alumno_2 | E7: 0000_2 | G7: x | I7: x | K7: x | Q7: x | Y7: x | Z7: x | AD7: x | AL7: x
C8: 3 | D8: Nombre_Alumno_3 | E8: 0000_3 | F8: x | J8: x | R8: x | AA8: x | AE8: x
C9: 4 | D9: Nombre_Alumno_4 | E9: 0000_4 | G9: x | K9: x | W9: x | AJ9: x
D10: Nombre_Alumno_5 | E10: 0000_5 | F10: x | J10: x | M10: x
C11: 6 | D11: Nombre_Alumno_6 | E11: 0000_6 | G11: x | K11: x | AB11: x
C12: 7 | D12: Nombre_Alumno_7 | E12: 0000_7 | F12: x | J12: x | N12: x
C13: 8 | D13: Nombre_Alumno_8 | E13: 0000_8 | G13: x | K13: x | O13: x
C14: 9 | D14: Nombre_Alumno_9 | E14: 0000_9 | F14: x | J14: x
C15: 10
C16: 11
C17: 12
C18: 13
C19: 14
C20: 15
C21: 16
C22: 17
C23: 18
C24: 19
C25: 20
C26: 21
C27: 22
C28: 23
C29: 24
C30: 25
C31: 26
C32: 27
C33: 28
C34: 29
C35: 30
C36: 31
C37: 32
C38: 33
C39: 34
C40: 35
D41: TOTAL MATRICULADOS | F41: =COUNTA(F6:F40) -> 5 | G41: =COUNTA(G6:G40) -> 4 | H41: 1 | I41: 1 | J41: 5 | K41: 4 | L41: 1 | M41: 1 | N41: 1 | O41: 1 | P41: 1 | Q41: 1 | R41: 1 | S41: 0 | T41: 0 | U41: 0 | V41: 0 | W41: 1 | X41: 1 | Y41: 1 | Z41: 1 | AA41: 1 | AB41: 1 | AC41: 1 | AD41: 1 | AE41: 1 | AF41: 0 | AG41: 0 | AH41: 0 | AI41: 0 | AJ41: 1 | AK41: 1 | AL41: 1

Sheet Redondeo
AR2: EXPORTACIÓN NOTAS COMPETENCIAS A STILUS
C3: CALIFICACIÓN DE MATERIAS | AR3: 1º_Introduce para cada materia las centésimas a partir de las que se realizará un redondeo al alza (valor entre 1 y 100):
C4: CENTÉSIMAS REDONDEO
C5: 90 | D5: 90 | E5: 90 | F5: 90 | G5: 90 | H5: 90 | I5: 90 | J5: 90 | K5: 90 | L5: 90 | M5: 90 | N5: 90 | O5: 90 | P5: 90 | Q5: 90 | R5: 90 | S5: 90 | T5: 90 | U5: 90 | V5: 90 | W5: 90 | X5: 90 | Y5: 90 | Z5: 90 | AA5: 90 | AB5: 90 | AC5: 90 | AD5: 90 | AE5: 90 | AF5: 90 | AG5: 90 | AH5: 90 | AI5: 90 | AJ5: 90 | AK5: 90 | AL5: 90 | AM5: 90 | AN5: 90 | AO5: 90 | AR5: Ejemplo: si se marca 85, desde el 4,85 (inclusive) se redondeará a 5, Si se marca 100, el 4,99 e inferiores se redondearán a 4
C6: 3º ESO_DIV | O6: 2º ESO PENDIENTES | AC6: 1º ESO PENDIENTES
B7: =TRANSPOSE('Calificación materias'!B5:AK44) -> 0 | C7: Ámbito Científico-Tec. | D7: Ámbito Lingúíst. y Soc. | E7: Ámbito Práctico | F7: EVCE | G7: Educación Física | H7: Lengua Extranjera | I7: EPVA | J7: Música | K7: CMAT | L7: CLEN | M7: Materia no Religión | N7: Religión | O7: Educación Física | P7: Lengua Extranjera | Q7: Música | R7: CMAT | S7: CLEN | T7: Cultura Clásica | U7: Lengua y Cultura China | V7: 2ª Lengua Extranjera_ALE | W7: 2ª Lengua Extranjera_FRA | X7: 2ª Lengua Extranjera_ING | Y7: 2ª Lengua Extranjera_ITA | Z7: 2ª Lengua Extranjera_POR | AA7: Materia no Religión | AB7: Religión | AC7: Educación Física | AD7: EPVA | AE7: Lengua Extranjera | AF7: CMAT | AG7: CLEN | AH7: Lengua y Cultura China | AI7: 2ª Lengua Extranjera_ALE | AJ7: 2ª Lengua Extranjera_FRA | AK7: 2ª Lengua Extranjera_ING | AL7: 2ª Lengua Extranjera_ITA | AM7: 2ª Lengua Extranjera_POR | AN7: Materia no Religión | AO7: Religión | AR7: 2º_Pulsa el siguiente botón:
B8: Nombre_Alumno_1
B9: Nombre_Alumno_2
B10: Nombre_Alumno_3
B11: Nombre_Alumno_4
B12: Nombre_Alumno_5
B13: Nombre_Alumno_6
B14: Nombre_Alumno_7
B15: Nombre_Alumno_8
B16: Nombre_Alumno_9

Sheet Materias
C1: MATERIAS DE 3º ESO
C11: MATERIAS PENDIENTES DE 2º ESO
C21: MATERIAS PENDIENTES DE 1º ESO

Sheet 2LEX (2)
C2: MATERIAS PENDIENTES DE 2º ESO

Sheet 2LEX (1)
C2: MATERIAS PENDIENTES DE 1º ESO

Sheet Calif. de crit.
E2: =IF(Alumnos!D6="","",Alumnos!D6) -> Nombre_Alumno_1 | F2: =IF(Alumnos!D7="","",Alumnos!D7) -> Nombre_Alumno_2 | G2: =IF(Alumnos!D8="","",Alumnos!D8) -> Nombre_Alumno_3 | H2: =IF(Alumnos!D9="","",Alumnos!D9) -> Nombre_Alumno_4 | I2: =IF(Alumnos!D10="","",Alumnos!D10) -> Nombre_Alumno_5 | J2: =IF(Alumnos!D11="","",Alumnos!D11) -> Nombre_Alumno_6 | K2: =IF(Alumnos!D12="","",Alumnos!D12) -> Nombre_Alumno_7 | L2: =IF(Alumnos!D13="","",Alumnos!D13) -> Nombre_Alumno_8 | M2: =IF(Alumnos!D14="","",Alumnos!D14) -> Nombre_Alumno_9 | N2: =IF(Alumnos!D15="","",Alumnos!D15) ->  | O2: =IF(Alumnos!D16="","",Alumnos!D16) ->  | P2: =IF(Alumnos!D17="","",Alumnos!D17) ->  | Q2: =IF(Alumnos!D18="","",Alumnos!D18) ->  | R2: =IF(Alumnos!D19="","",Alumnos!D19) ->  | S2: =IF(Alumnos!D20="","",Alumnos!D20) ->  | T2: =IF(Alumnos!D21="","",Alumnos!D21) ->  | U2: =IF(Alumnos!D22="","",Alumnos!D22) ->  | V2: =IF(Alumnos!D23="","",Alumnos!D23) ->  | W2: =IF(Alumnos!D24="","",Alumnos!D24) ->  | X2: =IF(Alumnos!D25="","",Alumnos!D25) ->  | Y2: =IF(Alumnos!D26="","",Alumnos!D26) ->  | Z2: =IF(Alumnos!D27="","",Alumnos!D27) ->  | AA2: =IF(Alumnos!D28="","",Alumnos!D28) ->  | AB2: =IF(Alumnos!D29="","",Alumnos!D29) ->  | AC2: =IF(Alumnos!D30="","",Alumnos!D30) ->  | AD2: =IF(Alumnos!D31="","",Alumnos!D31) ->  | AE2: =IF(Alumnos!D32="","",Alumnos!D32) ->  | AF2: =IF(Alumnos!D33="","",Alumnos!D33) ->  | AG2: =IF(Alumnos!D34="","",Alumnos!D34) ->  | AH2: =IF(Alumnos!D35="","",Alumnos!D35) ->  | AI2: =IF(Alumnos!D36="","",Alumnos!D36) ->  | AJ2: =IF(Alumnos!D37="","",Alumnos!D37) ->  | AK2: =IF(Alumnos!D38="","",Alumnos!D38) ->  | AL2: =IF(Alumnos!D39="","",Alumnos!D39) ->  | AM2: =IF(Alumnos!D40="","",Alumnos!D40) -> 
B3: Ámbito científico-tecnológico | C3: Comp. Esp. 1 | D3: Criterio Evaluación 1.1 | E3: =IF(ACT!H4="","",ACT!H4) ->  | F3: =IF(ACT!I4="","",ACT!I4) ->  | G3: =IF(ACT!J4="","",ACT!J4) ->  | H3: =IF(ACT!K4="","",ACT!K4) ->  | I3: =IF(ACT!L4="","",ACT!L4) ->  | J3: =IF(ACT!M4="","",ACT!M4) ->  | K3: =IF(ACT!N4="","",ACT!N4) ->  | L3: =IF(ACT!O4="","",ACT!O4) ->  | M3: =IF(ACT!P4="","",ACT!P4) ->  | N3: =IF(ACT!Q4="","",ACT!Q4) ->  | O3: =IF(ACT!R4="","",ACT!R4) ->  | P3: =IF(ACT!S4="","",ACT!S4) ->  | Q3: =IF(ACT!T4="","",ACT!T4) ->  | R3: =IF(ACT!U4="","",ACT!U4) ->  | S3: =IF(ACT!V4="","",ACT!V4) ->  | T3: =IF(ACT!W4="","",ACT!W4) ->  | U3: =IF(ACT!X4="","",ACT!X4) ->  | V3: =IF(ACT!Y4="","",ACT!Y4) ->  | W3: =IF(ACT!Z4="","",ACT!Z4) ->  | X3: =IF(ACT!AA4="","",ACT!AA4) ->  | Y3: =IF(ACT!AB4="","",ACT!AB4) ->  | Z3: =IF(ACT!AC4="","",ACT!AC4) ->  | AA3: =IF(ACT!AD4="","",ACT!AD4) ->  | AB3: =IF(ACT!AE4="","",ACT!AE4) ->  | AC3: =IF(ACT!AF4="","",ACT!AF4) ->  | AD3: =IF(ACT!AG4="","",ACT!AG4) ->  | AE3: =IF(ACT!AH4="","",ACT!AH4) ->  | AF3: =IF(ACT!AI4="","",ACT!AI4) ->  | AG3: =IF(ACT!AJ4="","",ACT!AJ4) ->  | AH3: =IF(ACT!AK4="","",ACT!AK4) ->  | AI3: =IF(ACT!AL4="","",ACT!AL4) ->  | AJ3: =IF(ACT!AM4="","",ACT!AM4) ->  | AK3: =IF(ACT!AN4="","",ACT!AN4) ->  | AL3: =IF(ACT!AO4="","",ACT!AO4) ->  | AM3: =IF(ACT!AP4="","",ACT!AP4) -> 
D4: Criterio Evaluación 1.2 | E4: =IF(ACT!H5="","",ACT!H5) ->  | F4: =IF(ACT!I5="","",ACT!I5) ->  | G4: =IF(ACT!J5="","",ACT!J5) ->  | H4: =IF(ACT!K5="","",ACT!K5) ->  | I4: =IF(ACT!L5="","",ACT!L5) ->  | J4: =IF(ACT!M5="","",ACT!M5) ->  | K4: =IF(ACT!N5="","",ACT!N5) ->  | L4: =IF(ACT!O5="","",ACT!O5) ->  | M4: =IF(ACT!P5="","",ACT!P5) ->  | N4: =IF(ACT!Q5="","",ACT!Q5) ->  | O4: =IF(ACT!R5="","",ACT!R5) ->  | P4: =IF(ACT!S5="","",ACT!S5) ->  | Q4: =IF(ACT!T5="","",ACT!T5) ->  | R4: =IF(ACT!U5="","",ACT!U5) ->  | S4: =IF(ACT!V5="","",ACT!V5) ->  | T4: =IF(ACT!W5="","",ACT!W5) ->  | U4: =IF(ACT!X5="","",ACT!X5) ->  | V4: =IF(ACT!Y5="","",ACT!Y5) ->  | W4: =IF(ACT!Z5="","",ACT!Z5) ->  | X4: =IF(ACT!AA5="","",ACT!AA5) ->  | Y4: =IF(ACT!AB5="","",ACT!AB5) ->  | Z4: =IF(ACT!AC5="","",ACT!AC5) ->  | AA4: =IF(ACT!AD5="","",ACT!AD5) ->  | AB4: =IF(ACT!AE5="","",ACT!AE5) ->  | AC4: =IF(ACT!AF5="","",ACT!AF5) ->  | AD4: =IF(ACT!AG5="","",ACT!AG5) ->  | AE4: =IF(ACT!AH5="","",ACT!AH5) ->  | AF4: =IF(ACT!AI5="","",ACT!AI5) ->  | AG4: =IF(ACT!AJ5="","",ACT!AJ5) ->  | AH4: =IF(ACT!AK5="","",ACT!AK5) ->  | AI4: =IF(ACT!AL5="","",ACT!AL5) ->  | AJ4: =IF(ACT!AM5="","",ACT!AM5) ->  | AK4: =IF(ACT!AN5="","",ACT!AN5) ->  | AL4: =IF(ACT!AO5="","",ACT!AO5) ->  | AM4: =IF(ACT!AP5="","",ACT!AP5) -> 
D5: Criterio Evaluación 1.3 | E5: =IF(ACT!H6="","",ACT!H6) ->  | F5: =IF(ACT!I6="","",ACT!I6) ->  | G5: =IF(ACT!J6="","",ACT!J6) ->  | H5: =IF(ACT!K6="","",ACT!K6) ->  | I5: =IF(ACT!L6="","",ACT!L6) ->  | J5: =IF(ACT!M6="","",ACT!M6) ->  | K5: =IF(ACT!N6="","",ACT!N6) ->  | L5: =IF(ACT!O6="","",ACT!O6) ->  | M5: =IF(ACT!P6="","",ACT!P6) ->  | N5: =IF(ACT!Q6="","",ACT!Q6) ->  | O5: =IF(ACT!R6="","",ACT!R6) ->  | P5: =IF(ACT!S6="","",ACT!S6) ->  | Q5: =IF(ACT!T6="","",ACT!T6) ->  | R5: =IF(ACT!U6="","",ACT!U6) ->  | S5: =IF(ACT!V6="","",ACT!V6) ->  | T5: =IF(ACT!W6="","",ACT!W6) ->  | U5: =IF(ACT!X6="","",ACT!X6) ->  | V5: =IF(ACT!Y6="","",ACT!Y6) ->  | W5: =IF(ACT!Z6="","",ACT!Z6) ->  | X5: =IF(ACT!AA6="","",ACT!AA6) ->  | Y5: =IF(ACT!AB6="","",ACT!AB6) ->  | Z5: =IF(ACT!AC6="","",ACT!AC6) ->  | AA5: =IF(ACT!AD6="","",ACT!AD6) ->  | AB5: =IF(ACT!AE6="","",ACT!AE6) ->  | AC5: =IF(ACT!AF6="","",ACT!AF6) ->  | AD5: =IF(ACT!AG6="","",ACT!AG6) ->  | AE5: =IF(ACT!AH6="","",ACT!AH6) ->  | AF5: =IF(ACT!AI6="","",ACT!AI6) ->  | AG5: =IF(ACT!AJ6="","",ACT!AJ6) ->  | AH5: =IF(ACT!AK6="","",ACT!AK6) ->  | AI5: =IF(ACT!AL6="","",ACT!AL6) ->  | AJ5: =IF(ACT!AM6="","",ACT!AM6) ->  | AK5: =IF(ACT!AN6="","",ACT!AN6) ->  | AL5: =IF(ACT!AO6="","",ACT!AO6) ->  | AM5: =IF(ACT!AP6="","",ACT!AP6) -> 
C6: Comp. Esp. 2 | D6: Criterio Evaluación 2.1 | E6: =IF(ACT!H7="","",ACT!H7) ->  | F6: =IF(ACT!I7="","",ACT!I7) ->  | G6: =IF(ACT!J7="","",ACT!J7) ->  | H6: =IF(ACT!K7="","",ACT!K7) ->  | I6: =IF(ACT!L7="","",ACT!L7) ->  | J6: =IF(ACT!M7="","",ACT!M7) ->  | K6: =IF(ACT!N7="","",ACT!N7) ->  | L6: =IF(ACT!O7="","",ACT!O7) ->  | M6: =IF(ACT!P7="","",ACT!P7) ->  | N6: =IF(ACT!Q7="","",ACT!Q7) ->  | O6: =IF(ACT!R7="","",ACT!R7) ->  | P6: =IF(ACT!S7="","",ACT!S7) ->  | Q6: =IF(ACT!T7="","",ACT!T7) ->  | R6: =IF(ACT!U7="","",ACT!U7) ->  | S6: =IF(ACT!V7="","",ACT!V7) ->  | T6: =IF(ACT!W7="","",ACT!W7) ->  | U6: =IF(ACT!X7="","",ACT!X7) ->  | V6: =IF(ACT!Y7="","",ACT!Y7) ->  | W6: =IF(ACT!Z7="","",ACT!Z7) ->  | X6: =IF(ACT!AA7="","",ACT!AA7) ->  | Y6: =IF(ACT!AB7="","",ACT!AB7) ->  | Z6: =IF(ACT!AC7="","",ACT!AC7) ->  | AA6: =IF(ACT!AD7="","",ACT!AD7) ->  | AB6: =IF(ACT!AE7="","",ACT!AE7) ->  | AC6: =IF(ACT!AF7="","",ACT!AF7) ->  | AD6: =IF(ACT!AG7="","",ACT!AG7) ->  | AE6: =IF(ACT!AH7="","",ACT!AH7) ->  | AF6: =IF(ACT!AI7="","",ACT!AI7) ->  | AG6: =IF(ACT!AJ7="","",ACT!AJ7) ->  | AH6: =IF(ACT!AK7="","",ACT!AK7) ->  | AI6: =IF(ACT!AL7="","",ACT!AL7) ->  | AJ6: =IF(ACT!AM7="","",ACT!AM7) ->  | AK6: =IF(ACT!AN7="","",ACT!AN7) ->  | AL6: =IF(ACT!AO7="","",ACT!AO7) ->  | AM6: =IF(ACT!AP7="","",ACT!AP7) -> 
D7: Criterio Evaluación 2.2 | E7: =IF(ACT!H8="","",ACT!H8) ->  | F7: =IF(ACT!I8="","",ACT!I8) ->  | G7: =IF(ACT!J8="","",ACT!J8) ->  | H7: =IF(ACT!K8="","",ACT!K8) ->  | I7: =IF(ACT!L8="","",ACT!L8) ->  | J7: =IF(ACT!M8="","",ACT!M8) ->  | K7: =IF(ACT!N8="","",ACT!N8) ->  | L7: =IF(ACT!O8="","",ACT!O8) ->  | M7: =IF(ACT!P8="","",ACT!P8) ->  | N7: =IF(ACT!Q8="","",ACT!Q8) ->  | O7: =IF(ACT!R8="","",ACT!R8) ->  | P7: =IF(ACT!S8="","",ACT!S8) ->  | Q7: =IF(ACT!T8="","",ACT!T8) ->  | R7: =IF(ACT!U8="","",ACT!U8) ->  | S7: =IF(ACT!V8="","",ACT!V8) ->  | T7: =IF(ACT!W8="","",ACT!W8) ->  | U7: =IF(ACT!X8="","",ACT!X8) ->  | V7: =IF(ACT!Y8="","",ACT!Y8) ->  | W7: =IF(ACT!Z8="","",ACT!Z8) ->  | X7: =IF(ACT!AA8="","",ACT!AA8) ->  | Y7: =IF(ACT!AB8="","",ACT!AB8) ->  | Z7: =IF(ACT!AC8="","",ACT!AC8) ->  | AA7: =IF(ACT!AD8="","",ACT!AD8) ->  | AB7: =IF(ACT!AE8="","",ACT!AE8) ->  | AC7: =IF(ACT!AF8="","",ACT!AF8) ->  | AD7: =IF(ACT!AG8="","",ACT!AG8) ->  | AE7: =IF(ACT!AH8="","",ACT!AH8) ->  | AF7: =IF(ACT!AI8="","",ACT!AI8) ->  | AG7: =IF(ACT!AJ8="","",ACT!AJ8) ->  | AH7: =IF(ACT!AK8="","",ACT!AK8) ->  | AI7: =IF(ACT!AL8="","",ACT!AL8) ->  | AJ7: =IF(ACT!AM8="","",ACT!AM8) ->  | AK7: =IF(ACT!AN8="","",ACT!AN8) ->  | AL7: =IF(ACT!AO8="","",ACT!AO8) ->  | AM7: =IF(ACT!AP8="","",ACT!AP8) -> 
D8: Criterio Evaluación 2.3 | E8: =IF(ACT!H9="","",ACT!H9) ->  | F8: =IF(ACT!I9="","",ACT!I9) ->  | G8: =IF(ACT!J9="","",ACT!J9) ->  | H8: =IF(ACT!K9="","",ACT!K9) ->  | I8: =IF(ACT!L9="","",ACT!L9) ->  | J8: =IF(ACT!M9="","",ACT!M9) ->  | K8: =IF(ACT!N9="","",ACT!N9) ->  | L8: =IF(ACT!O9="","",ACT!O9) ->  | M8: =IF(ACT!P9="","",ACT!P9) ->  | N8: =IF(ACT!Q9="","",ACT!Q9) ->  | O8: =IF(ACT!R9="","",ACT!R9) ->  | P8: =IF(ACT!S9="","",ACT!S9) ->  | Q8: =IF(ACT!T9="","",ACT!T9) ->  | R8: =IF(ACT!U9="","",ACT!U9) ->  | S8: =IF(ACT!V9="","",ACT!V9) ->  | T8: =IF(ACT!W9="","",ACT!W9) ->  | U8: =IF(ACT!X9="","",ACT!X9) ->  | V8: =IF(ACT!Y9="","",ACT!Y9) ->  | W8: =IF(ACT!Z9="","",ACT!Z9) ->  | X8: =IF(ACT!AA9="","",ACT!AA9) ->  | Y8: =IF(ACT!AB9="","",ACT!AB9) ->  | Z8: =IF(ACT!AC9="","",ACT!AC9) ->  | AA8: =IF(ACT!AD9="","",ACT!AD9) ->  | AB8: =IF(ACT!AE9="","",ACT!AE9) ->  | AC8: =IF(ACT!AF9="","",ACT!AF9) ->  | AD8: =IF(ACT!AG9="","",ACT!AG9) ->  | AE8: =IF(ACT!AH9="","",ACT!AH9) ->  | AF8: =IF(ACT!AI9="","",ACT!AI9) ->  | AG8: =IF(ACT!AJ9="","",ACT!AJ9) ->  | AH8: =IF(ACT!AK9="","",ACT!AK9) ->  | AI8: =IF(ACT!AL9="","",ACT!AL9) ->  | AJ8: =IF(ACT!AM9="","",ACT!AM9) ->  | AK8: =IF(ACT!AN9="","",ACT!AN9) ->  | AL8: =IF(ACT!AO9="","",ACT!AO9) ->  | AM8: =IF(ACT!AP9="","",ACT!AP9) -> 
D9: Criterio Evaluación 2.4 | E9: =IF(ACT!H10="","",ACT!H10) ->  | F9: =IF(ACT!I10="","",ACT!I10) ->  | G9: =IF(ACT!J10="","",ACT!J10) ->  | H9: =IF(ACT!K10="","",ACT!K10) ->  | I9: =IF(ACT!L10="","",ACT!L10) ->  | J9: =IF(ACT!M10="","",ACT!M10) ->  | K9: =IF(ACT!N10="","",ACT!N10) ->  | L9: =IF(ACT!O10="","",ACT!O10) ->  | M9: =IF(ACT!P10="","",ACT!P10) ->  | N9: =IF(ACT!Q10="","",ACT!Q10) ->  | O9: =IF(ACT!R10="","",ACT!R10) ->  | P9: =IF(ACT!S10="","",ACT!S10) ->  | Q9: =IF(ACT!T10="","",ACT!T10) ->  | R9: =IF(ACT!U10="","",ACT!U10) ->  | S9: =IF(ACT!V10="","",ACT!V10) ->  | T9: =IF(ACT!W10="","",ACT!W10) ->  | U9: =IF(ACT!X10="","",ACT!X10) ->  | V9: =IF(ACT!Y10="","",ACT!Y10) ->  | W9: =IF(ACT!Z10="","",ACT!Z10) ->  | X9: =IF(ACT!AA10="","",ACT!AA10) ->  | Y9: =IF(ACT!AB10="","",ACT!AB10) ->  | Z9: =IF(ACT!AC10="","",ACT!AC10) ->  | AA9: =IF(ACT!AD10="","",ACT!AD10) ->  | AB9: =IF(ACT!AE10="","",ACT!AE10) ->  | AC9: =IF(ACT!AF10="","",ACT!AF10) ->  | AD9: =IF(ACT!AG10="","",ACT!AG10) ->  | AE9: =IF(ACT!AH10="","",ACT!AH10) ->  | AF9: =IF(ACT!AI10="","",ACT!AI10) ->  | AG9: =IF(ACT!AJ10="","",ACT!AJ10) ->  | AH9: =IF(ACT!AK10="","",ACT!AK10) ->  | AI9: =IF(ACT!AL10="","",ACT!AL10) ->  | AJ9: =IF(ACT!AM10="","",ACT!AM10) ->  | AK9: =IF(ACT!AN10="","",ACT!AN10) ->  | AL9: =IF(ACT!AO10="","",ACT!AO10) ->  | AM9: =IF(ACT!AP10="","",ACT!AP10) -> 
C10: Comp. Esp. 3 | D10: Criterio Evaluación 3.1 | E10: =IF(ACT!H11="","",ACT!H11) ->  | F10: =IF(ACT!I11="","",ACT!I11) ->  | G10: =IF(ACT!J11="","",ACT!J11) ->  | H10: =IF(ACT!K11="","",ACT!K11) ->  | I10: =IF(ACT!L11="","",ACT!L11) ->  | J10: =IF(ACT!M11="","",ACT!M11) ->  | K10: =IF(ACT!N11="","",ACT!N11) ->  | L10: =IF(ACT!O11="","",ACT!O11) ->  | M10: =IF(ACT!P11="","",ACT!P11) ->  | N10: =IF(ACT!Q11="","",ACT!Q11) ->  | O10: =IF(ACT!R11="","",ACT!R11) ->  | P10: =IF(ACT!S11="","",ACT!S11) ->  | Q10: =IF(ACT!T11="","",ACT!T11) ->  | R10: =IF(ACT!U11="","",ACT!U11) ->  | S10: =IF(ACT!V11="","",ACT!V11) ->  | T10: =IF(ACT!W11="","",ACT!W11) ->  | U10: =IF(ACT!X11="","",ACT!X11) ->  | V10: =IF(ACT!Y11="","",ACT!Y11) ->  | W10: =IF(ACT!Z11="","",ACT!Z11) ->  | X10: =IF(ACT!AA11="","",ACT!AA11) ->  | Y10: =IF(ACT!AB11="","",ACT!AB11) ->  | Z10: =IF(ACT!AC11="","",ACT!AC11) ->  | AA10: =IF(ACT!AD11="","",ACT!AD11) ->  | AB10: =IF(ACT!AE11="","",ACT!AE11) ->  | AC10: =IF(ACT!AF11="","",ACT!AF11) ->  | AD10: =IF(ACT!AG11="","",ACT!AG11) ->  | AE10: =IF(ACT!AH11="","",ACT!AH11) ->  | AF10: =IF(ACT!AI11="","",ACT!AI11) ->  | AG10: =IF(ACT!AJ11="","",ACT!AJ11) ->  | AH10: =IF(ACT!AK11="","",ACT!AK11) ->  | AI10: =IF(ACT!AL11="","",ACT!AL11) ->  | AJ10: =IF(ACT!AM11="","",ACT!AM11) ->  | AK10: =IF(ACT!AN11="","",ACT!AN11) ->  | AL10: =IF(ACT!AO11="","",ACT!AO11) ->  | AM10: =IF(ACT!AP11="","",ACT!AP11) -> 
D11: Criterio Evaluación 3.2 | E11: =IF(ACT!H12="","",ACT!H12) ->  | F11: =IF(ACT!I12="","",ACT!I12) ->  | G11: =IF(ACT!J12="","",ACT!J12) ->  | H11: =IF(ACT!K12="","",ACT!K12) ->  | I11: =IF(ACT!L12="","",ACT!L12) ->  | J11: =IF(ACT!M12="","",ACT!M12) ->  | K11: =IF(ACT!N12="","",ACT!N12) ->  | L11: =IF(ACT!O12="","",ACT!O12) ->  | M11: =IF(ACT!P12="","",ACT!P12) ->  | N11: =IF(ACT!Q12="","",ACT!Q12) ->  | O11: =IF(ACT!R12="","",ACT!R12) ->  | P11: =IF(ACT!S12="","",ACT!S12) ->  | Q11: =IF(ACT!T12="","",ACT!T12) ->  | R11: =IF(ACT!U12="","",ACT!U12) ->  | S11: =IF(ACT!V12="","",ACT!V12) ->  | T11: =IF(ACT!W12="","",ACT!W12) ->  | U11: =IF(ACT!X12="","",ACT!X12) ->  | V11: =IF(ACT!Y12="","",ACT!Y12) ->  | W11: =IF(ACT!Z12="","",ACT!Z12) ->  | X11: =IF(ACT!AA12="","",ACT!AA12) ->  | Y11: =IF(ACT!AB12="","",ACT!AB12) ->  | Z11: =IF(ACT!AC12="","",ACT!AC12) ->  | AA11: =IF(ACT!AD12="","",ACT!AD12) ->  | AB11: =IF(ACT!AE12="","",ACT!AE12) ->  | AC11: =IF(ACT!AF12="","",ACT!AF12) ->  | AD11: =IF(ACT!AG12="","",ACT!AG12) ->  | AE11: =IF(ACT!AH12="","",ACT!AH12) ->  | AF11: =IF(ACT!AI12="","",ACT!AI12) ->  | AG11: =IF(ACT!AJ12="","",ACT!AJ12) ->  | AH11: =IF(ACT!AK12="","",ACT!AK12) ->  | AI11: =IF(ACT!AL12="","",ACT!AL12) ->  | AJ11: =IF(ACT!AM12="","",ACT!AM12) ->  | AK11: =IF(ACT!AN12="","",ACT!AN12) ->  | AL11: =IF(ACT!AO12="","",ACT!AO12) ->  | AM11: =IF(ACT!AP12="","",ACT!AP12) -> 
D12: Criterio Evaluación 3.3 | E12: =IF(ACT!H13="","",ACT!H13) ->  | F12: =IF(ACT!I13="","",ACT!I13) ->  | G12: =IF(ACT!J13="","",ACT!J13) ->  | H12: =IF(ACT!K13="","",ACT!K13) ->  | I12: =IF(ACT!L13="","",ACT!L13) ->  | J12: =IF(ACT!M13="","",ACT!M13) ->  | K12: =IF(ACT!N13="","",ACT!N13) ->  | L12: =IF(ACT!O13="","",ACT!O13) ->  | M12: =IF(ACT!P13="","",ACT!P13) ->  | N12: =IF(ACT!Q13="","",ACT!Q13) ->  | O12: =IF(ACT!R13="","",ACT!R13) ->  | P12: =IF(ACT!S13="","",ACT!S13) ->  | Q12: =IF(ACT!T13="","",ACT!T13) ->  | R12: =IF(ACT!U13="","",ACT!U13) ->  | S12: =IF(ACT!V13="","",ACT!V13) ->  | T12: =IF(ACT!W13="","",ACT!W13) ->  | U12: =IF(ACT!X13="","",ACT!X13) ->  | V12: =IF(ACT!Y13="","",ACT!Y13) ->  | W12: =IF(ACT!Z13="","",ACT!Z13) ->  | X12: =IF(ACT!AA13="","",ACT!AA13) ->  | Y12: =IF(ACT!AB13="","",ACT!AB13) ->  | Z12: =IF(ACT!AC13="","",ACT!AC13) ->  | AA12: =IF(ACT!AD13="","",ACT!AD13) ->  | AB12: =IF(ACT!AE13="","",ACT!AE13) ->  | AC12: =IF(ACT!AF13="","",ACT!AF13) ->  | AD12: =IF(ACT!AG13="","",ACT!AG13) ->  | AE12: =IF(ACT!AH13="","",ACT!AH13) ->  | AF12: =IF(ACT!AI13="","",ACT!AI13) ->  | AG12: =IF(ACT!AJ13="","",ACT!AJ13) ->  | AH12: =IF(ACT!AK13="","",ACT!AK13) ->  | AI12: =IF(ACT!AL13="","",ACT!AL13) ->  | AJ12: =IF(ACT!AM13="","",ACT!AM13) ->  | AK12: =IF(ACT!AN13="","",ACT!AN13) ->  | AL12: =IF(ACT!AO13="","",ACT!AO13) ->  | AM12: =IF(ACT!AP13="","",ACT!AP13) -> 
D13: Criterio Evaluación 3.4 | E13: =IF(ACT!H14="","",ACT!H14) ->  | F13: =IF(ACT!I14="","",ACT!I14) ->  | G13: =IF(ACT!J14="","",ACT!J14) ->  | H13: =IF(ACT!K14="","",ACT!K14) ->  | I13: =IF(ACT!L14="","",ACT!L14) ->  | J13: =IF(ACT!M14="","",ACT!M14) ->  | K13: =IF(ACT!N14="","",ACT!N14) ->  | L13: =IF(ACT!O14="","",ACT!O14) ->  | M13: =IF(ACT!P14="","",ACT!P14) ->  | N13: =IF(ACT!Q14="","",ACT!Q14) ->  | O13: =IF(ACT!R14="","",ACT!R14) ->  | P13: =IF(ACT!S14="","",ACT!S14) ->  | Q13: =IF(ACT!T14="","",ACT!T14) ->  | R13: =IF(ACT!U14="","",ACT!U14) ->  | S13: =IF(ACT!V14="","",ACT!V14) ->  | T13: =IF(ACT!W14="","",ACT!W14) ->  | U13: =IF(ACT!X14="","",ACT!X14) ->  | V13: =IF(ACT!Y14="","",ACT!Y14) ->  | W13: =IF(ACT!Z14="","",ACT!Z14) ->  | X13: =IF(ACT!AA14="","",ACT!AA14) ->  | Y13: =IF(ACT!AB14="","",ACT!AB14) ->  | Z13: =IF(ACT!AC14="","",ACT!AC14) ->  | AA13: =IF(ACT!AD14="","",ACT!AD14) ->  | AB13: =IF(ACT!AE14="","",ACT!AE14) ->  | AC13: =IF(ACT!AF14="","",ACT!AF14) ->  | AD13: =IF(ACT!AG14="","",ACT!AG14) ->  | AE13: =IF(ACT!AH14="","",ACT!AH14) ->  | AF13: =IF(ACT!AI14="","",ACT!AI14) ->  | AG13: =IF(ACT!AJ14="","",ACT!AJ14) ->  | AH13: =IF(ACT!AK14="","",ACT!AK14) ->  | AI13: =IF(ACT!AL14="","",ACT!AL14) ->  | AJ13: =IF(ACT!AM14="","",ACT!AM14) ->  | AK13: =IF(ACT!AN14="","",ACT!AN14) ->  | AL13: =IF(ACT!AO14="","",ACT!AO14) ->  | AM13: =IF(ACT!AP14="","",ACT!AP14) -> 
D14: Criterio Evaluación 3.5 | E14: =IF(ACT!H15="","",ACT!H15) ->  | F14: =IF(ACT!I15="","",ACT!I15) ->  | G14: =IF(ACT!J15="","",ACT!J15) ->  | H14: =IF(ACT!K15="","",ACT!K15) ->  | I14: =IF(ACT!L15="","",ACT!L15) ->  | J14: =IF(ACT!M15="","",ACT!M15) ->  | K14: =IF(ACT!N15="","",ACT!N15) ->  | L14: =IF(ACT!O15="","",ACT!O15) ->  | M14: =IF(ACT!P15="","",ACT!P15) ->  | N14: =IF(ACT!Q15="","",ACT!Q15) ->  | O14: =IF(ACT!R15="","",ACT!R15) ->  | P14: =IF(ACT!S15="","",ACT!S15) ->  | Q14: =IF(ACT!T15="","",ACT!T15) ->  | R14: =IF(ACT!U15="","",ACT!U15) ->  | S14: =IF(ACT!V15="","",ACT!V15) ->  | T14: =IF(ACT!W15="","",ACT!W15) ->  | U14: =IF(ACT!X15="","",ACT!X15) ->  | V14: =IF(ACT!Y15="","",ACT!Y15) ->  | W14: =IF(ACT!Z15="","",ACT!Z15) ->  | X14: =IF(ACT!AA15="","",ACT!AA15) ->  | Y14: =IF(ACT!AB15="","",ACT!AB15) ->  | Z14: =IF(ACT!AC15="","",ACT!AC15) ->  | AA14: =IF(ACT!AD15="","",ACT!AD15) ->  | AB14: =IF(ACT!AE15="","",ACT!AE15) ->  | AC14: =IF(ACT!AF15="","",ACT!AF15) ->  | AD14: =IF(ACT!AG15="","",ACT!AG15) ->  | AE14: =IF(ACT!AH15="","",ACT!AH15) ->  | AF14: =IF(ACT!AI15="","",ACT!AI15) ->  | AG14: =IF(ACT!AJ15="","",ACT!AJ15) ->  | AH14: =IF(ACT!AK15="","",ACT!AK15) ->  | AI14: =IF(ACT!AL15="","",ACT!AL15) ->  | AJ14: =IF(ACT!AM15="","",ACT!AM15) ->  | AK14: =IF(ACT!AN15="","",ACT!AN15) ->  | AL14: =IF(ACT!AO15="","",ACT!AO15) ->  | AM14: =IF(ACT!AP15="","",ACT!AP15) -> 
C15: Comp. Esp. 4 | D15: Criterio Evaluación 4.1 | E15: =IF(ACT!H16="","",ACT!H16) ->  | F15: =IF(ACT!I16="","",ACT!I16) ->  | G15: =IF(ACT!J16="","",ACT!J16) ->  | H15: =IF(ACT!K16="","",ACT!K16) ->  | I15: =IF(ACT!L16="","",ACT!L16) ->  | J15: =IF(ACT!M16="","",ACT!M16) ->  | K15: =IF(ACT!N16="","",ACT!N16) ->  | L15: =IF(ACT!O16="","",ACT!O16) ->  | M15: =IF(ACT!P16="","",ACT!P16) ->  | N15: =IF(ACT!Q16="","",ACT!Q16) ->  | O15: =IF(ACT!R16="","",ACT!R16) ->  | P15: =IF(ACT!S16="","",ACT!S16) ->  | Q15: =IF(ACT!T16="","",ACT!T16) ->  | R15: =IF(ACT!U16="","",ACT!U16) ->  | S15: =IF(ACT!V16="","",ACT!V16) ->  | T15: =IF(ACT!W16="","",ACT!W16) ->  | U15: =IF(ACT!X16="","",ACT!X16) ->  | V15: =IF(ACT!Y16="","",ACT!Y16) ->  | W15: =IF(ACT!Z16="","",ACT!Z16) ->  | X15: =IF(ACT!AA16="","",ACT!AA16) ->  | Y15: =IF(ACT!AB16="","",ACT!AB16) ->  | Z15: =IF(ACT!AC16="","",ACT!AC16) ->  | AA15: =IF(ACT!AD16="","",ACT!AD16) ->  | AB15: =IF(ACT!AE16="","",ACT!AE16) ->  | AC15: =IF(ACT!AF16="","",ACT!AF16) ->  | AD15: =IF(ACT!AG16="","",ACT!AG16) ->  | AE15: =IF(ACT!AH16="","",ACT!AH16) ->  | AF15: =IF(ACT!AI16="","",ACT!AI16) ->  | AG15: =IF(ACT!AJ16="","",ACT!AJ16) ->  | AH15: =IF(ACT!AK16="","",ACT!AK16) ->  | AI15: =IF(ACT!AL16="","",ACT!AL16) ->  | AJ15: =IF(ACT!AM16="","",ACT!AM16) ->  | AK15: =IF(ACT!AN16="","",ACT!AN16) ->  | AL15: =IF(ACT!AO16="","",ACT!AO16) ->  | AM15: =IF(ACT!AP16="","",ACT!AP16) -> 
D16: Criterio Evaluación 4.2 | E16: =IF(ACT!H17="","",ACT!H17) ->  | F16: =IF(ACT!I17="","",ACT!I17) ->  | G16: =IF(ACT!J17="","",ACT!J17) ->  | H16: =IF(ACT!K17="","",ACT!K17) ->  | I16: =IF(ACT!L17="","",ACT!L17) ->  | J16: =IF(ACT!M17="","",ACT!M17) ->  | K16: =IF(ACT!N17="","",ACT!N17) ->  | L16: =IF(ACT!O17="","",ACT!O17) ->  | M16: =IF(ACT!P17="","",ACT!P17) ->  | N16: =IF(ACT!Q17="","",ACT!Q17) ->  | O16: =IF(ACT!R17="","",ACT!R17) ->  | P16: =IF(ACT!S17="","",ACT!S17) ->  | Q16: =IF(ACT!T17="","",ACT!T17) ->  | R16: =IF(ACT!U17="","",ACT!U17) ->  | S16: =IF(ACT!V17="","",ACT!V17) ->  | T16: =IF(ACT!W17="","",ACT!W17) ->  | U16: =IF(ACT!X17="","",ACT!X17) ->  | V16: =IF(ACT!Y17="","",ACT!Y17) ->  | W16: =IF(ACT!Z17="","",ACT!Z17) ->  | X16: =IF(ACT!AA17="","",ACT!AA17) ->  | Y16: =IF(ACT!AB17="","",ACT!AB17) ->  | Z16: =IF(ACT!AC17="","",ACT!AC17) ->  | AA16: =IF(ACT!AD17="","",ACT!AD17) ->  | AB16: =IF(ACT!AE17="","",ACT!AE17) ->  | AC16: =IF(ACT!AF17="","",ACT!AF17) ->  | AD16: =IF(ACT!AG17="","",ACT!AG17) ->  | AE16: =IF(ACT!AH17="","",ACT!AH17) ->  | AF16: =IF(ACT!AI17="","",ACT!AI17) ->  | AG16: =IF(ACT!AJ17="","",ACT!AJ17) ->  | AH16: =IF(ACT!AK17="","",ACT!AK17) ->  | AI16: =IF(ACT!AL17="","",ACT!AL17) ->  | AJ16: =IF(ACT!AM17="","",ACT!AM17) ->  | AK16: =IF(ACT!AN17="","",ACT!AN17) ->  | AL16: =IF(ACT!AO17="","",ACT!AO17) ->  | AM16: =IF(ACT!AP17="","",ACT!AP17) -> 
C17: Comp. Esp. 5 | D17: Criterio Evaluación 5.1 | E17: =IF(ACT!H18="","",ACT!H18) ->  | F17: =IF(ACT!I18="","",ACT!I18) ->  | G17: =IF(ACT!J18="","",ACT!J18) ->  | H17: =IF(ACT!K18="","",ACT!K18) ->  | I17: =IF(ACT!L18="","",ACT!L18) ->  | J17: =IF(ACT!M18="","",ACT!M18) ->  | K17: =IF(ACT!N18="","",ACT!N18) ->  | L17: =IF(ACT!O18="","",ACT!O18) ->  | M17: =IF(ACT!P18="","",ACT!P18) ->  | N17: =IF(ACT!Q18="","",ACT!Q18) ->  | O17: =IF(ACT!R18="","",ACT!R18) ->  | P17: =IF(ACT!S18="","",ACT!S18) ->  | Q17: =IF(ACT!T18="","",ACT!T18) ->  | R17: =IF(ACT!U18="","",ACT!U18) ->  | S17: =IF(ACT!V18="","",ACT!V18) ->  | T17: =IF(ACT!W18="","",ACT!W18) ->  | U17: =IF(ACT!X18="","",ACT!X18) ->  | V17: =IF(ACT!Y18="","",ACT!Y18) ->  | W17: =IF(ACT!Z18="","",ACT!Z18) ->  | X17: =IF(ACT!AA18="","",ACT!AA18) ->  | Y17: =IF(ACT!AB18="","",ACT!AB18) ->  | Z17: =IF(ACT!AC18="","",ACT!AC18) ->  | AA17: =IF(ACT!AD18="","",ACT!AD18) ->  | AB17: =IF(ACT!AE18="","",ACT!AE18) ->  | AC17: =IF(ACT!AF18="","",ACT!AF18) ->  | AD17: =IF(ACT!AG18="","",ACT!AG18) ->  | AE17: =IF(ACT!AH18="","",ACT!AH18) ->  | AF17: =IF(ACT!AI18="","",ACT!AI18) ->  | AG17: =IF(ACT!AJ18="","",ACT!AJ18) ->  | AH17: =IF(ACT!AK18="","",ACT!AK18) ->  | AI17: =IF(ACT!AL18="","",ACT!AL18) ->  | AJ17: =IF(ACT!AM18="","",ACT!AM18) ->  | AK17: =IF(ACT!AN18="","",ACT!AN18) ->  | AL17: =IF(ACT!AO18="","",ACT!AO18) ->  | AM17: =IF(ACT!AP18="","",ACT!AP18) -> 
D18: Criterio Evaluación 5.2 | E18: =IF(ACT!H19="","",ACT!H19) ->  | F18: =IF(ACT!I19="","",ACT!I19) ->  | G18: =IF(ACT!J19="","",ACT!J19) ->  | H18: =IF(ACT!K19="","",ACT!K19) ->  | I18: =IF(ACT!L19="","",ACT!L19) ->  | J18: =IF(ACT!M19="","",ACT!M19) ->  | K18: =IF(ACT!N19="","",ACT!N19) ->  | L18: =IF(ACT!O19="","",ACT!O19) ->  | M18: =IF(ACT!P19="","",ACT!P19) ->  | N18: =IF(ACT!Q19="","",ACT!Q19) ->  | O18: =IF(ACT!R19="","",ACT!R19) ->  | P18: =IF(ACT!S19="","",ACT!S19) ->  | Q18: =IF(ACT!T19="","",ACT!T19) ->  | R18: =IF(ACT!U19="","",ACT!U19) ->  | S18: =IF(ACT!V19="","",ACT!V19) ->  | T18: =IF(ACT!W19="","",ACT!W19) ->  | U18: =IF(ACT!X19="","",ACT!X19) ->  | V18: =IF(ACT!Y19="","",ACT!Y19) ->  | W18: =IF(ACT!Z19="","",ACT!Z19) ->  | X18: =IF(ACT!AA19="","",ACT!AA19) ->  | Y18: =IF(ACT!AB19="","",ACT!AB19) ->  | Z18: =IF(ACT!AC19="","",ACT!AC19) ->  | AA18: =IF(ACT!AD19="","",ACT!AD19) ->  | AB18: =IF(ACT!AE19="","",ACT!AE19) ->  | AC18: =IF(ACT!AF19="","",ACT!AF19) ->  | AD18: =IF(ACT!AG19="","",ACT!AG19) ->  | AE18: =IF(ACT!AH19="","",ACT!AH19) ->  | AF18: =IF(ACT!AI19="","",ACT!AI19) ->  | AG18: =IF(ACT!AJ19="","",ACT!AJ19) ->  | AH18: =IF(ACT!AK19="","",ACT!AK19) ->  | AI18: =IF(ACT!AL19="","",ACT!AL19) ->  | AJ18: =IF(ACT!AM19="","",ACT!AM19) ->  | AK18: =IF(ACT!AN19="","",ACT!AN19) ->  | AL18: =IF(ACT!AO19="","",ACT!AO19) ->  | AM18: =IF(ACT!AP19="","",ACT!AP19) -> 
D19: Criterio Evaluación 5.3 | E19: =IF(ACT!H20="","",ACT!H20) ->  | F19: =IF(ACT!I20="","",ACT!I20) ->  | G19: =IF(ACT!J20="","",ACT!J20) ->  | H19: =IF(ACT!K20="","",ACT!K20) ->  | I19: =IF(ACT!L20="","",ACT!L20) ->  | J19: =IF(ACT!M20="","",ACT!M20) ->  | K19: =IF(ACT!N20="","",ACT!N20) ->  | L19: =IF(ACT!O20="","",ACT!O20) ->  | M19: =IF(ACT!P20="","",ACT!P20) ->  | N19: =IF(ACT!Q20="","",ACT!Q20) ->  | O19: =IF(ACT!R20="","",ACT!R20) ->  | P19: =IF(ACT!S20="","",ACT!S20) ->  | Q19: =IF(ACT!T20="","",ACT!T20) ->  | R19: =IF(ACT!U20="","",ACT!U20) ->  | S19: =IF(ACT!V20="","",ACT!V20) ->  | T19: =IF(ACT!W20="","",ACT!W20) ->  | U19: =IF(ACT!X20="","",ACT!X20) ->  | V19: =IF(ACT!Y20="","",ACT!Y20) ->  | W19: =IF(ACT!Z20="","",ACT!Z20) ->  | X19: =IF(ACT!AA20="","",ACT!AA20) ->  | Y19: =IF(ACT!AB20="","",ACT!AB20) ->  | Z19: =IF(ACT!AC20="","",ACT!AC20) ->  | AA19: =IF(ACT!AD20="","",ACT!AD20) ->  | AB19: =IF(ACT!AE20="","",ACT!AE20) ->  | AC19: =IF(ACT!AF20="","",ACT!AF20) ->  | AD19: =IF(ACT!AG20="","",ACT!AG20) ->  | AE19: =IF(ACT!AH20="","",ACT!AH20) ->  | AF19: =IF(ACT!AI20="","",ACT!AI20) ->  | AG19: =IF(ACT!AJ20="","",ACT!AJ20) ->  | AH19: =IF(ACT!AK20="","",ACT!AK20) ->  | AI19: =IF(ACT!AL20="","",ACT!AL20) ->  | AJ19: =IF(ACT!AM20="","",ACT!AM20) ->  | AK19: =IF(ACT!AN20="","",ACT!AN20) ->  | AL19: =IF(ACT!AO20="","",ACT!AO20) ->  | AM19: =IF(ACT!AP20="","",ACT!AP20) -> 
C20: Comp. Esp. 6 | D20: Criterio Evaluación 6.1 | E20: =IF(ACT!H21="","",ACT!H21) ->  | F20: =IF(ACT!I21="","",ACT!I21) ->  | G20: =IF(ACT!J21="","",ACT!J21) ->  | H20: =IF(ACT!K21="","",ACT!K21) ->  | I20: =IF(ACT!L21="","",ACT!L21) ->  | J20: =IF(ACT!M21="","",ACT!M21) ->  | K20: =IF(ACT!N21="","",ACT!N21) ->  | L20: =IF(ACT!O21="","",ACT!O21) ->  | M20: =IF(ACT!P21="","",ACT!P21) ->  | N20: =IF(ACT!Q21="","",ACT!Q21) ->  | O20: =IF(ACT!R21="","",ACT!R21) ->  | P20: =IF(ACT!S21="","",ACT!S21) ->  | Q20: =IF(ACT!T21="","",ACT!T21) ->  | R20: =IF(ACT!U21="","",ACT!U21) ->  | S20: =IF(ACT!V21="","",ACT!V21) ->  | T20: =IF(ACT!W21="","",ACT!W21) ->  | U20: =IF(ACT!X21="","",ACT!X21) ->  | V20: =IF(ACT!Y21="","",ACT!Y21) ->  | W20: =IF(ACT!Z21="","",ACT!Z21) ->  | X20: =IF(ACT!AA21="","",ACT!AA21) ->  | Y20: =IF(ACT!AB21="","",ACT!AB21) ->  | Z20: =IF(ACT!AC21="","",ACT!AC21) ->  | AA20: =IF(ACT!AD21="","",ACT!AD21) ->  | AB20: =IF(ACT!AE21="","",ACT!AE21) ->  | AC20: =IF(ACT!AF21="","",ACT!AF21) ->  | AD20: =IF(ACT!AG21="","",ACT!AG21) ->  | AE20: =IF(ACT!AH21="","",ACT!AH21) ->  | AF20: =IF(ACT!AI21="","",ACT!AI21) ->  | AG20: =IF(ACT!AJ21="","",ACT!AJ21) ->  | AH20: =IF(ACT!AK21="","",ACT!AK21) ->  | AI20: =IF(ACT!AL21="","",ACT!AL21) ->  | AJ20: =IF(ACT!AM21="","",ACT!AM21) ->  | AK20: =IF(ACT!AN21="","",ACT!AN21) ->  | AL20: =IF(ACT!AO21="","",ACT!AO21) ->  | AM20: =IF(ACT!AP21="","",ACT!AP21) -> 
D21: Criterio Evaluación 6.2 | E21: =IF(ACT!H22="","",ACT!H22) ->  | F21: =IF(ACT!I22="","",ACT!I22) ->  | G21: =IF(ACT!J22="","",ACT!J22) ->  | H21: =IF(ACT!K22="","",ACT!K22) ->  | I21: =IF(ACT!L22="","",ACT!L22) ->  | J21: =IF(ACT!M22="","",ACT!M22) ->  | K21: =IF(ACT!N22="","",ACT!N22) ->  | L21: =IF(ACT!O22="","",ACT!O22) ->  | M21: =IF(ACT!P22="","",ACT!P22) ->  | N21: =IF(ACT!Q22="","",ACT!Q22) ->  | O21: =IF(ACT!R22="","",ACT!R22) ->  | P21: =IF(ACT!S22="","",ACT!S22) ->  | Q21: =IF(ACT!T22="","",ACT!T22) ->  | R21: =IF(ACT!U22="","",ACT!U22) ->  | S21: =IF(ACT!V22="","",ACT!V22) ->  | T21: =IF(ACT!W22="","",ACT!W22) ->  | U21: =IF(ACT!X22="","",ACT!X22) ->  | V21: =IF(ACT!Y22="","",ACT!Y22) ->  | W21: =IF(ACT!Z22="","",ACT!Z22) ->  | X21: =IF(ACT!AA22="","",ACT!AA22) ->  | Y21: =IF(ACT!AB22="","",ACT!AB22) ->  | Z21: =IF(ACT!AC22="","",ACT!AC22) ->  | AA21: =IF(ACT!AD22="","",ACT!AD22) ->  | AB21: =IF(ACT!AE22="","",ACT!AE22) ->  | AC21: =IF(ACT!AF22="","",ACT!AF22) ->  | AD21: =IF(ACT!AG22="","",ACT!AG22) ->  | AE21: =IF(ACT!AH22="","",ACT!AH22) ->  | AF21: =IF(ACT!AI22="","",ACT!AI22) ->  | AG21: =IF(ACT!AJ22="","",ACT!AJ22) ->  | AH21: =IF(ACT!AK22="","",ACT!AK22) ->  | AI21: =IF(ACT!AL22="","",ACT!AL22) ->  | AJ21: =IF(ACT!AM22="","",ACT!AM22) ->  | AK21: =IF(ACT!AN22="","",ACT!AN22) ->  | AL21: =IF(ACT!AO22="","",ACT!AO22) ->  | AM21: =IF(ACT!AP22="","",ACT!AP22) -> 
D22: Criterio Evaluación 6.3 | E22: =IF(ACT!H23="","",ACT!H23) ->  | F22: =IF(ACT!I23="","",ACT!I23) ->  | G22: =IF(ACT!J23="","",ACT!J23) ->  | H22: =IF(ACT!K23="","",ACT!K23) ->  | I22: =IF(ACT!L23="","",ACT!L23) ->  | J22: =IF(ACT!M23="","",ACT!M23) ->  | K22: =IF(ACT!N23="","",ACT!N23) ->  | L22: =IF(ACT!O23="","",ACT!O23) ->  | M22: =IF(ACT!P23="","",ACT!P23) ->  | N22: =IF(ACT!Q23="","",ACT!Q23) ->  | O22: =IF(ACT!R23="","",ACT!R23) ->  | P22: =IF(ACT!S23="","",ACT!S23) ->  | Q22: =IF(ACT!T23="","",ACT!T23) ->  | R22: =IF(ACT!U23="","",ACT!U23) ->  | S22: =IF(ACT!V23="","",ACT!V23) ->  | T22: =IF(ACT!W23="","",ACT!W23) ->  | U22: =IF(ACT!X23="","",ACT!X23) ->  | V22: =IF(ACT!Y23="","",ACT!Y23) ->  | W22: =IF(ACT!Z23="","",ACT!Z23) ->  | X22: =IF(ACT!AA23="","",ACT!AA23) ->  | Y22: =IF(ACT!AB23="","",ACT!AB23) ->  | Z22: =IF(ACT!AC23="","",ACT!AC23) ->  | AA22: =IF(ACT!AD23="","",ACT!AD23) ->  | AB22: =IF(ACT!AE23="","",ACT!AE23) ->  | AC22: =IF(ACT!AF23="","",ACT!AF23) ->  | AD22: =IF(ACT!AG23="","",ACT!AG23) ->  | AE22: =IF(ACT!AH23="","",ACT!AH23) ->  | AF22: =IF(ACT!AI23="","",ACT!AI23) ->  | AG22: =IF(ACT!AJ23="","",ACT!AJ23) ->  | AH22: =IF(ACT!AK23="","",ACT!AK23) ->  | AI22: =IF(ACT!AL23="","",ACT!AL23) ->  | AJ22: =IF(ACT!AM23="","",ACT!AM23) ->  | AK22: =IF(ACT!AN23="","",ACT!AN23) ->  | AL22: =IF(ACT!AO23="","",ACT!AO23) ->  | AM22: =IF(ACT!AP23="","",ACT!AP23) -> 
D23: Criterio Evaluación 6.4 | E23: =IF(ACT!H24="","",ACT!H24) ->  | F23: =IF(ACT!I24="","",ACT!I24) ->  | G23: =IF(ACT!J24="","",ACT!J24) ->  | H23: =IF(ACT!K24="","",ACT!K24) ->  | I23: =IF(ACT!L24="","",ACT!L24) ->  | J23: =IF(ACT!M24="","",ACT!M24) ->  | K23: =IF(ACT!N24="","",ACT!N24) ->  | L23: =IF(ACT!O24="","",ACT!O24) ->  | M23: =IF(ACT!P24="","",ACT!P24) ->  | N23: =IF(ACT!Q24="","",ACT!Q24) ->  | O23: =IF(ACT!R24="","",ACT!R24) ->  | P23: =IF(ACT!S24="","",ACT!S24) ->  | Q23: =IF(ACT!T24="","",ACT!T24) ->  | R23: =IF(ACT!U24="","",ACT!U24) ->  | S23: =IF(ACT!V24="","",ACT!V24) ->  | T23: =IF(ACT!W24="","",ACT!W24) ->  | U23: =IF(ACT!X24="","",ACT!X24) ->  | V23: =IF(ACT!Y24="","",ACT!Y24) ->  | W23: =IF(ACT!Z24="","",ACT!Z24) ->  | X23: =IF(ACT!AA24="","",ACT!AA24) ->  | Y23: =IF(ACT!AB24="","",ACT!AB24) ->  | Z23: =IF(ACT!AC24="","",ACT!AC24) ->  | AA23: =IF(ACT!AD24="","",ACT!AD24) ->  | AB23: =IF(ACT!AE24="","",ACT!AE24) ->  | AC23: =IF(ACT!AF24="","",ACT!AF24) ->  | AD23: =IF(ACT!AG24="","",ACT!AG24) ->  | AE23: =IF(ACT!AH24="","",ACT!AH24) ->  | AF23: =IF(ACT!AI24="","",ACT!AI24) ->  | AG23: =IF(ACT!AJ24="","",ACT!AJ24) ->  | AH23: =IF(ACT!AK24="","",ACT!AK24) ->  | AI23: =IF(ACT!AL24="","",ACT!AL24) ->  | AJ23: =IF(ACT!AM24="","",ACT!AM24) ->  | AK23: =IF(ACT!AN24="","",ACT!AN24) ->  | AL23: =IF(ACT!AO24="","",ACT!AO24) ->  | AM23: =IF(ACT!AP24="","",ACT!AP24) -> 
D24: Criterio Evaluación 6.5 | E24: =IF(ACT!H25="","",ACT!H25) ->  | F24: =IF(ACT!I25="","",ACT!I25) ->  | G24: =IF(ACT!J25="","",ACT!J25) ->  | H24: =IF(ACT!K25="","",ACT!K25) ->  | I24: =IF(ACT!L25="","",ACT!L25) ->  | J24: =IF(ACT!M25="","",ACT!M25) ->  | K24: =IF(ACT!N25="","",ACT!N25) ->  | L24: =IF(ACT!O25="","",ACT!O25) ->  | M24: =IF(ACT!P25="","",ACT!P25) ->  | N24: =IF(ACT!Q25="","",ACT!Q25) ->  | O24: =IF(ACT!R25="","",ACT!R25) ->  | P24: =IF(ACT!S25="","",ACT!S25) ->  | Q24: =IF(ACT!T25="","",ACT!T25) ->  | R24: =IF(ACT!U25="","",ACT!U25) ->  | S24: =IF(ACT!V25="","",ACT!V25) ->  | T24: =IF(ACT!W25="","",ACT!W25) ->  | U24: =IF(ACT!X25="","",ACT!X25) ->  | V24: =IF(ACT!Y25="","",ACT!Y25) ->  | W24: =IF(ACT!Z25="","",ACT!Z25) ->  | X24: =IF(ACT!AA25="","",ACT!AA25) ->  | Y24: =IF(ACT!AB25="","",ACT!AB25) ->  | Z24: =IF(ACT!AC25="","",ACT!AC25) ->  | AA24: =IF(ACT!AD25="","",ACT!AD25) ->  | AB24: =IF(ACT!AE25="","",ACT!AE25) ->  | AC24: =IF(ACT!AF25="","",ACT!AF25) ->  | AD24: =IF(ACT!AG25="","",ACT!AG25) ->  | AE24: =IF(ACT!AH25="","",ACT!AH25) ->  | AF24: =IF(ACT!AI25="","",ACT!AI25) ->  | AG24: =IF(ACT!AJ25="","",ACT!AJ25) ->  | AH24: =IF(ACT!AK25="","",ACT!AK25) ->  | AI24: =IF(ACT!AL25="","",ACT!AL25) ->  | AJ24: =IF(ACT!AM25="","",ACT!AM25) ->  | AK24: =IF(ACT!AN25="","",ACT!AN25) ->  | AL24: =IF(ACT!AO25="","",ACT!AO25) ->  | AM24: =IF(ACT!AP25="","",ACT!AP25) -> 
C25: Comp. Esp. 7 | D25: Criterio Evaluación 7.1 | E25: =IF(ACT!H26="","",ACT!H26) ->  | F25: =IF(ACT!I26="","",ACT!I26) ->  | G25: =IF(ACT!J26="","",ACT!J26) ->  | H25: =IF(ACT!K26="","",ACT!K26) ->  | I25: =IF(ACT!L26="","",ACT!L26) ->  | J25: =IF(ACT!M26="","",ACT!M26) ->  | K25: =IF(ACT!N26="","",ACT!N26) ->  | L25: =IF(ACT!O26="","",ACT!O26) ->  | M25: =IF(ACT!P26="","",ACT!P26) ->  | N25: =IF(ACT!Q26="","",ACT!Q26) ->  | O25: =IF(ACT!R26="","",ACT!R26) ->  | P25: =IF(ACT!S26="","",ACT!S26) ->  | Q25: =IF(ACT!T26="","",ACT!T26) ->  | R25: =IF(ACT!U26="","",ACT!U26) ->  | S25: =IF(ACT!V26="","",ACT!V26) ->  | T25: =IF(ACT!W26="","",ACT!W26) ->  | U25: =IF(ACT!X26="","",ACT!X26) ->  | V25: =IF(ACT!Y26="","",ACT!Y26) ->  | W25: =IF(ACT!Z26="","",ACT!Z26) ->  | X25: =IF(ACT!AA26="","",ACT!AA26) ->  | Y25: =IF(ACT!AB26="","",ACT!AB26) ->  | Z25: =IF(ACT!AC26="","",ACT!AC26) ->  | AA25: =IF(ACT!AD26="","",ACT!AD26) ->  | AB25: =IF(ACT!AE26="","",ACT!AE26) ->  | AC25: =IF(ACT!AF26="","",ACT!AF26) ->  | AD25: =IF(ACT!AG26="","",ACT!AG26) ->  | AE25: =IF(ACT!AH26="","",ACT!AH26) ->  | AF25: =IF(ACT!AI26="","",ACT!AI26) ->  | AG25: =IF(ACT!AJ26="","",ACT!AJ26) ->  | AH25: =IF(ACT!AK26="","",ACT!AK26) ->  | AI25: =IF(ACT!AL26="","",ACT!AL26) ->  | AJ25: =IF(ACT!AM26="","",ACT!AM26) ->  | AK25: =IF(ACT!AN26="","",ACT!AN26) ->  | AL25: =IF(ACT!AO26="","",ACT!AO26) ->  | AM25: =IF(ACT!AP26="","",ACT!AP26) -> 
D26: Criterio Evaluación 7.2 | E26: =IF(ACT!H27="","",ACT!H27) ->  | F26: =IF(ACT!I27="","",ACT!I27) ->  | G26: =IF(ACT!J27="","",ACT!J27) ->  | H26: =IF(ACT!K27="","",ACT!K27) ->  | I26: =IF(ACT!L27="","",ACT!L27) ->  | J26: =IF(ACT!M27="","",ACT!M27) ->  | K26: =IF(ACT!N27="","",ACT!N27) ->  | L26: =IF(ACT!O27="","",ACT!O27) ->  | M26: =IF(ACT!P27="","",ACT!P27) ->  | N26: =IF(ACT!Q27="","",ACT!Q27) ->  | O26: =IF(ACT!R27="","",ACT!R27) ->  | P26: =IF(ACT!S27="","",ACT!S27) ->  | Q26: =IF(ACT!T27="","",ACT!T27) ->  | R26: =IF(ACT!U27="","",ACT!U27) ->  | S26: =IF(ACT!V27="","",ACT!V27) ->  | T26: =IF(ACT!W27="","",ACT!W27) ->  | U26: =IF(ACT!X27="","",ACT!X27) ->  | V26: =IF(ACT!Y27="","",ACT!Y27) ->  | W26: =IF(ACT!Z27="","",ACT!Z27) ->  | X26: =IF(ACT!AA27="","",ACT!AA27) ->  | Y26: =IF(ACT!AB27="","",ACT!AB27) ->  | Z26: =IF(ACT!AC27="","",ACT!AC27) ->  | AA26: =IF(ACT!AD27="","",ACT!AD27) ->  | AB26: =IF(ACT!AE27="","",ACT!AE27) ->  | AC26: =IF(ACT!AF27="","",ACT!AF27) ->  | AD26: =IF(ACT!AG27="","",ACT!AG27) ->  | AE26: =IF(ACT!AH27="","",ACT!AH27) ->  | AF26: =IF(ACT!AI27="","",ACT!AI27) ->  | AG26: =IF(ACT!AJ27="","",ACT!AJ27) ->  | AH26: =IF(ACT!AK27="","",ACT!AK27) ->  | AI26: =IF(ACT!AL27="","",ACT!AL27) ->  | AJ26: =IF(ACT!AM27="","",ACT!AM27) ->  | AK26: =IF(ACT!AN27="","",ACT!AN27) ->  | AL26: =IF(ACT!AO27="","",ACT!AO27) ->  | AM26: =IF(ACT!AP27="","",ACT!AP27) -> 
B27: Ámbito lingüístico y social | C27: Comp. Esp. 1 | D27: Criterio Evaluación 1.1 | E27: =IF(ALYS!H4="","",ALYS!H4) ->  | F27: =IF(ALYS!I4="","",ALYS!I4) ->  | G27: =IF(ALYS!J4="","",ALYS!J4) ->  | H27: =IF(ALYS!K4="","",ALYS!K4) ->  | I27: =IF(ALYS!L4="","",ALYS!L4) ->  | J27: =IF(ALYS!M4="","",ALYS!M4) ->  | K27: =IF(ALYS!N4="","",ALYS!N4) ->  | L27: =IF(ALYS!O4="","",ALYS!O4) ->  | M27: =IF(ALYS!P4="","",ALYS!P4) ->  | N27: =IF(ALYS!Q4="","",ALYS!Q4) ->  | O27: =IF(ALYS!R4="","",ALYS!R4) ->  | P27: =IF(ALYS!S4="","",ALYS!S4) ->  | Q27: =IF(ALYS!T4="","",ALYS!T4) ->  | R27: =IF(ALYS!U4="","",ALYS!U4) ->  | S27: =IF(ALYS!V4="","",ALYS!V4) ->  | T27: =IF(ALYS!W4="","",ALYS!W4) ->  | U27: =IF(ALYS!X4="","",ALYS!X4) ->  | V27: =IF(ALYS!Y4="","",ALYS!Y4) ->  | W27: =IF(ALYS!Z4="","",ALYS!Z4) ->  | X27: =IF(ALYS!AA4="","",ALYS!AA4) ->  | Y27: =IF(ALYS!AB4="","",ALYS!AB4) ->  | Z27: =IF(ALYS!AC4="","",ALYS!AC4) ->  | AA27: =IF(ALYS!AD4="","",ALYS!AD4) ->  | AB27: =IF(ALYS!AE4="","",ALYS!AE4) ->  | AC27: =IF(ALYS!AF4="","",ALYS!AF4) ->  | AD27: =IF(ALYS!AG4="","",ALYS!AG4) ->  | AE27: =IF(ALYS!AH4="","",ALYS!AH4) ->  | AF27: =IF(ALYS!AI4="","",ALYS!AI4) ->  | AG27: =IF(ALYS!AJ4="","",ALYS!AJ4) ->  | AH27: =IF(ALYS!AK4="","",ALYS!AK4) ->  | AI27: =IF(ALYS!AL4="","",ALYS!AL4) ->  | AJ27: =IF(ALYS!AM4="","",ALYS!AM4) ->  | AK27: =IF(ALYS!AN4="","",ALYS!AN4) ->  | AL27: =IF(ALYS!AO4="","",ALYS!AO4) ->  | AM27: =IF(ALYS!AP4="","",ALYS!AP4) -> 
D28: Criterio Evaluación 1.2 | E28: =IF(ALYS!H5="","",ALYS!H5) ->  | F28: =IF(ALYS!I5="","",ALYS!I5) ->  | G28: =IF(ALYS!J5="","",ALYS!J5) ->  | H28: =IF(ALYS!K5="","",ALYS!K5) ->  | I28: =IF(ALYS!L5="","",ALYS!L5) ->  | J28: =IF(ALYS!M5="","",ALYS!M5) ->  | K28: =IF(ALYS!N5="","",ALYS!N5) ->  | L28: =IF(ALYS!O5="","",ALYS!O5) ->  | M28: =IF(ALYS!P5="","",ALYS!P5) ->  | N28: =IF(ALYS!Q5="","",ALYS!Q5) ->  | O28: =IF(ALYS!R5="","",ALYS!R5) ->  | P28: =IF(ALYS!S5="","",ALYS!S5) ->  | Q28: =IF(ALYS!T5="","",ALYS!T5) ->  | R28: =IF(ALYS!U5="","",ALYS!U5) ->  | S28: =IF(ALYS!V5="","",ALYS!V5) ->  | T28: =IF(ALYS!W5="","",ALYS!W5) ->  | U28: =IF(ALYS!X5="","",ALYS!X5) ->  | V28: =IF(ALYS!Y5="","",ALYS!Y5) ->  | W28: =IF(ALYS!Z5="","",ALYS!Z5) ->  | X28: =IF(ALYS!AA5="","",ALYS!AA5) ->  | Y28: =IF(ALYS!AB5="","",ALYS!AB5) ->  | Z28: =IF(ALYS!AC5="","",ALYS!AC5) ->  | AA28: =IF(ALYS!AD5="","",ALYS!AD5) ->  | AB28: =IF(ALYS!AE5="","",ALYS!AE5) ->  | AC28: =IF(ALYS!AF5="","",ALYS!AF5) ->  | AD28: =IF(ALYS!AG5="","",ALYS!AG5) ->  | AE28: =IF(ALYS!AH5="","",ALYS!AH5) ->  | AF28: =IF(ALYS!AI5="","",ALYS!AI5) ->  | AG28: =IF(ALYS!AJ5="","",ALYS!AJ5) ->  | AH28: =IF(ALYS!AK5="","",ALYS!AK5) ->  | AI28: =IF(ALYS!AL5="","",ALYS!AL5) ->  | AJ28: =IF(ALYS!AM5="","",ALYS!AM5) ->  | AK28: =IF(ALYS!AN5="","",ALYS!AN5) ->  | AL28: =IF(ALYS!AO5="","",ALYS!AO5) ->  | AM28: =IF(ALYS!AP5="","",ALYS!AP5) -> 
D29: Criterio Evaluación 1.3 | E29: =IF(ALYS!H6="","",ALYS!H6) ->  | F29: =IF(ALYS!I6="","",ALYS!I6) ->  | G29: =IF(ALYS!J6="","",ALYS!J6) ->  | H29: =IF(ALYS!K6="","",ALYS!K6) ->  | I29: =IF(ALYS!L6="","",ALYS!L6) ->  | J29: =IF(ALYS!M6="","",ALYS!M6) ->  | K29: =IF(ALYS!N6="","",ALYS!N6) ->  | L29: =IF(ALYS!O6="","",ALYS!O6) ->  | M29: =IF(ALYS!P6="","",ALYS!P6) ->  | N29: =IF(ALYS!Q6="","",ALYS!Q6) ->  | O29: =IF(ALYS!R6="","",ALYS!R6) ->  | P29: =IF(ALYS!S6="","",ALYS!S6) ->  | Q29: =IF(ALYS!T6="","",ALYS!T6) ->  | R29: =IF(ALYS!U6="","",ALYS!U6) ->  | S29: =IF(ALYS!V6="","",ALYS!V6) ->  | T29: =IF(ALYS!W6="","",ALYS!W6) ->  | U29: =IF(ALYS!X6="","",ALYS!X6) ->  | V29: =IF(ALYS!Y6="","",ALYS!Y6) ->  | W29: =IF(ALYS!Z6="","",ALYS!Z6) ->  | X29: =IF(ALYS!AA6="","",ALYS!AA6) ->  | Y29: =IF(ALYS!AB6="","",ALYS!AB6) ->  | Z29: =IF(ALYS!AC6="","",ALYS!AC6) ->  | AA29: =IF(ALYS!AD6="","",ALYS!AD6) ->  | AB29: =IF(ALYS!AE6="","",ALYS!AE6) ->  | AC29: =IF(ALYS!AF6="","",ALYS!AF6) ->  | AD29: =IF(ALYS!AG6="","",ALYS!AG6) ->  | AE29: =IF(ALYS!AH6="","",ALYS!AH6) ->  | AF29: =IF(ALYS!AI6="","",ALYS!AI6) ->  | AG29: =IF(ALYS!AJ6="","",ALYS!AJ6) ->  | AH29: =IF(ALYS!AK6="","",ALYS!AK6) ->  | AI29: =IF(ALYS!AL6="","",ALYS!AL6) ->  | AJ29: =IF(ALYS!AM6="","",ALYS!AM6) ->  | AK29: =IF(ALYS!AN6="","",ALYS!AN6) ->  | AL29: =IF(ALYS!AO6="","",ALYS!AO6) ->  | AM29: =IF(ALYS!AP6="","",ALYS!AP6) -> 
D30: Criterio Evaluación 1.4 | E30: =IF(ALYS!H7="","",ALYS!H7) ->  | F30: =IF(ALYS!I7="","",ALYS!I7) ->  | G30: =IF(ALYS!J7="","",ALYS!J7) ->  | H30: =IF(ALYS!K7="","",ALYS!K7) ->  | I30: =IF(ALYS!L7="","",ALYS!L7) ->  | J30: =IF(ALYS!M7="","",ALYS!M7) ->  | K30: =IF(ALYS!N7="","",ALYS!N7) ->  | L30: =IF(ALYS!O7="","",ALYS!O7) ->  | M30: =IF(ALYS!P7="","",ALYS!P7) ->  | N30: =IF(ALYS!Q7="","",ALYS!Q7) ->  | O30: =IF(ALYS!R7="","",ALYS!R7) ->  | P30: =IF(ALYS!S7="","",ALYS!S7) ->  | Q30: =IF(ALYS!T7="","",ALYS!T7) ->  | R30: =IF(ALYS!U7="","",ALYS!U7) ->  | S30: =IF(ALYS!V7="","",ALYS!V7) ->  | T30: =IF(ALYS!W7="","",ALYS!W7) ->  | U30: =IF(ALYS!X7="","",ALYS!X7) ->  | V30: =IF(ALYS!Y7="","",ALYS!Y7) ->  | W30: =IF(ALYS!Z7="","",ALYS!Z7) ->  | X30: =IF(ALYS!AA7="","",ALYS!AA7) ->  | Y30: =IF(ALYS!AB7="","",ALYS!AB7) ->  | Z30: =IF(ALYS!AC7="","",ALYS!AC7) ->  | AA30: =IF(ALYS!AD7="","",ALYS!AD7) ->  | AB30: =IF(ALYS!AE7="","",ALYS!AE7) ->  | AC30: =IF(ALYS!AF7="","",ALYS!AF7) ->  | AD30: =IF(ALYS!AG7="","",ALYS!AG7) ->  | AE30: =IF(ALYS!AH7="","",ALYS!AH7) ->  | AF30: =IF(ALYS!AI7="","",ALYS!AI7) ->  | AG30: =IF(ALYS!AJ7="","",ALYS!AJ7) ->  | AH30: =IF(ALYS!AK7="","",ALYS!AK7) ->  | AI30: =IF(ALYS!AL7="","",ALYS!AL7) ->  | AJ30: =IF(ALYS!AM7="","",ALYS!AM7) ->  | AK30: =IF(ALYS!AN7="","",ALYS!AN7) ->  | AL30: =IF(ALYS!AO7="","",ALYS!AO7) ->  | AM30: =IF(ALYS!AP7="","",ALYS!AP7) -> 
C31: Comp. Esp. 2 | D31: Criterio Evaluación 2.1 | E31: =IF(ALYS!H8="","",ALYS!H8) ->  | F31: =IF(ALYS!I8="","",ALYS!I8) ->  | G31: =IF(ALYS!J8="","",ALYS!J8) ->  | H31: =IF(ALYS!K8="","",ALYS!K8) ->  | I31: =IF(ALYS!L8="","",ALYS!L8) ->  | J31: =IF(ALYS!M8="","",ALYS!M8) ->  | K31: =IF(ALYS!N8="","",ALYS!N8) ->  | L31: =IF(ALYS!O8="","",ALYS!O8) ->  | M31: =IF(ALYS!P8="","",ALYS!P8) ->  | N31: =IF(ALYS!Q8="","",ALYS!Q8) ->  | O31: =IF(ALYS!R8="","",ALYS!R8) ->  | P31: =IF(ALYS!S8="","",ALYS!S8) ->  | Q31: =IF(ALYS!T8="","",ALYS!T8) ->  | R31: =IF(ALYS!U8="","",ALYS!U8) ->  | S31: =IF(ALYS!V8="","",ALYS!V8) ->  | T31: =IF(ALYS!W8="","",ALYS!W8) ->  | U31: =IF(ALYS!X8="","",ALYS!X8) ->  | V31: =IF(ALYS!Y8="","",ALYS!Y8) ->  | W31: =IF(ALYS!Z8="","",ALYS!Z8) ->  | X31: =IF(ALYS!AA8="","",ALYS!AA8) ->  | Y31: =IF(ALYS!AB8="","",ALYS!AB8) ->  | Z31: =IF(ALYS!AC8="","",ALYS!AC8) ->  | AA31: =IF(ALYS!AD8="","",ALYS!AD8) ->  | AB31: =IF(ALYS!AE8="","",ALYS!AE8) ->  | AC31: =IF(ALYS!AF8="","",ALYS!AF8) ->  | AD31: =IF(ALYS!AG8="","",ALYS!AG8) ->  | AE31: =IF(ALYS!AH8="","",ALYS!AH8) ->  | AF31: =IF(ALYS!AI8="","",ALYS!AI8) ->  | AG31: =IF(ALYS!AJ8="","",ALYS!AJ8) ->  | AH31: =IF(ALYS!AK8="","",ALYS!AK8) ->  | AI31: =IF(ALYS!AL8="","",ALYS!AL8) ->  | AJ31: =IF(ALYS!AM8="","",ALYS!AM8) ->  | AK31: =IF(ALYS!AN8="","",ALYS!AN8) ->  | AL31: =IF(ALYS!AO8="","",ALYS!AO8) ->  | AM31: =IF(ALYS!AP8="","",ALYS!AP8) -> 
D32: Criterio Evaluación 2.2 | E32: =IF(ALYS!H9="","",ALYS!H9) ->  | F32: =IF(ALYS!I9="","",ALYS!I9) ->  | G32: =IF(ALYS!J9="","",ALYS!J9) ->  | H32: =IF(ALYS!K9="","",ALYS!K9) ->  | I32: =IF(ALYS!L9="","",ALYS!L9) ->  | J32: =IF(ALYS!M9="","",ALYS!M9) ->  | K32: =IF(ALYS!N9="","",ALYS!N9) ->  | L32: =IF(ALYS!O9="","",ALYS!O9) ->  | M32: =IF(ALYS!P9="","",ALYS!P9) ->  | N32: =IF(ALYS!Q9="","",ALYS!Q9) ->  | O32: =IF(ALYS!R9="","",ALYS!R9) ->  | P32: =IF(ALYS!S9="","",ALYS!S9) ->  | Q32: =IF(ALYS!T9="","",ALYS!T9) ->  | R32: =IF(ALYS!U9="","",ALYS!U9) ->  | S32: =IF(ALYS!V9="","",ALYS!V9) ->  | T32: =IF(ALYS!W9="","",ALYS!W9) ->  | U32: =IF(ALYS!X9="","",ALYS!X9) ->  | V32: =IF(ALYS!Y9="","",ALYS!Y9) ->  | W32: =IF(ALYS!Z9="","",ALYS!Z9) ->  | X32: =IF(ALYS!AA9="","",ALYS!AA9) ->  | Y32: =IF(ALYS!AB9="","",ALYS!AB9) ->  | Z32: =IF(ALYS!AC9="","",ALYS!AC9) ->  | AA32: =IF(ALYS!AD9="","",ALYS!AD9) ->  | AB32: =IF(ALYS!AE9="","",ALYS!AE9) ->  | AC32: =IF(ALYS!AF9="","",ALYS!AF9) ->  | AD32: =IF(ALYS!AG9="","",ALYS!AG9) ->  | AE32: =IF(ALYS!AH9="","",ALYS!AH9) ->  | AF32: =IF(ALYS!AI9="","",ALYS!AI9) ->  | AG32: =IF(ALYS!AJ9="","",ALYS!AJ9) ->  | AH32: =IF(ALYS!AK9="","",ALYS!AK9) ->  | AI32: =IF(ALYS!AL9="","",ALYS!AL9) ->  | AJ32: =IF(ALYS!AM9="","",ALYS!AM9) ->  | AK32: =IF(ALYS!AN9="","",ALYS!AN9) ->  | AL32: =IF(ALYS!AO9="","",ALYS!AO9) ->  | AM32: =IF(ALYS!AP9="","",ALYS!AP9) -> 
D33: Criterio Evaluación 2.3 | E33: =IF(ALYS!H10="","",ALYS!H10) ->  | F33: =IF(ALYS!I10="","",ALYS!I10) ->  | G33: =IF(ALYS!J10="","",ALYS!J10) ->  | H33: =IF(ALYS!K10="","",ALYS!K10) ->  | I33: =IF(ALYS!L10="","",ALYS!L10) ->  | J33: =IF(ALYS!M10="","",ALYS!M10) ->  | K33: =IF(ALYS!N10="","",ALYS!N10) ->  | L33: =IF(ALYS!O10="","",ALYS!O10) ->  | M33: =IF(ALYS!P10="","",ALYS!P10) ->  | N33: =IF(ALYS!Q10="","",ALYS!Q10) ->  | O33: =IF(ALYS!R10="","",ALYS!R10) ->  | P33: =IF(ALYS!S10="","",ALYS!S10) ->  | Q33: =IF(ALYS!T10="","",ALYS!T10) ->  | R33: =IF(ALYS!U10="","",ALYS!U10) ->  | S33: =IF(ALYS!V10="","",ALYS!V10) ->  | T33: =IF(ALYS!W10="","",ALYS!W10) ->  | U33: =IF(ALYS!X10="","",ALYS!X10) ->  | V33: =IF(ALYS!Y10="","",ALYS!Y10) ->  | W33: =IF(ALYS!Z10="","",ALYS!Z10) ->  | X33: =IF(ALYS!AA10="","",ALYS!AA10) ->  | Y33: =IF(ALYS!AB10="","",ALYS!AB10) ->  | Z33: =IF(ALYS!AC10="","",ALYS!AC10) ->  | AA33: =IF(ALYS!AD10="","",ALYS!AD10) ->  | AB33: =IF(ALYS!AE10="","",ALYS!AE10) ->  | AC33: =IF(ALYS!AF10="","",ALYS!AF10) ->  | AD33: =IF(ALYS!AG10="","",ALYS!AG10) ->  | AE33: =IF(ALYS!AH10="","",ALYS!AH10) ->  | AF33: =IF(ALYS!AI10="","",ALYS!AI10) ->  | AG33: =IF(ALYS!AJ10="","",ALYS!AJ10) ->  | AH33: =IF(ALYS!AK10="","",ALYS!AK10) ->  | AI33: =IF(ALYS!AL10="","",ALYS!AL10) ->  | AJ33: =IF(ALYS!AM10="","",ALYS!AM10) ->  | AK33: =IF(ALYS!AN10="","",ALYS!AN10) ->  | AL33: =IF(ALYS!AO10="","",ALYS!AO10) ->  | AM33: =IF(ALYS!AP10="","",ALYS!AP10) -> 
D34: Criterio Evaluación 2.4 | E34: =IF(ALYS!H11="","",ALYS!H11) ->  | F34: =IF(ALYS!I11="","",ALYS!I11) ->  | G34: =IF(ALYS!J11="","",ALYS!J11) ->  | H34: =IF(ALYS!K11="","",ALYS!K11) ->  | I34: =IF(ALYS!L11="","",ALYS!L11) ->  | J34: =IF(ALYS!M11="","",ALYS!M11) ->  | K34: =IF(ALYS!N11="","",ALYS!N11) ->  | L34: =IF(ALYS!O11="","",ALYS!O11) ->  | M34: =IF(ALYS!P11="","",ALYS!P11) ->  | N34: =IF(ALYS!Q11="","",ALYS!Q11) ->  | O34: =IF(ALYS!R11="","",ALYS!R11) ->  | P34: =IF(ALYS!S11="","",ALYS!S11) ->  | Q34: =IF(ALYS!T11="","",ALYS!T11) ->  | R34: =IF(ALYS!U11="","",ALYS!U11) ->  | S34: =IF(ALYS!V11="","",ALYS!V11) ->  | T34: =IF(ALYS!W11="","",ALYS!W11) ->  | U34: =IF(ALYS!X11="","",ALYS!X11) ->  | V34: =IF(ALYS!Y11="","",ALYS!Y11) ->  | W34: =IF(ALYS!Z11="","",ALYS!Z11) ->  | X34: =IF(ALYS!AA11="","",ALYS!AA11) ->  | Y34: =IF(ALYS!AB11="","",ALYS!AB11) ->  | Z34: =IF(ALYS!AC11="","",ALYS!AC11) ->  | AA34: =IF(ALYS!AD11="","",ALYS!AD11) ->  | AB34: =IF(ALYS!AE11="","",ALYS!AE11) ->  | AC34: =IF(ALYS!AF11="","",ALYS!AF11) ->  | AD34: =IF(ALYS!AG11="","",ALYS!AG11) ->  | AE34: =IF(ALYS!AH11="","",ALYS!AH11) ->  | AF34: =IF(ALYS!AI11="","",ALYS!AI11) ->  | AG34: =IF(ALYS!AJ11="","",ALYS!AJ11) ->  | AH34: =IF(ALYS!AK11="","",ALYS!AK11) ->  | AI34: =IF(ALYS!AL11="","",ALYS!AL11) ->  | AJ34: =IF(ALYS!AM11="","",ALYS!AM11) ->  | AK34: =IF(ALYS!AN11="","",ALYS!AN11) ->  | AL34: =IF(ALYS!AO11="","",ALYS!AO11) ->  | AM34: =IF(ALYS!AP11="","",ALYS!AP11) -> 
C35: Comp. Esp. 3 | D35: Criterio Evaluación 3.1 | E35: =IF(ALYS!H12="","",ALYS!H12) ->  | F35: =IF(ALYS!I12="","",ALYS!I12) ->  | G35: =IF(ALYS!J12="","",ALYS!J12) ->  | H35: =IF(ALYS!K12="","",ALYS!K12) ->  | I35: =IF(ALYS!L12="","",ALYS!L12) ->  | J35: =IF(ALYS!M12="","",ALYS!M12) ->  | K35: =IF(ALYS!N12="","",ALYS!N12) ->  | L35: =IF(ALYS!O12="","",ALYS!O12) ->  | M35: =IF(ALYS!P12="","",ALYS!P12) ->  | N35: =IF(ALYS!Q12="","",ALYS!Q12) ->  | O35: =IF(ALYS!R12="","",ALYS!R12) ->  | P35: =IF(ALYS!S12="","",ALYS!S12) ->  | Q35: =IF(ALYS!T12="","",ALYS!T12) ->  | R35: =IF(ALYS!U12="","",ALYS!U12) ->  | S35: =IF(ALYS!V12="","",ALYS!V12) ->  | T35: =IF(ALYS!W12="","",ALYS!W12) ->  | U35: =IF(ALYS!X12="","",ALYS!X12) ->  | V35: =IF(ALYS!Y12="","",ALYS!Y12) ->  | W35: =IF(ALYS!Z12="","",ALYS!Z12) ->  | X35: =IF(ALYS!AA12="","",ALYS!AA12) ->  | Y35: =IF(ALYS!AB12="","",ALYS!AB12) ->  | Z35: =IF(ALYS!AC12="","",ALYS!AC12) ->  | AA35: =IF(ALYS!AD12="","",ALYS!AD12) ->  | AB35: =IF(ALYS!AE12="","",ALYS!AE12) ->  | AC35: =IF(ALYS!AF12="","",ALYS!AF12) ->  | AD35: =IF(ALYS!AG12="","",ALYS!AG12) ->  | AE35: =IF(ALYS!AH12="","",ALYS!AH12) ->  | AF35: =IF(ALYS!AI12="","",ALYS!AI12) ->  | AG35: =IF(ALYS!AJ12="","",ALYS!AJ12) ->  | AH35: =IF(ALYS!AK12="","",ALYS!AK12) ->  | AI35: =IF(ALYS!AL12="","",ALYS!AL12) ->  | AJ35: =IF(ALYS!AM12="","",ALYS!AM12) ->  | AK35: =IF(ALYS!AN12="","",ALYS!AN12) ->  | AL35: =IF(ALYS!AO12="","",ALYS!AO12) ->  | AM35: =IF(ALYS!AP12="","",ALYS!AP12) -> 
D36: Criterio Evaluación 3.2 | E36: =IF(ALYS!H13="","",ALYS!H13) ->  | F36: =IF(ALYS!I13="","",ALYS!I13) ->  | G36: =IF(ALYS!J13="","",ALYS!J13) ->  | H36: =IF(ALYS!K13="","",ALYS!K13) ->  | I36: =IF(ALYS!L13="","",ALYS!L13) ->  | J36: =IF(ALYS!M13="","",ALYS!M13) ->  | K36: =IF(ALYS!N13="","",ALYS!N13) ->  | L36: =IF(ALYS!O13="","",ALYS!O13) ->  | M36: =IF(ALYS!P13="","",ALYS!P13) ->  | N36: =IF(ALYS!Q13="","",ALYS!Q13) ->  | O36: =IF(ALYS!R13="","",ALYS!R13) ->  | P36: =IF(ALYS!S13="","",ALYS!S13) ->  | Q36: =IF(ALYS!T13="","",ALYS!T13) ->  | R36: =IF(ALYS!U13="","",ALYS!U13) ->  | S36: =IF(ALYS!V13="","",ALYS!V13) ->  | T36: =IF(ALYS!W13="","",ALYS!W13) ->  | U36: =IF(ALYS!X13="","",ALYS!X13) ->  | V36: =IF(ALYS!Y13="","",ALYS!Y13) ->  | W36: =IF(ALYS!Z13="","",ALYS!Z13) ->  | X36: =IF(ALYS!AA13="","",ALYS!AA13) ->  | Y36: =IF(ALYS!AB13="","",ALYS!AB13) ->  | Z36: =IF(ALYS!AC13="","",ALYS!AC13) ->  | AA36: =IF(ALYS!AD13="","",ALYS!AD13) ->  | AB36: =IF(ALYS!AE13="","",ALYS!AE13) ->  | AC36: =IF(ALYS!AF13="","",ALYS!AF13) ->  | AD36: =IF(ALYS!AG13="","",ALYS!AG13) ->  | AE36: =IF(ALYS!AH13="","",ALYS!AH13) ->  | AF36: =IF(ALYS!AI13="","",ALYS!AI13) ->  | AG36: =IF(ALYS!AJ13="","",ALYS!AJ13) ->  | AH36: =IF(ALYS!AK13="","",ALYS!AK13) ->  | AI36: =IF(ALYS!AL13="","",ALYS!AL13) ->  | AJ36: =IF(ALYS!AM13="","",ALYS!AM13) ->  | AK36: =IF(ALYS!AN13="","",ALYS!AN13) ->  | AL36: =IF(ALYS!AO13="","",ALYS!AO13) ->  | AM36: =IF(ALYS!AP13="","",ALYS!AP13) -> 
D37: Criterio Evaluación 3.3 | E37: =IF(ALYS!H14="","",ALYS!H14) ->  | F37: =IF(ALYS!I14="","",ALYS!I14) ->  | G37: =IF(ALYS!J14="","",ALYS!J14) ->  | H37: =IF(ALYS!K14="","",ALYS!K14) ->  | I37: =IF(ALYS!L14="","",ALYS!L14) ->  | J37: =IF(ALYS!M14="","",ALYS!M14) ->  | K37: =IF(ALYS!N14="","",ALYS!N14) ->  | L37: =IF(ALYS!O14="","",ALYS!O14) ->  | M37: =IF(ALYS!P14="","",ALYS!P14) ->  | N37: =IF(ALYS!Q14="","",ALYS!Q14) ->  | O37: =IF(ALYS!R14="","",ALYS!R14) ->  | P37: =IF(ALYS!S14="","",ALYS!S14) ->  | Q37: =IF(ALYS!T14="","",ALYS!T14) ->  | R37: =IF(ALYS!U14="","",ALYS!U14) ->  | S37: =IF(ALYS!V14="","",ALYS!V14) ->  | T37: =IF(ALYS!W14="","",ALYS!W14) ->  | U37: =IF(ALYS!X14="","",ALYS!X14) ->  | V37: =IF(ALYS!Y14="","",ALYS!Y14) ->  | W37: =IF(ALYS!Z14="","",ALYS!Z14) ->  | X37: =IF(ALYS!AA14="","",ALYS!AA14) ->  | Y37: =IF(ALYS!AB14="","",ALYS!AB14) ->  | Z37: =IF(ALYS!AC14="","",ALYS!AC14) ->  | AA37: =IF(ALYS!AD14="","",ALYS!AD14) ->  | AB37: =IF(ALYS!AE14="","",ALYS!AE14) ->  | AC37: =IF(ALYS!AF14="","",ALYS!AF14) ->  | AD37: =IF(ALYS!AG14="","",ALYS!AG14) ->  | AE37: =IF(ALYS!AH14="","",ALYS!AH14) ->  | AF37: =IF(ALYS!AI14="","",ALYS!AI14) ->  | AG37: =IF(ALYS!AJ14="","",ALYS!AJ14) ->  | AH37: =IF(ALYS!AK14="","",ALYS!AK14) ->  | AI37: =IF(ALYS!AL14="","",ALYS!AL14) ->  | AJ37: =IF(ALYS!AM14="","",ALYS!AM14) ->  | AK37: =IF(ALYS!AN14="","",ALYS!AN14) ->  | AL37: =IF(ALYS!AO14="","",ALYS!AO14) ->  | AM37: =IF(ALYS!AP14="","",ALYS!AP14) -> 
D38: Criterio Evaluación 3.4 | E38: =IF(ALYS!H15="","",ALYS!H15) ->  | F38: =IF(ALYS!I15="","",ALYS!I15) ->  | G38: =IF(ALYS!J15="","",ALYS!J15) ->  | H38: =IF(ALYS!K15="","",ALYS!K15) ->  | I38: =IF(ALYS!L15="","",ALYS!L15) ->  | J38: =IF(ALYS!M15="","",ALYS!M15) ->  | K38: =IF(ALYS!N15="","",ALYS!N15) ->  | L38: =IF(ALYS!O15="","",ALYS!O15) ->  | M38: =IF(ALYS!P15="","",ALYS!P15) ->  | N38: =IF(ALYS!Q15="","",ALYS!Q15) ->  | O38: =IF(ALYS!R15="","",ALYS!R15) ->  | P38: =IF(ALYS!S15="","",ALYS!S15) ->  | Q38: =IF(ALYS!T15="","",ALYS!T15) ->  | R38: =IF(ALYS!U15="","",ALYS!U15) ->  | S38: =IF(ALYS!V15="","",ALYS!V15) ->  | T38: =IF(ALYS!W15="","",ALYS!W15) ->  | U38: =IF(ALYS!X15="","",ALYS!X15) ->  | V38: =IF(ALYS!Y15="","",ALYS!Y15) ->  | W38: =IF(ALYS!Z15="","",ALYS!Z15) ->  | X38: =IF(ALYS!AA15="","",ALYS!AA15) ->  | Y38: =IF(ALYS!AB15="","",ALYS!AB15) ->  | Z38: =IF(ALYS!AC15="","",ALYS!AC15) ->  | AA38: =IF(ALYS!AD15="","",ALYS!AD15) ->  | AB38: =IF(ALYS!AE15="","",ALYS!AE15) ->  | AC38: =IF(ALYS!AF15="","",ALYS!AF15) ->  | AD38: =IF(ALYS!AG15="","",ALYS!AG15) ->  | AE38: =IF(ALYS!AH15="","",ALYS!AH15) ->  | AF38: =IF(ALYS!AI15="","",ALYS!AI15) ->  | AG38: =IF(ALYS!AJ15="","",ALYS!AJ15) ->  | AH38: =IF(ALYS!AK15="","",ALYS!AK15) ->  | AI38: =IF(ALYS!AL15="","",ALYS!AL15) ->  | AJ38: =IF(ALYS!AM15="","",ALYS!AM15) ->  | AK38: =IF(ALYS!AN15="","",ALYS!AN15) ->  | AL38: =IF(ALYS!AO15="","",ALYS!AO15) ->  | AM38: =IF(ALYS!AP15="","",ALYS!AP15) -> 
D39: Criterio Evaluación 3.5 | E39: =IF(ALYS!H16="","",ALYS!H16) ->  | F39: =IF(ALYS!I16="","",ALYS!I16) ->  | G39: =IF(ALYS!J16="","",ALYS!J16) ->  | H39: =IF(ALYS!K16="","",ALYS!K16) ->  | I39: =IF(ALYS!L16="","",ALYS!L16) ->  | J39: =IF(ALYS!M16="","",ALYS!M16) ->  | K39: =IF(ALYS!N16="","",ALYS!N16) ->  | L39: =IF(ALYS!O16="","",ALYS!O16) ->  | M39: =IF(ALYS!P16="","",ALYS!P16) ->  | N39: =IF(ALYS!Q16="","",ALYS!Q16) ->  | O39: =IF(ALYS!R16="","",ALYS!R16) ->  | P39: =IF(ALYS!S16="","",ALYS!S16) ->  | Q39: =IF(ALYS!T16="","",ALYS!T16) ->  | R39: =IF(ALYS!U16="","",ALYS!U16) ->  | S39: =IF(ALYS!V16="","",ALYS!V16) ->  | T39: =IF(ALYS!W16="","",ALYS!W16) ->  | U39: =IF(ALYS!X16="","",ALYS!X16) ->  | V39: =IF(ALYS!Y16="","",ALYS!Y16) ->  | W39: =IF(ALYS!Z16="","",ALYS!Z16) ->  | X39: =IF(ALYS!AA16="","",ALYS!AA16) ->  | Y39: =IF(ALYS!AB16="","",ALYS!AB16) ->  | Z39: =IF(ALYS!AC16="","",ALYS!AC16) ->  | AA39: =IF(ALYS!AD16="","",ALYS!AD16) ->  | AB39: =IF(ALYS!AE16="","",ALYS!AE16) ->  | AC39: =IF(ALYS!AF16="","",ALYS!AF16) ->  | AD39: =IF(ALYS!AG16="","",ALYS!AG16) ->  | AE39: =IF(ALYS!AH16="","",ALYS!AH16) ->  | AF39: =IF(ALYS!AI16="","",ALYS!AI16) ->  | AG39: =IF(ALYS!AJ16="","",ALYS!AJ16) ->  | AH39: =IF(ALYS!AK16="","",ALYS!AK16) ->  | AI39: =IF(ALYS!AL16="","",ALYS!AL16) ->  | AJ39: =IF(ALYS!AM16="","",ALYS!AM16) ->  | AK39: =IF(ALYS!AN16="","",ALYS!AN16) ->  | AL39: =IF(ALYS!AO16="","",ALYS!AO16) ->  | AM39: =IF(ALYS!AP16="","",ALYS!AP16) -> 
C40: Comp. Esp. 4 | D40: Criterio Evaluación 4.1 | E40: =IF(ALYS!H17="","",ALYS!H17) ->  | F40: =IF(ALYS!I17="","",ALYS!I17) ->  | G40: =IF(ALYS!J17="","",ALYS!J17) ->  | H40: =IF(ALYS!K17="","",ALYS!K17) ->  | I40: =IF(ALYS!L17="","",ALYS!L17) ->  | J40: =IF(ALYS!M17="","",ALYS!M17) ->  | K40: =IF(ALYS!N17="","",ALYS!N17) ->  | L40: =IF(ALYS!O17="","",ALYS!O17) ->  | M40: =IF(ALYS!P17="","",ALYS!P17) ->  | N40: =IF(ALYS!Q17="","",ALYS!Q17) ->  | O40: =IF(ALYS!R17="","",ALYS!R17) ->  | P40: =IF(ALYS!S17="","",ALYS!S17) ->  | Q40: =IF(ALYS!T17="","",ALYS!T17) ->  | R40: =IF(ALYS!U17="","",ALYS!U17) ->  | S40: =IF(ALYS!V17="","",ALYS!V17) ->  | T40: =IF(ALYS!W17="","",ALYS!W17) ->  | U40: =IF(ALYS!X17="","",ALYS!X17) ->  | V40: =IF(ALYS!Y17="","",ALYS!Y17) ->  | W40: =IF(ALYS!Z17="","",ALYS!Z17) ->  | X40: =IF(ALYS!AA17="","",ALYS!AA17) ->  | Y40: =IF(ALYS!AB17="","",ALYS!AB17) ->  | Z40: =IF(ALYS!AC17="","",ALYS!AC17) ->  | AA40: =IF(ALYS!AD17="","",ALYS!AD17) ->  | AB40: =IF(ALYS!AE17="","",ALYS!AE17) ->  | AC40: =IF(ALYS!AF17="","",ALYS!AF17) ->  | AD40: =IF(ALYS!AG17="","",ALYS!AG17) ->  | AE40: =IF(ALYS!AH17="","",ALYS!AH17) ->  | AF40: =IF(ALYS!AI17="","",ALYS!AI17) ->  | AG40: =IF(ALYS!AJ17="","",ALYS!AJ17) ->  | AH40: =IF(ALYS!AK17="","",ALYS!AK17) ->  | AI40: =IF(ALYS!AL17="","",ALYS!AL17) ->  | AJ40: =IF(ALYS!AM17="","",ALYS!AM17) ->  | AK40: =IF(ALYS!AN17="","",ALYS!AN17) ->  | AL40: =IF(ALYS!AO17="","",ALYS!AO17) ->  | AM40: =IF(ALYS!AP17="","",ALYS!AP17) -> 
D41: Criterio Evaluación 4.2 | E41: =IF(ALYS!H18="","",ALYS!H18) ->  | F41: =IF(ALYS!I18="","",ALYS!I18) ->  | G41: =IF(ALYS!J18="","",ALYS!J18) ->  | H41: =IF(ALYS!K18="","",ALYS!K18) ->  | I41: =IF(ALYS!L18="","",ALYS!L18) ->  | J41: =IF(ALYS!M18="","",ALYS!M18) ->  | K41: =IF(ALYS!N18="","",ALYS!N18) ->  | L41: =IF(ALYS!O18="","",ALYS!O18) ->  | M41: =IF(ALYS!P18="","",ALYS!P18) ->  | N41: =IF(ALYS!Q18="","",ALYS!Q18) ->  | O41: =IF(ALYS!R18="","",ALYS!R18) ->  | P41: =IF(ALYS!S18="","",ALYS!S18) ->  | Q41: =IF(ALYS!T18="","",ALYS!T18) ->  | R41: =IF(ALYS!U18="","",ALYS!U18) ->  | S41: =IF(ALYS!V18="","",ALYS!V18) ->  | T41: =IF(ALYS!W18="","",ALYS!W18) ->  | U41: =IF(ALYS!X18="","",ALYS!X18) ->  | V41: =IF(ALYS!Y18="","",ALYS!Y18) ->  | W41: =IF(ALYS!Z18="","",ALYS!Z18) ->  | X41: =IF(ALYS!AA18="","",ALYS!AA18) ->  | Y41: =IF(ALYS!AB18="","",ALYS!AB18) ->  | Z41: =IF(ALYS!AC18="","",ALYS!AC18) ->  | AA41: =IF(ALYS!AD18="","",ALYS!AD18) ->  | AB41: =IF(ALYS!AE18="","",ALYS!AE18) ->  | AC41: =IF(ALYS!AF18="","",ALYS!AF18) ->  | AD41: =IF(ALYS!AG18="","",ALYS!AG18) ->  | AE41: =IF(ALYS!AH18="","",ALYS!AH18) ->  | AF41: =IF(ALYS!AI18="","",ALYS!AI18) ->  | AG41: =IF(ALYS!AJ18="","",ALYS!AJ18) ->  | AH41: =IF(ALYS!AK18="","",ALYS!AK18) ->  | AI41: =IF(ALYS!AL18="","",ALYS!AL18) ->  | AJ41: =IF(ALYS!AM18="","",ALYS!AM18) ->  | AK41: =IF(ALYS!AN18="","",ALYS!AN18) ->  | AL41: =IF(ALYS!AO18="","",ALYS!AO18) ->  | AM41: =IF(ALYS!AP18="","",ALYS!AP18) -> 
C42: Comp. Esp. 5 | D42: Criterio Evaluación 5.1 | E42: =IF(ALYS!H19="","",ALYS!H19) ->  | F42: =IF(ALYS!I19="","",ALYS!I19) ->  | G42: =IF(ALYS!J19="","",ALYS!J19) ->  | H42: =IF(ALYS!K19="","",ALYS!K19) ->  | I42: =IF(ALYS!L19="","",ALYS!L19) ->  | J42: =IF(ALYS!M19="","",ALYS!M19) ->  | K42: =IF(ALYS!N19="","",ALYS!N19) ->  | L42: =IF(ALYS!O19="","",ALYS!O19) ->  | M42: =IF(ALYS!P19="","",ALYS!P19) ->  | N42: =IF(ALYS!Q19="","",ALYS!Q19) ->  | O42: =IF(ALYS!R19="","",ALYS!R19) ->  | P42: =IF(ALYS!S19="","",ALYS!S19) ->  | Q42: =IF(ALYS!T19="","",ALYS!T19) ->  | R42: =IF(ALYS!U19="","",ALYS!U19) ->  | S42: =IF(ALYS!V19="","",ALYS!V19) ->  | T42: =IF(ALYS!W19="","",ALYS!W19) ->  | U42: =IF(ALYS!X19="","",ALYS!X19) ->  | V42: =IF(ALYS!Y19="","",ALYS!Y19) ->  | W42: =IF(ALYS!Z19="","",ALYS!Z19) ->  | X42: =IF(ALYS!AA19="","",ALYS!AA19) ->  | Y42: =IF(ALYS!AB19="","",ALYS!AB19) ->  | Z42: =IF(ALYS!AC19="","",ALYS!AC19) ->  | AA42: =IF(ALYS!AD19="","",ALYS!AD19) ->  | AB42: =IF(ALYS!AE19="","",ALYS!AE19) ->  | AC42: =IF(ALYS!AF19="","",ALYS!AF19) ->  | AD42: =IF(ALYS!AG19="","",ALYS!AG19) ->  | AE42: =IF(ALYS!AH19="","",ALYS!AH19) ->  | AF42: =IF(ALYS!AI19="","",ALYS!AI19) ->  | AG42: =IF(ALYS!AJ19="","",ALYS!AJ19) ->  | AH42: =IF(ALYS!AK19="","",ALYS!AK19) ->  | AI42: =IF(ALYS!AL19="","",ALYS!AL19) ->  | AJ42: =IF(ALYS!AM19="","",ALYS!AM19) ->  | AK42: =IF(ALYS!AN19="","",ALYS!AN19) ->  | AL42: =IF(ALYS!AO19="","",ALYS!AO19) ->  | AM42: =IF(ALYS!AP19="","",ALYS!AP19) -> 
D43: Criterio Evaluación 5.2 | E43: =IF(ALYS!H20="","",ALYS!H20) ->  | F43: =IF(ALYS!I20="","",ALYS!I20) ->  | G43: =IF(ALYS!J20="","",ALYS!J20) ->  | H43: =IF(ALYS!K20="","",ALYS!K20) ->  | I43: =IF(ALYS!L20="","",ALYS!L20) ->  | J43: =IF(ALYS!M20="","",ALYS!M20) ->  | K43: =IF(ALYS!N20="","",ALYS!N20) ->  | L43: =IF(ALYS!O20="","",ALYS!O20) ->  | M43: =IF(ALYS!P20="","",ALYS!P20) ->  | N43: =IF(ALYS!Q20="","",ALYS!Q20) ->  | O43: =IF(ALYS!R20="","",ALYS!R20) ->  | P43: =IF(ALYS!S20="","",ALYS!S20) ->  | Q43: =IF(ALYS!T20="","",ALYS!T20) ->  | R43: =IF(ALYS!U20="","",ALYS!U20) ->  | S43: =IF(ALYS!V20="","",ALYS!V20) ->  | T43: =IF(ALYS!W20="","",ALYS!W20) ->  | U43: =IF(ALYS!X20="","",ALYS!X20) ->  | V43: =IF(ALYS!Y20="","",ALYS!Y20) ->  | W43: =IF(ALYS!Z20="","",ALYS!Z20) ->  | X43: =IF(ALYS!AA20="","",ALYS!AA20) ->  | Y43: =IF(ALYS!AB20="","",ALYS!AB20) ->  | Z43: =IF(ALYS!AC20="","",ALYS!AC20) ->  | AA43: =IF(ALYS!AD20="","",ALYS!AD20) ->  | AB43: =IF(ALYS!AE20="","",ALYS!AE20) ->  | AC43: =IF(ALYS!AF20="","",ALYS!AF20) ->  | AD43: =IF(ALYS!AG20="","",ALYS!AG20) ->  | AE43: =IF(ALYS!AH20="","",ALYS!AH20) ->  | AF43: =IF(ALYS!AI20="","",ALYS!AI20) ->  | AG43: =IF(ALYS!AJ20="","",ALYS!AJ20) ->  | AH43: =IF(ALYS!AK20="","",ALYS!AK20) ->  | AI43: =IF(ALYS!AL20="","",ALYS!AL20) ->  | AJ43: =IF(ALYS!AM20="","",ALYS!AM20) ->  | AK43: =IF(ALYS!AN20="","",ALYS!AN20) ->  | AL43: =IF(ALYS!AO20="","",ALYS!AO20) ->  | AM43: =IF(ALYS!AP20="","",ALYS!AP20) -> 
D44: Criterio Evaluación 5.3 | E44: =IF(ALYS!H21="","",ALYS!H21) ->  | F44: =IF(ALYS!I21="","",ALYS!I21) ->  | G44: =IF(ALYS!J21="","",ALYS!J21) ->  | H44: =IF(ALYS!K21="","",ALYS!K21) ->  | I44: =IF(ALYS!L21="","",ALYS!L21) ->  | J44: =IF(ALYS!M21="","",ALYS!M21) ->  | K44: =IF(ALYS!N21="","",ALYS!N21) ->  | L44: =IF(ALYS!O21="","",ALYS!O21) ->  | M44: =IF(ALYS!P21="","",ALYS!P21) ->  | N44: =IF(ALYS!Q21="","",ALYS!Q21) ->  | O44: =IF(ALYS!R21="","",ALYS!R21) ->  | P44: =IF(ALYS!S21="","",ALYS!S21) ->  | Q44: =IF(ALYS!T21="","",ALYS!T21) ->  | R44: =IF(ALYS!U21="","",ALYS!U21) ->  | S44: =IF(ALYS!V21="","",ALYS!V21) ->  | T44: =IF(ALYS!W21="","",ALYS!W21) ->  | U44: =IF(ALYS!X21="","",ALYS!X21) ->  | V44: =IF(ALYS!Y21="","",ALYS!Y21) ->  | W44: =IF(ALYS!Z21="","",ALYS!Z21) ->  | X44: =IF(ALYS!AA21="","",ALYS!AA21) ->  | Y44: =IF(ALYS!AB21="","",ALYS!AB21) ->  | Z44: =IF(ALYS!AC21="","",ALYS!AC21) ->  | AA44: =IF(ALYS!AD21="","",ALYS!AD21) ->  | AB44: =IF(ALYS!AE21="","",ALYS!AE21) ->  | AC44: =IF(ALYS!AF21="","",ALYS!AF21) ->  | AD44: =IF(ALYS!AG21="","",ALYS!AG21) ->  | AE44: =IF(ALYS!AH21="","",ALYS!AH21) ->  | AF44: =IF(ALYS!AI21="","",ALYS!AI21) ->  | AG44: =IF(ALYS!AJ21="","",ALYS!AJ21) ->  | AH44: =IF(ALYS!AK21="","",ALYS!AK21) ->  | AI44: =IF(ALYS!AL21="","",ALYS!AL21) ->  | AJ44: =IF(ALYS!AM21="","",ALYS!AM21) ->  | AK44: =IF(ALYS!AN21="","",ALYS!AN21) ->  | AL44: =IF(ALYS!AO21="","",ALYS!AO21) ->  | AM44: =IF(ALYS!AP21="","",ALYS!AP21) -> 
C45: Comp. Esp. 6 | D45: Criterio Evaluación 6.1 | E45: =IF(ALYS!H22="","",ALYS!H22) ->  | F45: =IF(ALYS!I22="","",ALYS!I22) ->  | G45: =IF(ALYS!J22="","",ALYS!J22) ->  | H45: =IF(ALYS!K22="","",ALYS!K22) ->  | I45: =IF(ALYS!L22="","",ALYS!L22) ->  | J45: =IF(ALYS!M22="","",ALYS!M22) ->  | K45: =IF(ALYS!N22="","",ALYS!N22) ->  | L45: =IF(ALYS!O22="","",ALYS!O22) ->  | M45: =IF(ALYS!P22="","",ALYS!P22) ->  | N45: =IF(ALYS!Q22="","",ALYS!Q22) ->  | O45: =IF(ALYS!R22="","",ALYS!R22) ->  | P45: =IF(ALYS!S22="","",ALYS!S22) ->  | Q45: =IF(ALYS!T22="","",ALYS!T22) ->  | R45: =IF(ALYS!U22="","",ALYS!U22) ->  | S45: =IF(ALYS!V22="","",ALYS!V22) ->  | T45: =IF(ALYS!W22="","",ALYS!W22) ->  | U45: =IF(ALYS!X22="","",ALYS!X22) ->  | V45: =IF(ALYS!Y22="","",ALYS!Y22) ->  | W45: =IF(ALYS!Z22="","",ALYS!Z22) ->  | X45: =IF(ALYS!AA22="","",ALYS!AA22) ->  | Y45: =IF(ALYS!AB22="","",ALYS!AB22) ->  | Z45: =IF(ALYS!AC22="","",ALYS!AC22) ->  | AA45: =IF(ALYS!AD22="","",ALYS!AD22) ->  | AB45: =IF(ALYS!AE22="","",ALYS!AE22) ->  | AC45: =IF(ALYS!AF22="","",ALYS!AF22) ->  | AD45: =IF(ALYS!AG22="","",ALYS!AG22) ->  | AE45: =IF(ALYS!AH22="","",ALYS!AH22) ->  | AF45: =IF(ALYS!AI22="","",ALYS!AI22) ->  | AG45: =IF(ALYS!AJ22="","",ALYS!AJ22) ->  | AH45: =IF(ALYS!AK22="","",ALYS!AK22) ->  | AI45: =IF(ALYS!AL22="","",ALYS!AL22) ->  | AJ45: =IF(ALYS!AM22="","",ALYS!AM22) ->  | AK45: =IF(ALYS!AN22="","",ALYS!AN22) ->  | AL45: =IF(ALYS!AO22="","",ALYS!AO22) ->  | AM45: =IF(ALYS!AP22="","",ALYS!AP22) -> 
D46: Criterio Evaluación 6.3 | E46: =IF(ALYS!H23="","",ALYS!H23) ->  | F46: =IF(ALYS!I23="","",ALYS!I23) ->  | G46: =IF(ALYS!J23="","",ALYS!J23) ->  | H46: =IF(ALYS!K23="","",ALYS!K23) ->  | I46: =IF(ALYS!L23="","",ALYS!L23) ->  | J46: =IF(ALYS!M23="","",ALYS!M23) ->  | K46: =IF(ALYS!N23="","",ALYS!N23) ->  | L46: =IF(ALYS!O23="","",ALYS!O23) ->  | M46: =IF(ALYS!P23="","",ALYS!P23) ->  | N46: =IF(ALYS!Q23="","",ALYS!Q23) ->  | O46: =IF(ALYS!R23="","",ALYS!R23) ->  | P46: =IF(ALYS!S23="","",ALYS!S23) ->  | Q46: =IF(ALYS!T23="","",ALYS!T23) ->  | R46: =IF(ALYS!U23="","",ALYS!U23) ->  | S46: =IF(ALYS!V23="","",ALYS!V23) ->  | T46: =IF(ALYS!W23="","",ALYS!W23) ->  | U46: =IF(ALYS!X23="","",ALYS!X23) ->  | V46: =IF(ALYS!Y23="","",ALYS!Y23) ->  | W46: =IF(ALYS!Z23="","",ALYS!Z23) ->  | X46: =IF(ALYS!AA23="","",ALYS!AA23) ->  | Y46: =IF(ALYS!AB23="","",ALYS!AB23) ->  | Z46: =IF(ALYS!AC23="","",ALYS!AC23) ->  | AA46: =IF(ALYS!AD23="","",ALYS!AD23) ->  | AB46: =IF(ALYS!AE23="","",ALYS!AE23) ->  | AC46: =IF(ALYS!AF23="","",ALYS!AF23) ->  | AD46: =IF(ALYS!AG23="","",ALYS!AG23) ->  | AE46: =IF(ALYS!AH23="","",ALYS!AH23) ->  | AF46: =IF(ALYS!AI23="","",ALYS!AI23) ->  | AG46: =IF(ALYS!AJ23="","",ALYS!AJ23) ->  | AH46: =IF(ALYS!AK23="","",ALYS!AK23) ->  | AI46: =IF(ALYS!AL23="","",ALYS!AL23) ->  | AJ46: =IF(ALYS!AM23="","",ALYS!AM23) ->  | AK46: =IF(ALYS!AN23="","",ALYS!AN23) ->  | AL46: =IF(ALYS!AO23="","",ALYS!AO23) ->  | AM46: =IF(ALYS!AP23="","",ALYS!AP23) -> 
C47: Comp. Esp. 7 | D47: Criterio Evaluación 7.1 | E47: =IF(ALYS!H24="","",ALYS!H24) ->  | F47: =IF(ALYS!I24="","",ALYS!I24) ->  | G47: =IF(ALYS!J24="","",ALYS!J24) ->  | H47: =IF(ALYS!K24="","",ALYS!K24) ->  | I47: =IF(ALYS!L24="","",ALYS!L24) ->  | J47: =IF(ALYS!M24="","",ALYS!M24) ->  | K47: =IF(ALYS!N24="","",ALYS!N24) ->  | L47: =IF(ALYS!O24="","",ALYS!O24) ->  | M47: =IF(ALYS!P24="","",ALYS!P24) ->  | N47: =IF(ALYS!Q24="","",ALYS!Q24) ->  | O47: =IF(ALYS!R24="","",ALYS!R24) ->  | P47: =IF(ALYS!S24="","",ALYS!S24) ->  | Q47: =IF(ALYS!T24="","",ALYS!T24) ->  | R47: =IF(ALYS!U24="","",ALYS!U24) ->  | S47: =IF(ALYS!V24="","",ALYS!V24) ->  | T47: =IF(ALYS!W24="","",ALYS!W24) ->  | U47: =IF(ALYS!X24="","",ALYS!X24) ->  | V47: =IF(ALYS!Y24="","",ALYS!Y24) ->  | W47: =IF(ALYS!Z24="","",ALYS!Z24) ->  | X47: =IF(ALYS!AA24="","",ALYS!AA24) ->  | Y47: =IF(ALYS!AB24="","",ALYS!AB24) ->  | Z47: =IF(ALYS!AC24="","",ALYS!AC24) ->  | AA47: =IF(ALYS!AD24="","",ALYS!AD24) ->  | AB47: =IF(ALYS!AE24="","",ALYS!AE24) ->  | AC47: =IF(ALYS!AF24="","",ALYS!AF24) ->  | AD47: =IF(ALYS!AG24="","",ALYS!AG24) ->  | AE47: =IF(ALYS!AH24="","",ALYS!AH24) ->  | AF47: =IF(ALYS!AI24="","",ALYS!AI24) ->  | AG47: =IF(ALYS!AJ24="","",ALYS!AJ24) ->  | AH47: =IF(ALYS!AK24="","",ALYS!AK24) ->  | AI47: =IF(ALYS!AL24="","",ALYS!AL24) ->  | AJ47: =IF(ALYS!AM24="","",ALYS!AM24) ->  | AK47: =IF(ALYS!AN24="","",ALYS!AN24) ->  | AL47: =IF(ALYS!AO24="","",ALYS!AO24) ->  | AM47: =IF(ALYS!AP24="","",ALYS!AP24) -> 
B48: Ámbito práctico | C48: Comp. Esp. 1 | D48: Criterio Evaluación 1.1 | E48: =IF(AP!H4="","",AP!H4) ->  | F48: =IF(AP!I4="","",AP!I4) ->  | G48: =IF(AP!J4="","",AP!J4) ->  | H48: =IF(AP!K4="","",AP!K4) ->  | I48: =IF(AP!L4="","",AP!L4) ->  | J48: =IF(AP!M4="","",AP!M4) ->  | K48: =IF(AP!N4="","",AP!N4) ->  | L48: =IF(AP!O4="","",AP!O4) ->  | M48: =IF(AP!P4="","",AP!P4) ->  | N48: =IF(AP!Q4="","",AP!Q4) ->  | O48: =IF(AP!R4="","",AP!R4) ->  | P48: =IF(AP!S4="","",AP!S4) ->  | Q48: =IF(AP!T4="","",AP!T4) ->  | R48: =IF(AP!U4="","",AP!U4) ->  | S48: =IF(AP!V4="","",AP!V4) ->  | T48: =IF(AP!W4="","",AP!W4) ->  | U48: =IF(AP!X4="","",AP!X4) ->  | V48: =IF(AP!Y4="","",AP!Y4) ->  | W48: =IF(AP!Z4="","",AP!Z4) ->  | X48: =IF(AP!AA4="","",AP!AA4) ->  | Y48: =IF(AP!AB4="","",AP!AB4) ->  | Z48: =IF(AP!AC4="","",AP!AC4) ->  | AA48: =IF(AP!AD4="","",AP!AD4) ->  | AB48: =IF(AP!AE4="","",AP!AE4) ->  | AC48: =IF(AP!AF4="","",AP!AF4) ->  | AD48: =IF(AP!AG4="","",AP!AG4) ->  | AE48: =IF(AP!AH4="","",AP!AH4) ->  | AF48: =IF(AP!AI4="","",AP!AI4) ->  | AG48: =IF(AP!AJ4="","",AP!AJ4) ->  | AH48: =IF(AP!AK4="","",AP!AK4) ->  | AI48: =IF(AP!AL4="","",AP!AL4) ->  | AJ48: =IF(AP!AM4="","",AP!AM4) ->  | AK48: =IF(AP!AN4="","",AP!AN4) ->  | AL48: =IF(AP!AO4="","",AP!AO4) ->  | AM48: =IF(AP!AP4="","",AP!AP4) -> 
D49: Criterio Evaluación 1.2 | E49: =IF(AP!H5="","",AP!H5) ->  | F49: =IF(AP!I5="","",AP!I5) ->  | G49: =IF(AP!J5="","",AP!J5) ->  | H49: =IF(AP!K5="","",AP!K5) ->  | I49: =IF(AP!L5="","",AP!L5) ->  | J49: =IF(AP!M5="","",AP!M5) ->  | K49: =IF(AP!N5="","",AP!N5) ->  | L49: =IF(AP!O5="","",AP!O5) ->  | M49: =IF(AP!P5="","",AP!P5) ->  | N49: =IF(AP!Q5="","",AP!Q5) ->  | O49: =IF(AP!R5="","",AP!R5) ->  | P49: =IF(AP!S5="","",AP!S5) ->  | Q49: =IF(AP!T5="","",AP!T5) ->  | R49: =IF(AP!U5="","",AP!U5) ->  | S49: =IF(AP!V5="","",AP!V5) ->  | T49: =IF(AP!W5="","",AP!W5) ->  | U49: =IF(AP!X5="","",AP!X5) ->  | V49: =IF(AP!Y5="","",AP!Y5) ->  | W49: =IF(AP!Z5="","",AP!Z5) ->  | X49: =IF(AP!AA5="","",AP!AA5) ->  | Y49: =IF(AP!AB5="","",AP!AB5) ->  | Z49: =IF(AP!AC5="","",AP!AC5) ->  | AA49: =IF(AP!AD5="","",AP!AD5) ->  | AB49: =IF(AP!AE5="","",AP!AE5) ->  | AC49: =IF(AP!AF5="","",AP!AF5) ->  | AD49: =IF(AP!AG5="","",AP!AG5) ->  | AE49: =IF(AP!AH5="","",AP!AH5) ->  | AF49: =IF(AP!AI5="","",AP!AI5) ->  | AG49: =IF(AP!AJ5="","",AP!AJ5) ->  | AH49: =IF(AP!AK5="","",AP!AK5) ->  | AI49: =IF(AP!AL5="","",AP!AL5) ->  | AJ49: =IF(AP!AM5="","",AP!AM5) ->  | AK49: =IF(AP!AN5="","",AP!AN5) ->  | AL49: =IF(AP!AO5="","",AP!AO5) ->  | AM49: =IF(AP!AP5="","",AP!AP5) -> 
D50: Criterio Evaluación 1.3 | E50: =IF(AP!H6="","",AP!H6) ->  | F50: =IF(AP!I6="","",AP!I6) ->  | G50: =IF(AP!J6="","",AP!J6) ->  | H50: =IF(AP!K6="","",AP!K6) ->  | I50: =IF(AP!L6="","",AP!L6) ->  | J50: =IF(AP!M6="","",AP!M6) ->  | K50: =IF(AP!N6="","",AP!N6) ->  | L50: =IF(AP!O6="","",AP!O6) ->  | M50: =IF(AP!P6="","",AP!P6) ->  | N50: =IF(AP!Q6="","",AP!Q6) ->  | O50: =IF(AP!R6="","",AP!R6) ->  | P50: =IF(AP!S6="","",AP!S6) ->  | Q50: =IF(AP!T6="","",AP!T6) ->  | R50: =IF(AP!U6="","",AP!U6) ->  | S50: =IF(AP!V6="","",AP!V6) ->  | T50: =IF(AP!W6="","",AP!W6) ->  | U50: =IF(AP!X6="","",AP!X6) ->  | V50: =IF(AP!Y6="","",AP!Y6) ->  | W50: =IF(AP!Z6="","",AP!Z6) ->  | X50: =IF(AP!AA6="","",AP!AA6) ->  | Y50: =IF(AP!AB6="","",AP!AB6) ->  | Z50: =IF(AP!AC6="","",AP!AC6) ->  | AA50: =IF(AP!AD6="","",AP!AD6) ->  | AB50: =IF(AP!AE6="","",AP!AE6) ->  | AC50: =IF(AP!AF6="","",AP!AF6) ->  | AD50: =IF(AP!AG6="","",AP!AG6) ->  | AE50: =IF(AP!AH6="","",AP!AH6) ->  | AF50: =IF(AP!AI6="","",AP!AI6) ->  | AG50: =IF(AP!AJ6="","",AP!AJ6) ->  | AH50: =IF(AP!AK6="","",AP!AK6) ->  | AI50: =IF(AP!AL6="","",AP!AL6) ->  | AJ50: =IF(AP!AM6="","",AP!AM6) ->  | AK50: =IF(AP!AN6="","",AP!AN6) ->  | AL50: =IF(AP!AO6="","",AP!AO6) ->  | AM50: =IF(AP!AP6="","",AP!AP6) -> 
C51: Comp. Esp. 2 | D51: Criterio Evaluación 2.1 | E51: =IF(AP!H7="","",AP!H7) ->  | F51: =IF(AP!I7="","",AP!I7) ->  | G51: =IF(AP!J7="","",AP!J7) ->  | H51: =IF(AP!K7="","",AP!K7) ->  | I51: =IF(AP!L7="","",AP!L7) ->  | J51: =IF(AP!M7="","",AP!M7) ->  | K51: =IF(AP!N7="","",AP!N7) ->  | L51: =IF(AP!O7="","",AP!O7) ->  | M51: =IF(AP!P7="","",AP!P7) ->  | N51: =IF(AP!Q7="","",AP!Q7) ->  | O51: =IF(AP!R7="","",AP!R7) ->  | P51: =IF(AP!S7="","",AP!S7) ->  | Q51: =IF(AP!T7="","",AP!T7) ->  | R51: =IF(AP!U7="","",AP!U7) ->  | S51: =IF(AP!V7="","",AP!V7) ->  | T51: =IF(AP!W7="","",AP!W7) ->  | U51: =IF(AP!X7="","",AP!X7) ->  | V51: =IF(AP!Y7="","",AP!Y7) ->  | W51: =IF(AP!Z7="","",AP!Z7) ->  | X51: =IF(AP!AA7="","",AP!AA7) ->  | Y51: =IF(AP!AB7="","",AP!AB7) ->  | Z51: =IF(AP!AC7="","",AP!AC7) ->  | AA51: =IF(AP!AD7="","",AP!AD7) ->  | AB51: =IF(AP!AE7="","",AP!AE7) ->  | AC51: =IF(AP!AF7="","",AP!AF7) ->  | AD51: =IF(AP!AG7="","",AP!AG7) ->  | AE51: =IF(AP!AH7="","",AP!AH7) ->  | AF51: =IF(AP!AI7="","",AP!AI7) ->  | AG51: =IF(AP!AJ7="","",AP!AJ7) ->  | AH51: =IF(AP!AK7="","",AP!AK7) ->  | AI51: =IF(AP!AL7="","",AP!AL7) ->  | AJ51: =IF(AP!AM7="","",AP!AM7) ->  | AK51: =IF(AP!AN7="","",AP!AN7) ->  | AL51: =IF(AP!AO7="","",AP!AO7) ->  | AM51: =IF(AP!AP7="","",AP!AP7) -> 
D52: Criterio Evaluación 2.2 | E52: =IF(AP!H8="","",AP!H8) ->  | F52: =IF(AP!I8="","",AP!I8) ->  | G52: =IF(AP!J8="","",AP!J8) ->  | H52: =IF(AP!K8="","",AP!K8) ->  | I52: =IF(AP!L8="","",AP!L8) ->  | J52: =IF(AP!M8="","",AP!M8) ->  | K52: =IF(AP!N8="","",AP!N8) ->  | L52: =IF(AP!O8="","",AP!O8) ->  | M52: =IF(AP!P8="","",AP!P8) ->  | N52: =IF(AP!Q8="","",AP!Q8) ->  | O52: =IF(AP!R8="","",AP!R8) ->  | P52: =IF(AP!S8="","",AP!S8) ->  | Q52: =IF(AP!T8="","",AP!T8) ->  | R52: =IF(AP!U8="","",AP!U8) ->  | S52: =IF(AP!V8="","",AP!V8) ->  | T52: =IF(AP!W8="","",AP!W8) ->  | U52: =IF(AP!X8="","",AP!X8) ->  | V52: =IF(AP!Y8="","",AP!Y8) ->  | W52: =IF(AP!Z8="","",AP!Z8) ->  | X52: =IF(AP!AA8="","",AP!AA8) ->  | Y52: =IF(AP!AB8="","",AP!AB8) ->  | Z52: =IF(AP!AC8="","",AP!AC8) ->  | AA52: =IF(AP!AD8="","",AP!AD8) ->  | AB52: =IF(AP!AE8="","",AP!AE8) ->  | AC52: =IF(AP!AF8="","",AP!AF8) ->  | AD52: =IF(AP!AG8="","",AP!AG8) ->  | AE52: =IF(AP!AH8="","",AP!AH8) ->  | AF52: =IF(AP!AI8="","",AP!AI8) ->  | AG52: =IF(AP!AJ8="","",AP!AJ8) ->  | AH52: =IF(AP!AK8="","",AP!AK8) ->  | AI52: =IF(AP!AL8="","",AP!AL8) ->  | AJ52: =IF(AP!AM8="","",AP!AM8) ->  | AK52: =IF(AP!AN8="","",AP!AN8) ->  | AL52: =IF(AP!AO8="","",AP!AO8) ->  | AM52: =IF(AP!AP8="","",AP!AP8) -> 
C53: Comp. Esp. 3 | D53: Criterio Evaluación 3.1 | E53: =IF(AP!H9="","",AP!H9) ->  | F53: =IF(AP!I9="","",AP!I9) ->  | G53: =IF(AP!J9="","",AP!J9) ->  | H53: =IF(AP!K9="","",AP!K9) ->  | I53: =IF(AP!L9="","",AP!L9) ->  | J53: =IF(AP!M9="","",AP!M9) ->  | K53: =IF(AP!N9="","",AP!N9) ->  | L53: =IF(AP!O9="","",AP!O9) ->  | M53: =IF(AP!P9="","",AP!P9) ->  | N53: =IF(AP!Q9="","",AP!Q9) ->  | O53: =IF(AP!R9="","",AP!R9) ->  | P53: =IF(AP!S9="","",AP!S9) ->  | Q53: =IF(AP!T9="","",AP!T9) ->  | R53: =IF(AP!U9="","",AP!U9) ->  | S53: =IF(AP!V9="","",AP!V9) ->  | T53: =IF(AP!W9="","",AP!W9) ->  | U53: =IF(AP!X9="","",AP!X9) ->  | V53: =IF(AP!Y9="","",AP!Y9) ->  | W53: =IF(AP!Z9="","",AP!Z9) ->  | X53: =IF(AP!AA9="","",AP!AA9) ->  | Y53: =IF(AP!AB9="","",AP!AB9) ->  | Z53: =IF(AP!AC9="","",AP!AC9) ->  | AA53: =IF(AP!AD9="","",AP!AD9) ->  | AB53: =IF(AP!AE9="","",AP!AE9) ->  | AC53: =IF(AP!AF9="","",AP!AF9) ->  | AD53: =IF(AP!AG9="","",AP!AG9) ->  | AE53: =IF(AP!AH9="","",AP!AH9) ->  | AF53: =IF(AP!AI9="","",AP!AI9) ->  | AG53: =IF(AP!AJ9="","",AP!AJ9) ->  | AH53: =IF(AP!AK9="","",AP!AK9) ->  | AI53: =IF(AP!AL9="","",AP!AL9) ->  | AJ53: =IF(AP!AM9="","",AP!AM9) ->  | AK53: =IF(AP!AN9="","",AP!AN9) ->  | AL53: =IF(AP!AO9="","",AP!AO9) ->  | AM53: =IF(AP!AP9="","",AP!AP9) -> 
D54: Criterio Evaluación 3.2 | E54: =IF(AP!H10="","",AP!H10) ->  | F54: =IF(AP!I10="","",AP!I10) ->  | G54: =IF(AP!J10="","",AP!J10) ->  | H54: =IF(AP!K10="","",AP!K10) ->  | I54: =IF(AP!L10="","",AP!L10) ->  | J54: =IF(AP!M10="","",AP!M10) ->  | K54: =IF(AP!N10="","",AP!N10) ->  | L54: =IF(AP!O10="","",AP!O10) ->  | M54: =IF(AP!P10="","",AP!P10) ->  | N54: =IF(AP!Q10="","",AP!Q10) ->  | O54: =IF(AP!R10="","",AP!R10) ->  | P54: =IF(AP!S10="","",AP!S10) ->  | Q54: =IF(AP!T10="","",AP!T10) ->  | R54: =IF(AP!U10="","",AP!U10) ->  | S54: =IF(AP!V10="","",AP!V10) ->  | T54: =IF(AP!W10="","",AP!W10) ->  | U54: =IF(AP!X10="","",AP!X10) ->  | V54: =IF(AP!Y10="","",AP!Y10) ->  | W54: =IF(AP!Z10="","",AP!Z10) ->  | X54: =IF(AP!AA10="","",AP!AA10) ->  | Y54: =IF(AP!AB10="","",AP!AB10) ->  | Z54: =IF(AP!AC10="","",AP!AC10) ->  | AA54: =IF(AP!AD10="","",AP!AD10) ->  | AB54: =IF(AP!AE10="","",AP!AE10) ->  | AC54: =IF(AP!AF10="","",AP!AF10) ->  | AD54: =IF(AP!AG10="","",AP!AG10) ->  | AE54: =IF(AP!AH10="","",AP!AH10) ->  | AF54: =IF(AP!AI10="","",AP!AI10) ->  | AG54: =IF(AP!AJ10="","",AP!AJ10) ->  | AH54: =IF(AP!AK10="","",AP!AK10) ->  | AI54: =IF(AP!AL10="","",AP!AL10) ->  | AJ54: =IF(AP!AM10="","",AP!AM10) ->  | AK54: =IF(AP!AN10="","",AP!AN10) ->  | AL54: =IF(AP!AO10="","",AP!AO10) ->  | AM54: =IF(AP!AP10="","",AP!AP10) -> 
C55: Comp. Esp. 4 | D55: Criterio Evaluación 4.1 | E55: =IF(AP!H11="","",AP!H11) ->  | F55: =IF(AP!I11="","",AP!I11) ->  | G55: =IF(AP!J11="","",AP!J11) ->  | H55: =IF(AP!K11="","",AP!K11) ->  | I55: =IF(AP!L11="","",AP!L11) ->  | J55: =IF(AP!M11="","",AP!M11) ->  | K55: =IF(AP!N11="","",AP!N11) ->  | L55: =IF(AP!O11="","",AP!O11) ->  | M55: =IF(AP!P11="","",AP!P11) ->  | N55: =IF(AP!Q11="","",AP!Q11) ->  | O55: =IF(AP!R11="","",AP!R11) ->  | P55: =IF(AP!S11="","",AP!S11) ->  | Q55: =IF(AP!T11="","",AP!T11) ->  | R55: =IF(AP!U11="","",AP!U11) ->  | S55: =IF(AP!V11="","",AP!V11) ->  | T55: =IF(AP!W11="","",AP!W11) ->  | U55: =IF(AP!X11="","",AP!X11) ->  | V55: =IF(AP!Y11="","",AP!Y11) ->  | W55: =IF(AP!Z11="","",AP!Z11) ->  | X55: =IF(AP!AA11="","",AP!AA11) ->  | Y55: =IF(AP!AB11="","",AP!AB11) ->  | Z55: =IF(AP!AC11="","",AP!AC11) ->  | AA55: =IF(AP!AD11="","",AP!AD11) ->  | AB55: =IF(AP!AE11="","",AP!AE11) ->  | AC55: =IF(AP!AF11="","",AP!AF11) ->  | AD55: =IF(AP!AG11="","",AP!AG11) ->  | AE55: =IF(AP!AH11="","",AP!AH11) ->  | AF55: =IF(AP!AI11="","",AP!AI11) ->  | AG55: =IF(AP!AJ11="","",AP!AJ11) ->  | AH55: =IF(AP!AK11="","",AP!AK11) ->  | AI55: =IF(AP!AL11="","",AP!AL11) ->  | AJ55: =IF(AP!AM11="","",AP!AM11) ->  | AK55: =IF(AP!AN11="","",AP!AN11) ->  | AL55: =IF(AP!AO11="","",AP!AO11) ->  | AM55: =IF(AP!AP11="","",AP!AP11) -> 
D56: Criterio Evaluación 4.2 | E56: =IF(AP!H12="","",AP!H12) ->  | F56: =IF(AP!I12="","",AP!I12) ->  | G56: =IF(AP!J12="","",AP!J12) ->  | H56: =IF(AP!K12="","",AP!K12) ->  | I56: =IF(AP!L12="","",AP!L12) ->  | J56: =IF(AP!M12="","",AP!M12) ->  | K56: =IF(AP!N12="","",AP!N12) ->  | L56: =IF(AP!O12="","",AP!O12) ->  | M56: =IF(AP!P12="","",AP!P12) ->  | N56: =IF(AP!Q12="","",AP!Q12) ->  | O56: =IF(AP!R12="","",AP!R12) ->  | P56: =IF(AP!S12="","",AP!S12) ->  | Q56: =IF(AP!T12="","",AP!T12) ->  | R56: =IF(AP!U12="","",AP!U12) ->  | S56: =IF(AP!V12="","",AP!V12) ->  | T56: =IF(AP!W12="","",AP!W12) ->  | U56: =IF(AP!X12="","",AP!X12) ->  | V56: =IF(AP!Y12="","",AP!Y12) ->  | W56: =IF(AP!Z12="","",AP!Z12) ->  | X56: =IF(AP!AA12="","",AP!AA12) ->  | Y56: =IF(AP!AB12="","",AP!AB12) ->  | Z56: =IF(AP!AC12="","",AP!AC12) ->  | AA56: =IF(AP!AD12="","",AP!AD12) ->  | AB56: =IF(AP!AE12="","",AP!AE12) ->  | AC56: =IF(AP!AF12="","",AP!AF12) ->  | AD56: =IF(AP!AG12="","",AP!AG12) ->  | AE56: =IF(AP!AH12="","",AP!AH12) ->  | AF56: =IF(AP!AI12="","",AP!AI12) ->  | AG56: =IF(AP!AJ12="","",AP!AJ12) ->  | AH56: =IF(AP!AK12="","",AP!AK12) ->  | AI56: =IF(AP!AL12="","",AP!AL12) ->  | AJ56: =IF(AP!AM12="","",AP!AM12) ->  | AK56: =IF(AP!AN12="","",AP!AN12) ->  | AL56: =IF(AP!AO12="","",AP!AO12) ->  | AM56: =IF(AP!AP12="","",AP!AP12) -> 
D57: Criterio Evaluación 4.3 | E57: =IF(AP!H13="","",AP!H13) ->  | F57: =IF(AP!I13="","",AP!I13) ->  | G57: =IF(AP!J13="","",AP!J13) ->  | H57: =IF(AP!K13="","",AP!K13) ->  | I57: =IF(AP!L13="","",AP!L13) ->  | J57: =IF(AP!M13="","",AP!M13) ->  | K57: =IF(AP!N13="","",AP!N13) ->  | L57: =IF(AP!O13="","",AP!O13) ->  | M57: =IF(AP!P13="","",AP!P13) ->  | N57: =IF(AP!Q13="","",AP!Q13) ->  | O57: =IF(AP!R13="","",AP!R13) ->  | P57: =IF(AP!S13="","",AP!S13) ->  | Q57: =IF(AP!T13="","",AP!T13) ->  | R57: =IF(AP!U13="","",AP!U13) ->  | S57: =IF(AP!V13="","",AP!V13) ->  | T57: =IF(AP!W13="","",AP!W13) ->  | U57: =IF(AP!X13="","",AP!X13) ->  | V57: =IF(AP!Y13="","",AP!Y13) ->  | W57: =IF(AP!Z13="","",AP!Z13) ->  | X57: =IF(AP!AA13="","",AP!AA13) ->  | Y57: =IF(AP!AB13="","",AP!AB13) ->  | Z57: =IF(AP!AC13="","",AP!AC13) ->  | AA57: =IF(AP!AD13="","",AP!AD13) ->  | AB57: =IF(AP!AE13="","",AP!AE13) ->  | AC57: =IF(AP!AF13="","",AP!AF13) ->  | AD57: =IF(AP!AG13="","",AP!AG13) ->  | AE57: =IF(AP!AH13="","",AP!AH13) ->  | AF57: =IF(AP!AI13="","",AP!AI13) ->  | AG57: =IF(AP!AJ13="","",AP!AJ13) ->  | AH57: =IF(AP!AK13="","",AP!AK13) ->  | AI57: =IF(AP!AL13="","",AP!AL13) ->  | AJ57: =IF(AP!AM13="","",AP!AM13) ->  | AK57: =IF(AP!AN13="","",AP!AN13) ->  | AL57: =IF(AP!AO13="","",AP!AO13) ->  | AM57: =IF(AP!AP13="","",AP!AP13) -> 
D58: Criterio Evaluación 4.4 | E58: =IF(AP!H14="","",AP!H14) ->  | F58: =IF(AP!I14="","",AP!I14) ->  | G58: =IF(AP!J14="","",AP!J14) ->  | H58: =IF(AP!K14="","",AP!K14) ->  | I58: =IF(AP!L14="","",AP!L14) ->  | J58: =IF(AP!M14="","",AP!M14) ->  | K58: =IF(AP!N14="","",AP!N14) ->  | L58: =IF(AP!O14="","",AP!O14) ->  | M58: =IF(AP!P14="","",AP!P14) ->  | N58: =IF(AP!Q14="","",AP!Q14) ->  | O58: =IF(AP!R14="","",AP!R14) ->  | P58: =IF(AP!S14="","",AP!S14) ->  | Q58: =IF(AP!T14="","",AP!T14) ->  | R58: =IF(AP!U14="","",AP!U14) ->  | S58: =IF(AP!V14="","",AP!V14) ->  | T58: =IF(AP!W14="","",AP!W14) ->  | U58: =IF(AP!X14="","",AP!X14) ->  | V58: =IF(AP!Y14="","",AP!Y14) ->  | W58: =IF(AP!Z14="","",AP!Z14) ->  | X58: =IF(AP!AA14="","",AP!AA14) ->  | Y58: =IF(AP!AB14="","",AP!AB14) ->  | Z58: =IF(AP!AC14="","",AP!AC14) ->  | AA58: =IF(AP!AD14="","",AP!AD14) ->  | AB58: =IF(AP!AE14="","",AP!AE14) ->  | AC58: =IF(AP!AF14="","",AP!AF14) ->  | AD58: =IF(AP!AG14="","",AP!AG14) ->  | AE58: =IF(AP!AH14="","",AP!AH14) ->  | AF58: =IF(AP!AI14="","",AP!AI14) ->  | AG58: =IF(AP!AJ14="","",AP!AJ14) ->  | AH58: =IF(AP!AK14="","",AP!AK14) ->  | AI58: =IF(AP!AL14="","",AP!AL14) ->  | AJ58: =IF(AP!AM14="","",AP!AM14) ->  | AK58: =IF(AP!AN14="","",AP!AN14) ->  | AL58: =IF(AP!AO14="","",AP!AO14) ->  | AM58: =IF(AP!AP14="","",AP!AP14) -> 
C59: Comp. Esp. 5 | D59: Criterio Evaluación 5.1 | E59: =IF(AP!H15="","",AP!H15) ->  | F59: =IF(AP!I15="","",AP!I15) ->  | G59: =IF(AP!J15="","",AP!J15) ->  | H59: =IF(AP!K15="","",AP!K15) ->  | I59: =IF(AP!L15="","",AP!L15) ->  | J59: =IF(AP!M15="","",AP!M15) ->  | K59: =IF(AP!N15="","",AP!N15) ->  | L59: =IF(AP!O15="","",AP!O15) ->  | M59: =IF(AP!P15="","",AP!P15) ->  | N59: =IF(AP!Q15="","",AP!Q15) ->  | O59: =IF(AP!R15="","",AP!R15) ->  | P59: =IF(AP!S15="","",AP!S15) ->  | Q59: =IF(AP!T15="","",AP!T15) ->  | R59: =IF(AP!U15="","",AP!U15) ->  | S59: =IF(AP!V15="","",AP!V15) ->  | T59: =IF(AP!W15="","",AP!W15) ->  | U59: =IF(AP!X15="","",AP!X15) ->  | V59: =IF(AP!Y15="","",AP!Y15) ->  | W59: =IF(AP!Z15="","",AP!Z15) ->  | X59: =IF(AP!AA15="","",AP!AA15) ->  | Y59: =IF(AP!AB15="","",AP!AB15) ->  | Z59: =IF(AP!AC15="","",AP!AC15) ->  | AA59: =IF(AP!AD15="","",AP!AD15) ->  | AB59: =IF(AP!AE15="","",AP!AE15) ->  | AC59: =IF(AP!AF15="","",AP!AF15) ->  | AD59: =IF(AP!AG15="","",AP!AG15) ->  | AE59: =IF(AP!AH15="","",AP!AH15) ->  | AF59: =IF(AP!AI15="","",AP!AI15) ->  | AG59: =IF(AP!AJ15="","",AP!AJ15) ->  | AH59: =IF(AP!AK15="","",AP!AK15) ->  | AI59: =IF(AP!AL15="","",AP!AL15) ->  | AJ59: =IF(AP!AM15="","",AP!AM15) ->  | AK59: =IF(AP!AN15="","",AP!AN15) ->  | AL59: =IF(AP!AO15="","",AP!AO15) ->  | AM59: =IF(AP!AP15="","",AP!AP15) -> 
D60: Criterio Evaluación 5.2 | E60: =IF(AP!H16="","",AP!H16) ->  | F60: =IF(AP!I16="","",AP!I16) ->  | G60: =IF(AP!J16="","",AP!J16) ->  | H60: =IF(AP!K16="","",AP!K16) ->  | I60: =IF(AP!L16="","",AP!L16) ->  | J60: =IF(AP!M16="","",AP!M16) ->  | K60: =IF(AP!N16="","",AP!N16) ->  | L60: =IF(AP!O16="","",AP!O16) ->  | M60: =IF(AP!P16="","",AP!P16) ->  | N60: =IF(AP!Q16="","",AP!Q16) ->  | O60: =IF(AP!R16="","",AP!R16) ->  | P60: =IF(AP!S16="","",AP!S16) ->  | Q60: =IF(AP!T16="","",AP!T16) ->  | R60: =IF(AP!U16="","",AP!U16) ->  | S60: =IF(AP!V16="","",AP!V16) ->  | T60: =IF(AP!W16="","",AP!W16) ->  | U60: =IF(AP!X16="","",AP!X16) ->  | V60: =IF(AP!Y16="","",AP!Y16) ->  | W60: =IF(AP!Z16="","",AP!Z16) ->  | X60: =IF(AP!AA16="","",AP!AA16) ->  | Y60: =IF(AP!AB16="","",AP!AB16) ->  | Z60: =IF(AP!AC16="","",AP!AC16) ->  | AA60: =IF(AP!AD16="","",AP!AD16) ->  | AB60: =IF(AP!AE16="","",AP!AE16) ->  | AC60: =IF(AP!AF16="","",AP!AF16) ->  | AD60: =IF(AP!AG16="","",AP!AG16) ->  | AE60: =IF(AP!AH16="","",AP!AH16) ->  | AF60: =IF(AP!AI16="","",AP!AI16) ->  | AG60: =IF(AP!AJ16="","",AP!AJ16) ->  | AH60: =IF(AP!AK16="","",AP!AK16) ->  | AI60: =IF(AP!AL16="","",AP!AL16) ->  | AJ60: =IF(AP!AM16="","",AP!AM16) ->  | AK60: =IF(AP!AN16="","",AP!AN16) ->  | AL60: =IF(AP!AO16="","",AP!AO16) ->  | AM60: =IF(AP!AP16="","",AP!AP16) -> 
D61: Criterio Evaluación 5.3 | E61: =IF(AP!H17="","",AP!H17) ->  | F61: =IF(AP!I17="","",AP!I17) ->  | G61: =IF(AP!J17="","",AP!J17) ->  | H61: =IF(AP!K17="","",AP!K17) ->  | I61: =IF(AP!L17="","",AP!L17) ->  | J61: =IF(AP!M17="","",AP!M17) ->  | K61: =IF(AP!N17="","",AP!N17) ->  | L61: =IF(AP!O17="","",AP!O17) ->  | M61: =IF(AP!P17="","",AP!P17) ->  | N61: =IF(AP!Q17="","",AP!Q17) ->  | O61: =IF(AP!R17="","",AP!R17) ->  | P61: =IF(AP!S17="","",AP!S17) ->  | Q61: =IF(AP!T17="","",AP!T17) ->  | R61: =IF(AP!U17="","",AP!U17) ->  | S61: =IF(AP!V17="","",AP!V17) ->  | T61: =IF(AP!W17="","",AP!W17) ->  | U61: =IF(AP!X17="","",AP!X17) ->  | V61: =IF(AP!Y17="","",AP!Y17) ->  | W61: =IF(AP!Z17="","",AP!Z17) ->  | X61: =IF(AP!AA17="","",AP!AA17) ->  | Y61: =IF(AP!AB17="","",AP!AB17) ->  | Z61: =IF(AP!AC17="","",AP!AC17) ->  | AA61: =IF(AP!AD17="","",AP!AD17) ->  | AB61: =IF(AP!AE17="","",AP!AE17) ->  | AC61: =IF(AP!AF17="","",AP!AF17) ->  | AD61: =IF(AP!AG17="","",AP!AG17) ->  | AE61: =IF(AP!AH17="","",AP!AH17) ->  | AF61: =IF(AP!AI17="","",AP!AI17) ->  | AG61: =IF(AP!AJ17="","",AP!AJ17) ->  | AH61: =IF(AP!AK17="","",AP!AK17) ->  | AI61: =IF(AP!AL17="","",AP!AL17) ->  | AJ61: =IF(AP!AM17="","",AP!AM17) ->  | AK61: =IF(AP!AN17="","",AP!AN17) ->  | AL61: =IF(AP!AO17="","",AP!AO17) ->  | AM61: =IF(AP!AP17="","",AP!AP17) -> 
C62: Comp. Esp. 6 | D62: Criterio Evaluación 6.1 | E62: =IF(AP!H18="","",AP!H18) ->  | F62: =IF(AP!I18="","",AP!I18) ->  | G62: =IF(AP!J18="","",AP!J18) ->  | H62: =IF(AP!K18="","",AP!K18) ->  | I62: =IF(AP!L18="","",AP!L18) ->  | J62: =IF(AP!M18="","",AP!M18) ->  | K62: =IF(AP!N18="","",AP!N18) ->  | L62: =IF(AP!O18="","",AP!O18) ->  | M62: =IF(AP!P18="","",AP!P18) ->  | N62: =IF(AP!Q18="","",AP!Q18) ->  | O62: =IF(AP!R18="","",AP!R18) ->  | P62: =IF(AP!S18="","",AP!S18) ->  | Q62: =IF(AP!T18="","",AP!T18) ->  | R62: =IF(AP!U18="","",AP!U18) ->  | S62: =IF(AP!V18="","",AP!V18) ->  | T62: =IF(AP!W18="","",AP!W18) ->  | U62: =IF(AP!X18="","",AP!X18) ->  | V62: =IF(AP!Y18="","",AP!Y18) ->  | W62: =IF(AP!Z18="","",AP!Z18) ->  | X62: =IF(AP!AA18="","",AP!AA18) ->  | Y62: =IF(AP!AB18="","",AP!AB18) ->  | Z62: =IF(AP!AC18="","",AP!AC18) ->  | AA62: =IF(AP!AD18="","",AP!AD18) ->  | AB62: =IF(AP!AE18="","",AP!AE18) ->  | AC62: =IF(AP!AF18="","",AP!AF18) ->  | AD62: =IF(AP!AG18="","",AP!AG18) ->  | AE62: =IF(AP!AH18="","",AP!AH18) ->  | AF62: =IF(AP!AI18="","",AP!AI18) ->  | AG62: =IF(AP!AJ18="","",AP!AJ18) ->  | AH62: =IF(AP!AK18="","",AP!AK18) ->  | AI62: =IF(AP!AL18="","",AP!AL18) ->  | AJ62: =IF(AP!AM18="","",AP!AM18) ->  | AK62: =IF(AP!AN18="","",AP!AN18) ->  | AL62: =IF(AP!AO18="","",AP!AO18) ->  | AM62: =IF(AP!AP18="","",AP!AP18) -> 
D63: Criterio Evaluación 6.2 | E63: =IF(AP!H19="","",AP!H19) ->  | F63: =IF(AP!I19="","",AP!I19) ->  | G63: =IF(AP!J19="","",AP!J19) ->  | H63: =IF(AP!K19="","",AP!K19) ->  | I63: =IF(AP!L19="","",AP!L19) ->  | J63: =IF(AP!M19="","",AP!M19) ->  | K63: =IF(AP!N19="","",AP!N19) ->  | L63: =IF(AP!O19="","",AP!O19) ->  | M63: =IF(AP!P19="","",AP!P19) ->  | N63: =IF(AP!Q19="","",AP!Q19) ->  | O63: =IF(AP!R19="","",AP!R19) ->  | P63: =IF(AP!S19="","",AP!S19) ->  | Q63: =IF(AP!T19="","",AP!T19) ->  | R63: =IF(AP!U19="","",AP!U19) ->  | S63: =IF(AP!V19="","",AP!V19) ->  | T63: =IF(AP!W19="","",AP!W19) ->  | U63: =IF(AP!X19="","",AP!X19) ->  | V63: =IF(AP!Y19="","",AP!Y19) ->  | W63: =IF(AP!Z19="","",AP!Z19) ->  | X63: =IF(AP!AA19="","",AP!AA19) ->  | Y63: =IF(AP!AB19="","",AP!AB19) ->  | Z63: =IF(AP!AC19="","",AP!AC19) ->  | AA63: =IF(AP!AD19="","",AP!AD19) ->  | AB63: =IF(AP!AE19="","",AP!AE19) ->  | AC63: =IF(AP!AF19="","",AP!AF19) ->  | AD63: =IF(AP!AG19="","",AP!AG19) ->  | AE63: =IF(AP!AH19="","",AP!AH19) ->  | AF63: =IF(AP!AI19="","",AP!AI19) ->  | AG63: =IF(AP!AJ19="","",AP!AJ19) ->  | AH63: =IF(AP!AK19="","",AP!AK19) ->  | AI63: =IF(AP!AL19="","",AP!AL19) ->  | AJ63: =IF(AP!AM19="","",AP!AM19) ->  | AK63: =IF(AP!AN19="","",AP!AN19) ->  | AL63: =IF(AP!AO19="","",AP!AO19) ->  | AM63: =IF(AP!AP19="","",AP!AP19) -> 
D64: Criterio Evaluación 6.3 | E64: =IF(AP!H20="","",AP!H20) ->  | F64: =IF(AP!I20="","",AP!I20) ->  | G64: =IF(AP!J20="","",AP!J20) ->  | H64: =IF(AP!K20="","",AP!K20) ->  | I64: =IF(AP!L20="","",AP!L20) ->  | J64: =IF(AP!M20="","",AP!M20) ->  | K64: =IF(AP!N20="","",AP!N20) ->  | L64: =IF(AP!O20="","",AP!O20) ->  | M64: =IF(AP!P20="","",AP!P20) ->  | N64: =IF(AP!Q20="","",AP!Q20) ->  | O64: =IF(AP!R20="","",AP!R20) ->  | P64: =IF(AP!S20="","",AP!S20) ->  | Q64: =IF(AP!T20="","",AP!T20) ->  | R64: =IF(AP!U20="","",AP!U20) ->  | S64: =IF(AP!V20="","",AP!V20) ->  | T64: =IF(AP!W20="","",AP!W20) ->  | U64: =IF(AP!X20="","",AP!X20) ->  | V64: =IF(AP!Y20="","",AP!Y20) ->  | W64: =IF(AP!Z20="","",AP!Z20) ->  | X64: =IF(AP!AA20="","",AP!AA20) ->  | Y64: =IF(AP!AB20="","",AP!AB20) ->  | Z64: =IF(AP!AC20="","",AP!AC20) ->  | AA64: =IF(AP!AD20="","",AP!AD20) ->  | AB64: =IF(AP!AE20="","",AP!AE20) ->  | AC64: =IF(AP!AF20="","",AP!AF20) ->  | AD64: =IF(AP!AG20="","",AP!AG20) ->  | AE64: =IF(AP!AH20="","",AP!AH20) ->  | AF64: =IF(AP!AI20="","",AP!AI20) ->  | AG64: =IF(AP!AJ20="","",AP!AJ20) ->  | AH64: =IF(AP!AK20="","",AP!AK20) ->  | AI64: =IF(AP!AL20="","",AP!AL20) ->  | AJ64: =IF(AP!AM20="","",AP!AM20) ->  | AK64: =IF(AP!AN20="","",AP!AN20) ->  | AL64: =IF(AP!AO20="","",AP!AO20) ->  | AM64: =IF(AP!AP20="","",AP!AP20) -> 
C65: Comp. Esp. 7 | D65: Criterio Evaluación 7.1 | E65: =IF(AP!H21="","",AP!H21) ->  | F65: =IF(AP!I21="","",AP!I21) ->  | G65: =IF(AP!J21="","",AP!J21) ->  | H65: =IF(AP!K21="","",AP!K21) ->  | I65: =IF(AP!L21="","",AP!L21) ->  | J65: =IF(AP!M21="","",AP!M21) ->  | K65: =IF(AP!N21="","",AP!N21) ->  | L65: =IF(AP!O21="","",AP!O21) ->  | M65: =IF(AP!P21="","",AP!P21) ->  | N65: =IF(AP!Q21="","",AP!Q21) ->  | O65: =IF(AP!R21="","",AP!R21) ->  | P65: =IF(AP!S21="","",AP!S21) ->  | Q65: =IF(AP!T21="","",AP!T21) ->  | R65: =IF(AP!U21="","",AP!U21) ->  | S65: =IF(AP!V21="","",AP!V21) ->  | T65: =IF(AP!W21="","",AP!W21) ->  | U65: =IF(AP!X21="","",AP!X21) ->  | V65: =IF(AP!Y21="","",AP!Y21) ->  | W65: =IF(AP!Z21="","",AP!Z21) ->  | X65: =IF(AP!AA21="","",AP!AA21) ->  | Y65: =IF(AP!AB21="","",AP!AB21) ->  | Z65: =IF(AP!AC21="","",AP!AC21) ->  | AA65: =IF(AP!AD21="","",AP!AD21) ->  | AB65: =IF(AP!AE21="","",AP!AE21) ->  | AC65: =IF(AP!AF21="","",AP!AF21) ->  | AD65: =IF(AP!AG21="","",AP!AG21) ->  | AE65: =IF(AP!AH21="","",AP!AH21) ->  | AF65: =IF(AP!AI21="","",AP!AI21) ->  | AG65: =IF(AP!AJ21="","",AP!AJ21) ->  | AH65: =IF(AP!AK21="","",AP!AK21) ->  | AI65: =IF(AP!AL21="","",AP!AL21) ->  | AJ65: =IF(AP!AM21="","",AP!AM21) ->  | AK65: =IF(AP!AN21="","",AP!AN21) ->  | AL65: =IF(AP!AO21="","",AP!AO21) ->  | AM65: =IF(AP!AP21="","",AP!AP21) -> 
D66: Criterio Evaluación 7.2 | E66: =IF(AP!H22="","",AP!H22) ->  | F66: =IF(AP!I22="","",AP!I22) ->  | G66: =IF(AP!J22="","",AP!J22) ->  | H66: =IF(AP!K22="","",AP!K22) ->  | I66: =IF(AP!L22="","",AP!L22) ->  | J66: =IF(AP!M22="","",AP!M22) ->  | K66: =IF(AP!N22="","",AP!N22) ->  | L66: =IF(AP!O22="","",AP!O22) ->  | M66: =IF(AP!P22="","",AP!P22) ->  | N66: =IF(AP!Q22="","",AP!Q22) ->  | O66: =IF(AP!R22="","",AP!R22) ->  | P66: =IF(AP!S22="","",AP!S22) ->  | Q66: =IF(AP!T22="","",AP!T22) ->  | R66: =IF(AP!U22="","",AP!U22) ->  | S66: =IF(AP!V22="","",AP!V22) ->  | T66: =IF(AP!W22="","",AP!W22) ->  | U66: =IF(AP!X22="","",AP!X22) ->  | V66: =IF(AP!Y22="","",AP!Y22) ->  | W66: =IF(AP!Z22="","",AP!Z22) ->  | X66: =IF(AP!AA22="","",AP!AA22) ->  | Y66: =IF(AP!AB22="","",AP!AB22) ->  | Z66: =IF(AP!AC22="","",AP!AC22) ->  | AA66: =IF(AP!AD22="","",AP!AD22) ->  | AB66: =IF(AP!AE22="","",AP!AE22) ->  | AC66: =IF(AP!AF22="","",AP!AF22) ->  | AD66: =IF(AP!AG22="","",AP!AG22) ->  | AE66: =IF(AP!AH22="","",AP!AH22) ->  | AF66: =IF(AP!AI22="","",AP!AI22) ->  | AG66: =IF(AP!AJ22="","",AP!AJ22) ->  | AH66: =IF(AP!AK22="","",AP!AK22) ->  | AI66: =IF(AP!AL22="","",AP!AL22) ->  | AJ66: =IF(AP!AM22="","",AP!AM22) ->  | AK66: =IF(AP!AN22="","",AP!AN22) ->  | AL66: =IF(AP!AO22="","",AP!AO22) ->  | AM66: =IF(AP!AP22="","",AP!AP22) -> 
B67: Conocimiento de las Matemáticas | C67: Comp. Esp. 1 | D67: Criterio Evaluación 1.1 | E67: =IF(CMAT!H4="","",CMAT!H4) ->  | F67: =IF(CMAT!I4="","",CMAT!I4) ->  | G67: =IF(CMAT!J4="","",CMAT!J4) ->  | H67: =IF(CMAT!K4="","",CMAT!K4) ->  | I67: =IF(CMAT!L4="","",CMAT!L4) ->  | J67: =IF(CMAT!M4="","",CMAT!M4) ->  | K67: =IF(CMAT!N4="","",CMAT!N4) ->  | L67: =IF(CMAT!O4="","",CMAT!O4) ->  | M67: =IF(CMAT!P4="","",CMAT!P4) ->  | N67: =IF(CMAT!Q4="","",CMAT!Q4) ->  | O67: =IF(CMAT!R4="","",CMAT!R4) ->  | P67: =IF(CMAT!S4="","",CMAT!S4) ->  | Q67: =IF(CMAT!T4="","",CMAT!T4) ->  | R67: =IF(CMAT!U4="","",CMAT!U4) ->  | S67: =IF(CMAT!V4="","",CMAT!V4) ->  | T67: =IF(CMAT!W4="","",CMAT!W4) ->  | U67: =IF(CMAT!X4="","",CMAT!X4) ->  | V67: =IF(CMAT!Y4="","",CMAT!Y4) ->  | W67: =IF(CMAT!Z4="","",CMAT!Z4) ->  | X67: =IF(CMAT!AA4="","",CMAT!AA4) ->  | Y67: =IF(CMAT!AB4="","",CMAT!AB4) ->  | Z67: =IF(CMAT!AC4="","",CMAT!AC4) ->  | AA67: =IF(CMAT!AD4="","",CMAT!AD4) ->  | AB67: =IF(CMAT!AE4="","",CMAT!AE4) ->  | AC67: =IF(CMAT!AF4="","",CMAT!AF4) ->  | AD67: =IF(CMAT!AG4="","",CMAT!AG4) ->  | AE67: =IF(CMAT!AH4="","",CMAT!AH4) ->  | AF67: =IF(CMAT!AI4="","",CMAT!AI4) ->  | AG67: =IF(CMAT!AJ4="","",CMAT!AJ4) ->  | AH67: =IF(CMAT!AK4="","",CMAT!AK4) ->  | AI67: =IF(CMAT!AL4="","",CMAT!AL4) ->  | AJ67: =IF(CMAT!AM4="","",CMAT!AM4) ->  | AK67: =IF(CMAT!AN4="","",CMAT!AN4) ->  | AL67: =IF(CMAT!AO4="","",CMAT!AO4) ->  | AM67: =IF(CMAT!AP4="","",CMAT!AP4) -> 
D68: Criterio Evaluación 1.2 | E68: =IF(CMAT!H5="","",CMAT!H5) ->  | F68: =IF(CMAT!I5="","",CMAT!I5) ->  | G68: =IF(CMAT!J5="","",CMAT!J5) ->  | H68: =IF(CMAT!K5="","",CMAT!K5) ->  | I68: =IF(CMAT!L5="","",CMAT!L5) ->  | J68: =IF(CMAT!M5="","",CMAT!M5) ->  | K68: =IF(CMAT!N5="","",CMAT!N5) ->  | L68: =IF(CMAT!O5="","",CMAT!O5) ->  | M68: =IF(CMAT!P5="","",CMAT!P5) ->  | N68: =IF(CMAT!Q5="","",CMAT!Q5) ->  | O68: =IF(CMAT!R5="","",CMAT!R5) ->  | P68: =IF(CMAT!S5="","",CMAT!S5) ->  | Q68: =IF(CMAT!T5="","",CMAT!T5) ->  | R68: =IF(CMAT!U5="","",CMAT!U5) ->  | S68: =IF(CMAT!V5="","",CMAT!V5) ->  | T68: =IF(CMAT!W5="","",CMAT!W5) ->  | U68: =IF(CMAT!X5="","",CMAT!X5) ->  | V68: =IF(CMAT!Y5="","",CMAT!Y5) ->  | W68: =IF(CMAT!Z5="","",CMAT!Z5) ->  | X68: =IF(CMAT!AA5="","",CMAT!AA5) ->  | Y68: =IF(CMAT!AB5="","",CMAT!AB5) ->  | Z68: =IF(CMAT!AC5="","",CMAT!AC5) ->  | AA68: =IF(CMAT!AD5="","",CMAT!AD5) ->  | AB68: =IF(CMAT!AE5="","",CMAT!AE5) ->  | AC68: =IF(CMAT!AF5="","",CMAT!AF5) ->  | AD68: =IF(CMAT!AG5="","",CMAT!AG5) ->  | AE68: =IF(CMAT!AH5="","",CMAT!AH5) ->  | AF68: =IF(CMAT!AI5="","",CMAT!AI5) ->  | AG68: =IF(CMAT!AJ5="","",CMAT!AJ5) ->  | AH68: =IF(CMAT!AK5="","",CMAT!AK5) ->  | AI68: =IF(CMAT!AL5="","",CMAT!AL5) ->  | AJ68: =IF(CMAT!AM5="","",CMAT!AM5) ->  | AK68: =IF(CMAT!AN5="","",CMAT!AN5) ->  | AL68: =IF(CMAT!AO5="","",CMAT!AO5) ->  | AM68: =IF(CMAT!AP5="","",CMAT!AP5) -> 
D69: Criterio Evaluación 1.3 | E69: =IF(CMAT!H6="","",CMAT!H6) ->  | F69: =IF(CMAT!I6="","",CMAT!I6) ->  | G69: =IF(CMAT!J6="","",CMAT!J6) ->  | H69: =IF(CMAT!K6="","",CMAT!K6) ->  | I69: =IF(CMAT!L6="","",CMAT!L6) ->  | J69: =IF(CMAT!M6="","",CMAT!M6) ->  | K69: =IF(CMAT!N6="","",CMAT!N6) ->  | L69: =IF(CMAT!O6="","",CMAT!O6) ->  | M69: =IF(CMAT!P6="","",CMAT!P6) ->  | N69: =IF(CMAT!Q6="","",CMAT!Q6) ->  | O69: =IF(CMAT!R6="","",CMAT!R6) ->  | P69: =IF(CMAT!S6="","",CMAT!S6) ->  | Q69: =IF(CMAT!T6="","",CMAT!T6) ->  | R69: =IF(CMAT!U6="","",CMAT!U6) ->  | S69: =IF(CMAT!V6="","",CMAT!V6) ->  | T69: =IF(CMAT!W6="","",CMAT!W6) ->  | U69: =IF(CMAT!X6="","",CMAT!X6) ->  | V69: =IF(CMAT!Y6="","",CMAT!Y6) ->  | W69: =IF(CMAT!Z6="","",CMAT!Z6) ->  | X69: =IF(CMAT!AA6="","",CMAT!AA6) ->  | Y69: =IF(CMAT!AB6="","",CMAT!AB6) ->  | Z69: =IF(CMAT!AC6="","",CMAT!AC6) ->  | AA69: =IF(CMAT!AD6="","",CMAT!AD6) ->  | AB69: =IF(CMAT!AE6="","",CMAT!AE6) ->  | AC69: =IF(CMAT!AF6="","",CMAT!AF6) ->  | AD69: =IF(CMAT!AG6="","",CMAT!AG6) ->  | AE69: =IF(CMAT!AH6="","",CMAT!AH6) ->  | AF69: =IF(CMAT!AI6="","",CMAT!AI6) ->  | AG69: =IF(CMAT!AJ6="","",CMAT!AJ6) ->  | AH69: =IF(CMAT!AK6="","",CMAT!AK6) ->  | AI69: =IF(CMAT!AL6="","",CMAT!AL6) ->  | AJ69: =IF(CMAT!AM6="","",CMAT!AM6) ->  | AK69: =IF(CMAT!AN6="","",CMAT!AN6) ->  | AL69: =IF(CMAT!AO6="","",CMAT!AO6) ->  | AM69: =IF(CMAT!AP6="","",CMAT!AP6) -> 
C70: Comp. Esp. 2 | D70: Criterio Evaluación 2.1 | E70: =IF(CMAT!H7="","",CMAT!H7) ->  | F70: =IF(CMAT!I7="","",CMAT!I7) ->  | G70: =IF(CMAT!J7="","",CMAT!J7) ->  | H70: =IF(CMAT!K7="","",CMAT!K7) ->  | I70: =IF(CMAT!L7="","",CMAT!L7) ->  | J70: =IF(CMAT!M7="","",CMAT!M7) ->  | K70: =IF(CMAT!N7="","",CMAT!N7) ->  | L70: =IF(CMAT!O7="","",CMAT!O7) ->  | M70: =IF(CMAT!P7="","",CMAT!P7) ->  | N70: =IF(CMAT!Q7="","",CMAT!Q7) ->  | O70: =IF(CMAT!R7="","",CMAT!R7) ->  | P70: =IF(CMAT!S7="","",CMAT!S7) ->  | Q70: =IF(CMAT!T7="","",CMAT!T7) ->  | R70: =IF(CMAT!U7="","",CMAT!U7) ->  | S70: =IF(CMAT!V7="","",CMAT!V7) ->  | T70: =IF(CMAT!W7="","",CMAT!W7) ->  | U70: =IF(CMAT!X7="","",CMAT!X7) ->  | V70: =IF(CMAT!Y7="","",CMAT!Y7) ->  | W70: =IF(CMAT!Z7="","",CMAT!Z7) ->  | X70: =IF(CMAT!AA7="","",CMAT!AA7) ->  | Y70: =IF(CMAT!AB7="","",CMAT!AB7) ->  | Z70: =IF(CMAT!AC7="","",CMAT!AC7) ->  | AA70: =IF(CMAT!AD7="","",CMAT!AD7) ->  | AB70: =IF(CMAT!AE7="","",CMAT!AE7) ->  | AC70: =IF(CMAT!AF7="","",CMAT!AF7) ->  | AD70: =IF(CMAT!AG7="","",CMAT!AG7) ->  | AE70: =IF(CMAT!AH7="","",CMAT!AH7) ->  | AF70: =IF(CMAT!AI7="","",CMAT!AI7) ->  | AG70: =IF(CMAT!AJ7="","",CMAT!AJ7) ->  | AH70: =IF(CMAT!AK7="","",CMAT!AK7) ->  | AI70: =IF(CMAT!AL7="","",CMAT!AL7) ->  | AJ70: =IF(CMAT!AM7="","",CMAT!AM7) ->  | AK70: =IF(CMAT!AN7="","",CMAT!AN7) ->  | AL70: =IF(CMAT!AO7="","",CMAT!AO7) ->  | AM70: =IF(CMAT!AP7="","",CMAT!AP7) -> 
D71: Criterio Evaluación 2.2 | E71: =IF(CMAT!H8="","",CMAT!H8) ->  | F71: =IF(CMAT!I8="","",CMAT!I8) ->  | G71: =IF(CMAT!J8="","",CMAT!J8) ->  | H71: =IF(CMAT!K8="","",CMAT!K8) ->  | I71: =IF(CMAT!L8="","",CMAT!L8) ->  | J71: =IF(CMAT!M8="","",CMAT!M8) ->  | K71: =IF(CMAT!N8="","",CMAT!N8) ->  | L71: =IF(CMAT!O8="","",CMAT!O8) ->  | M71: =IF(CMAT!P8="","",CMAT!P8) ->  | N71: =IF(CMAT!Q8="","",CMAT!Q8) ->  | O71: =IF(CMAT!R8="","",CMAT!R8) ->  | P71: =IF(CMAT!S8="","",CMAT!S8) ->  | Q71: =IF(CMAT!T8="","",CMAT!T8) ->  | R71: =IF(CMAT!U8="","",CMAT!U8) ->  | S71: =IF(CMAT!V8="","",CMAT!V8) ->  | T71: =IF(CMAT!W8="","",CMAT!W8) ->  | U71: =IF(CMAT!X8="","",CMAT!X8) ->  | V71: =IF(CMAT!Y8="","",CMAT!Y8) ->  | W71: =IF(CMAT!Z8="","",CMAT!Z8) ->  | X71: =IF(CMAT!AA8="","",CMAT!AA8) ->  | Y71: =IF(CMAT!AB8="","",CMAT!AB8) ->  | Z71: =IF(CMAT!AC8="","",CMAT!AC8) ->  | AA71: =IF(CMAT!AD8="","",CMAT!AD8) ->  | AB71: =IF(CMAT!AE8="","",CMAT!AE8) ->  | AC71: =IF(CMAT!AF8="","",CMAT!AF8) ->  | AD71: =IF(CMAT!AG8="","",CMAT!AG8) ->  | AE71: =IF(CMAT!AH8="","",CMAT!AH8) ->  | AF71: =IF(CMAT!AI8="","",CMAT!AI8) ->  | AG71: =IF(CMAT!AJ8="","",CMAT!AJ8) ->  | AH71: =IF(CMAT!AK8="","",CMAT!AK8) ->  | AI71: =IF(CMAT!AL8="","",CMAT!AL8) ->  | AJ71: =IF(CMAT!AM8="","",CMAT!AM8) ->  | AK71: =IF(CMAT!AN8="","",CMAT!AN8) ->  | AL71: =IF(CMAT!AO8="","",CMAT!AO8) ->  | AM71: =IF(CMAT!AP8="","",CMAT!AP8) -> 
C72: Comp. Esp. 3 | D72: Criterio Evaluación 3.1 | E72: =IF(CMAT!H9="","",CMAT!H9) ->  | F72: =IF(CMAT!I9="","",CMAT!I9) ->  | G72: =IF(CMAT!J9="","",CMAT!J9) ->  | H72: =IF(CMAT!K9="","",CMAT!K9) ->  | I72: =IF(CMAT!L9="","",CMAT!L9) ->  | J72: =IF(CMAT!M9="","",CMAT!M9) ->  | K72: =IF(CMAT!N9="","",CMAT!N9) ->  | L72: =IF(CMAT!O9="","",CMAT!O9) ->  | M72: =IF(CMAT!P9="","",CMAT!P9) ->  | N72: =IF(CMAT!Q9="","",CMAT!Q9) ->  | O72: =IF(CMAT!R9="","",CMAT!R9) ->  | P72: =IF(CMAT!S9="","",CMAT!S9) ->  | Q72: =IF(CMAT!T9="","",CMAT!T9) ->  | R72: =IF(CMAT!U9="","",CMAT!U9) ->  | S72: =IF(CMAT!V9="","",CMAT!V9) ->  | T72: =IF(CMAT!W9="","",CMAT!W9) ->  | U72: =IF(CMAT!X9="","",CMAT!X9) ->  | V72: =IF(CMAT!Y9="","",CMAT!Y9) ->  | W72: =IF(CMAT!Z9="","",CMAT!Z9) ->  | X72: =IF(CMAT!AA9="","",CMAT!AA9) ->  | Y72: =IF(CMAT!AB9="","",CMAT!AB9) ->  | Z72: =IF(CMAT!AC9="","",CMAT!AC9) ->  | AA72: =IF(CMAT!AD9="","",CMAT!AD9) ->  | AB72: =IF(CMAT!AE9="","",CMAT!AE9) ->  | AC72: =IF(CMAT!AF9="","",CMAT!AF9) ->  | AD72: =IF(CMAT!AG9="","",CMAT!AG9) ->  | AE72: =IF(CMAT!AH9="","",CMAT!AH9) ->  | AF72: =IF(CMAT!AI9="","",CMAT!AI9) ->  | AG72: =IF(CMAT!AJ9="","",CMAT!AJ9) ->  | AH72: =IF(CMAT!AK9="","",CMAT!AK9) ->  | AI72: =IF(CMAT!AL9="","",CMAT!AL9) ->  | AJ72: =IF(CMAT!AM9="","",CMAT!AM9) ->  | AK72: =IF(CMAT!AN9="","",CMAT!AN9) ->  | AL72: =IF(CMAT!AO9="","",CMAT!AO9) ->  | AM72: =IF(CMAT!AP9="","",CMAT!AP9) -> 
D73: Criterio Evaluación 3.2 | E73: =IF(CMAT!H10="","",CMAT!H10) ->  | F73: =IF(CMAT!I10="","",CMAT!I10) ->  | G73: =IF(CMAT!J10="","",CMAT!J10) ->  | H73: =IF(CMAT!K10="","",CMAT!K10) ->  | I73: =IF(CMAT!L10="","",CMAT!L10) ->  | J73: =IF(CMAT!M10="","",CMAT!M10) ->  | K73: =IF(CMAT!N10="","",CMAT!N10) ->  | L73: =IF(CMAT!O10="","",CMAT!O10) ->  | M73: =IF(CMAT!P10="","",CMAT!P10) ->  | N73: =IF(CMAT!Q10="","",CMAT!Q10) ->  | O73: =IF(CMAT!R10="","",CMAT!R10) ->  | P73: =IF(CMAT!S10="","",CMAT!S10) ->  | Q73: =IF(CMAT!T10="","",CMAT!T10) ->  | R73: =IF(CMAT!U10="","",CMAT!U10) ->  | S73: =IF(CMAT!V10="","",CMAT!V10) ->  | T73: =IF(CMAT!W10="","",CMAT!W10) ->  | U73: =IF(CMAT!X10="","",CMAT!X10) ->  | V73: =IF(CMAT!Y10="","",CMAT!Y10) ->  | W73: =IF(CMAT!Z10="","",CMAT!Z10) ->  | X73: =IF(CMAT!AA10="","",CMAT!AA10) ->  | Y73: =IF(CMAT!AB10="","",CMAT!AB10) ->  | Z73: =IF(CMAT!AC10="","",CMAT!AC10) ->  | AA73: =IF(CMAT!AD10="","",CMAT!AD10) ->  | AB73: =IF(CMAT!AE10="","",CMAT!AE10) ->  | AC73: =IF(CMAT!AF10="","",CMAT!AF10) ->  | AD73: =IF(CMAT!AG10="","",CMAT!AG10) ->  | AE73: =IF(CMAT!AH10="","",CMAT!AH10) ->  | AF73: =IF(CMAT!AI10="","",CMAT!AI10) ->  | AG73: =IF(CMAT!AJ10="","",CMAT!AJ10) ->  | AH73: =IF(CMAT!AK10="","",CMAT!AK10) ->  | AI73: =IF(CMAT!AL10="","",CMAT!AL10) ->  | AJ73: =IF(CMAT!AM10="","",CMAT!AM10) ->  | AK73: =IF(CMAT!AN10="","",CMAT!AN10) ->  | AL73: =IF(CMAT!AO10="","",CMAT!AO10) ->  | AM73: =IF(CMAT!AP10="","",CMAT!AP10) -> 
D74: Criterio Evaluación 3.3 | E74: =IF(CMAT!H11="","",CMAT!H11) ->  | F74: =IF(CMAT!I11="","",CMAT!I11) ->  | G74: =IF(CMAT!J11="","",CMAT!J11) ->  | H74: =IF(CMAT!K11="","",CMAT!K11) ->  | I74: =IF(CMAT!L11="","",CMAT!L11) ->  | J74: =IF(CMAT!M11="","",CMAT!M11) ->  | K74: =IF(CMAT!N11="","",CMAT!N11) ->  | L74: =IF(CMAT!O11="","",CMAT!O11) ->  | M74: =IF(CMAT!P11="","",CMAT!P11) ->  | N74: =IF(CMAT!Q11="","",CMAT!Q11) ->  | O74: =IF(CMAT!R11="","",CMAT!R11) ->  | P74: =IF(CMAT!S11="","",CMAT!S11) ->  | Q74: =IF(CMAT!T11="","",CMAT!T11) ->  | R74: =IF(CMAT!U11="","",CMAT!U11) ->  | S74: =IF(CMAT!V11="","",CMAT!V11) ->  | T74: =IF(CMAT!W11="","",CMAT!W11) ->  | U74: =IF(CMAT!X11="","",CMAT!X11) ->  | V74: =IF(CMAT!Y11="","",CMAT!Y11) ->  | W74: =IF(CMAT!Z11="","",CMAT!Z11) ->  | X74: =IF(CMAT!AA11="","",CMAT!AA11) ->  | Y74: =IF(CMAT!AB11="","",CMAT!AB11) ->  | Z74: =IF(CMAT!AC11="","",CMAT!AC11) ->  | AA74: =IF(CMAT!AD11="","",CMAT!AD11) ->  | AB74: =IF(CMAT!AE11="","",CMAT!AE11) ->  | AC74: =IF(CMAT!AF11="","",CMAT!AF11) ->  | AD74: =IF(CMAT!AG11="","",CMAT!AG11) ->  | AE74: =IF(CMAT!AH11="","",CMAT!AH11) ->  | AF74: =IF(CMAT!AI11="","",CMAT!AI11) ->  | AG74: =IF(CMAT!AJ11="","",CMAT!AJ11) ->  | AH74: =IF(CMAT!AK11="","",CMAT!AK11) ->  | AI74: =IF(CMAT!AL11="","",CMAT!AL11) ->  | AJ74: =IF(CMAT!AM11="","",CMAT!AM11) ->  | AK74: =IF(CMAT!AN11="","",CMAT!AN11) ->  | AL74: =IF(CMAT!AO11="","",CMAT!AO11) ->  | AM74: =IF(CMAT!AP11="","",CMAT!AP11) -> 
C75: Comp. Esp. 4 | D75: Criterio Evaluación 4.1 | E75: =IF(CMAT!H12="","",CMAT!H12) ->  | F75: =IF(CMAT!I12="","",CMAT!I12) ->  | G75: =IF(CMAT!J12="","",CMAT!J12) ->  | H75: =IF(CMAT!K12="","",CMAT!K12) ->  | I75: =IF(CMAT!L12="","",CMAT!L12) ->  | J75: =IF(CMAT!M12="","",CMAT!M12) ->  | K75: =IF(CMAT!N12="","",CMAT!N12) ->  | L75: =IF(CMAT!O12="","",CMAT!O12) ->  | M75: =IF(CMAT!P12="","",CMAT!P12) ->  | N75: =IF(CMAT!Q12="","",CMAT!Q12) ->  | O75: =IF(CMAT!R12="","",CMAT!R12) ->  | P75: =IF(CMAT!S12="","",CMAT!S12) ->  | Q75: =IF(CMAT!T12="","",CMAT!T12) ->  | R75: =IF(CMAT!U12="","",CMAT!U12) ->  | S75: =IF(CMAT!V12="","",CMAT!V12) ->  | T75: =IF(CMAT!W12="","",CMAT!W12) ->  | U75: =IF(CMAT!X12="","",CMAT!X12) ->  | V75: =IF(CMAT!Y12="","",CMAT!Y12) ->  | W75: =IF(CMAT!Z12="","",CMAT!Z12) ->  | X75: =IF(CMAT!AA12="","",CMAT!AA12) ->  | Y75: =IF(CMAT!AB12="","",CMAT!AB12) ->  | Z75: =IF(CMAT!AC12="","",CMAT!AC12) ->  | AA75: =IF(CMAT!AD12="","",CMAT!AD12) ->  | AB75: =IF(CMAT!AE12="","",CMAT!AE12) ->  | AC75: =IF(CMAT!AF12="","",CMAT!AF12) ->  | AD75: =IF(CMAT!AG12="","",CMAT!AG12) ->  | AE75: =IF(CMAT!AH12="","",CMAT!AH12) ->  | AF75: =IF(CMAT!AI12="","",CMAT!AI12) ->  | AG75: =IF(CMAT!AJ12="","",CMAT!AJ12) ->  | AH75: =IF(CMAT!AK12="","",CMAT!AK12) ->  | AI75: =IF(CMAT!AL12="","",CMAT!AL12) ->  | AJ75: =IF(CMAT!AM12="","",CMAT!AM12) ->  | AK75: =IF(CMAT!AN12="","",CMAT!AN12) ->  | AL75: =IF(CMAT!AO12="","",CMAT!AO12) ->  | AM75: =IF(CMAT!AP12="","",CMAT!AP12) -> 
D76: Criterio Evaluación 4.2 | E76: =IF(CMAT!H13="","",CMAT!H13) ->  | F76: =IF(CMAT!I13="","",CMAT!I13) ->  | G76: =IF(CMAT!J13="","",CMAT!J13) ->  | H76: =IF(CMAT!K13="","",CMAT!K13) ->  | I76: =IF(CMAT!L13="","",CMAT!L13) ->  | J76: =IF(CMAT!M13="","",CMAT!M13) ->  | K76: =IF(CMAT!N13="","",CMAT!N13) ->  | L76: =IF(CMAT!O13="","",CMAT!O13) ->  | M76: =IF(CMAT!P13="","",CMAT!P13) ->  | N76: =IF(CMAT!Q13="","",CMAT!Q13) ->  | O76: =IF(CMAT!R13="","",CMAT!R13) ->  | P76: =IF(CMAT!S13="","",CMAT!S13) ->  | Q76: =IF(CMAT!T13="","",CMAT!T13) ->  | R76: =IF(CMAT!U13="","",CMAT!U13) ->  | S76: =IF(CMAT!V13="","",CMAT!V13) ->  | T76: =IF(CMAT!W13="","",CMAT!W13) ->  | U76: =IF(CMAT!X13="","",CMAT!X13) ->  | V76: =IF(CMAT!Y13="","",CMAT!Y13) ->  | W76: =IF(CMAT!Z13="","",CMAT!Z13) ->  | X76: =IF(CMAT!AA13="","",CMAT!AA13) ->  | Y76: =IF(CMAT!AB13="","",CMAT!AB13) ->  | Z76: =IF(CMAT!AC13="","",CMAT!AC13) ->  | AA76: =IF(CMAT!AD13="","",CMAT!AD13) ->  | AB76: =IF(CMAT!AE13="","",CMAT!AE13) ->  | AC76: =IF(CMAT!AF13="","",CMAT!AF13) ->  | AD76: =IF(CMAT!AG13="","",CMAT!AG13) ->  | AE76: =IF(CMAT!AH13="","",CMAT!AH13) ->  | AF76: =IF(CMAT!AI13="","",CMAT!AI13) ->  | AG76: =IF(CMAT!AJ13="","",CMAT!AJ13) ->  | AH76: =IF(CMAT!AK13="","",CMAT!AK13) ->  | AI76: =IF(CMAT!AL13="","",CMAT!AL13) ->  | AJ76: =IF(CMAT!AM13="","",CMAT!AM13) ->  | AK76: =IF(CMAT!AN13="","",CMAT!AN13) ->  | AL76: =IF(CMAT!AO13="","",CMAT!AO13) ->  | AM76: =IF(CMAT!AP13="","",CMAT!AP13) -> 
D77: Criterio Evaluación 4.3 | E77: =IF(CMAT!H14="","",CMAT!H14) ->  | F77: =IF(CMAT!I14="","",CMAT!I14) ->  | G77: =IF(CMAT!J14="","",CMAT!J14) ->  | H77: =IF(CMAT!K14="","",CMAT!K14) ->  | I77: =IF(CMAT!L14="","",CMAT!L14) ->  | J77: =IF(CMAT!M14="","",CMAT!M14) ->  | K77: =IF(CMAT!N14="","",CMAT!N14) ->  | L77: =IF(CMAT!O14="","",CMAT!O14) ->  | M77: =IF(CMAT!P14="","",CMAT!P14) ->  | N77: =IF(CMAT!Q14="","",CMAT!Q14) ->  | O77: =IF(CMAT!R14="","",CMAT!R14) ->  | P77: =IF(CMAT!S14="","",CMAT!S14) ->  | Q77: =IF(CMAT!T14="","",CMAT!T14) ->  | R77: =IF(CMAT!U14="","",CMAT!U14) ->  | S77: =IF(CMAT!V14="","",CMAT!V14) ->  | T77: =IF(CMAT!W14="","",CMAT!W14) ->  | U77: =IF(CMAT!X14="","",CMAT!X14) ->  | V77: =IF(CMAT!Y14="","",CMAT!Y14) ->  | W77: =IF(CMAT!Z14="","",CMAT!Z14) ->  | X77: =IF(CMAT!AA14="","",CMAT!AA14) ->  | Y77: =IF(CMAT!AB14="","",CMAT!AB14) ->  | Z77: =IF(CMAT!AC14="","",CMAT!AC14) ->  | AA77: =IF(CMAT!AD14="","",CMAT!AD14) ->  | AB77: =IF(CMAT!AE14="","",CMAT!AE14) ->  | AC77: =IF(CMAT!AF14="","",CMAT!AF14) ->  | AD77: =IF(CMAT!AG14="","",CMAT!AG14) ->  | AE77: =IF(CMAT!AH14="","",CMAT!AH14) ->  | AF77: =IF(CMAT!AI14="","",CMAT!AI14) ->  | AG77: =IF(CMAT!AJ14="","",CMAT!AJ14) ->  | AH77: =IF(CMAT!AK14="","",CMAT!AK14) ->  | AI77: =IF(CMAT!AL14="","",CMAT!AL14) ->  | AJ77: =IF(CMAT!AM14="","",CMAT!AM14) ->  | AK77: =IF(CMAT!AN14="","",CMAT!AN14) ->  | AL77: =IF(CMAT!AO14="","",CMAT!AO14) ->  | AM77: =IF(CMAT!AP14="","",CMAT!AP14) -> 
C78: Comp. Esp. 5 | D78: Criterio Evaluación 5.1 | E78: =IF(CMAT!H15="","",CMAT!H15) ->  | F78: =IF(CMAT!I15="","",CMAT!I15) ->  | G78: =IF(CMAT!J15="","",CMAT!J15) ->  | H78: =IF(CMAT!K15="","",CMAT!K15) ->  | I78: =IF(CMAT!L15="","",CMAT!L15) ->  | J78: =IF(CMAT!M15="","",CMAT!M15) ->  | K78: =IF(CMAT!N15="","",CMAT!N15) ->  | L78: =IF(CMAT!O15="","",CMAT!O15) ->  | M78: =IF(CMAT!P15="","",CMAT!P15) ->  | N78: =IF(CMAT!Q15="","",CMAT!Q15) ->  | O78: =IF(CMAT!R15="","",CMAT!R15) ->  | P78: =IF(CMAT!S15="","",CMAT!S15) ->  | Q78: =IF(CMAT!T15="","",CMAT!T15) ->  | R78: =IF(CMAT!U15="","",CMAT!U15) ->  | S78: =IF(CMAT!V15="","",CMAT!V15) ->  | T78: =IF(CMAT!W15="","",CMAT!W15) ->  | U78: =IF(CMAT!X15="","",CMAT!X15) ->  | V78: =IF(CMAT!Y15="","",CMAT!Y15) ->  | W78: =IF(CMAT!Z15="","",CMAT!Z15) ->  | X78: =IF(CMAT!AA15="","",CMAT!AA15) ->  | Y78: =IF(CMAT!AB15="","",CMAT!AB15) ->  | Z78: =IF(CMAT!AC15="","",CMAT!AC15) ->  | AA78: =IF(CMAT!AD15="","",CMAT!AD15) ->  | AB78: =IF(CMAT!AE15="","",CMAT!AE15) ->  | AC78: =IF(CMAT!AF15="","",CMAT!AF15) ->  | AD78: =IF(CMAT!AG15="","",CMAT!AG15) ->  | AE78: =IF(CMAT!AH15="","",CMAT!AH15) ->  | AF78: =IF(CMAT!AI15="","",CMAT!AI15) ->  | AG78: =IF(CMAT!AJ15="","",CMAT!AJ15) ->  | AH78: =IF(CMAT!AK15="","",CMAT!AK15) ->  | AI78: =IF(CMAT!AL15="","",CMAT!AL15) ->  | AJ78: =IF(CMAT!AM15="","",CMAT!AM15) ->  | AK78: =IF(CMAT!AN15="","",CMAT!AN15) ->  | AL78: =IF(CMAT!AO15="","",CMAT!AO15) ->  | AM78: =IF(CMAT!AP15="","",CMAT!AP15) -> 
D79: Criterio Evaluación 5.2 | E79: =IF(CMAT!H16="","",CMAT!H16) ->  | F79: =IF(CMAT!I16="","",CMAT!I16) ->  | G79: =IF(CMAT!J16="","",CMAT!J16) ->  | H79: =IF(CMAT!K16="","",CMAT!K16) ->  | I79: =IF(CMAT!L16="","",CMAT!L16) ->  | J79: =IF(CMAT!M16="","",CMAT!M16) ->  | K79: =IF(CMAT!N16="","",CMAT!N16) ->  | L79: =IF(CMAT!O16="","",CMAT!O16) ->  | M79: =IF(CMAT!P16="","",CMAT!P16) ->  | N79: =IF(CMAT!Q16="","",CMAT!Q16) ->  | O79: =IF(CMAT!R16="","",CMAT!R16) ->  | P79: =IF(CMAT!S16="","",CMAT!S16) ->  | Q79: =IF(CMAT!T16="","",CMAT!T16) ->  | R79: =IF(CMAT!U16="","",CMAT!U16) ->  | S79: =IF(CMAT!V16="","",CMAT!V16) ->  | T79: =IF(CMAT!W16="","",CMAT!W16) ->  | U79: =IF(CMAT!X16="","",CMAT!X16) ->  | V79: =IF(CMAT!Y16="","",CMAT!Y16) ->  | W79: =IF(CMAT!Z16="","",CMAT!Z16) ->  | X79: =IF(CMAT!AA16="","",CMAT!AA16) ->  | Y79: =IF(CMAT!AB16="","",CMAT!AB16) ->  | Z79: =IF(CMAT!AC16="","",CMAT!AC16) ->  | AA79: =IF(CMAT!AD16="","",CMAT!AD16) ->  | AB79: =IF(CMAT!AE16="","",CMAT!AE16) ->  | AC79: =IF(CMAT!AF16="","",CMAT!AF16) ->  | AD79: =IF(CMAT!AG16="","",CMAT!AG16) ->  | AE79: =IF(CMAT!AH16="","",CMAT!AH16) ->  | AF79: =IF(CMAT!AI16="","",CMAT!AI16) ->  | AG79: =IF(CMAT!AJ16="","",CMAT!AJ16) ->  | AH79: =IF(CMAT!AK16="","",CMAT!AK16) ->  | AI79: =IF(CMAT!AL16="","",CMAT!AL16) ->  | AJ79: =IF(CMAT!AM16="","",CMAT!AM16) ->  | AK79: =IF(CMAT!AN16="","",CMAT!AN16) ->  | AL79: =IF(CMAT!AO16="","",CMAT!AO16) ->  | AM79: =IF(CMAT!AP16="","",CMAT!AP16) -> 
D80: Criterio Evaluación 5.3 | E80: =IF(CMAT!H17="","",CMAT!H17) ->  | F80: =IF(CMAT!I17="","",CMAT!I17) ->  | G80: =IF(CMAT!J17="","",CMAT!J17) ->  | H80: =IF(CMAT!K17="","",CMAT!K17) ->  | I80: =IF(CMAT!L17="","",CMAT!L17) ->  | J80: =IF(CMAT!M17="","",CMAT!M17) ->  | K80: =IF(CMAT!N17="","",CMAT!N17) ->  | L80: =IF(CMAT!O17="","",CMAT!O17) ->  | M80: =IF(CMAT!P17="","",CMAT!P17) ->  | N80: =IF(CMAT!Q17="","",CMAT!Q17) ->  | O80: =IF(CMAT!R17="","",CMAT!R17) ->  | P80: =IF(CMAT!S17="","",CMAT!S17) ->  | Q80: =IF(CMAT!T17="","",CMAT!T17) ->  | R80: =IF(CMAT!U17="","",CMAT!U17) ->  | S80: =IF(CMAT!V17="","",CMAT!V17) ->  | T80: =IF(CMAT!W17="","",CMAT!W17) ->  | U80: =IF(CMAT!X17="","",CMAT!X17) ->  | V80: =IF(CMAT!Y17="","",CMAT!Y17) ->  | W80: =IF(CMAT!Z17="","",CMAT!Z17) ->  | X80: =IF(CMAT!AA17="","",CMAT!AA17) ->  | Y80: =IF(CMAT!AB17="","",CMAT!AB17) ->  | Z80: =IF(CMAT!AC17="","",CMAT!AC17) ->  | AA80: =IF(CMAT!AD17="","",CMAT!AD17) ->  | AB80: =IF(CMAT!AE17="","",CMAT!AE17) ->  | AC80: =IF(CMAT!AF17="","",CMAT!AF17) ->  | AD80: =IF(CMAT!AG17="","",CMAT!AG17) ->  | AE80: =IF(CMAT!AH17="","",CMAT!AH17) ->  | AF80: =IF(CMAT!AI17="","",CMAT!AI17) ->  | AG80: =IF(CMAT!AJ17="","",CMAT!AJ17) ->  | AH80: =IF(CMAT!AK17="","",CMAT!AK17) ->  | AI80: =IF(CMAT!AL17="","",CMAT!AL17) ->  | AJ80: =IF(CMAT!AM17="","",CMAT!AM17) ->  | AK80: =IF(CMAT!AN17="","",CMAT!AN17) ->  | AL80: =IF(CMAT!AO17="","",CMAT!AO17) ->  | AM80: =IF(CMAT!AP17="","",CMAT!AP17) -> 
D81: Criterio Evaluación 5.4 | E81: =IF(CMAT!H18="","",CMAT!H18) ->  | F81: =IF(CMAT!I18="","",CMAT!I18) ->  | G81: =IF(CMAT!J18="","",CMAT!J18) ->  | H81: =IF(CMAT!K18="","",CMAT!K18) ->  | I81: =IF(CMAT!L18="","",CMAT!L18) ->  | J81: =IF(CMAT!M18="","",CMAT!M18) ->  | K81: =IF(CMAT!N18="","",CMAT!N18) ->  | L81: =IF(CMAT!O18="","",CMAT!O18) ->  | M81: =IF(CMAT!P18="","",CMAT!P18) ->  | N81: =IF(CMAT!Q18="","",CMAT!Q18) ->  | O81: =IF(CMAT!R18="","",CMAT!R18) ->  | P81: =IF(CMAT!S18="","",CMAT!S18) ->  | Q81: =IF(CMAT!T18="","",CMAT!T18) ->  | R81: =IF(CMAT!U18="","",CMAT!U18) ->  | S81: =IF(CMAT!V18="","",CMAT!V18) ->  | T81: =IF(CMAT!W18="","",CMAT!W18) ->  | U81: =IF(CMAT!X18="","",CMAT!X18) ->  | V81: =IF(CMAT!Y18="","",CMAT!Y18) ->  | W81: =IF(CMAT!Z18="","",CMAT!Z18) ->  | X81: =IF(CMAT!AA18="","",CMAT!AA18) ->  | Y81: =IF(CMAT!AB18="","",CMAT!AB18) ->  | Z81: =IF(CMAT!AC18="","",CMAT!AC18) ->  | AA81: =IF(CMAT!AD18="","",CMAT!AD18) ->  | AB81: =IF(CMAT!AE18="","",CMAT!AE18) ->  | AC81: =IF(CMAT!AF18="","",CMAT!AF18) ->  | AD81: =IF(CMAT!AG18="","",CMAT!AG18) ->  | AE81: =IF(CMAT!AH18="","",CMAT!AH18) ->  | AF81: =IF(CMAT!AI18="","",CMAT!AI18) ->  | AG81: =IF(CMAT!AJ18="","",CMAT!AJ18) ->  | AH81: =IF(CMAT!AK18="","",CMAT!AK18) ->  | AI81: =IF(CMAT!AL18="","",CMAT!AL18) ->  | AJ81: =IF(CMAT!AM18="","",CMAT!AM18) ->  | AK81: =IF(CMAT!AN18="","",CMAT!AN18) ->  | AL81: =IF(CMAT!AO18="","",CMAT!AO18) ->  | AM81: =IF(CMAT!AP18="","",CMAT!AP18) -> 
B82: Conocimiento del Lenguaje | C82: Comp. Esp. 1 | D82: Criterio Evaluación 1.1 | E82: =IF(CLEN!H4="","",CLEN!H4) ->  | F82: =IF(CLEN!I4="","",CLEN!I4) ->  | G82: =IF(CLEN!J4="","",CLEN!J4) ->  | H82: =IF(CLEN!K4="","",CLEN!K4) ->  | I82: =IF(CLEN!L4="","",CLEN!L4) ->  | J82: =IF(CLEN!M4="","",CLEN!M4) ->  | K82: =IF(CLEN!N4="","",CLEN!N4) ->  | L82: =IF(CLEN!O4="","",CLEN!O4) ->  | M82: =IF(CLEN!P4="","",CLEN!P4) ->  | N82: =IF(CLEN!Q4="","",CLEN!Q4) ->  | O82: =IF(CLEN!R4="","",CLEN!R4) ->  | P82: =IF(CLEN!S4="","",CLEN!S4) ->  | Q82: =IF(CLEN!T4="","",CLEN!T4) ->  | R82: =IF(CLEN!U4="","",CLEN!U4) ->  | S82: =IF(CLEN!V4="","",CLEN!V4) ->  | T82: =IF(CLEN!W4="","",CLEN!W4) ->  | U82: =IF(CLEN!X4="","",CLEN!X4) ->  | V82: =IF(CLEN!Y4="","",CLEN!Y4) ->  | W82: =IF(CLEN!Z4="","",CLEN!Z4) ->  | X82: =IF(CLEN!AA4="","",CLEN!AA4) ->  | Y82: =IF(CLEN!AB4="","",CLEN!AB4) ->  | Z82: =IF(CLEN!AC4="","",CLEN!AC4) ->  | AA82: =IF(CLEN!AD4="","",CLEN!AD4) ->  | AB82: =IF(CLEN!AE4="","",CLEN!AE4) ->  | AC82: =IF(CLEN!AF4="","",CLEN!AF4) ->  | AD82: =IF(CLEN!AG4="","",CLEN!AG4) ->  | AE82: =IF(CLEN!AH4="","",CLEN!AH4) ->  | AF82: =IF(CLEN!AI4="","",CLEN!AI4) ->  | AG82: =IF(CLEN!AJ4="","",CLEN!AJ4) ->  | AH82: =IF(CLEN!AK4="","",CLEN!AK4) ->  | AI82: =IF(CLEN!AL4="","",CLEN!AL4) ->  | AJ82: =IF(CLEN!AM4="","",CLEN!AM4) ->  | AK82: =IF(CLEN!AN4="","",CLEN!AN4) ->  | AL82: =IF(CLEN!AO4="","",CLEN!AO4) ->  | AM82: =IF(CLEN!AP4="","",CLEN!AP4) -> 
D83: Criterio Evaluación 1.2 | E83: =IF(CLEN!H5="","",CLEN!H5) ->  | F83: =IF(CLEN!I5="","",CLEN!I5) ->  | G83: =IF(CLEN!J5="","",CLEN!J5) ->  | H83: =IF(CLEN!K5="","",CLEN!K5) ->  | I83: =IF(CLEN!L5="","",CLEN!L5) ->  | J83: =IF(CLEN!M5="","",CLEN!M5) ->  | K83: =IF(CLEN!N5="","",CLEN!N5) ->  | L83: =IF(CLEN!O5="","",CLEN!O5) ->  | M83: =IF(CLEN!P5="","",CLEN!P5) ->  | N83: =IF(CLEN!Q5="","",CLEN!Q5) ->  | O83: =IF(CLEN!R5="","",CLEN!R5) ->  | P83: =IF(CLEN!S5="","",CLEN!S5) ->  | Q83: =IF(CLEN!T5="","",CLEN!T5) ->  | R83: =IF(CLEN!U5="","",CLEN!U5) ->  | S83: =IF(CLEN!V5="","",CLEN!V5) ->  | T83: =IF(CLEN!W5="","",CLEN!W5) ->  | U83: =IF(CLEN!X5="","",CLEN!X5) ->  | V83: =IF(CLEN!Y5="","",CLEN!Y5) ->  | W83: =IF(CLEN!Z5="","",CLEN!Z5) ->  | X83: =IF(CLEN!AA5="","",CLEN!AA5) ->  | Y83: =IF(CLEN!AB5="","",CLEN!AB5) ->  | Z83: =IF(CLEN!AC5="","",CLEN!AC5) ->  | AA83: =IF(CLEN!AD5="","",CLEN!AD5) ->  | AB83: =IF(CLEN!AE5="","",CLEN!AE5) ->  | AC83: =IF(CLEN!AF5="","",CLEN!AF5) ->  | AD83: =IF(CLEN!AG5="","",CLEN!AG5) ->  | AE83: =IF(CLEN!AH5="","",CLEN!AH5) ->  | AF83: =IF(CLEN!AI5="","",CLEN!AI5) ->  | AG83: =IF(CLEN!AJ5="","",CLEN!AJ5) ->  | AH83: =IF(CLEN!AK5="","",CLEN!AK5) ->  | AI83: =IF(CLEN!AL5="","",CLEN!AL5) ->  | AJ83: =IF(CLEN!AM5="","",CLEN!AM5) ->  | AK83: =IF(CLEN!AN5="","",CLEN!AN5) ->  | AL83: =IF(CLEN!AO5="","",CLEN!AO5) ->  | AM83: =IF(CLEN!AP5="","",CLEN!AP5) -> 
C84: Comp. Esp. 2 | D84: Criterio Evaluación 2.1 | E84: =IF(CLEN!H6="","",CLEN!H6) ->  | F84: =IF(CLEN!I6="","",CLEN!I6) ->  | G84: =IF(CLEN!J6="","",CLEN!J6) ->  | H84: =IF(CLEN!K6="","",CLEN!K6) ->  | I84: =IF(CLEN!L6="","",CLEN!L6) ->  | J84: =IF(CLEN!M6="","",CLEN!M6) ->  | K84: =IF(CLEN!N6="","",CLEN!N6) ->  | L84: =IF(CLEN!O6="","",CLEN!O6) ->  | M84: =IF(CLEN!P6="","",CLEN!P6) ->  | N84: =IF(CLEN!Q6="","",CLEN!Q6) ->  | O84: =IF(CLEN!R6="","",CLEN!R6) ->  | P84: =IF(CLEN!S6="","",CLEN!S6) ->  | Q84: =IF(CLEN!T6="","",CLEN!T6) ->  | R84: =IF(CLEN!U6="","",CLEN!U6) ->  | S84: =IF(CLEN!V6="","",CLEN!V6) ->  | T84: =IF(CLEN!W6="","",CLEN!W6) ->  | U84: =IF(CLEN!X6="","",CLEN!X6) ->  | V84: =IF(CLEN!Y6="","",CLEN!Y6) ->  | W84: =IF(CLEN!Z6="","",CLEN!Z6) ->  | X84: =IF(CLEN!AA6="","",CLEN!AA6) ->  | Y84: =IF(CLEN!AB6="","",CLEN!AB6) ->  | Z84: =IF(CLEN!AC6="","",CLEN!AC6) ->  | AA84: =IF(CLEN!AD6="","",CLEN!AD6) ->  | AB84: =IF(CLEN!AE6="","",CLEN!AE6) ->  | AC84: =IF(CLEN!AF6="","",CLEN!AF6) ->  | AD84: =IF(CLEN!AG6="","",CLEN!AG6) ->  | AE84: =IF(CLEN!AH6="","",CLEN!AH6) ->  | AF84: =IF(CLEN!AI6="","",CLEN!AI6) ->  | AG84: =IF(CLEN!AJ6="","",CLEN!AJ6) ->  | AH84: =IF(CLEN!AK6="","",CLEN!AK6) ->  | AI84: =IF(CLEN!AL6="","",CLEN!AL6) ->  | AJ84: =IF(CLEN!AM6="","",CLEN!AM6) ->  | AK84: =IF(CLEN!AN6="","",CLEN!AN6) ->  | AL84: =IF(CLEN!AO6="","",CLEN!AO6) ->  | AM84: =IF(CLEN!AP6="","",CLEN!AP6) -> 
D85: Criterio Evaluación 2.2 | E85: =IF(CLEN!H7="","",CLEN!H7) ->  | F85: =IF(CLEN!I7="","",CLEN!I7) ->  | G85: =IF(CLEN!J7="","",CLEN!J7) ->  | H85: =IF(CLEN!K7="","",CLEN!K7) ->  | I85: =IF(CLEN!L7="","",CLEN!L7) ->  | J85: =IF(CLEN!M7="","",CLEN!M7) ->  | K85: =IF(CLEN!N7="","",CLEN!N7) ->  | L85: =IF(CLEN!O7="","",CLEN!O7) ->  | M85: =IF(CLEN!P7="","",CLEN!P7) ->  | N85: =IF(CLEN!Q7="","",CLEN!Q7) ->  | O85: =IF(CLEN!R7="","",CLEN!R7) ->  | P85: =IF(CLEN!S7="","",CLEN!S7) ->  | Q85: =IF(CLEN!T7="","",CLEN!T7) ->  | R85: =IF(CLEN!U7="","",CLEN!U7) ->  | S85: =IF(CLEN!V7="","",CLEN!V7) ->  | T85: =IF(CLEN!W7="","",CLEN!W7) ->  | U85: =IF(CLEN!X7="","",CLEN!X7) ->  | V85: =IF(CLEN!Y7="","",CLEN!Y7) ->  | W85: =IF(CLEN!Z7="","",CLEN!Z7) ->  | X85: =IF(CLEN!AA7="","",CLEN!AA7) ->  | Y85: =IF(CLEN!AB7="","",CLEN!AB7) ->  | Z85: =IF(CLEN!AC7="","",CLEN!AC7) ->  | AA85: =IF(CLEN!AD7="","",CLEN!AD7) ->  | AB85: =IF(CLEN!AE7="","",CLEN!AE7) ->  | AC85: =IF(CLEN!AF7="","",CLEN!AF7) ->  | AD85: =IF(CLEN!AG7="","",CLEN!AG7) ->  | AE85: =IF(CLEN!AH7="","",CLEN!AH7) ->  | AF85: =IF(CLEN!AI7="","",CLEN!AI7) ->  | AG85: =IF(CLEN!AJ7="","",CLEN!AJ7) ->  | AH85: =IF(CLEN!AK7="","",CLEN!AK7) ->  | AI85: =IF(CLEN!AL7="","",CLEN!AL7) ->  | AJ85: =IF(CLEN!AM7="","",CLEN!AM7) ->  | AK85: =IF(CLEN!AN7="","",CLEN!AN7) ->  | AL85: =IF(CLEN!AO7="","",CLEN!AO7) ->  | AM85: =IF(CLEN!AP7="","",CLEN!AP7) -> 
C86: Comp. Esp. 3 | D86: Criterio Evaluación 3.1 | E86: =IF(CLEN!H8="","",CLEN!H8) ->  | F86: =IF(CLEN!I8="","",CLEN!I8) ->  | G86: =IF(CLEN!J8="","",CLEN!J8) ->  | H86: =IF(CLEN!K8="","",CLEN!K8) ->  | I86: =IF(CLEN!L8="","",CLEN!L8) ->  | J86: =IF(CLEN!M8="","",CLEN!M8) ->  | K86: =IF(CLEN!N8="","",CLEN!N8) ->  | L86: =IF(CLEN!O8="","",CLEN!O8) ->  | M86: =IF(CLEN!P8="","",CLEN!P8) ->  | N86: =IF(CLEN!Q8="","",CLEN!Q8) ->  | O86: =IF(CLEN!R8="","",CLEN!R8) ->  | P86: =IF(CLEN!S8="","",CLEN!S8) ->  | Q86: =IF(CLEN!T8="","",CLEN!T8) ->  | R86: =IF(CLEN!U8="","",CLEN!U8) ->  | S86: =IF(CLEN!V8="","",CLEN!V8) ->  | T86: =IF(CLEN!W8="","",CLEN!W8) ->  | U86: =IF(CLEN!X8="","",CLEN!X8) ->  | V86: =IF(CLEN!Y8="","",CLEN!Y8) ->  | W86: =IF(CLEN!Z8="","",CLEN!Z8) ->  | X86: =IF(CLEN!AA8="","",CLEN!AA8) ->  | Y86: =IF(CLEN!AB8="","",CLEN!AB8) ->  | Z86: =IF(CLEN!AC8="","",CLEN!AC8) ->  | AA86: =IF(CLEN!AD8="","",CLEN!AD8) ->  | AB86: =IF(CLEN!AE8="","",CLEN!AE8) ->  | AC86: =IF(CLEN!AF8="","",CLEN!AF8) ->  | AD86: =IF(CLEN!AG8="","",CLEN!AG8) ->  | AE86: =IF(CLEN!AH8="","",CLEN!AH8) ->  | AF86: =IF(CLEN!AI8="","",CLEN!AI8) ->  | AG86: =IF(CLEN!AJ8="","",CLEN!AJ8) ->  | AH86: =IF(CLEN!AK8="","",CLEN!AK8) ->  | AI86: =IF(CLEN!AL8="","",CLEN!AL8) ->  | AJ86: =IF(CLEN!AM8="","",CLEN!AM8) ->  | AK86: =IF(CLEN!AN8="","",CLEN!AN8) ->  | AL86: =IF(CLEN!AO8="","",CLEN!AO8) ->  | AM86: =IF(CLEN!AP8="","",CLEN!AP8) -> 
D87: Criterio Evaluación 3.2 | E87: =IF(CLEN!H9="","",CLEN!H9) ->  | F87: =IF(CLEN!I9="","",CLEN!I9) ->  | G87: =IF(CLEN!J9="","",CLEN!J9) ->  | H87: =IF(CLEN!K9="","",CLEN!K9) ->  | I87: =IF(CLEN!L9="","",CLEN!L9) ->  | J87: =IF(CLEN!M9="","",CLEN!M9) ->  | K87: =IF(CLEN!N9="","",CLEN!N9) ->  | L87: =IF(CLEN!O9="","",CLEN!O9) ->  | M87: =IF(CLEN!P9="","",CLEN!P9) ->  | N87: =IF(CLEN!Q9="","",CLEN!Q9) ->  | O87: =IF(CLEN!R9="","",CLEN!R9) ->  | P87: =IF(CLEN!S9="","",CLEN!S9) ->  | Q87: =IF(CLEN!T9="","",CLEN!T9) ->  | R87: =IF(CLEN!U9="","",CLEN!U9) ->  | S87: =IF(CLEN!V9="","",CLEN!V9) ->  | T87: =IF(CLEN!W9="","",CLEN!W9) ->  | U87: =IF(CLEN!X9="","",CLEN!X9) ->  | V87: =IF(CLEN!Y9="","",CLEN!Y9) ->  | W87: =IF(CLEN!Z9="","",CLEN!Z9) ->  | X87: =IF(CLEN!AA9="","",CLEN!AA9) ->  | Y87: =IF(CLEN!AB9="","",CLEN!AB9) ->  | Z87: =IF(CLEN!AC9="","",CLEN!AC9) ->  | AA87: =IF(CLEN!AD9="","",CLEN!AD9) ->  | AB87: =IF(CLEN!AE9="","",CLEN!AE9) ->  | AC87: =IF(CLEN!AF9="","",CLEN!AF9) ->  | AD87: =IF(CLEN!AG9="","",CLEN!AG9) ->  | AE87: =IF(CLEN!AH9="","",CLEN!AH9) ->  | AF87: =IF(CLEN!AI9="","",CLEN!AI9) ->  | AG87: =IF(CLEN!AJ9="","",CLEN!AJ9) ->  | AH87: =IF(CLEN!AK9="","",CLEN!AK9) ->  | AI87: =IF(CLEN!AL9="","",CLEN!AL9) ->  | AJ87: =IF(CLEN!AM9="","",CLEN!AM9) ->  | AK87: =IF(CLEN!AN9="","",CLEN!AN9) ->  | AL87: =IF(CLEN!AO9="","",CLEN!AO9) ->  | AM87: =IF(CLEN!AP9="","",CLEN!AP9) -> 
D88: Criterio Evaluación 3.3 | E88: =IF(CLEN!H10="","",CLEN!H10) ->  | F88: =IF(CLEN!I10="","",CLEN!I10) ->  | G88: =IF(CLEN!J10="","",CLEN!J10) ->  | H88: =IF(CLEN!K10="","",CLEN!K10) ->  | I88: =IF(CLEN!L10="","",CLEN!L10) ->  | J88: =IF(CLEN!M10="","",CLEN!M10) ->  | K88: =IF(CLEN!N10="","",CLEN!N10) ->  | L88: =IF(CLEN!O10="","",CLEN!O10) ->  | M88: =IF(CLEN!P10="","",CLEN!P10) ->  | N88: =IF(CLEN!Q10="","",CLEN!Q10) ->  | O88: =IF(CLEN!R10="","",CLEN!R10) ->  | P88: =IF(CLEN!S10="","",CLEN!S10) ->  | Q88: =IF(CLEN!T10="","",CLEN!T10) ->  | R88: =IF(CLEN!U10="","",CLEN!U10) ->  | S88: =IF(CLEN!V10="","",CLEN!V10) ->  | T88: =IF(CLEN!W10="","",CLEN!W10) ->  | U88: =IF(CLEN!X10="","",CLEN!X10) ->  | V88: =IF(CLEN!Y10="","",CLEN!Y10) ->  | W88: =IF(CLEN!Z10="","",CLEN!Z10) ->  | X88: =IF(CLEN!AA10="","",CLEN!AA10) ->  | Y88: =IF(CLEN!AB10="","",CLEN!AB10) ->  | Z88: =IF(CLEN!AC10="","",CLEN!AC10) ->  | AA88: =IF(CLEN!AD10="","",CLEN!AD10) ->  | AB88: =IF(CLEN!AE10="","",CLEN!AE10) ->  | AC88: =IF(CLEN!AF10="","",CLEN!AF10) ->  | AD88: =IF(CLEN!AG10="","",CLEN!AG10) ->  | AE88: =IF(CLEN!AH10="","",CLEN!AH10) ->  | AF88: =IF(CLEN!AI10="","",CLEN!AI10) ->  | AG88: =IF(CLEN!AJ10="","",CLEN!AJ10) ->  | AH88: =IF(CLEN!AK10="","",CLEN!AK10) ->  | AI88: =IF(CLEN!AL10="","",CLEN!AL10) ->  | AJ88: =IF(CLEN!AM10="","",CLEN!AM10) ->  | AK88: =IF(CLEN!AN10="","",CLEN!AN10) ->  | AL88: =IF(CLEN!AO10="","",CLEN!AO10) ->  | AM88: =IF(CLEN!AP10="","",CLEN!AP10) -> 
D89: Criterio Evaluación 3.4 | E89: =IF(CLEN!H11="","",CLEN!H11) ->  | F89: =IF(CLEN!I11="","",CLEN!I11) ->  | G89: =IF(CLEN!J11="","",CLEN!J11) ->  | H89: =IF(CLEN!K11="","",CLEN!K11) ->  | I89: =IF(CLEN!L11="","",CLEN!L11) ->  | J89: =IF(CLEN!M11="","",CLEN!M11) ->  | K89: =IF(CLEN!N11="","",CLEN!N11) ->  | L89: =IF(CLEN!O11="","",CLEN!O11) ->  | M89: =IF(CLEN!P11="","",CLEN!P11) ->  | N89: =IF(CLEN!Q11="","",CLEN!Q11) ->  | O89: =IF(CLEN!R11="","",CLEN!R11) ->  | P89: =IF(CLEN!S11="","",CLEN!S11) ->  | Q89: =IF(CLEN!T11="","",CLEN!T11) ->  | R89: =IF(CLEN!U11="","",CLEN!U11) ->  | S89: =IF(CLEN!V11="","",CLEN!V11) ->  | T89: =IF(CLEN!W11="","",CLEN!W11) ->  | U89: =IF(CLEN!X11="","",CLEN!X11) ->  | V89: =IF(CLEN!Y11="","",CLEN!Y11) ->  | W89: =IF(CLEN!Z11="","",CLEN!Z11) ->  | X89: =IF(CLEN!AA11="","",CLEN!AA11) ->  | Y89: =IF(CLEN!AB11="","",CLEN!AB11) ->  | Z89: =IF(CLEN!AC11="","",CLEN!AC11) ->  | AA89: =IF(CLEN!AD11="","",CLEN!AD11) ->  | AB89: =IF(CLEN!AE11="","",CLEN!AE11) ->  | AC89: =IF(CLEN!AF11="","",CLEN!AF11) ->  | AD89: =IF(CLEN!AG11="","",CLEN!AG11) ->  | AE89: =IF(CLEN!AH11="","",CLEN!AH11) ->  | AF89: =IF(CLEN!AI11="","",CLEN!AI11) ->  | AG89: =IF(CLEN!AJ11="","",CLEN!AJ11) ->  | AH89: =IF(CLEN!AK11="","",CLEN!AK11) ->  | AI89: =IF(CLEN!AL11="","",CLEN!AL11) ->  | AJ89: =IF(CLEN!AM11="","",CLEN!AM11) ->  | AK89: =IF(CLEN!AN11="","",CLEN!AN11) ->  | AL89: =IF(CLEN!AO11="","",CLEN!AO11) ->  | AM89: =IF(CLEN!AP11="","",CLEN!AP11) -> 
C90: Comp. Esp. 4 | D90: Criterio Evaluación 4.1 | E90: =IF(CLEN!H12="","",CLEN!H12) ->  | F90: =IF(CLEN!I12="","",CLEN!I12) ->  | G90: =IF(CLEN!J12="","",CLEN!J12) ->  | H90: =IF(CLEN!K12="","",CLEN!K12) ->  | I90: =IF(CLEN!L12="","",CLEN!L12) ->  | J90: =IF(CLEN!M12="","",CLEN!M12) ->  | K90: =IF(CLEN!N12="","",CLEN!N12) ->  | L90: =IF(CLEN!O12="","",CLEN!O12) ->  | M90: =IF(CLEN!P12="","",CLEN!P12) ->  | N90: =IF(CLEN!Q12="","",CLEN!Q12) ->  | O90: =IF(CLEN!R12="","",CLEN!R12) ->  | P90: =IF(CLEN!S12="","",CLEN!S12) ->  | Q90: =IF(CLEN!T12="","",CLEN!T12) ->  | R90: =IF(CLEN!U12="","",CLEN!U12) ->  | S90: =IF(CLEN!V12="","",CLEN!V12) ->  | T90: =IF(CLEN!W12="","",CLEN!W12) ->  | U90: =IF(CLEN!X12="","",CLEN!X12) ->  | V90: =IF(CLEN!Y12="","",CLEN!Y12) ->  | W90: =IF(CLEN!Z12="","",CLEN!Z12) ->  | X90: =IF(CLEN!AA12="","",CLEN!AA12) ->  | Y90: =IF(CLEN!AB12="","",CLEN!AB12) ->  | Z90: =IF(CLEN!AC12="","",CLEN!AC12) ->  | AA90: =IF(CLEN!AD12="","",CLEN!AD12) ->  | AB90: =IF(CLEN!AE12="","",CLEN!AE12) ->  | AC90: =IF(CLEN!AF12="","",CLEN!AF12) ->  | AD90: =IF(CLEN!AG12="","",CLEN!AG12) ->  | AE90: =IF(CLEN!AH12="","",CLEN!AH12) ->  | AF90: =IF(CLEN!AI12="","",CLEN!AI12) ->  | AG90: =IF(CLEN!AJ12="","",CLEN!AJ12) ->  | AH90: =IF(CLEN!AK12="","",CLEN!AK12) ->  | AI90: =IF(CLEN!AL12="","",CLEN!AL12) ->  | AJ90: =IF(CLEN!AM12="","",CLEN!AM12) ->  | AK90: =IF(CLEN!AN12="","",CLEN!AN12) ->  | AL90: =IF(CLEN!AO12="","",CLEN!AO12) ->  | AM90: =IF(CLEN!AP12="","",CLEN!AP12) -> 
C91: Comp. Esp. 5 | D91: Criterio Evaluación 5.1 | E91: =IF(CLEN!H13="","",CLEN!H13) ->  | F91: =IF(CLEN!I13="","",CLEN!I13) ->  | G91: =IF(CLEN!J13="","",CLEN!J13) ->  | H91: =IF(CLEN!K13="","",CLEN!K13) ->  | I91: =IF(CLEN!L13="","",CLEN!L13) ->  | J91: =IF(CLEN!M13="","",CLEN!M13) ->  | K91: =IF(CLEN!N13="","",CLEN!N13) ->  | L91: =IF(CLEN!O13="","",CLEN!O13) ->  | M91: =IF(CLEN!P13="","",CLEN!P13) ->  | N91: =IF(CLEN!Q13="","",CLEN!Q13) ->  | O91: =IF(CLEN!R13="","",CLEN!R13) ->  | P91: =IF(CLEN!S13="","",CLEN!S13) ->  | Q91: =IF(CLEN!T13="","",CLEN!T13) ->  | R91: =IF(CLEN!U13="","",CLEN!U13) ->  | S91: =IF(CLEN!V13="","",CLEN!V13) ->  | T91: =IF(CLEN!W13="","",CLEN!W13) ->  | U91: =IF(CLEN!X13="","",CLEN!X13) ->  | V91: =IF(CLEN!Y13="","",CLEN!Y13) ->  | W91: =IF(CLEN!Z13="","",CLEN!Z13) ->  | X91: =IF(CLEN!AA13="","",CLEN!AA13) ->  | Y91: =IF(CLEN!AB13="","",CLEN!AB13) ->  | Z91: =IF(CLEN!AC13="","",CLEN!AC13) ->  | AA91: =IF(CLEN!AD13="","",CLEN!AD13) ->  | AB91: =IF(CLEN!AE13="","",CLEN!AE13) ->  | AC91: =IF(CLEN!AF13="","",CLEN!AF13) ->  | AD91: =IF(CLEN!AG13="","",CLEN!AG13) ->  | AE91: =IF(CLEN!AH13="","",CLEN!AH13) ->  | AF91: =IF(CLEN!AI13="","",CLEN!AI13) ->  | AG91: =IF(CLEN!AJ13="","",CLEN!AJ13) ->  | AH91: =IF(CLEN!AK13="","",CLEN!AK13) ->  | AI91: =IF(CLEN!AL13="","",CLEN!AL13) ->  | AJ91: =IF(CLEN!AM13="","",CLEN!AM13) ->  | AK91: =IF(CLEN!AN13="","",CLEN!AN13) ->  | AL91: =IF(CLEN!AO13="","",CLEN!AO13) ->  | AM91: =IF(CLEN!AP13="","",CLEN!AP13) -> 
D92: Criterio Evaluación 5.2 | E92: =IF(CLEN!H14="","",CLEN!H14) ->  | F92: =IF(CLEN!I14="","",CLEN!I14) ->  | G92: =IF(CLEN!J14="","",CLEN!J14) ->  | H92: =IF(CLEN!K14="","",CLEN!K14) ->  | I92: =IF(CLEN!L14="","",CLEN!L14) ->  | J92: =IF(CLEN!M14="","",CLEN!M14) ->  | K92: =IF(CLEN!N14="","",CLEN!N14) ->  | L92: =IF(CLEN!O14="","",CLEN!O14) ->  | M92: =IF(CLEN!P14="","",CLEN!P14) ->  | N92: =IF(CLEN!Q14="","",CLEN!Q14) ->  | O92: =IF(CLEN!R14="","",CLEN!R14) ->  | P92: =IF(CLEN!S14="","",CLEN!S14) ->  | Q92: =IF(CLEN!T14="","",CLEN!T14) ->  | R92: =IF(CLEN!U14="","",CLEN!U14) ->  | S92: =IF(CLEN!V14="","",CLEN!V14) ->  | T92: =IF(CLEN!W14="","",CLEN!W14) ->  | U92: =IF(CLEN!X14="","",CLEN!X14) ->  | V92: =IF(CLEN!Y14="","",CLEN!Y14) ->  | W92: =IF(CLEN!Z14="","",CLEN!Z14) ->  | X92: =IF(CLEN!AA14="","",CLEN!AA14) ->  | Y92: =IF(CLEN!AB14="","",CLEN!AB14) ->  | Z92: =IF(CLEN!AC14="","",CLEN!AC14) ->  | AA92: =IF(CLEN!AD14="","",CLEN!AD14) ->  | AB92: =IF(CLEN!AE14="","",CLEN!AE14) ->  | AC92: =IF(CLEN!AF14="","",CLEN!AF14) ->  | AD92: =IF(CLEN!AG14="","",CLEN!AG14) ->  | AE92: =IF(CLEN!AH14="","",CLEN!AH14) ->  | AF92: =IF(CLEN!AI14="","",CLEN!AI14) ->  | AG92: =IF(CLEN!AJ14="","",CLEN!AJ14) ->  | AH92: =IF(CLEN!AK14="","",CLEN!AK14) ->  | AI92: =IF(CLEN!AL14="","",CLEN!AL14) ->  | AJ92: =IF(CLEN!AM14="","",CLEN!AM14) ->  | AK92: =IF(CLEN!AN14="","",CLEN!AN14) ->  | AL92: =IF(CLEN!AO14="","",CLEN!AO14) ->  | AM92: =IF(CLEN!AP14="","",CLEN!AP14) -> 
C93: Comp. Esp. 6 | D93: Criterio Evaluación 6.1 | E93: =IF(CLEN!H15="","",CLEN!H15) ->  | F93: =IF(CLEN!I15="","",CLEN!I15) ->  | G93: =IF(CLEN!J15="","",CLEN!J15) ->  | H93: =IF(CLEN!K15="","",CLEN!K15) ->  | I93: =IF(CLEN!L15="","",CLEN!L15) ->  | J93: =IF(CLEN!M15="","",CLEN!M15) ->  | K93: =IF(CLEN!N15="","",CLEN!N15) ->  | L93: =IF(CLEN!O15="","",CLEN!O15) ->  | M93: =IF(CLEN!P15="","",CLEN!P15) ->  | N93: =IF(CLEN!Q15="","",CLEN!Q15) ->  | O93: =IF(CLEN!R15="","",CLEN!R15) ->  | P93: =IF(CLEN!S15="","",CLEN!S15) ->  | Q93: =IF(CLEN!T15="","",CLEN!T15) ->  | R93: =IF(CLEN!U15="","",CLEN!U15) ->  | S93: =IF(CLEN!V15="","",CLEN!V15) ->  | T93: =IF(CLEN!W15="","",CLEN!W15) ->  | U93: =IF(CLEN!X15="","",CLEN!X15) ->  | V93: =IF(CLEN!Y15="","",CLEN!Y15) ->  | W93: =IF(CLEN!Z15="","",CLEN!Z15) ->  | X93: =IF(CLEN!AA15="","",CLEN!AA15) ->  | Y93: =IF(CLEN!AB15="","",CLEN!AB15) ->  | Z93: =IF(CLEN!AC15="","",CLEN!AC15) ->  | AA93: =IF(CLEN!AD15="","",CLEN!AD15) ->  | AB93: =IF(CLEN!AE15="","",CLEN!AE15) ->  | AC93: =IF(CLEN!AF15="","",CLEN!AF15) ->  | AD93: =IF(CLEN!AG15="","",CLEN!AG15) ->  | AE93: =IF(CLEN!AH15="","",CLEN!AH15) ->  | AF93: =IF(CLEN!AI15="","",CLEN!AI15) ->  | AG93: =IF(CLEN!AJ15="","",CLEN!AJ15) ->  | AH93: =IF(CLEN!AK15="","",CLEN!AK15) ->  | AI93: =IF(CLEN!AL15="","",CLEN!AL15) ->  | AJ93: =IF(CLEN!AM15="","",CLEN!AM15) ->  | AK93: =IF(CLEN!AN15="","",CLEN!AN15) ->  | AL93: =IF(CLEN!AO15="","",CLEN!AO15) ->  | AM93: =IF(CLEN!AP15="","",CLEN!AP15) -> 
D94: Criterio Evaluación 6.2 | E94: =IF(CLEN!H16="","",CLEN!H16) ->  | F94: =IF(CLEN!I16="","",CLEN!I16) ->  | G94: =IF(CLEN!J16="","",CLEN!J16) ->  | H94: =IF(CLEN!K16="","",CLEN!K16) ->  | I94: =IF(CLEN!L16="","",CLEN!L16) ->  | J94: =IF(CLEN!M16="","",CLEN!M16) ->  | K94: =IF(CLEN!N16="","",CLEN!N16) ->  | L94: =IF(CLEN!O16="","",CLEN!O16) ->  | M94: =IF(CLEN!P16="","",CLEN!P16) ->  | N94: =IF(CLEN!Q16="","",CLEN!Q16) ->  | O94: =IF(CLEN!R16="","",CLEN!R16) ->  | P94: =IF(CLEN!S16="","",CLEN!S16) ->  | Q94: =IF(CLEN!T16="","",CLEN!T16) ->  | R94: =IF(CLEN!U16="","",CLEN!U16) ->  | S94: =IF(CLEN!V16="","",CLEN!V16) ->  | T94: =IF(CLEN!W16="","",CLEN!W16) ->  | U94: =IF(CLEN!X16="","",CLEN!X16) ->  | V94: =IF(CLEN!Y16="","",CLEN!Y16) ->  | W94: =IF(CLEN!Z16="","",CLEN!Z16) ->  | X94: =IF(CLEN!AA16="","",CLEN!AA16) ->  | Y94: =IF(CLEN!AB16="","",CLEN!AB16) ->  | Z94: =IF(CLEN!AC16="","",CLEN!AC16) ->  | AA94: =IF(CLEN!AD16="","",CLEN!AD16) ->  | AB94: =IF(CLEN!AE16="","",CLEN!AE16) ->  | AC94: =IF(CLEN!AF16="","",CLEN!AF16) ->  | AD94: =IF(CLEN!AG16="","",CLEN!AG16) ->  | AE94: =IF(CLEN!AH16="","",CLEN!AH16) ->  | AF94: =IF(CLEN!AI16="","",CLEN!AI16) ->  | AG94: =IF(CLEN!AJ16="","",CLEN!AJ16) ->  | AH94: =IF(CLEN!AK16="","",CLEN!AK16) ->  | AI94: =IF(CLEN!AL16="","",CLEN!AL16) ->  | AJ94: =IF(CLEN!AM16="","",CLEN!AM16) ->  | AK94: =IF(CLEN!AN16="","",CLEN!AN16) ->  | AL94: =IF(CLEN!AO16="","",CLEN!AO16) ->  | AM94: =IF(CLEN!AP16="","",CLEN!AP16) -> 
B95: Educación en Valores Cívicos y Éticos | C95: Comp. Esp. 1 | D95: Criterio Evaluación 1.1 | E95: =IF(EVCE!H4="","",EVCE!H4) ->  | F95: =IF(EVCE!I4="","",EVCE!I4) ->  | G95: =IF(EVCE!J4="","",EVCE!J4) ->  | H95: =IF(EVCE!K4="","",EVCE!K4) ->  | I95: =IF(EVCE!L4="","",EVCE!L4) ->  | J95: =IF(EVCE!M4="","",EVCE!M4) ->  | K95: =IF(EVCE!N4="","",EVCE!N4) ->  | L95: =IF(EVCE!O4="","",EVCE!O4) ->  | M95: =IF(EVCE!P4="","",EVCE!P4) ->  | N95: =IF(EVCE!Q4="","",EVCE!Q4) ->  | O95: =IF(EVCE!R4="","",EVCE!R4) ->  | P95: =IF(EVCE!S4="","",EVCE!S4) ->  | Q95: =IF(EVCE!T4="","",EVCE!T4) ->  | R95: =IF(EVCE!U4="","",EVCE!U4) ->  | S95: =IF(EVCE!V4="","",EVCE!V4) ->  | T95: =IF(EVCE!W4="","",EVCE!W4) ->  | U95: =IF(EVCE!X4="","",EVCE!X4) ->  | V95: =IF(EVCE!Y4="","",EVCE!Y4) ->  | W95: =IF(EVCE!Z4="","",EVCE!Z4) ->  | X95: =IF(EVCE!AA4="","",EVCE!AA4) ->  | Y95: =IF(EVCE!AB4="","",EVCE!AB4) ->  | Z95: =IF(EVCE!AC4="","",EVCE!AC4) ->  | AA95: =IF(EVCE!AD4="","",EVCE!AD4) ->  | AB95: =IF(EVCE!AE4="","",EVCE!AE4) ->  | AC95: =IF(EVCE!AF4="","",EVCE!AF4) ->  | AD95: =IF(EVCE!AG4="","",EVCE!AG4) ->  | AE95: =IF(EVCE!AH4="","",EVCE!AH4) ->  | AF95: =IF(EVCE!AI4="","",EVCE!AI4) ->  | AG95: =IF(EVCE!AJ4="","",EVCE!AJ4) ->  | AH95: =IF(EVCE!AK4="","",EVCE!AK4) ->  | AI95: =IF(EVCE!AL4="","",EVCE!AL4) ->  | AJ95: =IF(EVCE!AM4="","",EVCE!AM4) ->  | AK95: =IF(EVCE!AN4="","",EVCE!AN4) ->  | AL95: =IF(EVCE!AO4="","",EVCE!AO4) ->  | AM95: =IF(EVCE!AP4="","",EVCE!AP4) -> 
D96: Criterio Evaluación 1.2 | E96: =IF(EVCE!H5="","",EVCE!H5) ->  | F96: =IF(EVCE!I5="","",EVCE!I5) ->  | G96: =IF(EVCE!J5="","",EVCE!J5) ->  | H96: =IF(EVCE!K5="","",EVCE!K5) ->  | I96: =IF(EVCE!L5="","",EVCE!L5) ->  | J96: =IF(EVCE!M5="","",EVCE!M5) ->  | K96: =IF(EVCE!N5="","",EVCE!N5) ->  | L96: =IF(EVCE!O5="","",EVCE!O5) ->  | M96: =IF(EVCE!P5="","",EVCE!P5) ->  | N96: =IF(EVCE!Q5="","",EVCE!Q5) ->  | O96: =IF(EVCE!R5="","",EVCE!R5) ->  | P96: =IF(EVCE!S5="","",EVCE!S5) ->  | Q96: =IF(EVCE!T5="","",EVCE!T5) ->  | R96: =IF(EVCE!U5="","",EVCE!U5) ->  | S96: =IF(EVCE!V5="","",EVCE!V5) ->  | T96: =IF(EVCE!W5="","",EVCE!W5) ->  | U96: =IF(EVCE!X5="","",EVCE!X5) ->  | V96: =IF(EVCE!Y5="","",EVCE!Y5) ->  | W96: =IF(EVCE!Z5="","",EVCE!Z5) ->  | X96: =IF(EVCE!AA5="","",EVCE!AA5) ->  | Y96: =IF(EVCE!AB5="","",EVCE!AB5) ->  | Z96: =IF(EVCE!AC5="","",EVCE!AC5) ->  | AA96: =IF(EVCE!AD5="","",EVCE!AD5) ->  | AB96: =IF(EVCE!AE5="","",EVCE!AE5) ->  | AC96: =IF(EVCE!AF5="","",EVCE!AF5) ->  | AD96: =IF(EVCE!AG5="","",EVCE!AG5) ->  | AE96: =IF(EVCE!AH5="","",EVCE!AH5) ->  | AF96: =IF(EVCE!AI5="","",EVCE!AI5) ->  | AG96: =IF(EVCE!AJ5="","",EVCE!AJ5) ->  | AH96: =IF(EVCE!AK5="","",EVCE!AK5) ->  | AI96: =IF(EVCE!AL5="","",EVCE!AL5) ->  | AJ96: =IF(EVCE!AM5="","",EVCE!AM5) ->  | AK96: =IF(EVCE!AN5="","",EVCE!AN5) ->  | AL96: =IF(EVCE!AO5="","",EVCE!AO5) ->  | AM96: =IF(EVCE!AP5="","",EVCE!AP5) -> 
D97: Criterio Evaluación 1.3 | E97: =IF(EVCE!H6="","",EVCE!H6) ->  | F97: =IF(EVCE!I6="","",EVCE!I6) ->  | G97: =IF(EVCE!J6="","",EVCE!J6) ->  | H97: =IF(EVCE!K6="","",EVCE!K6) ->  | I97: =IF(EVCE!L6="","",EVCE!L6) ->  | J97: =IF(EVCE!M6="","",EVCE!M6) ->  | K97: =IF(EVCE!N6="","",EVCE!N6) ->  | L97: =IF(EVCE!O6="","",EVCE!O6) ->  | M97: =IF(EVCE!P6="","",EVCE!P6) ->  | N97: =IF(EVCE!Q6="","",EVCE!Q6) ->  | O97: =IF(EVCE!R6="","",EVCE!R6) ->  | P97: =IF(EVCE!S6="","",EVCE!S6) ->  | Q97: =IF(EVCE!T6="","",EVCE!T6) ->  | R97: =IF(EVCE!U6="","",EVCE!U6) ->  | S97: =IF(EVCE!V6="","",EVCE!V6) ->  | T97: =IF(EVCE!W6="","",EVCE!W6) ->  | U97: =IF(EVCE!X6="","",EVCE!X6) ->  | V97: =IF(EVCE!Y6="","",EVCE!Y6) ->  | W97: =IF(EVCE!Z6="","",EVCE!Z6) ->  | X97: =IF(EVCE!AA6="","",EVCE!AA6) ->  | Y97: =IF(EVCE!AB6="","",EVCE!AB6) ->  | Z97: =IF(EVCE!AC6="","",EVCE!AC6) ->  | AA97: =IF(EVCE!AD6="","",EVCE!AD6) ->  | AB97: =IF(EVCE!AE6="","",EVCE!AE6) ->  | AC97: =IF(EVCE!AF6="","",EVCE!AF6) ->  | AD97: =IF(EVCE!AG6="","",EVCE!AG6) ->  | AE97: =IF(EVCE!AH6="","",EVCE!AH6) ->  | AF97: =IF(EVCE!AI6="","",EVCE!AI6) ->  | AG97: =IF(EVCE!AJ6="","",EVCE!AJ6) ->  | AH97: =IF(EVCE!AK6="","",EVCE!AK6) ->  | AI97: =IF(EVCE!AL6="","",EVCE!AL6) ->  | AJ97: =IF(EVCE!AM6="","",EVCE!AM6) ->  | AK97: =IF(EVCE!AN6="","",EVCE!AN6) ->  | AL97: =IF(EVCE!AO6="","",EVCE!AO6) ->  | AM97: =IF(EVCE!AP6="","",EVCE!AP6) -> 
C98: Comp. Esp. 2 | D98: Criterio Evaluación 2.1 | E98: =IF(EVCE!H7="","",EVCE!H7) ->  | F98: =IF(EVCE!I7="","",EVCE!I7) ->  | G98: =IF(EVCE!J7="","",EVCE!J7) ->  | H98: =IF(EVCE!K7="","",EVCE!K7) ->  | I98: =IF(EVCE!L7="","",EVCE!L7) ->  | J98: =IF(EVCE!M7="","",EVCE!M7) ->  | K98: =IF(EVCE!N7="","",EVCE!N7) ->  | L98: =IF(EVCE!O7="","",EVCE!O7) ->  | M98: =IF(EVCE!P7="","",EVCE!P7) ->  | N98: =IF(EVCE!Q7="","",EVCE!Q7) ->  | O98: =IF(EVCE!R7="","",EVCE!R7) ->  | P98: =IF(EVCE!S7="","",EVCE!S7) ->  | Q98: =IF(EVCE!T7="","",EVCE!T7) ->  | R98: =IF(EVCE!U7="","",EVCE!U7) ->  | S98: =IF(EVCE!V7="","",EVCE!V7) ->  | T98: =IF(EVCE!W7="","",EVCE!W7) ->  | U98: =IF(EVCE!X7="","",EVCE!X7) ->  | V98: =IF(EVCE!Y7="","",EVCE!Y7) ->  | W98: =IF(EVCE!Z7="","",EVCE!Z7) ->  | X98: =IF(EVCE!AA7="","",EVCE!AA7) ->  | Y98: =IF(EVCE!AB7="","",EVCE!AB7) ->  | Z98: =IF(EVCE!AC7="","",EVCE!AC7) ->  | AA98: =IF(EVCE!AD7="","",EVCE!AD7) ->  | AB98: =IF(EVCE!AE7="","",EVCE!AE7) ->  | AC98: =IF(EVCE!AF7="","",EVCE!AF7) ->  | AD98: =IF(EVCE!AG7="","",EVCE!AG7) ->  | AE98: =IF(EVCE!AH7="","",EVCE!AH7) ->  | AF98: =IF(EVCE!AI7="","",EVCE!AI7) ->  | AG98: =IF(EVCE!AJ7="","",EVCE!AJ7) ->  | AH98: =IF(EVCE!AK7="","",EVCE!AK7) ->  | AI98: =IF(EVCE!AL7="","",EVCE!AL7) ->  | AJ98: =IF(EVCE!AM7="","",EVCE!AM7) ->  | AK98: =IF(EVCE!AN7="","",EVCE!AN7) ->  | AL98: =IF(EVCE!AO7="","",EVCE!AO7) ->  | AM98: =IF(EVCE!AP7="","",EVCE!AP7) -> 
D99: Criterio Evaluación 2.2 | E99: =IF(EVCE!H8="","",EVCE!H8) ->  | F99: =IF(EVCE!I8="","",EVCE!I8) ->  | G99: =IF(EVCE!J8="","",EVCE!J8) ->  | H99: =IF(EVCE!K8="","",EVCE!K8) ->  | I99: =IF(EVCE!L8="","",EVCE!L8) ->  | J99: =IF(EVCE!M8="","",EVCE!M8) ->  | K99: =IF(EVCE!N8="","",EVCE!N8) ->  | L99: =IF(EVCE!O8="","",EVCE!O8) ->  | M99: =IF(EVCE!P8="","",EVCE!P8) ->  | N99: =IF(EVCE!Q8="","",EVCE!Q8) ->  | O99: =IF(EVCE!R8="","",EVCE!R8) ->  | P99: =IF(EVCE!S8="","",EVCE!S8) ->  | Q99: =IF(EVCE!T8="","",EVCE!T8) ->  | R99: =IF(EVCE!U8="","",EVCE!U8) ->  | S99: =IF(EVCE!V8="","",EVCE!V8) ->  | T99: =IF(EVCE!W8="","",EVCE!W8) ->  | U99: =IF(EVCE!X8="","",EVCE!X8) ->  | V99: =IF(EVCE!Y8="","",EVCE!Y8) ->  | W99: =IF(EVCE!Z8="","",EVCE!Z8) ->  | X99: =IF(EVCE!AA8="","",EVCE!AA8) ->  | Y99: =IF(EVCE!AB8="","",EVCE!AB8) ->  | Z99: =IF(EVCE!AC8="","",EVCE!AC8) ->  | AA99: =IF(EVCE!AD8="","",EVCE!AD8) ->  | AB99: =IF(EVCE!AE8="","",EVCE!AE8) ->  | AC99: =IF(EVCE!AF8="","",EVCE!AF8) ->  | AD99: =IF(EVCE!AG8="","",EVCE!AG8) ->  | AE99: =IF(EVCE!AH8="","",EVCE!AH8) ->  | AF99: =IF(EVCE!AI8="","",EVCE!AI8) ->  | AG99: =IF(EVCE!AJ8="","",EVCE!AJ8) ->  | AH99: =IF(EVCE!AK8="","",EVCE!AK8) ->  | AI99: =IF(EVCE!AL8="","",EVCE!AL8) ->  | AJ99: =IF(EVCE!AM8="","",EVCE!AM8) ->  | AK99: =IF(EVCE!AN8="","",EVCE!AN8) ->  | AL99: =IF(EVCE!AO8="","",EVCE!AO8) ->  | AM99: =IF(EVCE!AP8="","",EVCE!AP8) -> 
D100: Criterio Evaluación 2.3 | E100: =IF(EVCE!H9="","",EVCE!H9) ->  | F100: =IF(EVCE!I9="","",EVCE!I9) ->  | G100: =IF(EVCE!J9="","",EVCE!J9) ->  | H100: =IF(EVCE!K9="","",EVCE!K9) ->  | I100: =IF(EVCE!L9="","",EVCE!L9) ->  | J100: =IF(EVCE!M9="","",EVCE!M9) ->  | K100: =IF(EVCE!N9="","",EVCE!N9) ->  | L100: =IF(EVCE!O9="","",EVCE!O9) ->  | M100: =IF(EVCE!P9="","",EVCE!P9) ->  | N100: =IF(EVCE!Q9="","",EVCE!Q9) ->  | O100: =IF(EVCE!R9="","",EVCE!R9) ->  | P100: =IF(EVCE!S9="","",EVCE!S9) ->  | Q100: =IF(EVCE!T9="","",EVCE!T9) ->  | R100: =IF(EVCE!U9="","",EVCE!U9) ->  | S100: =IF(EVCE!V9="","",EVCE!V9) ->  | T100: =IF(EVCE!W9="","",EVCE!W9) ->  | U100: =IF(EVCE!X9="","",EVCE!X9) ->  | V100: =IF(EVCE!Y9="","",EVCE!Y9) ->  | W100: =IF(EVCE!Z9="","",EVCE!Z9) ->  | X100: =IF(EVCE!AA9="","",EVCE!AA9) ->  | Y100: =IF(EVCE!AB9="","",EVCE!AB9) ->  | Z100: =IF(EVCE!AC9="","",EVCE!AC9) ->  | AA100: =IF(EVCE!AD9="","",EVCE!AD9) ->  | AB100: =IF(EVCE!AE9="","",EVCE!AE9) ->  | AC100: =IF(EVCE!AF9="","",EVCE!AF9) ->  | AD100: =IF(EVCE!AG9="","",EVCE!AG9) ->  | AE100: =IF(EVCE!AH9="","",EVCE!AH9) ->  | AF100: =IF(EVCE!AI9="","",EVCE!AI9) ->  | AG100: =IF(EVCE!AJ9="","",EVCE!AJ9) ->  | AH100: =IF(EVCE!AK9="","",EVCE!AK9) ->  | AI100: =IF(EVCE!AL9="","",EVCE!AL9) ->  | AJ100: =IF(EVCE!AM9="","",EVCE!AM9) ->  | AK100: =IF(EVCE!AN9="","",EVCE!AN9) ->  | AL100: =IF(EVCE!AO9="","",EVCE!AO9) ->  | AM100: =IF(EVCE!AP9="","",EVCE!AP9) -> 
D101: Criterio Evaluación 2.4 | E101: =IF(EVCE!H10="","",EVCE!H10) ->  | F101: =IF(EVCE!I10="","",EVCE!I10) ->  | G101: =IF(EVCE!J10="","",EVCE!J10) ->  | H101: =IF(EVCE!K10="","",EVCE!K10) ->  | I101: =IF(EVCE!L10="","",EVCE!L10) ->  | J101: =IF(EVCE!M10="","",EVCE!M10) ->  | K101: =IF(EVCE!N10="","",EVCE!N10) ->  | L101: =IF(EVCE!O10="","",EVCE!O10) ->  | M101: =IF(EVCE!P10="","",EVCE!P10) ->  | N101: =IF(EVCE!Q10="","",EVCE!Q10) ->  | O101: =IF(EVCE!R10="","",EVCE!R10) ->  | P101: =IF(EVCE!S10="","",EVCE!S10) ->  | Q101: =IF(EVCE!T10="","",EVCE!T10) ->  | R101: =IF(EVCE!U10="","",EVCE!U10) ->  | S101: =IF(EVCE!V10="","",EVCE!V10) ->  | T101: =IF(EVCE!W10="","",EVCE!W10) ->  | U101: =IF(EVCE!X10="","",EVCE!X10) ->  | V101: =IF(EVCE!Y10="","",EVCE!Y10) ->  | W101: =IF(EVCE!Z10="","",EVCE!Z10) ->  | X101: =IF(EVCE!AA10="","",EVCE!AA10) ->  | Y101: =IF(EVCE!AB10="","",EVCE!AB10) ->  | Z101: =IF(EVCE!AC10="","",EVCE!AC10) ->  | AA101: =IF(EVCE!AD10="","",EVCE!AD10) ->  | AB101: =IF(EVCE!AE10="","",EVCE!AE10) ->  | AC101: =IF(EVCE!AF10="","",EVCE!AF10) ->  | AD101: =IF(EVCE!AG10="","",EVCE!AG10) ->  | AE101: =IF(EVCE!AH10="","",EVCE!AH10) ->  | AF101: =IF(EVCE!AI10="","",EVCE!AI10) ->  | AG101: =IF(EVCE!AJ10="","",EVCE!AJ10) ->  | AH101: =IF(EVCE!AK10="","",EVCE!AK10) ->  | AI101: =IF(EVCE!AL10="","",EVCE!AL10) ->  | AJ101: =IF(EVCE!AM10="","",EVCE!AM10) ->  | AK101: =IF(EVCE!AN10="","",EVCE!AN10) ->  | AL101: =IF(EVCE!AO10="","",EVCE!AO10) ->  | AM101: =IF(EVCE!AP10="","",EVCE!AP10) -> 
D102: Criterio Evaluación 2.5 | E102: =IF(EVCE!H11="","",EVCE!H11) ->  | F102: =IF(EVCE!I11="","",EVCE!I11) ->  | G102: =IF(EVCE!J11="","",EVCE!J11) ->  | H102: =IF(EVCE!K11="","",EVCE!K11) ->  | I102: =IF(EVCE!L11="","",EVCE!L11) ->  | J102: =IF(EVCE!M11="","",EVCE!M11) ->  | K102: =IF(EVCE!N11="","",EVCE!N11) ->  | L102: =IF(EVCE!O11="","",EVCE!O11) ->  | M102: =IF(EVCE!P11="","",EVCE!P11) ->  | N102: =IF(EVCE!Q11="","",EVCE!Q11) ->  | O102: =IF(EVCE!R11="","",EVCE!R11) ->  | P102: =IF(EVCE!S11="","",EVCE!S11) ->  | Q102: =IF(EVCE!T11="","",EVCE!T11) ->  | R102: =IF(EVCE!U11="","",EVCE!U11) ->  | S102: =IF(EVCE!V11="","",EVCE!V11) ->  | T102: =IF(EVCE!W11="","",EVCE!W11) ->  | U102: =IF(EVCE!X11="","",EVCE!X11) ->  | V102: =IF(EVCE!Y11="","",EVCE!Y11) ->  | W102: =IF(EVCE!Z11="","",EVCE!Z11) ->  | X102: =IF(EVCE!AA11="","",EVCE!AA11) ->  | Y102: =IF(EVCE!AB11="","",EVCE!AB11) ->  | Z102: =IF(EVCE!AC11="","",EVCE!AC11) ->  | AA102: =IF(EVCE!AD11="","",EVCE!AD11) ->  | AB102: =IF(EVCE!AE11="","",EVCE!AE11) ->  | AC102: =IF(EVCE!AF11="","",EVCE!AF11) ->  | AD102: =IF(EVCE!AG11="","",EVCE!AG11) ->  | AE102: =IF(EVCE!AH11="","",EVCE!AH11) ->  | AF102: =IF(EVCE!AI11="","",EVCE!AI11) ->  | AG102: =IF(EVCE!AJ11="","",EVCE!AJ11) ->  | AH102: =IF(EVCE!AK11="","",EVCE!AK11) ->  | AI102: =IF(EVCE!AL11="","",EVCE!AL11) ->  | AJ102: =IF(EVCE!AM11="","",EVCE!AM11) ->  | AK102: =IF(EVCE!AN11="","",EVCE!AN11) ->  | AL102: =IF(EVCE!AO11="","",EVCE!AO11) ->  | AM102: =IF(EVCE!AP11="","",EVCE!AP11) -> 
D103: Criterio Evaluación 2.6 | E103: =IF(EVCE!H12="","",EVCE!H12) ->  | F103: =IF(EVCE!I12="","",EVCE!I12) ->  | G103: =IF(EVCE!J12="","",EVCE!J12) ->  | H103: =IF(EVCE!K12="","",EVCE!K12) ->  | I103: =IF(EVCE!L12="","",EVCE!L12) ->  | J103: =IF(EVCE!M12="","",EVCE!M12) ->  | K103: =IF(EVCE!N12="","",EVCE!N12) ->  | L103: =IF(EVCE!O12="","",EVCE!O12) ->  | M103: =IF(EVCE!P12="","",EVCE!P12) ->  | N103: =IF(EVCE!Q12="","",EVCE!Q12) ->  | O103: =IF(EVCE!R12="","",EVCE!R12) ->  | P103: =IF(EVCE!S12="","",EVCE!S12) ->  | Q103: =IF(EVCE!T12="","",EVCE!T12) ->  | R103: =IF(EVCE!U12="","",EVCE!U12) ->  | S103: =IF(EVCE!V12="","",EVCE!V12) ->  | T103: =IF(EVCE!W12="","",EVCE!W12) ->  | U103: =IF(EVCE!X12="","",EVCE!X12) ->  | V103: =IF(EVCE!Y12="","",EVCE!Y12) ->  | W103: =IF(EVCE!Z12="","",EVCE!Z12) ->  | X103: =IF(EVCE!AA12="","",EVCE!AA12) ->  | Y103: =IF(EVCE!AB12="","",EVCE!AB12) ->  | Z103: =IF(EVCE!AC12="","",EVCE!AC12) ->  | AA103: =IF(EVCE!AD12="","",EVCE!AD12) ->  | AB103: =IF(EVCE!AE12="","",EVCE!AE12) ->  | AC103: =IF(EVCE!AF12="","",EVCE!AF12) ->  | AD103: =IF(EVCE!AG12="","",EVCE!AG12) ->  | AE103: =IF(EVCE!AH12="","",EVCE!AH12) ->  | AF103: =IF(EVCE!AI12="","",EVCE!AI12) ->  | AG103: =IF(EVCE!AJ12="","",EVCE!AJ12) ->  | AH103: =IF(EVCE!AK12="","",EVCE!AK12) ->  | AI103: =IF(EVCE!AL12="","",EVCE!AL12) ->  | AJ103: =IF(EVCE!AM12="","",EVCE!AM12) ->  | AK103: =IF(EVCE!AN12="","",EVCE!AN12) ->  | AL103: =IF(EVCE!AO12="","",EVCE!AO12) ->  | AM103: =IF(EVCE!AP12="","",EVCE!AP12) -> 
C104: Comp. Esp. 3 | D104: Criterio Evaluación 3.1 | E104: =IF(EVCE!H13="","",EVCE!H13) ->  | F104: =IF(EVCE!I13="","",EVCE!I13) ->  | G104: =IF(EVCE!J13="","",EVCE!J13) ->  | H104: =IF(EVCE!K13="","",EVCE!K13) ->  | I104: =IF(EVCE!L13="","",EVCE!L13) ->  | J104: =IF(EVCE!M13="","",EVCE!M13) ->  | K104: =IF(EVCE!N13="","",EVCE!N13) ->  | L104: =IF(EVCE!O13="","",EVCE!O13) ->  | M104: =IF(EVCE!P13="","",EVCE!P13) ->  | N104: =IF(EVCE!Q13="","",EVCE!Q13) ->  | O104: =IF(EVCE!R13="","",EVCE!R13) ->  | P104: =IF(EVCE!S13="","",EVCE!S13) ->  | Q104: =IF(EVCE!T13="","",EVCE!T13) ->  | R104: =IF(EVCE!U13="","",EVCE!U13) ->  | S104: =IF(EVCE!V13="","",EVCE!V13) ->  | T104: =IF(EVCE!W13="","",EVCE!W13) ->  | U104: =IF(EVCE!X13="","",EVCE!X13) ->  | V104: =IF(EVCE!Y13="","",EVCE!Y13) ->  | W104: =IF(EVCE!Z13="","",EVCE!Z13) ->  | X104: =IF(EVCE!AA13="","",EVCE!AA13) ->  | Y104: =IF(EVCE!AB13="","",EVCE!AB13) ->  | Z104: =IF(EVCE!AC13="","",EVCE!AC13) ->  | AA104: =IF(EVCE!AD13="","",EVCE!AD13) ->  | AB104: =IF(EVCE!AE13="","",EVCE!AE13) ->  | AC104: =IF(EVCE!AF13="","",EVCE!AF13) ->  | AD104: =IF(EVCE!AG13="","",EVCE!AG13) ->  | AE104: =IF(EVCE!AH13="","",EVCE!AH13) ->  | AF104: =IF(EVCE!AI13="","",EVCE!AI13) ->  | AG104: =IF(EVCE!AJ13="","",EVCE!AJ13) ->  | AH104: =IF(EVCE!AK13="","",EVCE!AK13) ->  | AI104: =IF(EVCE!AL13="","",EVCE!AL13) ->  | AJ104: =IF(EVCE!AM13="","",EVCE!AM13) ->  | AK104: =IF(EVCE!AN13="","",EVCE!AN13) ->  | AL104: =IF(EVCE!AO13="","",EVCE!AO13) ->  | AM104: =IF(EVCE!AP13="","",EVCE!AP13) -> 
D105: Criterio Evaluación 3.2 | E105: =IF(EVCE!H14="","",EVCE!H14) ->  | F105: =IF(EVCE!I14="","",EVCE!I14) ->  | G105: =IF(EVCE!J14="","",EVCE!J14) ->  | H105: =IF(EVCE!K14="","",EVCE!K14) ->  | I105: =IF(EVCE!L14="","",EVCE!L14) ->  | J105: =IF(EVCE!M14="","",EVCE!M14) ->  | K105: =IF(EVCE!N14="","",EVCE!N14) ->  | L105: =IF(EVCE!O14="","",EVCE!O14) ->  | M105: =IF(EVCE!P14="","",EVCE!P14) ->  | N105: =IF(EVCE!Q14="","",EVCE!Q14) ->  | O105: =IF(EVCE!R14="","",EVCE!R14) ->  | P105: =IF(EVCE!S14="","",EVCE!S14) ->  | Q105: =IF(EVCE!T14="","",EVCE!T14) ->  | R105: =IF(EVCE!U14="","",EVCE!U14) ->  | S105: =IF(EVCE!V14="","",EVCE!V14) ->  | T105: =IF(EVCE!W14="","",EVCE!W14) ->  | U105: =IF(EVCE!X14="","",EVCE!X14) ->  | V105: =IF(EVCE!Y14="","",EVCE!Y14) ->  | W105: =IF(EVCE!Z14="","",EVCE!Z14) ->  | X105: =IF(EVCE!AA14="","",EVCE!AA14) ->  | Y105: =IF(EVCE!AB14="","",EVCE!AB14) ->  | Z105: =IF(EVCE!AC14="","",EVCE!AC14) ->  | AA105: =IF(EVCE!AD14="","",EVCE!AD14) ->  | AB105: =IF(EVCE!AE14="","",EVCE!AE14) ->  | AC105: =IF(EVCE!AF14="","",EVCE!AF14) ->  | AD105: =IF(EVCE!AG14="","",EVCE!AG14) ->  | AE105: =IF(EVCE!AH14="","",EVCE!AH14) ->  | AF105: =IF(EVCE!AI14="","",EVCE!AI14) ->  | AG105: =IF(EVCE!AJ14="","",EVCE!AJ14) ->  | AH105: =IF(EVCE!AK14="","",EVCE!AK14) ->  | AI105: =IF(EVCE!AL14="","",EVCE!AL14) ->  | AJ105: =IF(EVCE!AM14="","",EVCE!AM14) ->  | AK105: =IF(EVCE!AN14="","",EVCE!AN14) ->  | AL105: =IF(EVCE!AO14="","",EVCE!AO14) ->  | AM105: =IF(EVCE!AP14="","",EVCE!AP14) -> 
D106: Criterio Evaluación 3.3 | E106: =IF(EVCE!H15="","",EVCE!H15) ->  | F106: =IF(EVCE!I15="","",EVCE!I15) ->  | G106: =IF(EVCE!J15="","",EVCE!J15) ->  | H106: =IF(EVCE!K15="","",EVCE!K15) ->  | I106: =IF(EVCE!L15="","",EVCE!L15) ->  | J106: =IF(EVCE!M15="","",EVCE!M15) ->  | K106: =IF(EVCE!N15="","",EVCE!N15) ->  | L106: =IF(EVCE!O15="","",EVCE!O15) ->  | M106: =IF(EVCE!P15="","",EVCE!P15) ->  | N106: =IF(EVCE!Q15="","",EVCE!Q15) ->  | O106: =IF(EVCE!R15="","",EVCE!R15) ->  | P106: =IF(EVCE!S15="","",EVCE!S15) ->  | Q106: =IF(EVCE!T15="","",EVCE!T15) ->  | R106: =IF(EVCE!U15="","",EVCE!U15) ->  | S106: =IF(EVCE!V15="","",EVCE!V15) ->  | T106: =IF(EVCE!W15="","",EVCE!W15) ->  | U106: =IF(EVCE!X15="","",EVCE!X15) ->  | V106: =IF(EVCE!Y15="","",EVCE!Y15) ->  | W106: =IF(EVCE!Z15="","",EVCE!Z15) ->  | X106: =IF(EVCE!AA15="","",EVCE!AA15) ->  | Y106: =IF(EVCE!AB15="","",EVCE!AB15) ->  | Z106: =IF(EVCE!AC15="","",EVCE!AC15) ->  | AA106: =IF(EVCE!AD15="","",EVCE!AD15) ->  | AB106: =IF(EVCE!AE15="","",EVCE!AE15) ->  | AC106: =IF(EVCE!AF15="","",EVCE!AF15) ->  | AD106: =IF(EVCE!AG15="","",EVCE!AG15) ->  | AE106: =IF(EVCE!AH15="","",EVCE!AH15) ->  | AF106: =IF(EVCE!AI15="","",EVCE!AI15) ->  | AG106: =IF(EVCE!AJ15="","",EVCE!AJ15) ->  | AH106: =IF(EVCE!AK15="","",EVCE!AK15) ->  | AI106: =IF(EVCE!AL15="","",EVCE!AL15) ->  | AJ106: =IF(EVCE!AM15="","",EVCE!AM15) ->  | AK106: =IF(EVCE!AN15="","",EVCE!AN15) ->  | AL106: =IF(EVCE!AO15="","",EVCE!AO15) ->  | AM106: =IF(EVCE!AP15="","",EVCE!AP15) -> 
C107: Comp. Esp. 4 | D107: Criterio Evaluación 4.1 | E107: =IF(EVCE!H16="","",EVCE!H16) ->  | F107: =IF(EVCE!I16="","",EVCE!I16) ->  | G107: =IF(EVCE!J16="","",EVCE!J16) ->  | H107: =IF(EVCE!K16="","",EVCE!K16) ->  | I107: =IF(EVCE!L16="","",EVCE!L16) ->  | J107: =IF(EVCE!M16="","",EVCE!M16) ->  | K107: =IF(EVCE!N16="","",EVCE!N16) ->  | L107: =IF(EVCE!O16="","",EVCE!O16) ->  | M107: =IF(EVCE!P16="","",EVCE!P16) ->  | N107: =IF(EVCE!Q16="","",EVCE!Q16) ->  | O107: =IF(EVCE!R16="","",EVCE!R16) ->  | P107: =IF(EVCE!S16="","",EVCE!S16) ->  | Q107: =IF(EVCE!T16="","",EVCE!T16) ->  | R107: =IF(EVCE!U16="","",EVCE!U16) ->  | S107: =IF(EVCE!V16="","",EVCE!V16) ->  | T107: =IF(EVCE!W16="","",EVCE!W16) ->  | U107: =IF(EVCE!X16="","",EVCE!X16) ->  | V107: =IF(EVCE!Y16="","",EVCE!Y16) ->  | W107: =IF(EVCE!Z16="","",EVCE!Z16) ->  | X107: =IF(EVCE!AA16="","",EVCE!AA16) ->  | Y107: =IF(EVCE!AB16="","",EVCE!AB16) ->  | Z107: =IF(EVCE!AC16="","",EVCE!AC16) ->  | AA107: =IF(EVCE!AD16="","",EVCE!AD16) ->  | AB107: =IF(EVCE!AE16="","",EVCE!AE16) ->  | AC107: =IF(EVCE!AF16="","",EVCE!AF16) ->  | AD107: =IF(EVCE!AG16="","",EVCE!AG16) ->  | AE107: =IF(EVCE!AH16="","",EVCE!AH16) ->  | AF107: =IF(EVCE!AI16="","",EVCE!AI16) ->  | AG107: =IF(EVCE!AJ16="","",EVCE!AJ16) ->  | AH107: =IF(EVCE!AK16="","",EVCE!AK16) ->  | AI107: =IF(EVCE!AL16="","",EVCE!AL16) ->  | AJ107: =IF(EVCE!AM16="","",EVCE!AM16) ->  | AK107: =IF(EVCE!AN16="","",EVCE!AN16) ->  | AL107: =IF(EVCE!AO16="","",EVCE!AO16) ->  | AM107: =IF(EVCE!AP16="","",EVCE!AP16) -> 
C108: Comp. Esp. 5 | D108: Criterio Evaluación 5.1 | E108: =IF(EVCE!H17="","",EVCE!H17) ->  | F108: =IF(EVCE!I17="","",EVCE!I17) ->  | G108: =IF(EVCE!J17="","",EVCE!J17) ->  | H108: =IF(EVCE!K17="","",EVCE!K17) ->  | I108: =IF(EVCE!L17="","",EVCE!L17) ->  | J108: =IF(EVCE!M17="","",EVCE!M17) ->  | K108: =IF(EVCE!N17="","",EVCE!N17) ->  | L108: =IF(EVCE!O17="","",EVCE!O17) ->  | M108: =IF(EVCE!P17="","",EVCE!P17) ->  | N108: =IF(EVCE!Q17="","",EVCE!Q17) ->  | O108: =IF(EVCE!R17="","",EVCE!R17) ->  | P108: =IF(EVCE!S17="","",EVCE!S17) ->  | Q108: =IF(EVCE!T17="","",EVCE!T17) ->  | R108: =IF(EVCE!U17="","",EVCE!U17) ->  | S108: =IF(EVCE!V17="","",EVCE!V17) ->  | T108: =IF(EVCE!W17="","",EVCE!W17) ->  | U108: =IF(EVCE!X17="","",EVCE!X17) ->  | V108: =IF(EVCE!Y17="","",EVCE!Y17) ->  | W108: =IF(EVCE!Z17="","",EVCE!Z17) ->  | X108: =IF(EVCE!AA17="","",EVCE!AA17) ->  | Y108: =IF(EVCE!AB17="","",EVCE!AB17) ->  | Z108: =IF(EVCE!AC17="","",EVCE!AC17) ->  | AA108: =IF(EVCE!AD17="","",EVCE!AD17) ->  | AB108: =IF(EVCE!AE17="","",EVCE!AE17) ->  | AC108: =IF(EVCE!AF17="","",EVCE!AF17) ->  | AD108: =IF(EVCE!AG17="","",EVCE!AG17) ->  | AE108: =IF(EVCE!AH17="","",EVCE!AH17) ->  | AF108: =IF(EVCE!AI17="","",EVCE!AI17) ->  | AG108: =IF(EVCE!AJ17="","",EVCE!AJ17) ->  | AH108: =IF(EVCE!AK17="","",EVCE!AK17) ->  | AI108: =IF(EVCE!AL17="","",EVCE!AL17) ->  | AJ108: =IF(EVCE!AM17="","",EVCE!AM17) ->  | AK108: =IF(EVCE!AN17="","",EVCE!AN17) ->  | AL108: =IF(EVCE!AO17="","",EVCE!AO17) ->  | AM108: =IF(EVCE!AP17="","",EVCE!AP17) -> 
B109: Educación Física | C109: Comp. Esp. 1 | D109: Criterio Evaluación 1.1 | E109: =IF(EF!H4="","",EF!H4) ->  | F109: =IF(EF!I4="","",EF!I4) ->  | G109: =IF(EF!J4="","",EF!J4) ->  | H109: =IF(EF!K4="","",EF!K4) ->  | I109: =IF(EF!L4="","",EF!L4) ->  | J109: =IF(EF!M4="","",EF!M4) ->  | K109: =IF(EF!N4="","",EF!N4) ->  | L109: =IF(EF!O4="","",EF!O4) ->  | M109: =IF(EF!P4="","",EF!P4) ->  | N109: =IF(EF!Q4="","",EF!Q4) ->  | O109: =IF(EF!R4="","",EF!R4) ->  | P109: =IF(EF!S4="","",EF!S4) ->  | Q109: =IF(EF!T4="","",EF!T4) ->  | R109: =IF(EF!U4="","",EF!U4) ->  | S109: =IF(EF!V4="","",EF!V4) ->  | T109: =IF(EF!W4="","",EF!W4) ->  | U109: =IF(EF!X4="","",EF!X4) ->  | V109: =IF(EF!Y4="","",EF!Y4) ->  | W109: =IF(EF!Z4="","",EF!Z4) ->  | X109: =IF(EF!AA4="","",EF!AA4) ->  | Y109: =IF(EF!AB4="","",EF!AB4) ->  | Z109: =IF(EF!AC4="","",EF!AC4) ->  | AA109: =IF(EF!AD4="","",EF!AD4) ->  | AB109: =IF(EF!AE4="","",EF!AE4) ->  | AC109: =IF(EF!AF4="","",EF!AF4) ->  | AD109: =IF(EF!AG4="","",EF!AG4) ->  | AE109: =IF(EF!AH4="","",EF!AH4) ->  | AF109: =IF(EF!AI4="","",EF!AI4) ->  | AG109: =IF(EF!AJ4="","",EF!AJ4) ->  | AH109: =IF(EF!AK4="","",EF!AK4) ->  | AI109: =IF(EF!AL4="","",EF!AL4) ->  | AJ109: =IF(EF!AM4="","",EF!AM4) ->  | AK109: =IF(EF!AN4="","",EF!AN4) ->  | AL109: =IF(EF!AO4="","",EF!AO4) ->  | AM109: =IF(EF!AP4="","",EF!AP4) -> 
D110: Criterio Evaluación 1.2 | E110: =IF(EF!H5="","",EF!H5) ->  | F110: =IF(EF!I5="","",EF!I5) ->  | G110: =IF(EF!J5="","",EF!J5) ->  | H110: =IF(EF!K5="","",EF!K5) ->  | I110: =IF(EF!L5="","",EF!L5) ->  | J110: =IF(EF!M5="","",EF!M5) ->  | K110: =IF(EF!N5="","",EF!N5) ->  | L110: =IF(EF!O5="","",EF!O5) ->  | M110: =IF(EF!P5="","",EF!P5) ->  | N110: =IF(EF!Q5="","",EF!Q5) ->  | O110: =IF(EF!R5="","",EF!R5) ->  | P110: =IF(EF!S5="","",EF!S5) ->  | Q110: =IF(EF!T5="","",EF!T5) ->  | R110: =IF(EF!U5="","",EF!U5) ->  | S110: =IF(EF!V5="","",EF!V5) ->  | T110: =IF(EF!W5="","",EF!W5) ->  | U110: =IF(EF!X5="","",EF!X5) ->  | V110: =IF(EF!Y5="","",EF!Y5) ->  | W110: =IF(EF!Z5="","",EF!Z5) ->  | X110: =IF(EF!AA5="","",EF!AA5) ->  | Y110: =IF(EF!AB5="","",EF!AB5) ->  | Z110: =IF(EF!AC5="","",EF!AC5) ->  | AA110: =IF(EF!AD5="","",EF!AD5) ->  | AB110: =IF(EF!AE5="","",EF!AE5) ->  | AC110: =IF(EF!AF5="","",EF!AF5) ->  | AD110: =IF(EF!AG5="","",EF!AG5) ->  | AE110: =IF(EF!AH5="","",EF!AH5) ->  | AF110: =IF(EF!AI5="","",EF!AI5) ->  | AG110: =IF(EF!AJ5="","",EF!AJ5) ->  | AH110: =IF(EF!AK5="","",EF!AK5) ->  | AI110: =IF(EF!AL5="","",EF!AL5) ->  | AJ110: =IF(EF!AM5="","",EF!AM5) ->  | AK110: =IF(EF!AN5="","",EF!AN5) ->  | AL110: =IF(EF!AO5="","",EF!AO5) ->  | AM110: =IF(EF!AP5="","",EF!AP5) -> 
D111: Criterio Evaluación 1.3 | E111: =IF(EF!H6="","",EF!H6) ->  | F111: =IF(EF!I6="","",EF!I6) ->  | G111: =IF(EF!J6="","",EF!J6) ->  | H111: =IF(EF!K6="","",EF!K6) ->  | I111: =IF(EF!L6="","",EF!L6) ->  | J111: =IF(EF!M6="","",EF!M6) ->  | K111: =IF(EF!N6="","",EF!N6) ->  | L111: =IF(EF!O6="","",EF!O6) ->  | M111: =IF(EF!P6="","",EF!P6) ->  | N111: =IF(EF!Q6="","",EF!Q6) ->  | O111: =IF(EF!R6="","",EF!R6) ->  | P111: =IF(EF!S6="","",EF!S6) ->  | Q111: =IF(EF!T6="","",EF!T6) ->  | R111: =IF(EF!U6="","",EF!U6) ->  | S111: =IF(EF!V6="","",EF!V6) ->  | T111: =IF(EF!W6="","",EF!W6) ->  | U111: =IF(EF!X6="","",EF!X6) ->  | V111: =IF(EF!Y6="","",EF!Y6) ->  | W111: =IF(EF!Z6="","",EF!Z6) ->  | X111: =IF(EF!AA6="","",EF!AA6) ->  | Y111: =IF(EF!AB6="","",EF!AB6) ->  | Z111: =IF(EF!AC6="","",EF!AC6) ->  | AA111: =IF(EF!AD6="","",EF!AD6) ->  | AB111: =IF(EF!AE6="","",EF!AE6) ->  | AC111: =IF(EF!AF6="","",EF!AF6) ->  | AD111: =IF(EF!AG6="","",EF!AG6) ->  | AE111: =IF(EF!AH6="","",EF!AH6) ->  | AF111: =IF(EF!AI6="","",EF!AI6) ->  | AG111: =IF(EF!AJ6="","",EF!AJ6) ->  | AH111: =IF(EF!AK6="","",EF!AK6) ->  | AI111: =IF(EF!AL6="","",EF!AL6) ->  | AJ111: =IF(EF!AM6="","",EF!AM6) ->  | AK111: =IF(EF!AN6="","",EF!AN6) ->  | AL111: =IF(EF!AO6="","",EF!AO6) ->  | AM111: =IF(EF!AP6="","",EF!AP6) -> 
D112: Criterio Evaluación 1.4 | E112: =IF(EF!H7="","",EF!H7) ->  | F112: =IF(EF!I7="","",EF!I7) ->  | G112: =IF(EF!J7="","",EF!J7) ->  | H112: =IF(EF!K7="","",EF!K7) ->  | I112: =IF(EF!L7="","",EF!L7) ->  | J112: =IF(EF!M7="","",EF!M7) ->  | K112: =IF(EF!N7="","",EF!N7) ->  | L112: =IF(EF!O7="","",EF!O7) ->  | M112: =IF(EF!P7="","",EF!P7) ->  | N112: =IF(EF!Q7="","",EF!Q7) ->  | O112: =IF(EF!R7="","",EF!R7) ->  | P112: =IF(EF!S7="","",EF!S7) ->  | Q112: =IF(EF!T7="","",EF!T7) ->  | R112: =IF(EF!U7="","",EF!U7) ->  | S112: =IF(EF!V7="","",EF!V7) ->  | T112: =IF(EF!W7="","",EF!W7) ->  | U112: =IF(EF!X7="","",EF!X7) ->  | V112: =IF(EF!Y7="","",EF!Y7) ->  | W112: =IF(EF!Z7="","",EF!Z7) ->  | X112: =IF(EF!AA7="","",EF!AA7) ->  | Y112: =IF(EF!AB7="","",EF!AB7) ->  | Z112: =IF(EF!AC7="","",EF!AC7) ->  | AA112: =IF(EF!AD7="","",EF!AD7) ->  | AB112: =IF(EF!AE7="","",EF!AE7) ->  | AC112: =IF(EF!AF7="","",EF!AF7) ->  | AD112: =IF(EF!AG7="","",EF!AG7) ->  | AE112: =IF(EF!AH7="","",EF!AH7) ->  | AF112: =IF(EF!AI7="","",EF!AI7) ->  | AG112: =IF(EF!AJ7="","",EF!AJ7) ->  | AH112: =IF(EF!AK7="","",EF!AK7) ->  | AI112: =IF(EF!AL7="","",EF!AL7) ->  | AJ112: =IF(EF!AM7="","",EF!AM7) ->  | AK112: =IF(EF!AN7="","",EF!AN7) ->  | AL112: =IF(EF!AO7="","",EF!AO7) ->  | AM112: =IF(EF!AP7="","",EF!AP7) -> 
D113: Criterio Evaluación 1.5 | E113: =IF(EF!H8="","",EF!H8) ->  | F113: =IF(EF!I8="","",EF!I8) ->  | G113: =IF(EF!J8="","",EF!J8) ->  | H113: =IF(EF!K8="","",EF!K8) ->  | I113: =IF(EF!L8="","",EF!L8) ->  | J113: =IF(EF!M8="","",EF!M8) ->  | K113: =IF(EF!N8="","",EF!N8) ->  | L113: =IF(EF!O8="","",EF!O8) ->  | M113: =IF(EF!P8="","",EF!P8) ->  | N113: =IF(EF!Q8="","",EF!Q8) ->  | O113: =IF(EF!R8="","",EF!R8) ->  | P113: =IF(EF!S8="","",EF!S8) ->  | Q113: =IF(EF!T8="","",EF!T8) ->  | R113: =IF(EF!U8="","",EF!U8) ->  | S113: =IF(EF!V8="","",EF!V8) ->  | T113: =IF(EF!W8="","",EF!W8) ->  | U113: =IF(EF!X8="","",EF!X8) ->  | V113: =IF(EF!Y8="","",EF!Y8) ->  | W113: =IF(EF!Z8="","",EF!Z8) ->  | X113: =IF(EF!AA8="","",EF!AA8) ->  | Y113: =IF(EF!AB8="","",EF!AB8) ->  | Z113: =IF(EF!AC8="","",EF!AC8) ->  | AA113: =IF(EF!AD8="","",EF!AD8) ->  | AB113: =IF(EF!AE8="","",EF!AE8) ->  | AC113: =IF(EF!AF8="","",EF!AF8) ->  | AD113: =IF(EF!AG8="","",EF!AG8) ->  | AE113: =IF(EF!AH8="","",EF!AH8) ->  | AF113: =IF(EF!AI8="","",EF!AI8) ->  | AG113: =IF(EF!AJ8="","",EF!AJ8) ->  | AH113: =IF(EF!AK8="","",EF!AK8) ->  | AI113: =IF(EF!AL8="","",EF!AL8) ->  | AJ113: =IF(EF!AM8="","",EF!AM8) ->  | AK113: =IF(EF!AN8="","",EF!AN8) ->  | AL113: =IF(EF!AO8="","",EF!AO8) ->  | AM113: =IF(EF!AP8="","",EF!AP8) -> 
D114: Criterio Evaluación 1.6 | E114: =IF(EF!H9="","",EF!H9) ->  | F114: =IF(EF!I9="","",EF!I9) ->  | G114: =IF(EF!J9="","",EF!J9) ->  | H114: =IF(EF!K9="","",EF!K9) ->  | I114: =IF(EF!L9="","",EF!L9) ->  | J114: =IF(EF!M9="","",EF!M9) ->  | K114: =IF(EF!N9="","",EF!N9) ->  | L114: =IF(EF!O9="","",EF!O9) ->  | M114: =IF(EF!P9="","",EF!P9) ->  | N114: =IF(EF!Q9="","",EF!Q9) ->  | O114: =IF(EF!R9="","",EF!R9) ->  | P114: =IF(EF!S9="","",EF!S9) ->  | Q114: =IF(EF!T9="","",EF!T9) ->  | R114: =IF(EF!U9="","",EF!U9) ->  | S114: =IF(EF!V9="","",EF!V9) ->  | T114: =IF(EF!W9="","",EF!W9) ->  | U114: =IF(EF!X9="","",EF!X9) ->  | V114: =IF(EF!Y9="","",EF!Y9) ->  | W114: =IF(EF!Z9="","",EF!Z9) ->  | X114: =IF(EF!AA9="","",EF!AA9) ->  | Y114: =IF(EF!AB9="","",EF!AB9) ->  | Z114: =IF(EF!AC9="","",EF!AC9) ->  | AA114: =IF(EF!AD9="","",EF!AD9) ->  | AB114: =IF(EF!AE9="","",EF!AE9) ->  | AC114: =IF(EF!AF9="","",EF!AF9) ->  | AD114: =IF(EF!AG9="","",EF!AG9) ->  | AE114: =IF(EF!AH9="","",EF!AH9) ->  | AF114: =IF(EF!AI9="","",EF!AI9) ->  | AG114: =IF(EF!AJ9="","",EF!AJ9) ->  | AH114: =IF(EF!AK9="","",EF!AK9) ->  | AI114: =IF(EF!AL9="","",EF!AL9) ->  | AJ114: =IF(EF!AM9="","",EF!AM9) ->  | AK114: =IF(EF!AN9="","",EF!AN9) ->  | AL114: =IF(EF!AO9="","",EF!AO9) ->  | AM114: =IF(EF!AP9="","",EF!AP9) -> 
D115: Criterio Evaluación 1.7 | E115: =IF(EF!H10="","",EF!H10) ->  | F115: =IF(EF!I10="","",EF!I10) ->  | G115: =IF(EF!J10="","",EF!J10) ->  | H115: =IF(EF!K10="","",EF!K10) ->  | I115: =IF(EF!L10="","",EF!L10) ->  | J115: =IF(EF!M10="","",EF!M10) ->  | K115: =IF(EF!N10="","",EF!N10) ->  | L115: =IF(EF!O10="","",EF!O10) ->  | M115: =IF(EF!P10="","",EF!P10) ->  | N115: =IF(EF!Q10="","",EF!Q10) ->  | O115: =IF(EF!R10="","",EF!R10) ->  | P115: =IF(EF!S10="","",EF!S10) ->  | Q115: =IF(EF!T10="","",EF!T10) ->  | R115: =IF(EF!U10="","",EF!U10) ->  | S115: =IF(EF!V10="","",EF!V10) ->  | T115: =IF(EF!W10="","",EF!W10) ->  | U115: =IF(EF!X10="","",EF!X10) ->  | V115: =IF(EF!Y10="","",EF!Y10) ->  | W115: =IF(EF!Z10="","",EF!Z10) ->  | X115: =IF(EF!AA10="","",EF!AA10) ->  | Y115: =IF(EF!AB10="","",EF!AB10) ->  | Z115: =IF(EF!AC10="","",EF!AC10) ->  | AA115: =IF(EF!AD10="","",EF!AD10) ->  | AB115: =IF(EF!AE10="","",EF!AE10) ->  | AC115: =IF(EF!AF10="","",EF!AF10) ->  | AD115: =IF(EF!AG10="","",EF!AG10) ->  | AE115: =IF(EF!AH10="","",EF!AH10) ->  | AF115: =IF(EF!AI10="","",EF!AI10) ->  | AG115: =IF(EF!AJ10="","",EF!AJ10) ->  | AH115: =IF(EF!AK10="","",EF!AK10) ->  | AI115: =IF(EF!AL10="","",EF!AL10) ->  | AJ115: =IF(EF!AM10="","",EF!AM10) ->  | AK115: =IF(EF!AN10="","",EF!AN10) ->  | AL115: =IF(EF!AO10="","",EF!AO10) ->  | AM115: =IF(EF!AP10="","",EF!AP10) -> 
D116: Criterio Evaluación 1.8 | E116: =IF(EF!H11="","",EF!H11) ->  | F116: =IF(EF!I11="","",EF!I11) ->  | G116: =IF(EF!J11="","",EF!J11) ->  | H116: =IF(EF!K11="","",EF!K11) ->  | I116: =IF(EF!L11="","",EF!L11) ->  | J116: =IF(EF!M11="","",EF!M11) ->  | K116: =IF(EF!N11="","",EF!N11) ->  | L116: =IF(EF!O11="","",EF!O11) ->  | M116: =IF(EF!P11="","",EF!P11) ->  | N116: =IF(EF!Q11="","",EF!Q11) ->  | O116: =IF(EF!R11="","",EF!R11) ->  | P116: =IF(EF!S11="","",EF!S11) ->  | Q116: =IF(EF!T11="","",EF!T11) ->  | R116: =IF(EF!U11="","",EF!U11) ->  | S116: =IF(EF!V11="","",EF!V11) ->  | T116: =IF(EF!W11="","",EF!W11) ->  | U116: =IF(EF!X11="","",EF!X11) ->  | V116: =IF(EF!Y11="","",EF!Y11) ->  | W116: =IF(EF!Z11="","",EF!Z11) ->  | X116: =IF(EF!AA11="","",EF!AA11) ->  | Y116: =IF(EF!AB11="","",EF!AB11) ->  | Z116: =IF(EF!AC11="","",EF!AC11) ->  | AA116: =IF(EF!AD11="","",EF!AD11) ->  | AB116: =IF(EF!AE11="","",EF!AE11) ->  | AC116: =IF(EF!AF11="","",EF!AF11) ->  | AD116: =IF(EF!AG11="","",EF!AG11) ->  | AE116: =IF(EF!AH11="","",EF!AH11) ->  | AF116: =IF(EF!AI11="","",EF!AI11) ->  | AG116: =IF(EF!AJ11="","",EF!AJ11) ->  | AH116: =IF(EF!AK11="","",EF!AK11) ->  | AI116: =IF(EF!AL11="","",EF!AL11) ->  | AJ116: =IF(EF!AM11="","",EF!AM11) ->  | AK116: =IF(EF!AN11="","",EF!AN11) ->  | AL116: =IF(EF!AO11="","",EF!AO11) ->  | AM116: =IF(EF!AP11="","",EF!AP11) -> 
D117: Criterio Evaluación 1.9 | E117: =IF(EF!H12="","",EF!H12) ->  | F117: =IF(EF!I12="","",EF!I12) ->  | G117: =IF(EF!J12="","",EF!J12) ->  | H117: =IF(EF!K12="","",EF!K12) ->  | I117: =IF(EF!L12="","",EF!L12) ->  | J117: =IF(EF!M12="","",EF!M12) ->  | K117: =IF(EF!N12="","",EF!N12) ->  | L117: =IF(EF!O12="","",EF!O12) ->  | M117: =IF(EF!P12="","",EF!P12) ->  | N117: =IF(EF!Q12="","",EF!Q12) ->  | O117: =IF(EF!R12="","",EF!R12) ->  | P117: =IF(EF!S12="","",EF!S12) ->  | Q117: =IF(EF!T12="","",EF!T12) ->  | R117: =IF(EF!U12="","",EF!U12) ->  | S117: =IF(EF!V12="","",EF!V12) ->  | T117: =IF(EF!W12="","",EF!W12) ->  | U117: =IF(EF!X12="","",EF!X12) ->  | V117: =IF(EF!Y12="","",EF!Y12) ->  | W117: =IF(EF!Z12="","",EF!Z12) ->  | X117: =IF(EF!AA12="","",EF!AA12) ->  | Y117: =IF(EF!AB12="","",EF!AB12) ->  | Z117: =IF(EF!AC12="","",EF!AC12) ->  | AA117: =IF(EF!AD12="","",EF!AD12) ->  | AB117: =IF(EF!AE12="","",EF!AE12) ->  | AC117: =IF(EF!AF12="","",EF!AF12) ->  | AD117: =IF(EF!AG12="","",EF!AG12) ->  | AE117: =IF(EF!AH12="","",EF!AH12) ->  | AF117: =IF(EF!AI12="","",EF!AI12) ->  | AG117: =IF(EF!AJ12="","",EF!AJ12) ->  | AH117: =IF(EF!AK12="","",EF!AK12) ->  | AI117: =IF(EF!AL12="","",EF!AL12) ->  | AJ117: =IF(EF!AM12="","",EF!AM12) ->  | AK117: =IF(EF!AN12="","",EF!AN12) ->  | AL117: =IF(EF!AO12="","",EF!AO12) ->  | AM117: =IF(EF!AP12="","",EF!AP12) -> 
C118: Comp. Esp. 2 | D118: Criterio Evaluación 2.1 | E118: =IF(EF!H13="","",EF!H13) ->  | F118: =IF(EF!I13="","",EF!I13) ->  | G118: =IF(EF!J13="","",EF!J13) ->  | H118: =IF(EF!K13="","",EF!K13) ->  | I118: =IF(EF!L13="","",EF!L13) ->  | J118: =IF(EF!M13="","",EF!M13) ->  | K118: =IF(EF!N13="","",EF!N13) ->  | L118: =IF(EF!O13="","",EF!O13) ->  | M118: =IF(EF!P13="","",EF!P13) ->  | N118: =IF(EF!Q13="","",EF!Q13) ->  | O118: =IF(EF!R13="","",EF!R13) ->  | P118: =IF(EF!S13="","",EF!S13) ->  | Q118: =IF(EF!T13="","",EF!T13) ->  | R118: =IF(EF!U13="","",EF!U13) ->  | S118: =IF(EF!V13="","",EF!V13) ->  | T118: =IF(EF!W13="","",EF!W13) ->  | U118: =IF(EF!X13="","",EF!X13) ->  | V118: =IF(EF!Y13="","",EF!Y13) ->  | W118: =IF(EF!Z13="","",EF!Z13) ->  | X118: =IF(EF!AA13="","",EF!AA13) ->  | Y118: =IF(EF!AB13="","",EF!AB13) ->  | Z118: =IF(EF!AC13="","",EF!AC13) ->  | AA118: =IF(EF!AD13="","",EF!AD13) ->  | AB118: =IF(EF!AE13="","",EF!AE13) ->  | AC118: =IF(EF!AF13="","",EF!AF13) ->  | AD118: =IF(EF!AG13="","",EF!AG13) ->  | AE118: =IF(EF!AH13="","",EF!AH13) ->  | AF118: =IF(EF!AI13="","",EF!AI13) ->  | AG118: =IF(EF!AJ13="","",EF!AJ13) ->  | AH118: =IF(EF!AK13="","",EF!AK13) ->  | AI118: =IF(EF!AL13="","",EF!AL13) ->  | AJ118: =IF(EF!AM13="","",EF!AM13) ->  | AK118: =IF(EF!AN13="","",EF!AN13) ->  | AL118: =IF(EF!AO13="","",EF!AO13) ->  | AM118: =IF(EF!AP13="","",EF!AP13) -> 
D119: Criterio Evaluación 2.2 | E119: =IF(EF!H14="","",EF!H14) ->  | F119: =IF(EF!I14="","",EF!I14) ->  | G119: =IF(EF!J14="","",EF!J14) ->  | H119: =IF(EF!K14="","",EF!K14) ->  | I119: =IF(EF!L14="","",EF!L14) ->  | J119: =IF(EF!M14="","",EF!M14) ->  | K119: =IF(EF!N14="","",EF!N14) ->  | L119: =IF(EF!O14="","",EF!O14) ->  | M119: =IF(EF!P14="","",EF!P14) ->  | N119: =IF(EF!Q14="","",EF!Q14) ->  | O119: =IF(EF!R14="","",EF!R14) ->  | P119: =IF(EF!S14="","",EF!S14) ->  | Q119: =IF(EF!T14="","",EF!T14) ->  | R119: =IF(EF!U14="","",EF!U14) ->  | S119: =IF(EF!V14="","",EF!V14) ->  | T119: =IF(EF!W14="","",EF!W14) ->  | U119: =IF(EF!X14="","",EF!X14) ->  | V119: =IF(EF!Y14="","",EF!Y14) ->  | W119: =IF(EF!Z14="","",EF!Z14) ->  | X119: =IF(EF!AA14="","",EF!AA14) ->  | Y119: =IF(EF!AB14="","",EF!AB14) ->  | Z119: =IF(EF!AC14="","",EF!AC14) ->  | AA119: =IF(EF!AD14="","",EF!AD14) ->  | AB119: =IF(EF!AE14="","",EF!AE14) ->  | AC119: =IF(EF!AF14="","",EF!AF14) ->  | AD119: =IF(EF!AG14="","",EF!AG14) ->  | AE119: =IF(EF!AH14="","",EF!AH14) ->  | AF119: =IF(EF!AI14="","",EF!AI14) ->  | AG119: =IF(EF!AJ14="","",EF!AJ14) ->  | AH119: =IF(EF!AK14="","",EF!AK14) ->  | AI119: =IF(EF!AL14="","",EF!AL14) ->  | AJ119: =IF(EF!AM14="","",EF!AM14) ->  | AK119: =IF(EF!AN14="","",EF!AN14) ->  | AL119: =IF(EF!AO14="","",EF!AO14) ->  | AM119: =IF(EF!AP14="","",EF!AP14) -> 
D120: Criterio Evaluación 2.3 | E120: =IF(EF!H15="","",EF!H15) ->  | F120: =IF(EF!I15="","",EF!I15) ->  | G120: =IF(EF!J15="","",EF!J15) ->  | H120: =IF(EF!K15="","",EF!K15) ->  | I120: =IF(EF!L15="","",EF!L15) ->  | J120: =IF(EF!M15="","",EF!M15) ->  | K120: =IF(EF!N15="","",EF!N15) ->  | L120: =IF(EF!O15="","",EF!O15) ->  | M120: =IF(EF!P15="","",EF!P15) ->  | N120: =IF(EF!Q15="","",EF!Q15) ->  | O120: =IF(EF!R15="","",EF!R15) ->  | P120: =IF(EF!S15="","",EF!S15) ->  | Q120: =IF(EF!T15="","",EF!T15) ->  | R120: =IF(EF!U15="","",EF!U15) ->  | S120: =IF(EF!V15="","",EF!V15) ->  | T120: =IF(EF!W15="","",EF!W15) ->  | U120: =IF(EF!X15="","",EF!X15) ->  | V120: =IF(EF!Y15="","",EF!Y15) ->  | W120: =IF(EF!Z15="","",EF!Z15) ->  | X120: =IF(EF!AA15="","",EF!AA15) ->  | Y120: =IF(EF!AB15="","",EF!AB15) ->  | Z120: =IF(EF!AC15="","",EF!AC15) ->  | AA120: =IF(EF!AD15="","",EF!AD15) ->  | AB120: =IF(EF!AE15="","",EF!AE15) ->  | AC120: =IF(EF!AF15="","",EF!AF15) ->  | AD120: =IF(EF!AG15="","",EF!AG15) ->  | AE120: =IF(EF!AH15="","",EF!AH15) ->  | AF120: =IF(EF!AI15="","",EF!AI15) ->  | AG120: =IF(EF!AJ15="","",EF!AJ15) ->  | AH120: =IF(EF!AK15="","",EF!AK15) ->  | AI120: =IF(EF!AL15="","",EF!AL15) ->  | AJ120: =IF(EF!AM15="","",EF!AM15) ->  | AK120: =IF(EF!AN15="","",EF!AN15) ->  | AL120: =IF(EF!AO15="","",EF!AO15) ->  | AM120: =IF(EF!AP15="","",EF!AP15) -> 
D121: Criterio Evaluación 2.4 | E121: =IF(EF!H16="","",EF!H16) ->  | F121: =IF(EF!I16="","",EF!I16) ->  | G121: =IF(EF!J16="","",EF!J16) ->  | H121: =IF(EF!K16="","",EF!K16) ->  | I121: =IF(EF!L16="","",EF!L16) ->  | J121: =IF(EF!M16="","",EF!M16) ->  | K121: =IF(EF!N16="","",EF!N16) ->  | L121: =IF(EF!O16="","",EF!O16) ->  | M121: =IF(EF!P16="","",EF!P16) ->  | N121: =IF(EF!Q16="","",EF!Q16) ->  | O121: =IF(EF!R16="","",EF!R16) ->  | P121: =IF(EF!S16="","",EF!S16) ->  | Q121: =IF(EF!T16="","",EF!T16) ->  | R121: =IF(EF!U16="","",EF!U16) ->  | S121: =IF(EF!V16="","",EF!V16) ->  | T121: =IF(EF!W16="","",EF!W16) ->  | U121: =IF(EF!X16="","",EF!X16) ->  | V121: =IF(EF!Y16="","",EF!Y16) ->  | W121: =IF(EF!Z16="","",EF!Z16) ->  | X121: =IF(EF!AA16="","",EF!AA16) ->  | Y121: =IF(EF!AB16="","",EF!AB16) ->  | Z121: =IF(EF!AC16="","",EF!AC16) ->  | AA121: =IF(EF!AD16="","",EF!AD16) ->  | AB121: =IF(EF!AE16="","",EF!AE16) ->  | AC121: =IF(EF!AF16="","",EF!AF16) ->  | AD121: =IF(EF!AG16="","",EF!AG16) ->  | AE121: =IF(EF!AH16="","",EF!AH16) ->  | AF121: =IF(EF!AI16="","",EF!AI16) ->  | AG121: =IF(EF!AJ16="","",EF!AJ16) ->  | AH121: =IF(EF!AK16="","",EF!AK16) ->  | AI121: =IF(EF!AL16="","",EF!AL16) ->  | AJ121: =IF(EF!AM16="","",EF!AM16) ->  | AK121: =IF(EF!AN16="","",EF!AN16) ->  | AL121: =IF(EF!AO16="","",EF!AO16) ->  | AM121: =IF(EF!AP16="","",EF!AP16) -> 
C122: Comp. Esp. 3 | D122: Criterio Evaluación 3.1 | E122: =IF(EF!H17="","",EF!H17) ->  | F122: =IF(EF!I17="","",EF!I17) ->  | G122: =IF(EF!J17="","",EF!J17) ->  | H122: =IF(EF!K17="","",EF!K17) ->  | I122: =IF(EF!L17="","",EF!L17) ->  | J122: =IF(EF!M17="","",EF!M17) ->  | K122: =IF(EF!N17="","",EF!N17) ->  | L122: =IF(EF!O17="","",EF!O17) ->  | M122: =IF(EF!P17="","",EF!P17) ->  | N122: =IF(EF!Q17="","",EF!Q17) ->  | O122: =IF(EF!R17="","",EF!R17) ->  | P122: =IF(EF!S17="","",EF!S17) ->  | Q122: =IF(EF!T17="","",EF!T17) ->  | R122: =IF(EF!U17="","",EF!U17) ->  | S122: =IF(EF!V17="","",EF!V17) ->  | T122: =IF(EF!W17="","",EF!W17) ->  | U122: =IF(EF!X17="","",EF!X17) ->  | V122: =IF(EF!Y17="","",EF!Y17) ->  | W122: =IF(EF!Z17="","",EF!Z17) ->  | X122: =IF(EF!AA17="","",EF!AA17) ->  | Y122: =IF(EF!AB17="","",EF!AB17) ->  | Z122: =IF(EF!AC17="","",EF!AC17) ->  | AA122: =IF(EF!AD17="","",EF!AD17) ->  | AB122: =IF(EF!AE17="","",EF!AE17) ->  | AC122: =IF(EF!AF17="","",EF!AF17) ->  | AD122: =IF(EF!AG17="","",EF!AG17) ->  | AE122: =IF(EF!AH17="","",EF!AH17) ->  | AF122: =IF(EF!AI17="","",EF!AI17) ->  | AG122: =IF(EF!AJ17="","",EF!AJ17) ->  | AH122: =IF(EF!AK17="","",EF!AK17) ->  | AI122: =IF(EF!AL17="","",EF!AL17) ->  | AJ122: =IF(EF!AM17="","",EF!AM17) ->  | AK122: =IF(EF!AN17="","",EF!AN17) ->  | AL122: =IF(EF!AO17="","",EF!AO17) ->  | AM122: =IF(EF!AP17="","",EF!AP17) -> 
D123: Criterio Evaluación 3.2 | E123: =IF(EF!H18="","",EF!H18) ->  | F123: =IF(EF!I18="","",EF!I18) ->  | G123: =IF(EF!J18="","",EF!J18) ->  | H123: =IF(EF!K18="","",EF!K18) ->  | I123: =IF(EF!L18="","",EF!L18) ->  | J123: =IF(EF!M18="","",EF!M18) ->  | K123: =IF(EF!N18="","",EF!N18) ->  | L123: =IF(EF!O18="","",EF!O18) ->  | M123: =IF(EF!P18="","",EF!P18) ->  | N123: =IF(EF!Q18="","",EF!Q18) ->  | O123: =IF(EF!R18="","",EF!R18) ->  | P123: =IF(EF!S18="","",EF!S18) ->  | Q123: =IF(EF!T18="","",EF!T18) ->  | R123: =IF(EF!U18="","",EF!U18) ->  | S123: =IF(EF!V18="","",EF!V18) ->  | T123: =IF(EF!W18="","",EF!W18) ->  | U123: =IF(EF!X18="","",EF!X18) ->  | V123: =IF(EF!Y18="","",EF!Y18) ->  | W123: =IF(EF!Z18="","",EF!Z18) ->  | X123: =IF(EF!AA18="","",EF!AA18) ->  | Y123: =IF(EF!AB18="","",EF!AB18) ->  | Z123: =IF(EF!AC18="","",EF!AC18) ->  | AA123: =IF(EF!AD18="","",EF!AD18) ->  | AB123: =IF(EF!AE18="","",EF!AE18) ->  | AC123: =IF(EF!AF18="","",EF!AF18) ->  | AD123: =IF(EF!AG18="","",EF!AG18) ->  | AE123: =IF(EF!AH18="","",EF!AH18) ->  | AF123: =IF(EF!AI18="","",EF!AI18) ->  | AG123: =IF(EF!AJ18="","",EF!AJ18) ->  | AH123: =IF(EF!AK18="","",EF!AK18) ->  | AI123: =IF(EF!AL18="","",EF!AL18) ->  | AJ123: =IF(EF!AM18="","",EF!AM18) ->  | AK123: =IF(EF!AN18="","",EF!AN18) ->  | AL123: =IF(EF!AO18="","",EF!AO18) ->  | AM123: =IF(EF!AP18="","",EF!AP18) -> 
D124: Criterio Evaluación 3.3 | E124: =IF(EF!H19="","",EF!H19) ->  | F124: =IF(EF!I19="","",EF!I19) ->  | G124: =IF(EF!J19="","",EF!J19) ->  | H124: =IF(EF!K19="","",EF!K19) ->  | I124: =IF(EF!L19="","",EF!L19) ->  | J124: =IF(EF!M19="","",EF!M19) ->  | K124: =IF(EF!N19="","",EF!N19) ->  | L124: =IF(EF!O19="","",EF!O19) ->  | M124: =IF(EF!P19="","",EF!P19) ->  | N124: =IF(EF!Q19="","",EF!Q19) ->  | O124: =IF(EF!R19="","",EF!R19) ->  | P124: =IF(EF!S19="","",EF!S19) ->  | Q124: =IF(EF!T19="","",EF!T19) ->  | R124: =IF(EF!U19="","",EF!U19) ->  | S124: =IF(EF!V19="","",EF!V19) ->  | T124: =IF(EF!W19="","",EF!W19) ->  | U124: =IF(EF!X19="","",EF!X19) ->  | V124: =IF(EF!Y19="","",EF!Y19) ->  | W124: =IF(EF!Z19="","",EF!Z19) ->  | X124: =IF(EF!AA19="","",EF!AA19) ->  | Y124: =IF(EF!AB19="","",EF!AB19) ->  | Z124: =IF(EF!AC19="","",EF!AC19) ->  | AA124: =IF(EF!AD19="","",EF!AD19) ->  | AB124: =IF(EF!AE19="","",EF!AE19) ->  | AC124: =IF(EF!AF19="","",EF!AF19) ->  | AD124: =IF(EF!AG19="","",EF!AG19) ->  | AE124: =IF(EF!AH19="","",EF!AH19) ->  | AF124: =IF(EF!AI19="","",EF!AI19) ->  | AG124: =IF(EF!AJ19="","",EF!AJ19) ->  | AH124: =IF(EF!AK19="","",EF!AK19) ->  | AI124: =IF(EF!AL19="","",EF!AL19) ->  | AJ124: =IF(EF!AM19="","",EF!AM19) ->  | AK124: =IF(EF!AN19="","",EF!AN19) ->  | AL124: =IF(EF!AO19="","",EF!AO19) ->  | AM124: =IF(EF!AP19="","",EF!AP19) -> 
C125: Comp. Esp. 4 | D125: Criterio Evaluación 4.1 | E125: =IF(EF!H20="","",EF!H20) ->  | F125: =IF(EF!I20="","",EF!I20) ->  | G125: =IF(EF!J20="","",EF!J20) ->  | H125: =IF(EF!K20="","",EF!K20) ->  | I125: =IF(EF!L20="","",EF!L20) ->  | J125: =IF(EF!M20="","",EF!M20) ->  | K125: =IF(EF!N20="","",EF!N20) ->  | L125: =IF(EF!O20="","",EF!O20) ->  | M125: =IF(EF!P20="","",EF!P20) ->  | N125: =IF(EF!Q20="","",EF!Q20) ->  | O125: =IF(EF!R20="","",EF!R20) ->  | P125: =IF(EF!S20="","",EF!S20) ->  | Q125: =IF(EF!T20="","",EF!T20) ->  | R125: =IF(EF!U20="","",EF!U20) ->  | S125: =IF(EF!V20="","",EF!V20) ->  | T125: =IF(EF!W20="","",EF!W20) ->  | U125: =IF(EF!X20="","",EF!X20) ->  | V125: =IF(EF!Y20="","",EF!Y20) ->  | W125: =IF(EF!Z20="","",EF!Z20) ->  | X125: =IF(EF!AA20="","",EF!AA20) ->  | Y125: =IF(EF!AB20="","",EF!AB20) ->  | Z125: =IF(EF!AC20="","",EF!AC20) ->  | AA125: =IF(EF!AD20="","",EF!AD20) ->  | AB125: =IF(EF!AE20="","",EF!AE20) ->  | AC125: =IF(EF!AF20="","",EF!AF20) ->  | AD125: =IF(EF!AG20="","",EF!AG20) ->  | AE125: =IF(EF!AH20="","",EF!AH20) ->  | AF125: =IF(EF!AI20="","",EF!AI20) ->  | AG125: =IF(EF!AJ20="","",EF!AJ20) ->  | AH125: =IF(EF!AK20="","",EF!AK20) ->  | AI125: =IF(EF!AL20="","",EF!AL20) ->  | AJ125: =IF(EF!AM20="","",EF!AM20) ->  | AK125: =IF(EF!AN20="","",EF!AN20) ->  | AL125: =IF(EF!AO20="","",EF!AO20) ->  | AM125: =IF(EF!AP20="","",EF!AP20) -> 
D126: Criterio Evaluación 4.2 | E126: =IF(EF!H21="","",EF!H21) ->  | F126: =IF(EF!I21="","",EF!I21) ->  | G126: =IF(EF!J21="","",EF!J21) ->  | H126: =IF(EF!K21="","",EF!K21) ->  | I126: =IF(EF!L21="","",EF!L21) ->  | J126: =IF(EF!M21="","",EF!M21) ->  | K126: =IF(EF!N21="","",EF!N21) ->  | L126: =IF(EF!O21="","",EF!O21) ->  | M126: =IF(EF!P21="","",EF!P21) ->  | N126: =IF(EF!Q21="","",EF!Q21) ->  | O126: =IF(EF!R21="","",EF!R21) ->  | P126: =IF(EF!S21="","",EF!S21) ->  | Q126: =IF(EF!T21="","",EF!T21) ->  | R126: =IF(EF!U21="","",EF!U21) ->  | S126: =IF(EF!V21="","",EF!V21) ->  | T126: =IF(EF!W21="","",EF!W21) ->  | U126: =IF(EF!X21="","",EF!X21) ->  | V126: =IF(EF!Y21="","",EF!Y21) ->  | W126: =IF(EF!Z21="","",EF!Z21) ->  | X126: =IF(EF!AA21="","",EF!AA21) ->  | Y126: =IF(EF!AB21="","",EF!AB21) ->  | Z126: =IF(EF!AC21="","",EF!AC21) ->  | AA126: =IF(EF!AD21="","",EF!AD21) ->  | AB126: =IF(EF!AE21="","",EF!AE21) ->  | AC126: =IF(EF!AF21="","",EF!AF21) ->  | AD126: =IF(EF!AG21="","",EF!AG21) ->  | AE126: =IF(EF!AH21="","",EF!AH21) ->  | AF126: =IF(EF!AI21="","",EF!AI21) ->  | AG126: =IF(EF!AJ21="","",EF!AJ21) ->  | AH126: =IF(EF!AK21="","",EF!AK21) ->  | AI126: =IF(EF!AL21="","",EF!AL21) ->  | AJ126: =IF(EF!AM21="","",EF!AM21) ->  | AK126: =IF(EF!AN21="","",EF!AN21) ->  | AL126: =IF(EF!AO21="","",EF!AO21) ->  | AM126: =IF(EF!AP21="","",EF!AP21) -> 
D127: Criterio Evaluación 4.3 | E127: =IF(EF!H22="","",EF!H22) ->  | F127: =IF(EF!I22="","",EF!I22) ->  | G127: =IF(EF!J22="","",EF!J22) ->  | H127: =IF(EF!K22="","",EF!K22) ->  | I127: =IF(EF!L22="","",EF!L22) ->  | J127: =IF(EF!M22="","",EF!M22) ->  | K127: =IF(EF!N22="","",EF!N22) ->  | L127: =IF(EF!O22="","",EF!O22) ->  | M127: =IF(EF!P22="","",EF!P22) ->  | N127: =IF(EF!Q22="","",EF!Q22) ->  | O127: =IF(EF!R22="","",EF!R22) ->  | P127: =IF(EF!S22="","",EF!S22) ->  | Q127: =IF(EF!T22="","",EF!T22) ->  | R127: =IF(EF!U22="","",EF!U22) ->  | S127: =IF(EF!V22="","",EF!V22) ->  | T127: =IF(EF!W22="","",EF!W22) ->  | U127: =IF(EF!X22="","",EF!X22) ->  | V127: =IF(EF!Y22="","",EF!Y22) ->  | W127: =IF(EF!Z22="","",EF!Z22) ->  | X127: =IF(EF!AA22="","",EF!AA22) ->  | Y127: =IF(EF!AB22="","",EF!AB22) ->  | Z127: =IF(EF!AC22="","",EF!AC22) ->  | AA127: =IF(EF!AD22="","",EF!AD22) ->  | AB127: =IF(EF!AE22="","",EF!AE22) ->  | AC127: =IF(EF!AF22="","",EF!AF22) ->  | AD127: =IF(EF!AG22="","",EF!AG22) ->  | AE127: =IF(EF!AH22="","",EF!AH22) ->  | AF127: =IF(EF!AI22="","",EF!AI22) ->  | AG127: =IF(EF!AJ22="","",EF!AJ22) ->  | AH127: =IF(EF!AK22="","",EF!AK22) ->  | AI127: =IF(EF!AL22="","",EF!AL22) ->  | AJ127: =IF(EF!AM22="","",EF!AM22) ->  | AK127: =IF(EF!AN22="","",EF!AN22) ->  | AL127: =IF(EF!AO22="","",EF!AO22) ->  | AM127: =IF(EF!AP22="","",EF!AP22) -> 
C128: Comp. Esp. 5 | D128: Criterio Evaluación 5.1 | E128: =IF(EF!H23="","",EF!H23) ->  | F128: =IF(EF!I23="","",EF!I23) ->  | G128: =IF(EF!J23="","",EF!J23) ->  | H128: =IF(EF!K23="","",EF!K23) ->  | I128: =IF(EF!L23="","",EF!L23) ->  | J128: =IF(EF!M23="","",EF!M23) ->  | K128: =IF(EF!N23="","",EF!N23) ->  | L128: =IF(EF!O23="","",EF!O23) ->  | M128: =IF(EF!P23="","",EF!P23) ->  | N128: =IF(EF!Q23="","",EF!Q23) ->  | O128: =IF(EF!R23="","",EF!R23) ->  | P128: =IF(EF!S23="","",EF!S23) ->  | Q128: =IF(EF!T23="","",EF!T23) ->  | R128: =IF(EF!U23="","",EF!U23) ->  | S128: =IF(EF!V23="","",EF!V23) ->  | T128: =IF(EF!W23="","",EF!W23) ->  | U128: =IF(EF!X23="","",EF!X23) ->  | V128: =IF(EF!Y23="","",EF!Y23) ->  | W128: =IF(EF!Z23="","",EF!Z23) ->  | X128: =IF(EF!AA23="","",EF!AA23) ->  | Y128: =IF(EF!AB23="","",EF!AB23) ->  | Z128: =IF(EF!AC23="","",EF!AC23) ->  | AA128: =IF(EF!AD23="","",EF!AD23) ->  | AB128: =IF(EF!AE23="","",EF!AE23) ->  | AC128: =IF(EF!AF23="","",EF!AF23) ->  | AD128: =IF(EF!AG23="","",EF!AG23) ->  | AE128: =IF(EF!AH23="","",EF!AH23) ->  | AF128: =IF(EF!AI23="","",EF!AI23) ->  | AG128: =IF(EF!AJ23="","",EF!AJ23) ->  | AH128: =IF(EF!AK23="","",EF!AK23) ->  | AI128: =IF(EF!AL23="","",EF!AL23) ->  | AJ128: =IF(EF!AM23="","",EF!AM23) ->  | AK128: =IF(EF!AN23="","",EF!AN23) ->  | AL128: =IF(EF!AO23="","",EF!AO23) ->  | AM128: =IF(EF!AP23="","",EF!AP23) -> 
D129: Criterio Evaluación 5.2 | E129: =IF(EF!H24="","",EF!H24) ->  | F129: =IF(EF!I24="","",EF!I24) ->  | G129: =IF(EF!J24="","",EF!J24) ->  | H129: =IF(EF!K24="","",EF!K24) ->  | I129: =IF(EF!L24="","",EF!L24) ->  | J129: =IF(EF!M24="","",EF!M24) ->  | K129: =IF(EF!N24="","",EF!N24) ->  | L129: =IF(EF!O24="","",EF!O24) ->  | M129: =IF(EF!P24="","",EF!P24) ->  | N129: =IF(EF!Q24="","",EF!Q24) ->  | O129: =IF(EF!R24="","",EF!R24) ->  | P129: =IF(EF!S24="","",EF!S24) ->  | Q129: =IF(EF!T24="","",EF!T24) ->  | R129: =IF(EF!U24="","",EF!U24) ->  | S129: =IF(EF!V24="","",EF!V24) ->  | T129: =IF(EF!W24="","",EF!W24) ->  | U129: =IF(EF!X24="","",EF!X24) ->  | V129: =IF(EF!Y24="","",EF!Y24) ->  | W129: =IF(EF!Z24="","",EF!Z24) ->  | X129: =IF(EF!AA24="","",EF!AA24) ->  | Y129: =IF(EF!AB24="","",EF!AB24) ->  | Z129: =IF(EF!AC24="","",EF!AC24) ->  | AA129: =IF(EF!AD24="","",EF!AD24) ->  | AB129: =IF(EF!AE24="","",EF!AE24) ->  | AC129: =IF(EF!AF24="","",EF!AF24) ->  | AD129: =IF(EF!AG24="","",EF!AG24) ->  | AE129: =IF(EF!AH24="","",EF!AH24) ->  | AF129: =IF(EF!AI24="","",EF!AI24) ->  | AG129: =IF(EF!AJ24="","",EF!AJ24) ->  | AH129: =IF(EF!AK24="","",EF!AK24) ->  | AI129: =IF(EF!AL24="","",EF!AL24) ->  | AJ129: =IF(EF!AM24="","",EF!AM24) ->  | AK129: =IF(EF!AN24="","",EF!AN24) ->  | AL129: =IF(EF!AO24="","",EF!AO24) ->  | AM129: =IF(EF!AP24="","",EF!AP24) -> 
B130: Educación Plástica, Visual y Audiovisual | C130: Comp. Esp. 1 | D130: Criterio Evaluación 1.1 | E130: =IF(EPVA!H4="","",EPVA!H4) ->  | F130: =IF(EPVA!I4="","",EPVA!I4) ->  | G130: =IF(EPVA!J4="","",EPVA!J4) ->  | H130: =IF(EPVA!K4="","",EPVA!K4) ->  | I130: =IF(EPVA!L4="","",EPVA!L4) ->  | J130: =IF(EPVA!M4="","",EPVA!M4) ->  | K130: =IF(EPVA!N4="","",EPVA!N4) ->  | L130: =IF(EPVA!O4="","",EPVA!O4) ->  | M130: =IF(EPVA!P4="","",EPVA!P4) ->  | N130: =IF(EPVA!Q4="","",EPVA!Q4) ->  | O130: =IF(EPVA!R4="","",EPVA!R4) ->  | P130: =IF(EPVA!S4="","",EPVA!S4) ->  | Q130: =IF(EPVA!T4="","",EPVA!T4) ->  | R130: =IF(EPVA!U4="","",EPVA!U4) ->  | S130: =IF(EPVA!V4="","",EPVA!V4) ->  | T130: =IF(EPVA!W4="","",EPVA!W4) ->  | U130: =IF(EPVA!X4="","",EPVA!X4) ->  | V130: =IF(EPVA!Y4="","",EPVA!Y4) ->  | W130: =IF(EPVA!Z4="","",EPVA!Z4) ->  | X130: =IF(EPVA!AA4="","",EPVA!AA4) ->  | Y130: =IF(EPVA!AB4="","",EPVA!AB4) ->  | Z130: =IF(EPVA!AC4="","",EPVA!AC4) ->  | AA130: =IF(EPVA!AD4="","",EPVA!AD4) ->  | AB130: =IF(EPVA!AE4="","",EPVA!AE4) ->  | AC130: =IF(EPVA!AF4="","",EPVA!AF4) ->  | AD130: =IF(EPVA!AG4="","",EPVA!AG4) ->  | AE130: =IF(EPVA!AH4="","",EPVA!AH4) ->  | AF130: =IF(EPVA!AI4="","",EPVA!AI4) ->  | AG130: =IF(EPVA!AJ4="","",EPVA!AJ4) ->  | AH130: =IF(EPVA!AK4="","",EPVA!AK4) ->  | AI130: =IF(EPVA!AL4="","",EPVA!AL4) ->  | AJ130: =IF(EPVA!AM4="","",EPVA!AM4) ->  | AK130: =IF(EPVA!AN4="","",EPVA!AN4) ->  | AL130: =IF(EPVA!AO4="","",EPVA!AO4) ->  | AM130: =IF(EPVA!AP4="","",EPVA!AP4) -> 
D131: Criterio Evaluación 1.2 | E131: =IF(EPVA!H5="","",EPVA!H5) ->  | F131: =IF(EPVA!I5="","",EPVA!I5) ->  | G131: =IF(EPVA!J5="","",EPVA!J5) ->  | H131: =IF(EPVA!K5="","",EPVA!K5) ->  | I131: =IF(EPVA!L5="","",EPVA!L5) ->  | J131: =IF(EPVA!M5="","",EPVA!M5) ->  | K131: =IF(EPVA!N5="","",EPVA!N5) ->  | L131: =IF(EPVA!O5="","",EPVA!O5) ->  | M131: =IF(EPVA!P5="","",EPVA!P5) ->  | N131: =IF(EPVA!Q5="","",EPVA!Q5) ->  | O131: =IF(EPVA!R5="","",EPVA!R5) ->  | P131: =IF(EPVA!S5="","",EPVA!S5) ->  | Q131: =IF(EPVA!T5="","",EPVA!T5) ->  | R131: =IF(EPVA!U5="","",EPVA!U5) ->  | S131: =IF(EPVA!V5="","",EPVA!V5) ->  | T131: =IF(EPVA!W5="","",EPVA!W5) ->  | U131: =IF(EPVA!X5="","",EPVA!X5) ->  | V131: =IF(EPVA!Y5="","",EPVA!Y5) ->  | W131: =IF(EPVA!Z5="","",EPVA!Z5) ->  | X131: =IF(EPVA!AA5="","",EPVA!AA5) ->  | Y131: =IF(EPVA!AB5="","",EPVA!AB5) ->  | Z131: =IF(EPVA!AC5="","",EPVA!AC5) ->  | AA131: =IF(EPVA!AD5="","",EPVA!AD5) ->  | AB131: =IF(EPVA!AE5="","",EPVA!AE5) ->  | AC131: =IF(EPVA!AF5="","",EPVA!AF5) ->  | AD131: =IF(EPVA!AG5="","",EPVA!AG5) ->  | AE131: =IF(EPVA!AH5="","",EPVA!AH5) ->  | AF131: =IF(EPVA!AI5="","",EPVA!AI5) ->  | AG131: =IF(EPVA!AJ5="","",EPVA!AJ5) ->  | AH131: =IF(EPVA!AK5="","",EPVA!AK5) ->  | AI131: =IF(EPVA!AL5="","",EPVA!AL5) ->  | AJ131: =IF(EPVA!AM5="","",EPVA!AM5) ->  | AK131: =IF(EPVA!AN5="","",EPVA!AN5) ->  | AL131: =IF(EPVA!AO5="","",EPVA!AO5) ->  | AM131: =IF(EPVA!AP5="","",EPVA!AP5) -> 
D132: Criterio Evaluación 1.3 | E132: =IF(EPVA!H6="","",EPVA!H6) ->  | F132: =IF(EPVA!I6="","",EPVA!I6) ->  | G132: =IF(EPVA!J6="","",EPVA!J6) ->  | H132: =IF(EPVA!K6="","",EPVA!K6) ->  | I132: =IF(EPVA!L6="","",EPVA!L6) ->  | J132: =IF(EPVA!M6="","",EPVA!M6) ->  | K132: =IF(EPVA!N6="","",EPVA!N6) ->  | L132: =IF(EPVA!O6="","",EPVA!O6) ->  | M132: =IF(EPVA!P6="","",EPVA!P6) ->  | N132: =IF(EPVA!Q6="","",EPVA!Q6) ->  | O132: =IF(EPVA!R6="","",EPVA!R6) ->  | P132: =IF(EPVA!S6="","",EPVA!S6) ->  | Q132: =IF(EPVA!T6="","",EPVA!T6) ->  | R132: =IF(EPVA!U6="","",EPVA!U6) ->  | S132: =IF(EPVA!V6="","",EPVA!V6) ->  | T132: =IF(EPVA!W6="","",EPVA!W6) ->  | U132: =IF(EPVA!X6="","",EPVA!X6) ->  | V132: =IF(EPVA!Y6="","",EPVA!Y6) ->  | W132: =IF(EPVA!Z6="","",EPVA!Z6) ->  | X132: =IF(EPVA!AA6="","",EPVA!AA6) ->  | Y132: =IF(EPVA!AB6="","",EPVA!AB6) ->  | Z132: =IF(EPVA!AC6="","",EPVA!AC6) ->  | AA132: =IF(EPVA!AD6="","",EPVA!AD6) ->  | AB132: =IF(EPVA!AE6="","",EPVA!AE6) ->  | AC132: =IF(EPVA!AF6="","",EPVA!AF6) ->  | AD132: =IF(EPVA!AG6="","",EPVA!AG6) ->  | AE132: =IF(EPVA!AH6="","",EPVA!AH6) ->  | AF132: =IF(EPVA!AI6="","",EPVA!AI6) ->  | AG132: =IF(EPVA!AJ6="","",EPVA!AJ6) ->  | AH132: =IF(EPVA!AK6="","",EPVA!AK6) ->  | AI132: =IF(EPVA!AL6="","",EPVA!AL6) ->  | AJ132: =IF(EPVA!AM6="","",EPVA!AM6) ->  | AK132: =IF(EPVA!AN6="","",EPVA!AN6) ->  | AL132: =IF(EPVA!AO6="","",EPVA!AO6) ->  | AM132: =IF(EPVA!AP6="","",EPVA!AP6) -> 
D133: Criterio Evaluación 1.4 | E133: =IF(EPVA!H7="","",EPVA!H7) ->  | F133: =IF(EPVA!I7="","",EPVA!I7) ->  | G133: =IF(EPVA!J7="","",EPVA!J7) ->  | H133: =IF(EPVA!K7="","",EPVA!K7) ->  | I133: =IF(EPVA!L7="","",EPVA!L7) ->  | J133: =IF(EPVA!M7="","",EPVA!M7) ->  | K133: =IF(EPVA!N7="","",EPVA!N7) ->  | L133: =IF(EPVA!O7="","",EPVA!O7) ->  | M133: =IF(EPVA!P7="","",EPVA!P7) ->  | N133: =IF(EPVA!Q7="","",EPVA!Q7) ->  | O133: =IF(EPVA!R7="","",EPVA!R7) ->  | P133: =IF(EPVA!S7="","",EPVA!S7) ->  | Q133: =IF(EPVA!T7="","",EPVA!T7) ->  | R133: =IF(EPVA!U7="","",EPVA!U7) ->  | S133: =IF(EPVA!V7="","",EPVA!V7) ->  | T133: =IF(EPVA!W7="","",EPVA!W7) ->  | U133: =IF(EPVA!X7="","",EPVA!X7) ->  | V133: =IF(EPVA!Y7="","",EPVA!Y7) ->  | W133: =IF(EPVA!Z7="","",EPVA!Z7) ->  | X133: =IF(EPVA!AA7="","",EPVA!AA7) ->  | Y133: =IF(EPVA!AB7="","",EPVA!AB7) ->  | Z133: =IF(EPVA!AC7="","",EPVA!AC7) ->  | AA133: =IF(EPVA!AD7="","",EPVA!AD7) ->  | AB133: =IF(EPVA!AE7="","",EPVA!AE7) ->  | AC133: =IF(EPVA!AF7="","",EPVA!AF7) ->  | AD133: =IF(EPVA!AG7="","",EPVA!AG7) ->  | AE133: =IF(EPVA!AH7="","",EPVA!AH7) ->  | AF133: =IF(EPVA!AI7="","",EPVA!AI7) ->  | AG133: =IF(EPVA!AJ7="","",EPVA!AJ7) ->  | AH133: =IF(EPVA!AK7="","",EPVA!AK7) ->  | AI133: =IF(EPVA!AL7="","",EPVA!AL7) ->  | AJ133: =IF(EPVA!AM7="","",EPVA!AM7) ->  | AK133: =IF(EPVA!AN7="","",EPVA!AN7) ->  | AL133: =IF(EPVA!AO7="","",EPVA!AO7) ->  | AM133: =IF(EPVA!AP7="","",EPVA!AP7) -> 
C134: Comp. Esp. 2 | D134: Criterio Evaluación 2.1 | E134: =IF(EPVA!H8="","",EPVA!H8) ->  | F134: =IF(EPVA!I8="","",EPVA!I8) ->  | G134: =IF(EPVA!J8="","",EPVA!J8) ->  | H134: =IF(EPVA!K8="","",EPVA!K8) ->  | I134: =IF(EPVA!L8="","",EPVA!L8) ->  | J134: =IF(EPVA!M8="","",EPVA!M8) ->  | K134: =IF(EPVA!N8="","",EPVA!N8) ->  | L134: =IF(EPVA!O8="","",EPVA!O8) ->  | M134: =IF(EPVA!P8="","",EPVA!P8) ->  | N134: =IF(EPVA!Q8="","",EPVA!Q8) ->  | O134: =IF(EPVA!R8="","",EPVA!R8) ->  | P134: =IF(EPVA!S8="","",EPVA!S8) ->  | Q134: =IF(EPVA!T8="","",EPVA!T8) ->  | R134: =IF(EPVA!U8="","",EPVA!U8) ->  | S134: =IF(EPVA!V8="","",EPVA!V8) ->  | T134: =IF(EPVA!W8="","",EPVA!W8) ->  | U134: =IF(EPVA!X8="","",EPVA!X8) ->  | V134: =IF(EPVA!Y8="","",EPVA!Y8) ->  | W134: =IF(EPVA!Z8="","",EPVA!Z8) ->  | X134: =IF(EPVA!AA8="","",EPVA!AA8) ->  | Y134: =IF(EPVA!AB8="","",EPVA!AB8) ->  | Z134: =IF(EPVA!AC8="","",EPVA!AC8) ->  | AA134: =IF(EPVA!AD8="","",EPVA!AD8) ->  | AB134: =IF(EPVA!AE8="","",EPVA!AE8) ->  | AC134: =IF(EPVA!AF8="","",EPVA!AF8) ->  | AD134: =IF(EPVA!AG8="","",EPVA!AG8) ->  | AE134: =IF(EPVA!AH8="","",EPVA!AH8) ->  | AF134: =IF(EPVA!AI8="","",EPVA!AI8) ->  | AG134: =IF(EPVA!AJ8="","",EPVA!AJ8) ->  | AH134: =IF(EPVA!AK8="","",EPVA!AK8) ->  | AI134: =IF(EPVA!AL8="","",EPVA!AL8) ->  | AJ134: =IF(EPVA!AM8="","",EPVA!AM8) ->  | AK134: =IF(EPVA!AN8="","",EPVA!AN8) ->  | AL134: =IF(EPVA!AO8="","",EPVA!AO8) ->  | AM134: =IF(EPVA!AP8="","",EPVA!AP8) -> 
D135: Criterio Evaluación 2.2 | E135: =IF(EPVA!H9="","",EPVA!H9) ->  | F135: =IF(EPVA!I9="","",EPVA!I9) ->  | G135: =IF(EPVA!J9="","",EPVA!J9) ->  | H135: =IF(EPVA!K9="","",EPVA!K9) ->  | I135: =IF(EPVA!L9="","",EPVA!L9) ->  | J135: =IF(EPVA!M9="","",EPVA!M9) ->  | K135: =IF(EPVA!N9="","",EPVA!N9) ->  | L135: =IF(EPVA!O9="","",EPVA!O9) ->  | M135: =IF(EPVA!P9="","",EPVA!P9) ->  | N135: =IF(EPVA!Q9="","",EPVA!Q9) ->  | O135: =IF(EPVA!R9="","",EPVA!R9) ->  | P135: =IF(EPVA!S9="","",EPVA!S9) ->  | Q135: =IF(EPVA!T9="","",EPVA!T9) ->  | R135: =IF(EPVA!U9="","",EPVA!U9) ->  | S135: =IF(EPVA!V9="","",EPVA!V9) ->  | T135: =IF(EPVA!W9="","",EPVA!W9) ->  | U135: =IF(EPVA!X9="","",EPVA!X9) ->  | V135: =IF(EPVA!Y9="","",EPVA!Y9) ->  | W135: =IF(EPVA!Z9="","",EPVA!Z9) ->  | X135: =IF(EPVA!AA9="","",EPVA!AA9) ->  | Y135: =IF(EPVA!AB9="","",EPVA!AB9) ->  | Z135: =IF(EPVA!AC9="","",EPVA!AC9) ->  | AA135: =IF(EPVA!AD9="","",EPVA!AD9) ->  | AB135: =IF(EPVA!AE9="","",EPVA!AE9) ->  | AC135: =IF(EPVA!AF9="","",EPVA!AF9) ->  | AD135: =IF(EPVA!AG9="","",EPVA!AG9) ->  | AE135: =IF(EPVA!AH9="","",EPVA!AH9) ->  | AF135: =IF(EPVA!AI9="","",EPVA!AI9) ->  | AG135: =IF(EPVA!AJ9="","",EPVA!AJ9) ->  | AH135: =IF(EPVA!AK9="","",EPVA!AK9) ->  | AI135: =IF(EPVA!AL9="","",EPVA!AL9) ->  | AJ135: =IF(EPVA!AM9="","",EPVA!AM9) ->  | AK135: =IF(EPVA!AN9="","",EPVA!AN9) ->  | AL135: =IF(EPVA!AO9="","",EPVA!AO9) ->  | AM135: =IF(EPVA!AP9="","",EPVA!AP9) -> 
C136: Comp. Esp. 3 | D136: Criterio Evaluación 3.1 | E136: =IF(EPVA!H10="","",EPVA!H10) ->  | F136: =IF(EPVA!I10="","",EPVA!I10) ->  | G136: =IF(EPVA!J10="","",EPVA!J10) ->  | H136: =IF(EPVA!K10="","",EPVA!K10) ->  | I136: =IF(EPVA!L10="","",EPVA!L10) ->  | J136: =IF(EPVA!M10="","",EPVA!M10) ->  | K136: =IF(EPVA!N10="","",EPVA!N10) ->  | L136: =IF(EPVA!O10="","",EPVA!O10) ->  | M136: =IF(EPVA!P10="","",EPVA!P10) ->  | N136: =IF(EPVA!Q10="","",EPVA!Q10) ->  | O136: =IF(EPVA!R10="","",EPVA!R10) ->  | P136: =IF(EPVA!S10="","",EPVA!S10) ->  | Q136: =IF(EPVA!T10="","",EPVA!T10) ->  | R136: =IF(EPVA!U10="","",EPVA!U10) ->  | S136: =IF(EPVA!V10="","",EPVA!V10) ->  | T136: =IF(EPVA!W10="","",EPVA!W10) ->  | U136: =IF(EPVA!X10="","",EPVA!X10) ->  | V136: =IF(EPVA!Y10="","",EPVA!Y10) ->  | W136: =IF(EPVA!Z10="","",EPVA!Z10) ->  | X136: =IF(EPVA!AA10="","",EPVA!AA10) ->  | Y136: =IF(EPVA!AB10="","",EPVA!AB10) ->  | Z136: =IF(EPVA!AC10="","",EPVA!AC10) ->  | AA136: =IF(EPVA!AD10="","",EPVA!AD10) ->  | AB136: =IF(EPVA!AE10="","",EPVA!AE10) ->  | AC136: =IF(EPVA!AF10="","",EPVA!AF10) ->  | AD136: =IF(EPVA!AG10="","",EPVA!AG10) ->  | AE136: =IF(EPVA!AH10="","",EPVA!AH10) ->  | AF136: =IF(EPVA!AI10="","",EPVA!AI10) ->  | AG136: =IF(EPVA!AJ10="","",EPVA!AJ10) ->  | AH136: =IF(EPVA!AK10="","",EPVA!AK10) ->  | AI136: =IF(EPVA!AL10="","",EPVA!AL10) ->  | AJ136: =IF(EPVA!AM10="","",EPVA!AM10) ->  | AK136: =IF(EPVA!AN10="","",EPVA!AN10) ->  | AL136: =IF(EPVA!AO10="","",EPVA!AO10) ->  | AM136: =IF(EPVA!AP10="","",EPVA!AP10) -> 
D137: Criterio Evaluación 3.2 | E137: =IF(EPVA!H11="","",EPVA!H11) ->  | F137: =IF(EPVA!I11="","",EPVA!I11) ->  | G137: =IF(EPVA!J11="","",EPVA!J11) ->  | H137: =IF(EPVA!K11="","",EPVA!K11) ->  | I137: =IF(EPVA!L11="","",EPVA!L11) ->  | J137: =IF(EPVA!M11="","",EPVA!M11) ->  | K137: =IF(EPVA!N11="","",EPVA!N11) ->  | L137: =IF(EPVA!O11="","",EPVA!O11) ->  | M137: =IF(EPVA!P11="","",EPVA!P11) ->  | N137: =IF(EPVA!Q11="","",EPVA!Q11) ->  | O137: =IF(EPVA!R11="","",EPVA!R11) ->  | P137: =IF(EPVA!S11="","",EPVA!S11) ->  | Q137: =IF(EPVA!T11="","",EPVA!T11) ->  | R137: =IF(EPVA!U11="","",EPVA!U11) ->  | S137: =IF(EPVA!V11="","",EPVA!V11) ->  | T137: =IF(EPVA!W11="","",EPVA!W11) ->  | U137: =IF(EPVA!X11="","",EPVA!X11) ->  | V137: =IF(EPVA!Y11="","",EPVA!Y11) ->  | W137: =IF(EPVA!Z11="","",EPVA!Z11) ->  | X137: =IF(EPVA!AA11="","",EPVA!AA11) ->  | Y137: =IF(EPVA!AB11="","",EPVA!AB11) ->  | Z137: =IF(EPVA!AC11="","",EPVA!AC11) ->  | AA137: =IF(EPVA!AD11="","",EPVA!AD11) ->  | AB137: =IF(EPVA!AE11="","",EPVA!AE11) ->  | AC137: =IF(EPVA!AF11="","",EPVA!AF11) ->  | AD137: =IF(EPVA!AG11="","",EPVA!AG11) ->  | AE137: =IF(EPVA!AH11="","",EPVA!AH11) ->  | AF137: =IF(EPVA!AI11="","",EPVA!AI11) ->  | AG137: =IF(EPVA!AJ11="","",EPVA!AJ11) ->  | AH137: =IF(EPVA!AK11="","",EPVA!AK11) ->  | AI137: =IF(EPVA!AL11="","",EPVA!AL11) ->  | AJ137: =IF(EPVA!AM11="","",EPVA!AM11) ->  | AK137: =IF(EPVA!AN11="","",EPVA!AN11) ->  | AL137: =IF(EPVA!AO11="","",EPVA!AO11) ->  | AM137: =IF(EPVA!AP11="","",EPVA!AP11) -> 
D138: Criterio Evaluación 3.3 | E138: =IF(EPVA!H12="","",EPVA!H12) ->  | F138: =IF(EPVA!I12="","",EPVA!I12) ->  | G138: =IF(EPVA!J12="","",EPVA!J12) ->  | H138: =IF(EPVA!K12="","",EPVA!K12) ->  | I138: =IF(EPVA!L12="","",EPVA!L12) ->  | J138: =IF(EPVA!M12="","",EPVA!M12) ->  | K138: =IF(EPVA!N12="","",EPVA!N12) ->  | L138: =IF(EPVA!O12="","",EPVA!O12) ->  | M138: =IF(EPVA!P12="","",EPVA!P12) ->  | N138: =IF(EPVA!Q12="","",EPVA!Q12) ->  | O138: =IF(EPVA!R12="","",EPVA!R12) ->  | P138: =IF(EPVA!S12="","",EPVA!S12) ->  | Q138: =IF(EPVA!T12="","",EPVA!T12) ->  | R138: =IF(EPVA!U12="","",EPVA!U12) ->  | S138: =IF(EPVA!V12="","",EPVA!V12) ->  | T138: =IF(EPVA!W12="","",EPVA!W12) ->  | U138: =IF(EPVA!X12="","",EPVA!X12) ->  | V138: =IF(EPVA!Y12="","",EPVA!Y12) ->  | W138: =IF(EPVA!Z12="","",EPVA!Z12) ->  | X138: =IF(EPVA!AA12="","",EPVA!AA12) ->  | Y138: =IF(EPVA!AB12="","",EPVA!AB12) ->  | Z138: =IF(EPVA!AC12="","",EPVA!AC12) ->  | AA138: =IF(EPVA!AD12="","",EPVA!AD12) ->  | AB138: =IF(EPVA!AE12="","",EPVA!AE12) ->  | AC138: =IF(EPVA!AF12="","",EPVA!AF12) ->  | AD138: =IF(EPVA!AG12="","",EPVA!AG12) ->  | AE138: =IF(EPVA!AH12="","",EPVA!AH12) ->  | AF138: =IF(EPVA!AI12="","",EPVA!AI12) ->  | AG138: =IF(EPVA!AJ12="","",EPVA!AJ12) ->  | AH138: =IF(EPVA!AK12="","",EPVA!AK12) ->  | AI138: =IF(EPVA!AL12="","",EPVA!AL12) ->  | AJ138: =IF(EPVA!AM12="","",EPVA!AM12) ->  | AK138: =IF(EPVA!AN12="","",EPVA!AN12) ->  | AL138: =IF(EPVA!AO12="","",EPVA!AO12) ->  | AM138: =IF(EPVA!AP12="","",EPVA!AP12) -> 
D139: Criterio Evaluación 3.4 | E139: =IF(EPVA!H13="","",EPVA!H13) ->  | F139: =IF(EPVA!I13="","",EPVA!I13) ->  | G139: =IF(EPVA!J13="","",EPVA!J13) ->  | H139: =IF(EPVA!K13="","",EPVA!K13) ->  | I139: =IF(EPVA!L13="","",EPVA!L13) ->  | J139: =IF(EPVA!M13="","",EPVA!M13) ->  | K139: =IF(EPVA!N13="","",EPVA!N13) ->  | L139: =IF(EPVA!O13="","",EPVA!O13) ->  | M139: =IF(EPVA!P13="","",EPVA!P13) ->  | N139: =IF(EPVA!Q13="","",EPVA!Q13) ->  | O139: =IF(EPVA!R13="","",EPVA!R13) ->  | P139: =IF(EPVA!S13="","",EPVA!S13) ->  | Q139: =IF(EPVA!T13="","",EPVA!T13) ->  | R139: =IF(EPVA!U13="","",EPVA!U13) ->  | S139: =IF(EPVA!V13="","",EPVA!V13) ->  | T139: =IF(EPVA!W13="","",EPVA!W13) ->  | U139: =IF(EPVA!X13="","",EPVA!X13) ->  | V139: =IF(EPVA!Y13="","",EPVA!Y13) ->  | W139: =IF(EPVA!Z13="","",EPVA!Z13) ->  | X139: =IF(EPVA!AA13="","",EPVA!AA13) ->  | Y139: =IF(EPVA!AB13="","",EPVA!AB13) ->  | Z139: =IF(EPVA!AC13="","",EPVA!AC13) ->  | AA139: =IF(EPVA!AD13="","",EPVA!AD13) ->  | AB139: =IF(EPVA!AE13="","",EPVA!AE13) ->  | AC139: =IF(EPVA!AF13="","",EPVA!AF13) ->  | AD139: =IF(EPVA!AG13="","",EPVA!AG13) ->  | AE139: =IF(EPVA!AH13="","",EPVA!AH13) ->  | AF139: =IF(EPVA!AI13="","",EPVA!AI13) ->  | AG139: =IF(EPVA!AJ13="","",EPVA!AJ13) ->  | AH139: =IF(EPVA!AK13="","",EPVA!AK13) ->  | AI139: =IF(EPVA!AL13="","",EPVA!AL13) ->  | AJ139: =IF(EPVA!AM13="","",EPVA!AM13) ->  | AK139: =IF(EPVA!AN13="","",EPVA!AN13) ->  | AL139: =IF(EPVA!AO13="","",EPVA!AO13) ->  | AM139: =IF(EPVA!AP13="","",EPVA!AP13) -> 
C140: Comp. Esp. 4 | D140: Criterio Evaluación 4.1 | E140: =IF(EPVA!H14="","",EPVA!H14) ->  | F140: =IF(EPVA!I14="","",EPVA!I14) ->  | G140: =IF(EPVA!J14="","",EPVA!J14) ->  | H140: =IF(EPVA!K14="","",EPVA!K14) ->  | I140: =IF(EPVA!L14="","",EPVA!L14) ->  | J140: =IF(EPVA!M14="","",EPVA!M14) ->  | K140: =IF(EPVA!N14="","",EPVA!N14) ->  | L140: =IF(EPVA!O14="","",EPVA!O14) ->  | M140: =IF(EPVA!P14="","",EPVA!P14) ->  | N140: =IF(EPVA!Q14="","",EPVA!Q14) ->  | O140: =IF(EPVA!R14="","",EPVA!R14) ->  | P140: =IF(EPVA!S14="","",EPVA!S14) ->  | Q140: =IF(EPVA!T14="","",EPVA!T14) ->  | R140: =IF(EPVA!U14="","",EPVA!U14) ->  | S140: =IF(EPVA!V14="","",EPVA!V14) ->  | T140: =IF(EPVA!W14="","",EPVA!W14) ->  | U140: =IF(EPVA!X14="","",EPVA!X14) ->  | V140: =IF(EPVA!Y14="","",EPVA!Y14) ->  | W140: =IF(EPVA!Z14="","",EPVA!Z14) ->  | X140: =IF(EPVA!AA14="","",EPVA!AA14) ->  | Y140: =IF(EPVA!AB14="","",EPVA!AB14) ->  | Z140: =IF(EPVA!AC14="","",EPVA!AC14) ->  | AA140: =IF(EPVA!AD14="","",EPVA!AD14) ->  | AB140: =IF(EPVA!AE14="","",EPVA!AE14) ->  | AC140: =IF(EPVA!AF14="","",EPVA!AF14) ->  | AD140: =IF(EPVA!AG14="","",EPVA!AG14) ->  | AE140: =IF(EPVA!AH14="","",EPVA!AH14) ->  | AF140: =IF(EPVA!AI14="","",EPVA!AI14) ->  | AG140: =IF(EPVA!AJ14="","",EPVA!AJ14) ->  | AH140: =IF(EPVA!AK14="","",EPVA!AK14) ->  | AI140: =IF(EPVA!AL14="","",EPVA!AL14) ->  | AJ140: =IF(EPVA!AM14="","",EPVA!AM14) ->  | AK140: =IF(EPVA!AN14="","",EPVA!AN14) ->  | AL140: =IF(EPVA!AO14="","",EPVA!AO14) ->  | AM140: =IF(EPVA!AP14="","",EPVA!AP14) -> 
D141: Criterio Evaluación 4.2 | E141: =IF(EPVA!H15="","",EPVA!H15) ->  | F141: =IF(EPVA!I15="","",EPVA!I15) ->  | G141: =IF(EPVA!J15="","",EPVA!J15) ->  | H141: =IF(EPVA!K15="","",EPVA!K15) ->  | I141: =IF(EPVA!L15="","",EPVA!L15) ->  | J141: =IF(EPVA!M15="","",EPVA!M15) ->  | K141: =IF(EPVA!N15="","",EPVA!N15) ->  | L141: =IF(EPVA!O15="","",EPVA!O15) ->  | M141: =IF(EPVA!P15="","",EPVA!P15) ->  | N141: =IF(EPVA!Q15="","",EPVA!Q15) ->  | O141: =IF(EPVA!R15="","",EPVA!R15) ->  | P141: =IF(EPVA!S15="","",EPVA!S15) ->  | Q141: =IF(EPVA!T15="","",EPVA!T15) ->  | R141: =IF(EPVA!U15="","",EPVA!U15) ->  | S141: =IF(EPVA!V15="","",EPVA!V15) ->  | T141: =IF(EPVA!W15="","",EPVA!W15) ->  | U141: =IF(EPVA!X15="","",EPVA!X15) ->  | V141: =IF(EPVA!Y15="","",EPVA!Y15) ->  | W141: =IF(EPVA!Z15="","",EPVA!Z15) ->  | X141: =IF(EPVA!AA15="","",EPVA!AA15) ->  | Y141: =IF(EPVA!AB15="","",EPVA!AB15) ->  | Z141: =IF(EPVA!AC15="","",EPVA!AC15) ->  | AA141: =IF(EPVA!AD15="","",EPVA!AD15) ->  | AB141: =IF(EPVA!AE15="","",EPVA!AE15) ->  | AC141: =IF(EPVA!AF15="","",EPVA!AF15) ->  | AD141: =IF(EPVA!AG15="","",EPVA!AG15) ->  | AE141: =IF(EPVA!AH15="","",EPVA!AH15) ->  | AF141: =IF(EPVA!AI15="","",EPVA!AI15) ->  | AG141: =IF(EPVA!AJ15="","",EPVA!AJ15) ->  | AH141: =IF(EPVA!AK15="","",EPVA!AK15) ->  | AI141: =IF(EPVA!AL15="","",EPVA!AL15) ->  | AJ141: =IF(EPVA!AM15="","",EPVA!AM15) ->  | AK141: =IF(EPVA!AN15="","",EPVA!AN15) ->  | AL141: =IF(EPVA!AO15="","",EPVA!AO15) ->  | AM141: =IF(EPVA!AP15="","",EPVA!AP15) -> 
C142: Comp. Esp. 5 | D142: Criterio Evaluación 5.1 | E142: =IF(EPVA!H16="","",EPVA!H16) ->  | F142: =IF(EPVA!I16="","",EPVA!I16) ->  | G142: =IF(EPVA!J16="","",EPVA!J16) ->  | H142: =IF(EPVA!K16="","",EPVA!K16) ->  | I142: =IF(EPVA!L16="","",EPVA!L16) ->  | J142: =IF(EPVA!M16="","",EPVA!M16) ->  | K142: =IF(EPVA!N16="","",EPVA!N16) ->  | L142: =IF(EPVA!O16="","",EPVA!O16) ->  | M142: =IF(EPVA!P16="","",EPVA!P16) ->  | N142: =IF(EPVA!Q16="","",EPVA!Q16) ->  | O142: =IF(EPVA!R16="","",EPVA!R16) ->  | P142: =IF(EPVA!S16="","",EPVA!S16) ->  | Q142: =IF(EPVA!T16="","",EPVA!T16) ->  | R142: =IF(EPVA!U16="","",EPVA!U16) ->  | S142: =IF(EPVA!V16="","",EPVA!V16) ->  | T142: =IF(EPVA!W16="","",EPVA!W16) ->  | U142: =IF(EPVA!X16="","",EPVA!X16) ->  | V142: =IF(EPVA!Y16="","",EPVA!Y16) ->  | W142: =IF(EPVA!Z16="","",EPVA!Z16) ->  | X142: =IF(EPVA!AA16="","",EPVA!AA16) ->  | Y142: =IF(EPVA!AB16="","",EPVA!AB16) ->  | Z142: =IF(EPVA!AC16="","",EPVA!AC16) ->  | AA142: =IF(EPVA!AD16="","",EPVA!AD16) ->  | AB142: =IF(EPVA!AE16="","",EPVA!AE16) ->  | AC142: =IF(EPVA!AF16="","",EPVA!AF16) ->  | AD142: =IF(EPVA!AG16="","",EPVA!AG16) ->  | AE142: =IF(EPVA!AH16="","",EPVA!AH16) ->  | AF142: =IF(EPVA!AI16="","",EPVA!AI16) ->  | AG142: =IF(EPVA!AJ16="","",EPVA!AJ16) ->  | AH142: =IF(EPVA!AK16="","",EPVA!AK16) ->  | AI142: =IF(EPVA!AL16="","",EPVA!AL16) ->  | AJ142: =IF(EPVA!AM16="","",EPVA!AM16) ->  | AK142: =IF(EPVA!AN16="","",EPVA!AN16) ->  | AL142: =IF(EPVA!AO16="","",EPVA!AO16) ->  | AM142: =IF(EPVA!AP16="","",EPVA!AP16) -> 
D143: Criterio Evaluación 5.2 | E143: =IF(EPVA!H17="","",EPVA!H17) ->  | F143: =IF(EPVA!I17="","",EPVA!I17) ->  | G143: =IF(EPVA!J17="","",EPVA!J17) ->  | H143: =IF(EPVA!K17="","",EPVA!K17) ->  | I143: =IF(EPVA!L17="","",EPVA!L17) ->  | J143: =IF(EPVA!M17="","",EPVA!M17) ->  | K143: =IF(EPVA!N17="","",EPVA!N17) ->  | L143: =IF(EPVA!O17="","",EPVA!O17) ->  | M143: =IF(EPVA!P17="","",EPVA!P17) ->  | N143: =IF(EPVA!Q17="","",EPVA!Q17) ->  | O143: =IF(EPVA!R17="","",EPVA!R17) ->  | P143: =IF(EPVA!S17="","",EPVA!S17) ->  | Q143: =IF(EPVA!T17="","",EPVA!T17) ->  | R143: =IF(EPVA!U17="","",EPVA!U17) ->  | S143: =IF(EPVA!V17="","",EPVA!V17) ->  | T143: =IF(EPVA!W17="","",EPVA!W17) ->  | U143: =IF(EPVA!X17="","",EPVA!X17) ->  | V143: =IF(EPVA!Y17="","",EPVA!Y17) ->  | W143: =IF(EPVA!Z17="","",EPVA!Z17) ->  | X143: =IF(EPVA!AA17="","",EPVA!AA17) ->  | Y143: =IF(EPVA!AB17="","",EPVA!AB17) ->  | Z143: =IF(EPVA!AC17="","",EPVA!AC17) ->  | AA143: =IF(EPVA!AD17="","",EPVA!AD17) ->  | AB143: =IF(EPVA!AE17="","",EPVA!AE17) ->  | AC143: =IF(EPVA!AF17="","",EPVA!AF17) ->  | AD143: =IF(EPVA!AG17="","",EPVA!AG17) ->  | AE143: =IF(EPVA!AH17="","",EPVA!AH17) ->  | AF143: =IF(EPVA!AI17="","",EPVA!AI17) ->  | AG143: =IF(EPVA!AJ17="","",EPVA!AJ17) ->  | AH143: =IF(EPVA!AK17="","",EPVA!AK17) ->  | AI143: =IF(EPVA!AL17="","",EPVA!AL17) ->  | AJ143: =IF(EPVA!AM17="","",EPVA!AM17) ->  | AK143: =IF(EPVA!AN17="","",EPVA!AN17) ->  | AL143: =IF(EPVA!AO17="","",EPVA!AO17) ->  | AM143: =IF(EPVA!AP17="","",EPVA!AP17) -> 
D144: Criterio Evaluación 5.3 | E144: =IF(EPVA!H18="","",EPVA!H18) ->  | F144: =IF(EPVA!I18="","",EPVA!I18) ->  | G144: =IF(EPVA!J18="","",EPVA!J18) ->  | H144: =IF(EPVA!K18="","",EPVA!K18) ->  | I144: =IF(EPVA!L18="","",EPVA!L18) ->  | J144: =IF(EPVA!M18="","",EPVA!M18) ->  | K144: =IF(EPVA!N18="","",EPVA!N18) ->  | L144: =IF(EPVA!O18="","",EPVA!O18) ->  | M144: =IF(EPVA!P18="","",EPVA!P18) ->  | N144: =IF(EPVA!Q18="","",EPVA!Q18) ->  | O144: =IF(EPVA!R18="","",EPVA!R18) ->  | P144: =IF(EPVA!S18="","",EPVA!S18) ->  | Q144: =IF(EPVA!T18="","",EPVA!T18) ->  | R144: =IF(EPVA!U18="","",EPVA!U18) ->  | S144: =IF(EPVA!V18="","",EPVA!V18) ->  | T144: =IF(EPVA!W18="","",EPVA!W18) ->  | U144: =IF(EPVA!X18="","",EPVA!X18) ->  | V144: =IF(EPVA!Y18="","",EPVA!Y18) ->  | W144: =IF(EPVA!Z18="","",EPVA!Z18) ->  | X144: =IF(EPVA!AA18="","",EPVA!AA18) ->  | Y144: =IF(EPVA!AB18="","",EPVA!AB18) ->  | Z144: =IF(EPVA!AC18="","",EPVA!AC18) ->  | AA144: =IF(EPVA!AD18="","",EPVA!AD18) ->  | AB144: =IF(EPVA!AE18="","",EPVA!AE18) ->  | AC144: =IF(EPVA!AF18="","",EPVA!AF18) ->  | AD144: =IF(EPVA!AG18="","",EPVA!AG18) ->  | AE144: =IF(EPVA!AH18="","",EPVA!AH18) ->  | AF144: =IF(EPVA!AI18="","",EPVA!AI18) ->  | AG144: =IF(EPVA!AJ18="","",EPVA!AJ18) ->  | AH144: =IF(EPVA!AK18="","",EPVA!AK18) ->  | AI144: =IF(EPVA!AL18="","",EPVA!AL18) ->  | AJ144: =IF(EPVA!AM18="","",EPVA!AM18) ->  | AK144: =IF(EPVA!AN18="","",EPVA!AN18) ->  | AL144: =IF(EPVA!AO18="","",EPVA!AO18) ->  | AM144: =IF(EPVA!AP18="","",EPVA!AP18) -> 
C145: Comp. Esp. 6 | D145: Criterio Evaluación 6.1 | E145: =IF(EPVA!H19="","",EPVA!H19) ->  | F145: =IF(EPVA!I19="","",EPVA!I19) ->  | G145: =IF(EPVA!J19="","",EPVA!J19) ->  | H145: =IF(EPVA!K19="","",EPVA!K19) ->  | I145: =IF(EPVA!L19="","",EPVA!L19) ->  | J145: =IF(EPVA!M19="","",EPVA!M19) ->  | K145: =IF(EPVA!N19="","",EPVA!N19) ->  | L145: =IF(EPVA!O19="","",EPVA!O19) ->  | M145: =IF(EPVA!P19="","",EPVA!P19) ->  | N145: =IF(EPVA!Q19="","",EPVA!Q19) ->  | O145: =IF(EPVA!R19="","",EPVA!R19) ->  | P145: =IF(EPVA!S19="","",EPVA!S19) ->  | Q145: =IF(EPVA!T19="","",EPVA!T19) ->  | R145: =IF(EPVA!U19="","",EPVA!U19) ->  | S145: =IF(EPVA!V19="","",EPVA!V19) ->  | T145: =IF(EPVA!W19="","",EPVA!W19) ->  | U145: =IF(EPVA!X19="","",EPVA!X19) ->  | V145: =IF(EPVA!Y19="","",EPVA!Y19) ->  | W145: =IF(EPVA!Z19="","",EPVA!Z19) ->  | X145: =IF(EPVA!AA19="","",EPVA!AA19) ->  | Y145: =IF(EPVA!AB19="","",EPVA!AB19) ->  | Z145: =IF(EPVA!AC19="","",EPVA!AC19) ->  | AA145: =IF(EPVA!AD19="","",EPVA!AD19) ->  | AB145: =IF(EPVA!AE19="","",EPVA!AE19) ->  | AC145: =IF(EPVA!AF19="","",EPVA!AF19) ->  | AD145: =IF(EPVA!AG19="","",EPVA!AG19) ->  | AE145: =IF(EPVA!AH19="","",EPVA!AH19) ->  | AF145: =IF(EPVA!AI19="","",EPVA!AI19) ->  | AG145: =IF(EPVA!AJ19="","",EPVA!AJ19) ->  | AH145: =IF(EPVA!AK19="","",EPVA!AK19) ->  | AI145: =IF(EPVA!AL19="","",EPVA!AL19) ->  | AJ145: =IF(EPVA!AM19="","",EPVA!AM19) ->  | AK145: =IF(EPVA!AN19="","",EPVA!AN19) ->  | AL145: =IF(EPVA!AO19="","",EPVA!AO19) ->  | AM145: =IF(EPVA!AP19="","",EPVA!AP19) -> 
D146: Criterio Evaluación 6.2 | E146: =IF(EPVA!H20="","",EPVA!H20) ->  | F146: =IF(EPVA!I20="","",EPVA!I20) ->  | G146: =IF(EPVA!J20="","",EPVA!J20) ->  | H146: =IF(EPVA!K20="","",EPVA!K20) ->  | I146: =IF(EPVA!L20="","",EPVA!L20) ->  | J146: =IF(EPVA!M20="","",EPVA!M20) ->  | K146: =IF(EPVA!N20="","",EPVA!N20) ->  | L146: =IF(EPVA!O20="","",EPVA!O20) ->  | M146: =IF(EPVA!P20="","",EPVA!P20) ->  | N146: =IF(EPVA!Q20="","",EPVA!Q20) ->  | O146: =IF(EPVA!R20="","",EPVA!R20) ->  | P146: =IF(EPVA!S20="","",EPVA!S20) ->  | Q146: =IF(EPVA!T20="","",EPVA!T20) ->  | R146: =IF(EPVA!U20="","",EPVA!U20) ->  | S146: =IF(EPVA!V20="","",EPVA!V20) ->  | T146: =IF(EPVA!W20="","",EPVA!W20) ->  | U146: =IF(EPVA!X20="","",EPVA!X20) ->  | V146: =IF(EPVA!Y20="","",EPVA!Y20) ->  | W146: =IF(EPVA!Z20="","",EPVA!Z20) ->  | X146: =IF(EPVA!AA20="","",EPVA!AA20) ->  | Y146: =IF(EPVA!AB20="","",EPVA!AB20) ->  | Z146: =IF(EPVA!AC20="","",EPVA!AC20) ->  | AA146: =IF(EPVA!AD20="","",EPVA!AD20) ->  | AB146: =IF(EPVA!AE20="","",EPVA!AE20) ->  | AC146: =IF(EPVA!AF20="","",EPVA!AF20) ->  | AD146: =IF(EPVA!AG20="","",EPVA!AG20) ->  | AE146: =IF(EPVA!AH20="","",EPVA!AH20) ->  | AF146: =IF(EPVA!AI20="","",EPVA!AI20) ->  | AG146: =IF(EPVA!AJ20="","",EPVA!AJ20) ->  | AH146: =IF(EPVA!AK20="","",EPVA!AK20) ->  | AI146: =IF(EPVA!AL20="","",EPVA!AL20) ->  | AJ146: =IF(EPVA!AM20="","",EPVA!AM20) ->  | AK146: =IF(EPVA!AN20="","",EPVA!AN20) ->  | AL146: =IF(EPVA!AO20="","",EPVA!AO20) ->  | AM146: =IF(EPVA!AP20="","",EPVA!AP20) -> 
C147: Comp. Esp. 7 | D147: Criterio Evaluación 7.1 | E147: =IF(EPVA!H21="","",EPVA!H21) ->  | F147: =IF(EPVA!I21="","",EPVA!I21) ->  | G147: =IF(EPVA!J21="","",EPVA!J21) ->  | H147: =IF(EPVA!K21="","",EPVA!K21) ->  | I147: =IF(EPVA!L21="","",EPVA!L21) ->  | J147: =IF(EPVA!M21="","",EPVA!M21) ->  | K147: =IF(EPVA!N21="","",EPVA!N21) ->  | L147: =IF(EPVA!O21="","",EPVA!O21) ->  | M147: =IF(EPVA!P21="","",EPVA!P21) ->  | N147: =IF(EPVA!Q21="","",EPVA!Q21) ->  | O147: =IF(EPVA!R21="","",EPVA!R21) ->  | P147: =IF(EPVA!S21="","",EPVA!S21) ->  | Q147: =IF(EPVA!T21="","",EPVA!T21) ->  | R147: =IF(EPVA!U21="","",EPVA!U21) ->  | S147: =IF(EPVA!V21="","",EPVA!V21) ->  | T147: =IF(EPVA!W21="","",EPVA!W21) ->  | U147: =IF(EPVA!X21="","",EPVA!X21) ->  | V147: =IF(EPVA!Y21="","",EPVA!Y21) ->  | W147: =IF(EPVA!Z21="","",EPVA!Z21) ->  | X147: =IF(EPVA!AA21="","",EPVA!AA21) ->  | Y147: =IF(EPVA!AB21="","",EPVA!AB21) ->  | Z147: =IF(EPVA!AC21="","",EPVA!AC21) ->  | AA147: =IF(EPVA!AD21="","",EPVA!AD21) ->  | AB147: =IF(EPVA!AE21="","",EPVA!AE21) ->  | AC147: =IF(EPVA!AF21="","",EPVA!AF21) ->  | AD147: =IF(EPVA!AG21="","",EPVA!AG21) ->  | AE147: =IF(EPVA!AH21="","",EPVA!AH21) ->  | AF147: =IF(EPVA!AI21="","",EPVA!AI21) ->  | AG147: =IF(EPVA!AJ21="","",EPVA!AJ21) ->  | AH147: =IF(EPVA!AK21="","",EPVA!AK21) ->  | AI147: =IF(EPVA!AL21="","",EPVA!AL21) ->  | AJ147: =IF(EPVA!AM21="","",EPVA!AM21) ->  | AK147: =IF(EPVA!AN21="","",EPVA!AN21) ->  | AL147: =IF(EPVA!AO21="","",EPVA!AO21) ->  | AM147: =IF(EPVA!AP21="","",EPVA!AP21) -> 
D148: Criterio Evaluación 7.2 | E148: =IF(EPVA!H22="","",EPVA!H22) ->  | F148: =IF(EPVA!I22="","",EPVA!I22) ->  | G148: =IF(EPVA!J22="","",EPVA!J22) ->  | H148: =IF(EPVA!K22="","",EPVA!K22) ->  | I148: =IF(EPVA!L22="","",EPVA!L22) ->  | J148: =IF(EPVA!M22="","",EPVA!M22) ->  | K148: =IF(EPVA!N22="","",EPVA!N22) ->  | L148: =IF(EPVA!O22="","",EPVA!O22) ->  | M148: =IF(EPVA!P22="","",EPVA!P22) ->  | N148: =IF(EPVA!Q22="","",EPVA!Q22) ->  | O148: =IF(EPVA!R22="","",EPVA!R22) ->  | P148: =IF(EPVA!S22="","",EPVA!S22) ->  | Q148: =IF(EPVA!T22="","",EPVA!T22) ->  | R148: =IF(EPVA!U22="","",EPVA!U22) ->  | S148: =IF(EPVA!V22="","",EPVA!V22) ->  | T148: =IF(EPVA!W22="","",EPVA!W22) ->  | U148: =IF(EPVA!X22="","",EPVA!X22) ->  | V148: =IF(EPVA!Y22="","",EPVA!Y22) ->  | W148: =IF(EPVA!Z22="","",EPVA!Z22) ->  | X148: =IF(EPVA!AA22="","",EPVA!AA22) ->  | Y148: =IF(EPVA!AB22="","",EPVA!AB22) ->  | Z148: =IF(EPVA!AC22="","",EPVA!AC22) ->  | AA148: =IF(EPVA!AD22="","",EPVA!AD22) ->  | AB148: =IF(EPVA!AE22="","",EPVA!AE22) ->  | AC148: =IF(EPVA!AF22="","",EPVA!AF22) ->  | AD148: =IF(EPVA!AG22="","",EPVA!AG22) ->  | AE148: =IF(EPVA!AH22="","",EPVA!AH22) ->  | AF148: =IF(EPVA!AI22="","",EPVA!AI22) ->  | AG148: =IF(EPVA!AJ22="","",EPVA!AJ22) ->  | AH148: =IF(EPVA!AK22="","",EPVA!AK22) ->  | AI148: =IF(EPVA!AL22="","",EPVA!AL22) ->  | AJ148: =IF(EPVA!AM22="","",EPVA!AM22) ->  | AK148: =IF(EPVA!AN22="","",EPVA!AN22) ->  | AL148: =IF(EPVA!AO22="","",EPVA!AO22) ->  | AM148: =IF(EPVA!AP22="","",EPVA!AP22) -> 
D149: Criterio Evaluación 7.3 | E149: =IF(EPVA!H23="","",EPVA!H23) ->  | F149: =IF(EPVA!I23="","",EPVA!I23) ->  | G149: =IF(EPVA!J23="","",EPVA!J23) ->  | H149: =IF(EPVA!K23="","",EPVA!K23) ->  | I149: =IF(EPVA!L23="","",EPVA!L23) ->  | J149: =IF(EPVA!M23="","",EPVA!M23) ->  | K149: =IF(EPVA!N23="","",EPVA!N23) ->  | L149: =IF(EPVA!O23="","",EPVA!O23) ->  | M149: =IF(EPVA!P23="","",EPVA!P23) ->  | N149: =IF(EPVA!Q23="","",EPVA!Q23) ->  | O149: =IF(EPVA!R23="","",EPVA!R23) ->  | P149: =IF(EPVA!S23="","",EPVA!S23) ->  | Q149: =IF(EPVA!T23="","",EPVA!T23) ->  | R149: =IF(EPVA!U23="","",EPVA!U23) ->  | S149: =IF(EPVA!V23="","",EPVA!V23) ->  | T149: =IF(EPVA!W23="","",EPVA!W23) ->  | U149: =IF(EPVA!X23="","",EPVA!X23) ->  | V149: =IF(EPVA!Y23="","",EPVA!Y23) ->  | W149: =IF(EPVA!Z23="","",EPVA!Z23) ->  | X149: =IF(EPVA!AA23="","",EPVA!AA23) ->  | Y149: =IF(EPVA!AB23="","",EPVA!AB23) ->  | Z149: =IF(EPVA!AC23="","",EPVA!AC23) ->  | AA149: =IF(EPVA!AD23="","",EPVA!AD23) ->  | AB149: =IF(EPVA!AE23="","",EPVA!AE23) ->  | AC149: =IF(EPVA!AF23="","",EPVA!AF23) ->  | AD149: =IF(EPVA!AG23="","",EPVA!AG23) ->  | AE149: =IF(EPVA!AH23="","",EPVA!AH23) ->  | AF149: =IF(EPVA!AI23="","",EPVA!AI23) ->  | AG149: =IF(EPVA!AJ23="","",EPVA!AJ23) ->  | AH149: =IF(EPVA!AK23="","",EPVA!AK23) ->  | AI149: =IF(EPVA!AL23="","",EPVA!AL23) ->  | AJ149: =IF(EPVA!AM23="","",EPVA!AM23) ->  | AK149: =IF(EPVA!AN23="","",EPVA!AN23) ->  | AL149: =IF(EPVA!AO23="","",EPVA!AO23) ->  | AM149: =IF(EPVA!AP23="","",EPVA!AP23) -> 
D150: Criterio Evaluación 7.4 | E150: =IF(EPVA!H24="","",EPVA!H24) ->  | F150: =IF(EPVA!I24="","",EPVA!I24) ->  | G150: =IF(EPVA!J24="","",EPVA!J24) ->  | H150: =IF(EPVA!K24="","",EPVA!K24) ->  | I150: =IF(EPVA!L24="","",EPVA!L24) ->  | J150: =IF(EPVA!M24="","",EPVA!M24) ->  | K150: =IF(EPVA!N24="","",EPVA!N24) ->  | L150: =IF(EPVA!O24="","",EPVA!O24) ->  | M150: =IF(EPVA!P24="","",EPVA!P24) ->  | N150: =IF(EPVA!Q24="","",EPVA!Q24) ->  | O150: =IF(EPVA!R24="","",EPVA!R24) ->  | P150: =IF(EPVA!S24="","",EPVA!S24) ->  | Q150: =IF(EPVA!T24="","",EPVA!T24) ->  | R150: =IF(EPVA!U24="","",EPVA!U24) ->  | S150: =IF(EPVA!V24="","",EPVA!V24) ->  | T150: =IF(EPVA!W24="","",EPVA!W24) ->  | U150: =IF(EPVA!X24="","",EPVA!X24) ->  | V150: =IF(EPVA!Y24="","",EPVA!Y24) ->  | W150: =IF(EPVA!Z24="","",EPVA!Z24) ->  | X150: =IF(EPVA!AA24="","",EPVA!AA24) ->  | Y150: =IF(EPVA!AB24="","",EPVA!AB24) ->  | Z150: =IF(EPVA!AC24="","",EPVA!AC24) ->  | AA150: =IF(EPVA!AD24="","",EPVA!AD24) ->  | AB150: =IF(EPVA!AE24="","",EPVA!AE24) ->  | AC150: =IF(EPVA!AF24="","",EPVA!AF24) ->  | AD150: =IF(EPVA!AG24="","",EPVA!AG24) ->  | AE150: =IF(EPVA!AH24="","",EPVA!AH24) ->  | AF150: =IF(EPVA!AI24="","",EPVA!AI24) ->  | AG150: =IF(EPVA!AJ24="","",EPVA!AJ24) ->  | AH150: =IF(EPVA!AK24="","",EPVA!AK24) ->  | AI150: =IF(EPVA!AL24="","",EPVA!AL24) ->  | AJ150: =IF(EPVA!AM24="","",EPVA!AM24) ->  | AK150: =IF(EPVA!AN24="","",EPVA!AN24) ->  | AL150: =IF(EPVA!AO24="","",EPVA!AO24) ->  | AM150: =IF(EPVA!AP24="","",EPVA!AP24) -> 
C151: Comp. Esp. 8 | D151: Criterio Evaluación 8.1 | E151: =IF(EPVA!H25="","",EPVA!H25) ->  | F151: =IF(EPVA!I25="","",EPVA!I25) ->  | G151: =IF(EPVA!J25="","",EPVA!J25) ->  | H151: =IF(EPVA!K25="","",EPVA!K25) ->  | I151: =IF(EPVA!L25="","",EPVA!L25) ->  | J151: =IF(EPVA!M25="","",EPVA!M25) ->  | K151: =IF(EPVA!N25="","",EPVA!N25) ->  | L151: =IF(EPVA!O25="","",EPVA!O25) ->  | M151: =IF(EPVA!P25="","",EPVA!P25) ->  | N151: =IF(EPVA!Q25="","",EPVA!Q25) ->  | O151: =IF(EPVA!R25="","",EPVA!R25) ->  | P151: =IF(EPVA!S25="","",EPVA!S25) ->  | Q151: =IF(EPVA!T25="","",EPVA!T25) ->  | R151: =IF(EPVA!U25="","",EPVA!U25) ->  | S151: =IF(EPVA!V25="","",EPVA!V25) ->  | T151: =IF(EPVA!W25="","",EPVA!W25) ->  | U151: =IF(EPVA!X25="","",EPVA!X25) ->  | V151: =IF(EPVA!Y25="","",EPVA!Y25) ->  | W151: =IF(EPVA!Z25="","",EPVA!Z25) ->  | X151: =IF(EPVA!AA25="","",EPVA!AA25) ->  | Y151: =IF(EPVA!AB25="","",EPVA!AB25) ->  | Z151: =IF(EPVA!AC25="","",EPVA!AC25) ->  | AA151: =IF(EPVA!AD25="","",EPVA!AD25) ->  | AB151: =IF(EPVA!AE25="","",EPVA!AE25) ->  | AC151: =IF(EPVA!AF25="","",EPVA!AF25) ->  | AD151: =IF(EPVA!AG25="","",EPVA!AG25) ->  | AE151: =IF(EPVA!AH25="","",EPVA!AH25) ->  | AF151: =IF(EPVA!AI25="","",EPVA!AI25) ->  | AG151: =IF(EPVA!AJ25="","",EPVA!AJ25) ->  | AH151: =IF(EPVA!AK25="","",EPVA!AK25) ->  | AI151: =IF(EPVA!AL25="","",EPVA!AL25) ->  | AJ151: =IF(EPVA!AM25="","",EPVA!AM25) ->  | AK151: =IF(EPVA!AN25="","",EPVA!AN25) ->  | AL151: =IF(EPVA!AO25="","",EPVA!AO25) ->  | AM151: =IF(EPVA!AP25="","",EPVA!AP25) -> 
D152: Criterio Evaluación 8.2 | E152: =IF(EPVA!H26="","",EPVA!H26) ->  | F152: =IF(EPVA!I26="","",EPVA!I26) ->  | G152: =IF(EPVA!J26="","",EPVA!J26) ->  | H152: =IF(EPVA!K26="","",EPVA!K26) ->  | I152: =IF(EPVA!L26="","",EPVA!L26) ->  | J152: =IF(EPVA!M26="","",EPVA!M26) ->  | K152: =IF(EPVA!N26="","",EPVA!N26) ->  | L152: =IF(EPVA!O26="","",EPVA!O26) ->  | M152: =IF(EPVA!P26="","",EPVA!P26) ->  | N152: =IF(EPVA!Q26="","",EPVA!Q26) ->  | O152: =IF(EPVA!R26="","",EPVA!R26) ->  | P152: =IF(EPVA!S26="","",EPVA!S26) ->  | Q152: =IF(EPVA!T26="","",EPVA!T26) ->  | R152: =IF(EPVA!U26="","",EPVA!U26) ->  | S152: =IF(EPVA!V26="","",EPVA!V26) ->  | T152: =IF(EPVA!W26="","",EPVA!W26) ->  | U152: =IF(EPVA!X26="","",EPVA!X26) ->  | V152: =IF(EPVA!Y26="","",EPVA!Y26) ->  | W152: =IF(EPVA!Z26="","",EPVA!Z26) ->  | X152: =IF(EPVA!AA26="","",EPVA!AA26) ->  | Y152: =IF(EPVA!AB26="","",EPVA!AB26) ->  | Z152: =IF(EPVA!AC26="","",EPVA!AC26) ->  | AA152: =IF(EPVA!AD26="","",EPVA!AD26) ->  | AB152: =IF(EPVA!AE26="","",EPVA!AE26) ->  | AC152: =IF(EPVA!AF26="","",EPVA!AF26) ->  | AD152: =IF(EPVA!AG26="","",EPVA!AG26) ->  | AE152: =IF(EPVA!AH26="","",EPVA!AH26) ->  | AF152: =IF(EPVA!AI26="","",EPVA!AI26) ->  | AG152: =IF(EPVA!AJ26="","",EPVA!AJ26) ->  | AH152: =IF(EPVA!AK26="","",EPVA!AK26) ->  | AI152: =IF(EPVA!AL26="","",EPVA!AL26) ->  | AJ152: =IF(EPVA!AM26="","",EPVA!AM26) ->  | AK152: =IF(EPVA!AN26="","",EPVA!AN26) ->  | AL152: =IF(EPVA!AO26="","",EPVA!AO26) ->  | AM152: =IF(EPVA!AP26="","",EPVA!AP26) -> 
D153: Criterio Evaluación 8.3 | E153: =IF(EPVA!H27="","",EPVA!H27) ->  | F153: =IF(EPVA!I27="","",EPVA!I27) ->  | G153: =IF(EPVA!J27="","",EPVA!J27) ->  | H153: =IF(EPVA!K27="","",EPVA!K27) ->  | I153: =IF(EPVA!L27="","",EPVA!L27) ->  | J153: =IF(EPVA!M27="","",EPVA!M27) ->  | K153: =IF(EPVA!N27="","",EPVA!N27) ->  | L153: =IF(EPVA!O27="","",EPVA!O27) ->  | M153: =IF(EPVA!P27="","",EPVA!P27) ->  | N153: =IF(EPVA!Q27="","",EPVA!Q27) ->  | O153: =IF(EPVA!R27="","",EPVA!R27) ->  | P153: =IF(EPVA!S27="","",EPVA!S27) ->  | Q153: =IF(EPVA!T27="","",EPVA!T27) ->  | R153: =IF(EPVA!U27="","",EPVA!U27) ->  | S153: =IF(EPVA!V27="","",EPVA!V27) ->  | T153: =IF(EPVA!W27="","",EPVA!W27) ->  | U153: =IF(EPVA!X27="","",EPVA!X27) ->  | V153: =IF(EPVA!Y27="","",EPVA!Y27) ->  | W153: =IF(EPVA!Z27="","",EPVA!Z27) ->  | X153: =IF(EPVA!AA27="","",EPVA!AA27) ->  | Y153: =IF(EPVA!AB27="","",EPVA!AB27) ->  | Z153: =IF(EPVA!AC27="","",EPVA!AC27) ->  | AA153: =IF(EPVA!AD27="","",EPVA!AD27) ->  | AB153: =IF(EPVA!AE27="","",EPVA!AE27) ->  | AC153: =IF(EPVA!AF27="","",EPVA!AF27) ->  | AD153: =IF(EPVA!AG27="","",EPVA!AG27) ->  | AE153: =IF(EPVA!AH27="","",EPVA!AH27) ->  | AF153: =IF(EPVA!AI27="","",EPVA!AI27) ->  | AG153: =IF(EPVA!AJ27="","",EPVA!AJ27) ->  | AH153: =IF(EPVA!AK27="","",EPVA!AK27) ->  | AI153: =IF(EPVA!AL27="","",EPVA!AL27) ->  | AJ153: =IF(EPVA!AM27="","",EPVA!AM27) ->  | AK153: =IF(EPVA!AN27="","",EPVA!AN27) ->  | AL153: =IF(EPVA!AO27="","",EPVA!AO27) ->  | AM153: =IF(EPVA!AP27="","",EPVA!AP27) -> 
B154: Lengua Extranjera | C154: Comp. Esp. 1 | D154: Criterio Evaluación 1.1 | E154: =IF(LEX!H4="","",LEX!H4) ->  | F154: =IF(LEX!I4="","",LEX!I4) ->  | G154: =IF(LEX!J4="","",LEX!J4) ->  | H154: =IF(LEX!K4="","",LEX!K4) ->  | I154: =IF(LEX!L4="","",LEX!L4) ->  | J154: =IF(LEX!M4="","",LEX!M4) ->  | K154: =IF(LEX!N4="","",LEX!N4) ->  | L154: =IF(LEX!O4="","",LEX!O4) ->  | M154: =IF(LEX!P4="","",LEX!P4) ->  | N154: =IF(LEX!Q4="","",LEX!Q4) ->  | O154: =IF(LEX!R4="","",LEX!R4) ->  | P154: =IF(LEX!S4="","",LEX!S4) ->  | Q154: =IF(LEX!T4="","",LEX!T4) ->  | R154: =IF(LEX!U4="","",LEX!U4) ->  | S154: =IF(LEX!V4="","",LEX!V4) ->  | T154: =IF(LEX!W4="","",LEX!W4) ->  | U154: =IF(LEX!X4="","",LEX!X4) ->  | V154: =IF(LEX!Y4="","",LEX!Y4) ->  | W154: =IF(LEX!Z4="","",LEX!Z4) ->  | X154: =IF(LEX!AA4="","",LEX!AA4) ->  | Y154: =IF(LEX!AB4="","",LEX!AB4) ->  | Z154: =IF(LEX!AC4="","",LEX!AC4) ->  | AA154: =IF(LEX!AD4="","",LEX!AD4) ->  | AB154: =IF(LEX!AE4="","",LEX!AE4) ->  | AC154: =IF(LEX!AF4="","",LEX!AF4) ->  | AD154: =IF(LEX!AG4="","",LEX!AG4) ->  | AE154: =IF(LEX!AH4="","",LEX!AH4) ->  | AF154: =IF(LEX!AI4="","",LEX!AI4) ->  | AG154: =IF(LEX!AJ4="","",LEX!AJ4) ->  | AH154: =IF(LEX!AK4="","",LEX!AK4) ->  | AI154: =IF(LEX!AL4="","",LEX!AL4) ->  | AJ154: =IF(LEX!AM4="","",LEX!AM4) ->  | AK154: =IF(LEX!AN4="","",LEX!AN4) ->  | AL154: =IF(LEX!AO4="","",LEX!AO4) ->  | AM154: =IF(LEX!AP4="","",LEX!AP4) -> 
D155: Criterio Evaluación 1.2 | E155: =IF(LEX!H5="","",LEX!H5) ->  | F155: =IF(LEX!I5="","",LEX!I5) ->  | G155: =IF(LEX!J5="","",LEX!J5) ->  | H155: =IF(LEX!K5="","",LEX!K5) ->  | I155: =IF(LEX!L5="","",LEX!L5) ->  | J155: =IF(LEX!M5="","",LEX!M5) ->  | K155: =IF(LEX!N5="","",LEX!N5) ->  | L155: =IF(LEX!O5="","",LEX!O5) ->  | M155: =IF(LEX!P5="","",LEX!P5) ->  | N155: =IF(LEX!Q5="","",LEX!Q5) ->  | O155: =IF(LEX!R5="","",LEX!R5) ->  | P155: =IF(LEX!S5="","",LEX!S5) ->  | Q155: =IF(LEX!T5="","",LEX!T5) ->  | R155: =IF(LEX!U5="","",LEX!U5) ->  | S155: =IF(LEX!V5="","",LEX!V5) ->  | T155: =IF(LEX!W5="","",LEX!W5) ->  | U155: =IF(LEX!X5="","",LEX!X5) ->  | V155: =IF(LEX!Y5="","",LEX!Y5) ->  | W155: =IF(LEX!Z5="","",LEX!Z5) ->  | X155: =IF(LEX!AA5="","",LEX!AA5) ->  | Y155: =IF(LEX!AB5="","",LEX!AB5) ->  | Z155: =IF(LEX!AC5="","",LEX!AC5) ->  | AA155: =IF(LEX!AD5="","",LEX!AD5) ->  | AB155: =IF(LEX!AE5="","",LEX!AE5) ->  | AC155: =IF(LEX!AF5="","",LEX!AF5) ->  | AD155: =IF(LEX!AG5="","",LEX!AG5) ->  | AE155: =IF(LEX!AH5="","",LEX!AH5) ->  | AF155: =IF(LEX!AI5="","",LEX!AI5) ->  | AG155: =IF(LEX!AJ5="","",LEX!AJ5) ->  | AH155: =IF(LEX!AK5="","",LEX!AK5) ->  | AI155: =IF(LEX!AL5="","",LEX!AL5) ->  | AJ155: =IF(LEX!AM5="","",LEX!AM5) ->  | AK155: =IF(LEX!AN5="","",LEX!AN5) ->  | AL155: =IF(LEX!AO5="","",LEX!AO5) ->  | AM155: =IF(LEX!AP5="","",LEX!AP5) -> 
D156: Criterio Evaluación 1.3 | E156: =IF(LEX!H6="","",LEX!H6) ->  | F156: =IF(LEX!I6="","",LEX!I6) ->  | G156: =IF(LEX!J6="","",LEX!J6) ->  | H156: =IF(LEX!K6="","",LEX!K6) ->  | I156: =IF(LEX!L6="","",LEX!L6) ->  | J156: =IF(LEX!M6="","",LEX!M6) ->  | K156: =IF(LEX!N6="","",LEX!N6) ->  | L156: =IF(LEX!O6="","",LEX!O6) ->  | M156: =IF(LEX!P6="","",LEX!P6) ->  | N156: =IF(LEX!Q6="","",LEX!Q6) ->  | O156: =IF(LEX!R6="","",LEX!R6) ->  | P156: =IF(LEX!S6="","",LEX!S6) ->  | Q156: =IF(LEX!T6="","",LEX!T6) ->  | R156: =IF(LEX!U6="","",LEX!U6) ->  | S156: =IF(LEX!V6="","",LEX!V6) ->  | T156: =IF(LEX!W6="","",LEX!W6) ->  | U156: =IF(LEX!X6="","",LEX!X6) ->  | V156: =IF(LEX!Y6="","",LEX!Y6) ->  | W156: =IF(LEX!Z6="","",LEX!Z6) ->  | X156: =IF(LEX!AA6="","",LEX!AA6) ->  | Y156: =IF(LEX!AB6="","",LEX!AB6) ->  | Z156: =IF(LEX!AC6="","",LEX!AC6) ->  | AA156: =IF(LEX!AD6="","",LEX!AD6) ->  | AB156: =IF(LEX!AE6="","",LEX!AE6) ->  | AC156: =IF(LEX!AF6="","",LEX!AF6) ->  | AD156: =IF(LEX!AG6="","",LEX!AG6) ->  | AE156: =IF(LEX!AH6="","",LEX!AH6) ->  | AF156: =IF(LEX!AI6="","",LEX!AI6) ->  | AG156: =IF(LEX!AJ6="","",LEX!AJ6) ->  | AH156: =IF(LEX!AK6="","",LEX!AK6) ->  | AI156: =IF(LEX!AL6="","",LEX!AL6) ->  | AJ156: =IF(LEX!AM6="","",LEX!AM6) ->  | AK156: =IF(LEX!AN6="","",LEX!AN6) ->  | AL156: =IF(LEX!AO6="","",LEX!AO6) ->  | AM156: =IF(LEX!AP6="","",LEX!AP6) -> 
C157: Comp. Esp. 2 | D157: Criterio Evaluación 2.1 | E157: =IF(LEX!H7="","",LEX!H7) ->  | F157: =IF(LEX!I7="","",LEX!I7) ->  | G157: =IF(LEX!J7="","",LEX!J7) ->  | H157: =IF(LEX!K7="","",LEX!K7) ->  | I157: =IF(LEX!L7="","",LEX!L7) ->  | J157: =IF(LEX!M7="","",LEX!M7) ->  | K157: =IF(LEX!N7="","",LEX!N7) ->  | L157: =IF(LEX!O7="","",LEX!O7) ->  | M157: =IF(LEX!P7="","",LEX!P7) ->  | N157: =IF(LEX!Q7="","",LEX!Q7) ->  | O157: =IF(LEX!R7="","",LEX!R7) ->  | P157: =IF(LEX!S7="","",LEX!S7) ->  | Q157: =IF(LEX!T7="","",LEX!T7) ->  | R157: =IF(LEX!U7="","",LEX!U7) ->  | S157: =IF(LEX!V7="","",LEX!V7) ->  | T157: =IF(LEX!W7="","",LEX!W7) ->  | U157: =IF(LEX!X7="","",LEX!X7) ->  | V157: =IF(LEX!Y7="","",LEX!Y7) ->  | W157: =IF(LEX!Z7="","",LEX!Z7) ->  | X157: =IF(LEX!AA7="","",LEX!AA7) ->  | Y157: =IF(LEX!AB7="","",LEX!AB7) ->  | Z157: =IF(LEX!AC7="","",LEX!AC7) ->  | AA157: =IF(LEX!AD7="","",LEX!AD7) ->  | AB157: =IF(LEX!AE7="","",LEX!AE7) ->  | AC157: =IF(LEX!AF7="","",LEX!AF7) ->  | AD157: =IF(LEX!AG7="","",LEX!AG7) ->  | AE157: =IF(LEX!AH7="","",LEX!AH7) ->  | AF157: =IF(LEX!AI7="","",LEX!AI7) ->  | AG157: =IF(LEX!AJ7="","",LEX!AJ7) ->  | AH157: =IF(LEX!AK7="","",LEX!AK7) ->  | AI157: =IF(LEX!AL7="","",LEX!AL7) ->  | AJ157: =IF(LEX!AM7="","",LEX!AM7) ->  | AK157: =IF(LEX!AN7="","",LEX!AN7) ->  | AL157: =IF(LEX!AO7="","",LEX!AO7) ->  | AM157: =IF(LEX!AP7="","",LEX!AP7) -> 
D158: Criterio Evaluación 2.2 | E158: =IF(LEX!H8="","",LEX!H8) ->  | F158: =IF(LEX!I8="","",LEX!I8) ->  | G158: =IF(LEX!J8="","",LEX!J8) ->  | H158: =IF(LEX!K8="","",LEX!K8) ->  | I158: =IF(LEX!L8="","",LEX!L8) ->  | J158: =IF(LEX!M8="","",LEX!M8) ->  | K158: =IF(LEX!N8="","",LEX!N8) ->  | L158: =IF(LEX!O8="","",LEX!O8) ->  | M158: =IF(LEX!P8="","",LEX!P8) ->  | N158: =IF(LEX!Q8="","",LEX!Q8) ->  | O158: =IF(LEX!R8="","",LEX!R8) ->  | P158: =IF(LEX!S8="","",LEX!S8) ->  | Q158: =IF(LEX!T8="","",LEX!T8) ->  | R158: =IF(LEX!U8="","",LEX!U8) ->  | S158: =IF(LEX!V8="","",LEX!V8) ->  | T158: =IF(LEX!W8="","",LEX!W8) ->  | U158: =IF(LEX!X8="","",LEX!X8) ->  | V158: =IF(LEX!Y8="","",LEX!Y8) ->  | W158: =IF(LEX!Z8="","",LEX!Z8) ->  | X158: =IF(LEX!AA8="","",LEX!AA8) ->  | Y158: =IF(LEX!AB8="","",LEX!AB8) ->  | Z158: =IF(LEX!AC8="","",LEX!AC8) ->  | AA158: =IF(LEX!AD8="","",LEX!AD8) ->  | AB158: =IF(LEX!AE8="","",LEX!AE8) ->  | AC158: =IF(LEX!AF8="","",LEX!AF8) ->  | AD158: =IF(LEX!AG8="","",LEX!AG8) ->  | AE158: =IF(LEX!AH8="","",LEX!AH8) ->  | AF158: =IF(LEX!AI8="","",LEX!AI8) ->  | AG158: =IF(LEX!AJ8="","",LEX!AJ8) ->  | AH158: =IF(LEX!AK8="","",LEX!AK8) ->  | AI158: =IF(LEX!AL8="","",LEX!AL8) ->  | AJ158: =IF(LEX!AM8="","",LEX!AM8) ->  | AK158: =IF(LEX!AN8="","",LEX!AN8) ->  | AL158: =IF(LEX!AO8="","",LEX!AO8) ->  | AM158: =IF(LEX!AP8="","",LEX!AP8) -> 
D159: Criterio Evaluación 2.3 | E159: =IF(LEX!H9="","",LEX!H9) ->  | F159: =IF(LEX!I9="","",LEX!I9) ->  | G159: =IF(LEX!J9="","",LEX!J9) ->  | H159: =IF(LEX!K9="","",LEX!K9) ->  | I159: =IF(LEX!L9="","",LEX!L9) ->  | J159: =IF(LEX!M9="","",LEX!M9) ->  | K159: =IF(LEX!N9="","",LEX!N9) ->  | L159: =IF(LEX!O9="","",LEX!O9) ->  | M159: =IF(LEX!P9="","",LEX!P9) ->  | N159: =IF(LEX!Q9="","",LEX!Q9) ->  | O159: =IF(LEX!R9="","",LEX!R9) ->  | P159: =IF(LEX!S9="","",LEX!S9) ->  | Q159: =IF(LEX!T9="","",LEX!T9) ->  | R159: =IF(LEX!U9="","",LEX!U9) ->  | S159: =IF(LEX!V9="","",LEX!V9) ->  | T159: =IF(LEX!W9="","",LEX!W9) ->  | U159: =IF(LEX!X9="","",LEX!X9) ->  | V159: =IF(LEX!Y9="","",LEX!Y9) ->  | W159: =IF(LEX!Z9="","",LEX!Z9) ->  | X159: =IF(LEX!AA9="","",LEX!AA9) ->  | Y159: =IF(LEX!AB9="","",LEX!AB9) ->  | Z159: =IF(LEX!AC9="","",LEX!AC9) ->  | AA159: =IF(LEX!AD9="","",LEX!AD9) ->  | AB159: =IF(LEX!AE9="","",LEX!AE9) ->  | AC159: =IF(LEX!AF9="","",LEX!AF9) ->  | AD159: =IF(LEX!AG9="","",LEX!AG9) ->  | AE159: =IF(LEX!AH9="","",LEX!AH9) ->  | AF159: =IF(LEX!AI9="","",LEX!AI9) ->  | AG159: =IF(LEX!AJ9="","",LEX!AJ9) ->  | AH159: =IF(LEX!AK9="","",LEX!AK9) ->  | AI159: =IF(LEX!AL9="","",LEX!AL9) ->  | AJ159: =IF(LEX!AM9="","",LEX!AM9) ->  | AK159: =IF(LEX!AN9="","",LEX!AN9) ->  | AL159: =IF(LEX!AO9="","",LEX!AO9) ->  | AM159: =IF(LEX!AP9="","",LEX!AP9) -> 
D160: Criterio Evaluación 2.4 | E160: =IF(LEX!H10="","",LEX!H10) ->  | F160: =IF(LEX!I10="","",LEX!I10) ->  | G160: =IF(LEX!J10="","",LEX!J10) ->  | H160: =IF(LEX!K10="","",LEX!K10) ->  | I160: =IF(LEX!L10="","",LEX!L10) ->  | J160: =IF(LEX!M10="","",LEX!M10) ->  | K160: =IF(LEX!N10="","",LEX!N10) ->  | L160: =IF(LEX!O10="","",LEX!O10) ->  | M160: =IF(LEX!P10="","",LEX!P10) ->  | N160: =IF(LEX!Q10="","",LEX!Q10) ->  | O160: =IF(LEX!R10="","",LEX!R10) ->  | P160: =IF(LEX!S10="","",LEX!S10) ->  | Q160: =IF(LEX!T10="","",LEX!T10) ->  | R160: =IF(LEX!U10="","",LEX!U10) ->  | S160: =IF(LEX!V10="","",LEX!V10) ->  | T160: =IF(LEX!W10="","",LEX!W10) ->  | U160: =IF(LEX!X10="","",LEX!X10) ->  | V160: =IF(LEX!Y10="","",LEX!Y10) ->  | W160: =IF(LEX!Z10="","",LEX!Z10) ->  | X160: =IF(LEX!AA10="","",LEX!AA10) ->  | Y160: =IF(LEX!AB10="","",LEX!AB10) ->  | Z160: =IF(LEX!AC10="","",LEX!AC10) ->  | AA160: =IF(LEX!AD10="","",LEX!AD10) ->  | AB160: =IF(LEX!AE10="","",LEX!AE10) ->  | AC160: =IF(LEX!AF10="","",LEX!AF10) ->  | AD160: =IF(LEX!AG10="","",LEX!AG10) ->  | AE160: =IF(LEX!AH10="","",LEX!AH10) ->  | AF160: =IF(LEX!AI10="","",LEX!AI10) ->  | AG160: =IF(LEX!AJ10="","",LEX!AJ10) ->  | AH160: =IF(LEX!AK10="","",LEX!AK10) ->  | AI160: =IF(LEX!AL10="","",LEX!AL10) ->  | AJ160: =IF(LEX!AM10="","",LEX!AM10) ->  | AK160: =IF(LEX!AN10="","",LEX!AN10) ->  | AL160: =IF(LEX!AO10="","",LEX!AO10) ->  | AM160: =IF(LEX!AP10="","",LEX!AP10) -> 
C161: Comp. Esp. 3 | D161: Criterio Evaluación 3.1 | E161: =IF(LEX!H11="","",LEX!H11) ->  | F161: =IF(LEX!I11="","",LEX!I11) ->  | G161: =IF(LEX!J11="","",LEX!J11) ->  | H161: =IF(LEX!K11="","",LEX!K11) ->  | I161: =IF(LEX!L11="","",LEX!L11) ->  | J161: =IF(LEX!M11="","",LEX!M11) ->  | K161: =IF(LEX!N11="","",LEX!N11) ->  | L161: =IF(LEX!O11="","",LEX!O11) ->  | M161: =IF(LEX!P11="","",LEX!P11) ->  | N161: =IF(LEX!Q11="","",LEX!Q11) ->  | O161: =IF(LEX!R11="","",LEX!R11) ->  | P161: =IF(LEX!S11="","",LEX!S11) ->  | Q161: =IF(LEX!T11="","",LEX!T11) ->  | R161: =IF(LEX!U11="","",LEX!U11) ->  | S161: =IF(LEX!V11="","",LEX!V11) ->  | T161: =IF(LEX!W11="","",LEX!W11) ->  | U161: =IF(LEX!X11="","",LEX!X11) ->  | V161: =IF(LEX!Y11="","",LEX!Y11) ->  | W161: =IF(LEX!Z11="","",LEX!Z11) ->  | X161: =IF(LEX!AA11="","",LEX!AA11) ->  | Y161: =IF(LEX!AB11="","",LEX!AB11) ->  | Z161: =IF(LEX!AC11="","",LEX!AC11) ->  | AA161: =IF(LEX!AD11="","",LEX!AD11) ->  | AB161: =IF(LEX!AE11="","",LEX!AE11) ->  | AC161: =IF(LEX!AF11="","",LEX!AF11) ->  | AD161: =IF(LEX!AG11="","",LEX!AG11) ->  | AE161: =IF(LEX!AH11="","",LEX!AH11) ->  | AF161: =IF(LEX!AI11="","",LEX!AI11) ->  | AG161: =IF(LEX!AJ11="","",LEX!AJ11) ->  | AH161: =IF(LEX!AK11="","",LEX!AK11) ->  | AI161: =IF(LEX!AL11="","",LEX!AL11) ->  | AJ161: =IF(LEX!AM11="","",LEX!AM11) ->  | AK161: =IF(LEX!AN11="","",LEX!AN11) ->  | AL161: =IF(LEX!AO11="","",LEX!AO11) ->  | AM161: =IF(LEX!AP11="","",LEX!AP11) -> 
D162: Criterio Evaluación 3.2 | E162: =IF(LEX!H12="","",LEX!H12) ->  | F162: =IF(LEX!I12="","",LEX!I12) ->  | G162: =IF(LEX!J12="","",LEX!J12) ->  | H162: =IF(LEX!K12="","",LEX!K12) ->  | I162: =IF(LEX!L12="","",LEX!L12) ->  | J162: =IF(LEX!M12="","",LEX!M12) ->  | K162: =IF(LEX!N12="","",LEX!N12) ->  | L162: =IF(LEX!O12="","",LEX!O12) ->  | M162: =IF(LEX!P12="","",LEX!P12) ->  | N162: =IF(LEX!Q12="","",LEX!Q12) ->  | O162: =IF(LEX!R12="","",LEX!R12) ->  | P162: =IF(LEX!S12="","",LEX!S12) ->  | Q162: =IF(LEX!T12="","",LEX!T12) ->  | R162: =IF(LEX!U12="","",LEX!U12) ->  | S162: =IF(LEX!V12="","",LEX!V12) ->  | T162: =IF(LEX!W12="","",LEX!W12) ->  | U162: =IF(LEX!X12="","",LEX!X12) ->  | V162: =IF(LEX!Y12="","",LEX!Y12) ->  | W162: =IF(LEX!Z12="","",LEX!Z12) ->  | X162: =IF(LEX!AA12="","",LEX!AA12) ->  | Y162: =IF(LEX!AB12="","",LEX!AB12) ->  | Z162: =IF(LEX!AC12="","",LEX!AC12) ->  | AA162: =IF(LEX!AD12="","",LEX!AD12) ->  | AB162: =IF(LEX!AE12="","",LEX!AE12) ->  | AC162: =IF(LEX!AF12="","",LEX!AF12) ->  | AD162: =IF(LEX!AG12="","",LEX!AG12) ->  | AE162: =IF(LEX!AH12="","",LEX!AH12) ->  | AF162: =IF(LEX!AI12="","",LEX!AI12) ->  | AG162: =IF(LEX!AJ12="","",LEX!AJ12) ->  | AH162: =IF(LEX!AK12="","",LEX!AK12) ->  | AI162: =IF(LEX!AL12="","",LEX!AL12) ->  | AJ162: =IF(LEX!AM12="","",LEX!AM12) ->  | AK162: =IF(LEX!AN12="","",LEX!AN12) ->  | AL162: =IF(LEX!AO12="","",LEX!AO12) ->  | AM162: =IF(LEX!AP12="","",LEX!AP12) -> 
D163: Criterio Evaluación 3.3 | E163: =IF(LEX!H13="","",LEX!H13) ->  | F163: =IF(LEX!I13="","",LEX!I13) ->  | G163: =IF(LEX!J13="","",LEX!J13) ->  | H163: =IF(LEX!K13="","",LEX!K13) ->  | I163: =IF(LEX!L13="","",LEX!L13) ->  | J163: =IF(LEX!M13="","",LEX!M13) ->  | K163: =IF(LEX!N13="","",LEX!N13) ->  | L163: =IF(LEX!O13="","",LEX!O13) ->  | M163: =IF(LEX!P13="","",LEX!P13) ->  | N163: =IF(LEX!Q13="","",LEX!Q13) ->  | O163: =IF(LEX!R13="","",LEX!R13) ->  | P163: =IF(LEX!S13="","",LEX!S13) ->  | Q163: =IF(LEX!T13="","",LEX!T13) ->  | R163: =IF(LEX!U13="","",LEX!U13) ->  | S163: =IF(LEX!V13="","",LEX!V13) ->  | T163: =IF(LEX!W13="","",LEX!W13) ->  | U163: =IF(LEX!X13="","",LEX!X13) ->  | V163: =IF(LEX!Y13="","",LEX!Y13) ->  | W163: =IF(LEX!Z13="","",LEX!Z13) ->  | X163: =IF(LEX!AA13="","",LEX!AA13) ->  | Y163: =IF(LEX!AB13="","",LEX!AB13) ->  | Z163: =IF(LEX!AC13="","",LEX!AC13) ->  | AA163: =IF(LEX!AD13="","",LEX!AD13) ->  | AB163: =IF(LEX!AE13="","",LEX!AE13) ->  | AC163: =IF(LEX!AF13="","",LEX!AF13) ->  | AD163: =IF(LEX!AG13="","",LEX!AG13) ->  | AE163: =IF(LEX!AH13="","",LEX!AH13) ->  | AF163: =IF(LEX!AI13="","",LEX!AI13) ->  | AG163: =IF(LEX!AJ13="","",LEX!AJ13) ->  | AH163: =IF(LEX!AK13="","",LEX!AK13) ->  | AI163: =IF(LEX!AL13="","",LEX!AL13) ->  | AJ163: =IF(LEX!AM13="","",LEX!AM13) ->  | AK163: =IF(LEX!AN13="","",LEX!AN13) ->  | AL163: =IF(LEX!AO13="","",LEX!AO13) ->  | AM163: =IF(LEX!AP13="","",LEX!AP13) -> 
D164: Criterio Evaluación 3.4 | E164: =IF(LEX!H14="","",LEX!H14) ->  | F164: =IF(LEX!I14="","",LEX!I14) ->  | G164: =IF(LEX!J14="","",LEX!J14) ->  | H164: =IF(LEX!K14="","",LEX!K14) ->  | I164: =IF(LEX!L14="","",LEX!L14) ->  | J164: =IF(LEX!M14="","",LEX!M14) ->  | K164: =IF(LEX!N14="","",LEX!N14) ->  | L164: =IF(LEX!O14="","",LEX!O14) ->  | M164: =IF(LEX!P14="","",LEX!P14) ->  | N164: =IF(LEX!Q14="","",LEX!Q14) ->  | O164: =IF(LEX!R14="","",LEX!R14) ->  | P164: =IF(LEX!S14="","",LEX!S14) ->  | Q164: =IF(LEX!T14="","",LEX!T14) ->  | R164: =IF(LEX!U14="","",LEX!U14) ->  | S164: =IF(LEX!V14="","",LEX!V14) ->  | T164: =IF(LEX!W14="","",LEX!W14) ->  | U164: =IF(LEX!X14="","",LEX!X14) ->  | V164: =IF(LEX!Y14="","",LEX!Y14) ->  | W164: =IF(LEX!Z14="","",LEX!Z14) ->  | X164: =IF(LEX!AA14="","",LEX!AA14) ->  | Y164: =IF(LEX!AB14="","",LEX!AB14) ->  | Z164: =IF(LEX!AC14="","",LEX!AC14) ->  | AA164: =IF(LEX!AD14="","",LEX!AD14) ->  | AB164: =IF(LEX!AE14="","",LEX!AE14) ->  | AC164: =IF(LEX!AF14="","",LEX!AF14) ->  | AD164: =IF(LEX!AG14="","",LEX!AG14) ->  | AE164: =IF(LEX!AH14="","",LEX!AH14) ->  | AF164: =IF(LEX!AI14="","",LEX!AI14) ->  | AG164: =IF(LEX!AJ14="","",LEX!AJ14) ->  | AH164: =IF(LEX!AK14="","",LEX!AK14) ->  | AI164: =IF(LEX!AL14="","",LEX!AL14) ->  | AJ164: =IF(LEX!AM14="","",LEX!AM14) ->  | AK164: =IF(LEX!AN14="","",LEX!AN14) ->  | AL164: =IF(LEX!AO14="","",LEX!AO14) ->  | AM164: =IF(LEX!AP14="","",LEX!AP14) -> 
C165: Comp. Esp. 4 | D165: Criterio Evaluación 4.1 | E165: =IF(LEX!H15="","",LEX!H15) ->  | F165: =IF(LEX!I15="","",LEX!I15) ->  | G165: =IF(LEX!J15="","",LEX!J15) ->  | H165: =IF(LEX!K15="","",LEX!K15) ->  | I165: =IF(LEX!L15="","",LEX!L15) ->  | J165: =IF(LEX!M15="","",LEX!M15) ->  | K165: =IF(LEX!N15="","",LEX!N15) ->  | L165: =IF(LEX!O15="","",LEX!O15) ->  | M165: =IF(LEX!P15="","",LEX!P15) ->  | N165: =IF(LEX!Q15="","",LEX!Q15) ->  | O165: =IF(LEX!R15="","",LEX!R15) ->  | P165: =IF(LEX!S15="","",LEX!S15) ->  | Q165: =IF(LEX!T15="","",LEX!T15) ->  | R165: =IF(LEX!U15="","",LEX!U15) ->  | S165: =IF(LEX!V15="","",LEX!V15) ->  | T165: =IF(LEX!W15="","",LEX!W15) ->  | U165: =IF(LEX!X15="","",LEX!X15) ->  | V165: =IF(LEX!Y15="","",LEX!Y15) ->  | W165: =IF(LEX!Z15="","",LEX!Z15) ->  | X165: =IF(LEX!AA15="","",LEX!AA15) ->  | Y165: =IF(LEX!AB15="","",LEX!AB15) ->  | Z165: =IF(LEX!AC15="","",LEX!AC15) ->  | AA165: =IF(LEX!AD15="","",LEX!AD15) ->  | AB165: =IF(LEX!AE15="","",LEX!AE15) ->  | AC165: =IF(LEX!AF15="","",LEX!AF15) ->  | AD165: =IF(LEX!AG15="","",LEX!AG15) ->  | AE165: =IF(LEX!AH15="","",LEX!AH15) ->  | AF165: =IF(LEX!AI15="","",LEX!AI15) ->  | AG165: =IF(LEX!AJ15="","",LEX!AJ15) ->  | AH165: =IF(LEX!AK15="","",LEX!AK15) ->  | AI165: =IF(LEX!AL15="","",LEX!AL15) ->  | AJ165: =IF(LEX!AM15="","",LEX!AM15) ->  | AK165: =IF(LEX!AN15="","",LEX!AN15) ->  | AL165: =IF(LEX!AO15="","",LEX!AO15) ->  | AM165: =IF(LEX!AP15="","",LEX!AP15) -> 
D166: Criterio Evaluación 4.2 | E166: =IF(LEX!H16="","",LEX!H16) ->  | F166: =IF(LEX!I16="","",LEX!I16) ->  | G166: =IF(LEX!J16="","",LEX!J16) ->  | H166: =IF(LEX!K16="","",LEX!K16) ->  | I166: =IF(LEX!L16="","",LEX!L16) ->  | J166: =IF(LEX!M16="","",LEX!M16) ->  | K166: =IF(LEX!N16="","",LEX!N16) ->  | L166: =IF(LEX!O16="","",LEX!O16) ->  | M166: =IF(LEX!P16="","",LEX!P16) ->  | N166: =IF(LEX!Q16="","",LEX!Q16) ->  | O166: =IF(LEX!R16="","",LEX!R16) ->  | P166: =IF(LEX!S16="","",LEX!S16) ->  | Q166: =IF(LEX!T16="","",LEX!T16) ->  | R166: =IF(LEX!U16="","",LEX!U16) ->  | S166: =IF(LEX!V16="","",LEX!V16) ->  | T166: =IF(LEX!W16="","",LEX!W16) ->  | U166: =IF(LEX!X16="","",LEX!X16) ->  | V166: =IF(LEX!Y16="","",LEX!Y16) ->  | W166: =IF(LEX!Z16="","",LEX!Z16) ->  | X166: =IF(LEX!AA16="","",LEX!AA16) ->  | Y166: =IF(LEX!AB16="","",LEX!AB16) ->  | Z166: =IF(LEX!AC16="","",LEX!AC16) ->  | AA166: =IF(LEX!AD16="","",LEX!AD16) ->  | AB166: =IF(LEX!AE16="","",LEX!AE16) ->  | AC166: =IF(LEX!AF16="","",LEX!AF16) ->  | AD166: =IF(LEX!AG16="","",LEX!AG16) ->  | AE166: =IF(LEX!AH16="","",LEX!AH16) ->  | AF166: =IF(LEX!AI16="","",LEX!AI16) ->  | AG166: =IF(LEX!AJ16="","",LEX!AJ16) ->  | AH166: =IF(LEX!AK16="","",LEX!AK16) ->  | AI166: =IF(LEX!AL16="","",LEX!AL16) ->  | AJ166: =IF(LEX!AM16="","",LEX!AM16) ->  | AK166: =IF(LEX!AN16="","",LEX!AN16) ->  | AL166: =IF(LEX!AO16="","",LEX!AO16) ->  | AM166: =IF(LEX!AP16="","",LEX!AP16) -> 
D167: Criterio Evaluación 4.3 | E167: =IF(LEX!H17="","",LEX!H17) ->  | F167: =IF(LEX!I17="","",LEX!I17) ->  | G167: =IF(LEX!J17="","",LEX!J17) ->  | H167: =IF(LEX!K17="","",LEX!K17) ->  | I167: =IF(LEX!L17="","",LEX!L17) ->  | J167: =IF(LEX!M17="","",LEX!M17) ->  | K167: =IF(LEX!N17="","",LEX!N17) ->  | L167: =IF(LEX!O17="","",LEX!O17) ->  | M167: =IF(LEX!P17="","",LEX!P17) ->  | N167: =IF(LEX!Q17="","",LEX!Q17) ->  | O167: =IF(LEX!R17="","",LEX!R17) ->  | P167: =IF(LEX!S17="","",LEX!S17) ->  | Q167: =IF(LEX!T17="","",LEX!T17) ->  | R167: =IF(LEX!U17="","",LEX!U17) ->  | S167: =IF(LEX!V17="","",LEX!V17) ->  | T167: =IF(LEX!W17="","",LEX!W17) ->  | U167: =IF(LEX!X17="","",LEX!X17) ->  | V167: =IF(LEX!Y17="","",LEX!Y17) ->  | W167: =IF(LEX!Z17="","",LEX!Z17) ->  | X167: =IF(LEX!AA17="","",LEX!AA17) ->  | Y167: =IF(LEX!AB17="","",LEX!AB17) ->  | Z167: =IF(LEX!AC17="","",LEX!AC17) ->  | AA167: =IF(LEX!AD17="","",LEX!AD17) ->  | AB167: =IF(LEX!AE17="","",LEX!AE17) ->  | AC167: =IF(LEX!AF17="","",LEX!AF17) ->  | AD167: =IF(LEX!AG17="","",LEX!AG17) ->  | AE167: =IF(LEX!AH17="","",LEX!AH17) ->  | AF167: =IF(LEX!AI17="","",LEX!AI17) ->  | AG167: =IF(LEX!AJ17="","",LEX!AJ17) ->  | AH167: =IF(LEX!AK17="","",LEX!AK17) ->  | AI167: =IF(LEX!AL17="","",LEX!AL17) ->  | AJ167: =IF(LEX!AM17="","",LEX!AM17) ->  | AK167: =IF(LEX!AN17="","",LEX!AN17) ->  | AL167: =IF(LEX!AO17="","",LEX!AO17) ->  | AM167: =IF(LEX!AP17="","",LEX!AP17) -> 
D168: Criterio Evaluación 4.4 | E168: =IF(LEX!H18="","",LEX!H18) ->  | F168: =IF(LEX!I18="","",LEX!I18) ->  | G168: =IF(LEX!J18="","",LEX!J18) ->  | H168: =IF(LEX!K18="","",LEX!K18) ->  | I168: =IF(LEX!L18="","",LEX!L18) ->  | J168: =IF(LEX!M18="","",LEX!M18) ->  | K168: =IF(LEX!N18="","",LEX!N18) ->  | L168: =IF(LEX!O18="","",LEX!O18) ->  | M168: =IF(LEX!P18="","",LEX!P18) ->  | N168: =IF(LEX!Q18="","",LEX!Q18) ->  | O168: =IF(LEX!R18="","",LEX!R18) ->  | P168: =IF(LEX!S18="","",LEX!S18) ->  | Q168: =IF(LEX!T18="","",LEX!T18) ->  | R168: =IF(LEX!U18="","",LEX!U18) ->  | S168: =IF(LEX!V18="","",LEX!V18) ->  | T168: =IF(LEX!W18="","",LEX!W18) ->  | U168: =IF(LEX!X18="","",LEX!X18) ->  | V168: =IF(LEX!Y18="","",LEX!Y18) ->  | W168: =IF(LEX!Z18="","",LEX!Z18) ->  | X168: =IF(LEX!AA18="","",LEX!AA18) ->  | Y168: =IF(LEX!AB18="","",LEX!AB18) ->  | Z168: =IF(LEX!AC18="","",LEX!AC18) ->  | AA168: =IF(LEX!AD18="","",LEX!AD18) ->  | AB168: =IF(LEX!AE18="","",LEX!AE18) ->  | AC168: =IF(LEX!AF18="","",LEX!AF18) ->  | AD168: =IF(LEX!AG18="","",LEX!AG18) ->  | AE168: =IF(LEX!AH18="","",LEX!AH18) ->  | AF168: =IF(LEX!AI18="","",LEX!AI18) ->  | AG168: =IF(LEX!AJ18="","",LEX!AJ18) ->  | AH168: =IF(LEX!AK18="","",LEX!AK18) ->  | AI168: =IF(LEX!AL18="","",LEX!AL18) ->  | AJ168: =IF(LEX!AM18="","",LEX!AM18) ->  | AK168: =IF(LEX!AN18="","",LEX!AN18) ->  | AL168: =IF(LEX!AO18="","",LEX!AO18) ->  | AM168: =IF(LEX!AP18="","",LEX!AP18) -> 
C169: Comp. Esp. 5 | D169: Criterio Evaluación 5.1 | E169: =IF(LEX!H19="","",LEX!H19) ->  | F169: =IF(LEX!I19="","",LEX!I19) ->  | G169: =IF(LEX!J19="","",LEX!J19) ->  | H169: =IF(LEX!K19="","",LEX!K19) ->  | I169: =IF(LEX!L19="","",LEX!L19) ->  | J169: =IF(LEX!M19="","",LEX!M19) ->  | K169: =IF(LEX!N19="","",LEX!N19) ->  | L169: =IF(LEX!O19="","",LEX!O19) ->  | M169: =IF(LEX!P19="","",LEX!P19) ->  | N169: =IF(LEX!Q19="","",LEX!Q19) ->  | O169: =IF(LEX!R19="","",LEX!R19) ->  | P169: =IF(LEX!S19="","",LEX!S19) ->  | Q169: =IF(LEX!T19="","",LEX!T19) ->  | R169: =IF(LEX!U19="","",LEX!U19) ->  | S169: =IF(LEX!V19="","",LEX!V19) ->  | T169: =IF(LEX!W19="","",LEX!W19) ->  | U169: =IF(LEX!X19="","",LEX!X19) ->  | V169: =IF(LEX!Y19="","",LEX!Y19) ->  | W169: =IF(LEX!Z19="","",LEX!Z19) ->  | X169: =IF(LEX!AA19="","",LEX!AA19) ->  | Y169: =IF(LEX!AB19="","",LEX!AB19) ->  | Z169: =IF(LEX!AC19="","",LEX!AC19) ->  | AA169: =IF(LEX!AD19="","",LEX!AD19) ->  | AB169: =IF(LEX!AE19="","",LEX!AE19) ->  | AC169: =IF(LEX!AF19="","",LEX!AF19) ->  | AD169: =IF(LEX!AG19="","",LEX!AG19) ->  | AE169: =IF(LEX!AH19="","",LEX!AH19) ->  | AF169: =IF(LEX!AI19="","",LEX!AI19) ->  | AG169: =IF(LEX!AJ19="","",LEX!AJ19) ->  | AH169: =IF(LEX!AK19="","",LEX!AK19) ->  | AI169: =IF(LEX!AL19="","",LEX!AL19) ->  | AJ169: =IF(LEX!AM19="","",LEX!AM19) ->  | AK169: =IF(LEX!AN19="","",LEX!AN19) ->  | AL169: =IF(LEX!AO19="","",LEX!AO19) ->  | AM169: =IF(LEX!AP19="","",LEX!AP19) -> 
D170: Criterio Evaluación 5.2 | E170: =IF(LEX!H20="","",LEX!H20) ->  | F170: =IF(LEX!I20="","",LEX!I20) ->  | G170: =IF(LEX!J20="","",LEX!J20) ->  | H170: =IF(LEX!K20="","",LEX!K20) ->  | I170: =IF(LEX!L20="","",LEX!L20) ->  | J170: =IF(LEX!M20="","",LEX!M20) ->  | K170: =IF(LEX!N20="","",LEX!N20) ->  | L170: =IF(LEX!O20="","",LEX!O20) ->  | M170: =IF(LEX!P20="","",LEX!P20) ->  | N170: =IF(LEX!Q20="","",LEX!Q20) ->  | O170: =IF(LEX!R20="","",LEX!R20) ->  | P170: =IF(LEX!S20="","",LEX!S20) ->  | Q170: =IF(LEX!T20="","",LEX!T20) ->  | R170: =IF(LEX!U20="","",LEX!U20) ->  | S170: =IF(LEX!V20="","",LEX!V20) ->  | T170: =IF(LEX!W20="","",LEX!W20) ->  | U170: =IF(LEX!X20="","",LEX!X20) ->  | V170: =IF(LEX!Y20="","",LEX!Y20) ->  | W170: =IF(LEX!Z20="","",LEX!Z20) ->  | X170: =IF(LEX!AA20="","",LEX!AA20) ->  | Y170: =IF(LEX!AB20="","",LEX!AB20) ->  | Z170: =IF(LEX!AC20="","",LEX!AC20) ->  | AA170: =IF(LEX!AD20="","",LEX!AD20) ->  | AB170: =IF(LEX!AE20="","",LEX!AE20) ->  | AC170: =IF(LEX!AF20="","",LEX!AF20) ->  | AD170: =IF(LEX!AG20="","",LEX!AG20) ->  | AE170: =IF(LEX!AH20="","",LEX!AH20) ->  | AF170: =IF(LEX!AI20="","",LEX!AI20) ->  | AG170: =IF(LEX!AJ20="","",LEX!AJ20) ->  | AH170: =IF(LEX!AK20="","",LEX!AK20) ->  | AI170: =IF(LEX!AL20="","",LEX!AL20) ->  | AJ170: =IF(LEX!AM20="","",LEX!AM20) ->  | AK170: =IF(LEX!AN20="","",LEX!AN20) ->  | AL170: =IF(LEX!AO20="","",LEX!AO20) ->  | AM170: =IF(LEX!AP20="","",LEX!AP20) -> 
D171: Criterio Evaluación 5.3 | E171: =IF(LEX!H21="","",LEX!H21) ->  | F171: =IF(LEX!I21="","",LEX!I21) ->  | G171: =IF(LEX!J21="","",LEX!J21) ->  | H171: =IF(LEX!K21="","",LEX!K21) ->  | I171: =IF(LEX!L21="","",LEX!L21) ->  | J171: =IF(LEX!M21="","",LEX!M21) ->  | K171: =IF(LEX!N21="","",LEX!N21) ->  | L171: =IF(LEX!O21="","",LEX!O21) ->  | M171: =IF(LEX!P21="","",LEX!P21) ->  | N171: =IF(LEX!Q21="","",LEX!Q21) ->  | O171: =IF(LEX!R21="","",LEX!R21) ->  | P171: =IF(LEX!S21="","",LEX!S21) ->  | Q171: =IF(LEX!T21="","",LEX!T21) ->  | R171: =IF(LEX!U21="","",LEX!U21) ->  | S171: =IF(LEX!V21="","",LEX!V21) ->  | T171: =IF(LEX!W21="","",LEX!W21) ->  | U171: =IF(LEX!X21="","",LEX!X21) ->  | V171: =IF(LEX!Y21="","",LEX!Y21) ->  | W171: =IF(LEX!Z21="","",LEX!Z21) ->  | X171: =IF(LEX!AA21="","",LEX!AA21) ->  | Y171: =IF(LEX!AB21="","",LEX!AB21) ->  | Z171: =IF(LEX!AC21="","",LEX!AC21) ->  | AA171: =IF(LEX!AD21="","",LEX!AD21) ->  | AB171: =IF(LEX!AE21="","",LEX!AE21) ->  | AC171: =IF(LEX!AF21="","",LEX!AF21) ->  | AD171: =IF(LEX!AG21="","",LEX!AG21) ->  | AE171: =IF(LEX!AH21="","",LEX!AH21) ->  | AF171: =IF(LEX!AI21="","",LEX!AI21) ->  | AG171: =IF(LEX!AJ21="","",LEX!AJ21) ->  | AH171: =IF(LEX!AK21="","",LEX!AK21) ->  | AI171: =IF(LEX!AL21="","",LEX!AL21) ->  | AJ171: =IF(LEX!AM21="","",LEX!AM21) ->  | AK171: =IF(LEX!AN21="","",LEX!AN21) ->  | AL171: =IF(LEX!AO21="","",LEX!AO21) ->  | AM171: =IF(LEX!AP21="","",LEX!AP21) -> 
C172: Comp. Esp. 6 | D172: Criterio Evaluación 6.1 | E172: =IF(LEX!H22="","",LEX!H22) ->  | F172: =IF(LEX!I22="","",LEX!I22) ->  | G172: =IF(LEX!J22="","",LEX!J22) ->  | H172: =IF(LEX!K22="","",LEX!K22) ->  | I172: =IF(LEX!L22="","",LEX!L22) ->  | J172: =IF(LEX!M22="","",LEX!M22) ->  | K172: =IF(LEX!N22="","",LEX!N22) ->  | L172: =IF(LEX!O22="","",LEX!O22) ->  | M172: =IF(LEX!P22="","",LEX!P22) ->  | N172: =IF(LEX!Q22="","",LEX!Q22) ->  | O172: =IF(LEX!R22="","",LEX!R22) ->  | P172: =IF(LEX!S22="","",LEX!S22) ->  | Q172: =IF(LEX!T22="","",LEX!T22) ->  | R172: =IF(LEX!U22="","",LEX!U22) ->  | S172: =IF(LEX!V22="","",LEX!V22) ->  | T172: =IF(LEX!W22="","",LEX!W22) ->  | U172: =IF(LEX!X22="","",LEX!X22) ->  | V172: =IF(LEX!Y22="","",LEX!Y22) ->  | W172: =IF(LEX!Z22="","",LEX!Z22) ->  | X172: =IF(LEX!AA22="","",LEX!AA22) ->  | Y172: =IF(LEX!AB22="","",LEX!AB22) ->  | Z172: =IF(LEX!AC22="","",LEX!AC22) ->  | AA172: =IF(LEX!AD22="","",LEX!AD22) ->  | AB172: =IF(LEX!AE22="","",LEX!AE22) ->  | AC172: =IF(LEX!AF22="","",LEX!AF22) ->  | AD172: =IF(LEX!AG22="","",LEX!AG22) ->  | AE172: =IF(LEX!AH22="","",LEX!AH22) ->  | AF172: =IF(LEX!AI22="","",LEX!AI22) ->  | AG172: =IF(LEX!AJ22="","",LEX!AJ22) ->  | AH172: =IF(LEX!AK22="","",LEX!AK22) ->  | AI172: =IF(LEX!AL22="","",LEX!AL22) ->  | AJ172: =IF(LEX!AM22="","",LEX!AM22) ->  | AK172: =IF(LEX!AN22="","",LEX!AN22) ->  | AL172: =IF(LEX!AO22="","",LEX!AO22) ->  | AM172: =IF(LEX!AP22="","",LEX!AP22) -> 
D173: Criterio Evaluación 6.2 | E173: =IF(LEX!H23="","",LEX!H23) ->  | F173: =IF(LEX!I23="","",LEX!I23) ->  | G173: =IF(LEX!J23="","",LEX!J23) ->  | H173: =IF(LEX!K23="","",LEX!K23) ->  | I173: =IF(LEX!L23="","",LEX!L23) ->  | J173: =IF(LEX!M23="","",LEX!M23) ->  | K173: =IF(LEX!N23="","",LEX!N23) ->  | L173: =IF(LEX!O23="","",LEX!O23) ->  | M173: =IF(LEX!P23="","",LEX!P23) ->  | N173: =IF(LEX!Q23="","",LEX!Q23) ->  | O173: =IF(LEX!R23="","",LEX!R23) ->  | P173: =IF(LEX!S23="","",LEX!S23) ->  | Q173: =IF(LEX!T23="","",LEX!T23) ->  | R173: =IF(LEX!U23="","",LEX!U23) ->  | S173: =IF(LEX!V23="","",LEX!V23) ->  | T173: =IF(LEX!W23="","",LEX!W23) ->  | U173: =IF(LEX!X23="","",LEX!X23) ->  | V173: =IF(LEX!Y23="","",LEX!Y23) ->  | W173: =IF(LEX!Z23="","",LEX!Z23) ->  | X173: =IF(LEX!AA23="","",LEX!AA23) ->  | Y173: =IF(LEX!AB23="","",LEX!AB23) ->  | Z173: =IF(LEX!AC23="","",LEX!AC23) ->  | AA173: =IF(LEX!AD23="","",LEX!AD23) ->  | AB173: =IF(LEX!AE23="","",LEX!AE23) ->  | AC173: =IF(LEX!AF23="","",LEX!AF23) ->  | AD173: =IF(LEX!AG23="","",LEX!AG23) ->  | AE173: =IF(LEX!AH23="","",LEX!AH23) ->  | AF173: =IF(LEX!AI23="","",LEX!AI23) ->  | AG173: =IF(LEX!AJ23="","",LEX!AJ23) ->  | AH173: =IF(LEX!AK23="","",LEX!AK23) ->  | AI173: =IF(LEX!AL23="","",LEX!AL23) ->  | AJ173: =IF(LEX!AM23="","",LEX!AM23) ->  | AK173: =IF(LEX!AN23="","",LEX!AN23) ->  | AL173: =IF(LEX!AO23="","",LEX!AO23) ->  | AM173: =IF(LEX!AP23="","",LEX!AP23) -> 
D174: Criterio Evaluación 6.3 | E174: =IF(LEX!H24="","",LEX!H24) ->  | F174: =IF(LEX!I24="","",LEX!I24) ->  | G174: =IF(LEX!J24="","",LEX!J24) ->  | H174: =IF(LEX!K24="","",LEX!K24) ->  | I174: =IF(LEX!L24="","",LEX!L24) ->  | J174: =IF(LEX!M24="","",LEX!M24) ->  | K174: =IF(LEX!N24="","",LEX!N24) ->  | L174: =IF(LEX!O24="","",LEX!O24) ->  | M174: =IF(LEX!P24="","",LEX!P24) ->  | N174: =IF(LEX!Q24="","",LEX!Q24) ->  | O174: =IF(LEX!R24="","",LEX!R24) ->  | P174: =IF(LEX!S24="","",LEX!S24) ->  | Q174: =IF(LEX!T24="","",LEX!T24) ->  | R174: =IF(LEX!U24="","",LEX!U24) ->  | S174: =IF(LEX!V24="","",LEX!V24) ->  | T174: =IF(LEX!W24="","",LEX!W24) ->  | U174: =IF(LEX!X24="","",LEX!X24) ->  | V174: =IF(LEX!Y24="","",LEX!Y24) ->  | W174: =IF(LEX!Z24="","",LEX!Z24) ->  | X174: =IF(LEX!AA24="","",LEX!AA24) ->  | Y174: =IF(LEX!AB24="","",LEX!AB24) ->  | Z174: =IF(LEX!AC24="","",LEX!AC24) ->  | AA174: =IF(LEX!AD24="","",LEX!AD24) ->  | AB174: =IF(LEX!AE24="","",LEX!AE24) ->  | AC174: =IF(LEX!AF24="","",LEX!AF24) ->  | AD174: =IF(LEX!AG24="","",LEX!AG24) ->  | AE174: =IF(LEX!AH24="","",LEX!AH24) ->  | AF174: =IF(LEX!AI24="","",LEX!AI24) ->  | AG174: =IF(LEX!AJ24="","",LEX!AJ24) ->  | AH174: =IF(LEX!AK24="","",LEX!AK24) ->  | AI174: =IF(LEX!AL24="","",LEX!AL24) ->  | AJ174: =IF(LEX!AM24="","",LEX!AM24) ->  | AK174: =IF(LEX!AN24="","",LEX!AN24) ->  | AL174: =IF(LEX!AO24="","",LEX!AO24) ->  | AM174: =IF(LEX!AP24="","",LEX!AP24) -> 
B175: Materia dirigida al alumnado que no cursa religión | C175: Comp. Esp. 1 | D175: Criterio Evaluación 1.1 | E175: =IF(MNR!H$3="","",MNR!H$3) ->  | F175: =IF(MNR!I$3="","",MNR!I$3) ->  | G175: =IF(MNR!J$3="","",MNR!J$3) ->  | H175: =IF(MNR!K$3="","",MNR!K$3) ->  | I175: =IF(MNR!L$3="","",MNR!L$3) ->  | J175: =IF(MNR!M$3="","",MNR!M$3) ->  | K175: =IF(MNR!N$3="","",MNR!N$3) ->  | L175: =IF(MNR!O$3="","",MNR!O$3) ->  | M175: =IF(MNR!P$3="","",MNR!P$3) ->  | N175: =IF(MNR!Q$3="","",MNR!Q$3) ->  | O175: =IF(MNR!R$3="","",MNR!R$3) ->  | P175: =IF(MNR!S$3="","",MNR!S$3) ->  | Q175: =IF(MNR!T$3="","",MNR!T$3) ->  | R175: =IF(MNR!U$3="","",MNR!U$3) ->  | S175: =IF(MNR!V$3="","",MNR!V$3) ->  | T175: =IF(MNR!W$3="","",MNR!W$3) ->  | U175: =IF(MNR!X$3="","",MNR!X$3) ->  | V175: =IF(MNR!Y$3="","",MNR!Y$3) ->  | W175: =IF(MNR!Z$3="","",MNR!Z$3) ->  | X175: =IF(MNR!AA$3="","",MNR!AA$3) ->  | Y175: =IF(MNR!AB$3="","",MNR!AB$3) ->  | Z175: =IF(MNR!AC$3="","",MNR!AC$3) ->  | AA175: =IF(MNR!AD$3="","",MNR!AD$3) ->  | AB175: =IF(MNR!AE$3="","",MNR!AE$3) ->  | AC175: =IF(MNR!AF$3="","",MNR!AF$3) ->  | AD175: =IF(MNR!AG$3="","",MNR!AG$3) ->  | AE175: =IF(MNR!AH$3="","",MNR!AH$3) ->  | AF175: =IF(MNR!AI$3="","",MNR!AI$3) ->  | AG175: =IF(MNR!AJ$3="","",MNR!AJ$3) ->  | AH175: =IF(MNR!AK$3="","",MNR!AK$3) ->  | AI175: =IF(MNR!AL$3="","",MNR!AL$3) ->  | AJ175: =IF(MNR!AM$3="","",MNR!AM$3) ->  | AK175: =IF(MNR!AN$3="","",MNR!AN$3) ->  | AL175: =IF(MNR!AO$3="","",MNR!AO$3) ->  | AM175: =IF(MNR!AP$3="","",MNR!AP$3) -> 
C176: Comp. Esp. 2 | D176: Criterio Evaluación 2.1 | E176: =IF(MNR!H$3="","",MNR!H$3) ->  | F176: =IF(MNR!I$3="","",MNR!I$3) ->  | G176: =IF(MNR!J$3="","",MNR!J$3) ->  | H176: =IF(MNR!K$3="","",MNR!K$3) ->  | I176: =IF(MNR!L$3="","",MNR!L$3) ->  | J176: =IF(MNR!M$3="","",MNR!M$3) ->  | K176: =IF(MNR!N$3="","",MNR!N$3) ->  | L176: =IF(MNR!O$3="","",MNR!O$3) ->  | M176: =IF(MNR!P$3="","",MNR!P$3) ->  | N176: =IF(MNR!Q$3="","",MNR!Q$3) ->  | O176: =IF(MNR!R$3="","",MNR!R$3) ->  | P176: =IF(MNR!S$3="","",MNR!S$3) ->  | Q176: =IF(MNR!T$3="","",MNR!T$3) ->  | R176: =IF(MNR!U$3="","",MNR!U$3) ->  | S176: =IF(MNR!V$3="","",MNR!V$3) ->  | T176: =IF(MNR!W$3="","",MNR!W$3) ->  | U176: =IF(MNR!X$3="","",MNR!X$3) ->  | V176: =IF(MNR!Y$3="","",MNR!Y$3) ->  | W176: =IF(MNR!Z$3="","",MNR!Z$3) ->  | X176: =IF(MNR!AA$3="","",MNR!AA$3) ->  | Y176: =IF(MNR!AB$3="","",MNR!AB$3) ->  | Z176: =IF(MNR!AC$3="","",MNR!AC$3) ->  | AA176: =IF(MNR!AD$3="","",MNR!AD$3) ->  | AB176: =IF(MNR!AE$3="","",MNR!AE$3) ->  | AC176: =IF(MNR!AF$3="","",MNR!AF$3) ->  | AD176: =IF(MNR!AG$3="","",MNR!AG$3) ->  | AE176: =IF(MNR!AH$3="","",MNR!AH$3) ->  | AF176: =IF(MNR!AI$3="","",MNR!AI$3) ->  | AG176: =IF(MNR!AJ$3="","",MNR!AJ$3) ->  | AH176: =IF(MNR!AK$3="","",MNR!AK$3) ->  | AI176: =IF(MNR!AL$3="","",MNR!AL$3) ->  | AJ176: =IF(MNR!AM$3="","",MNR!AM$3) ->  | AK176: =IF(MNR!AN$3="","",MNR!AN$3) ->  | AL176: =IF(MNR!AO$3="","",MNR!AO$3) ->  | AM176: =IF(MNR!AP$3="","",MNR!AP$3) -> 
C177: Comp. Esp. 3 | D177: Criterio Evaluación 3.1 | E177: =IF(MNR!H$3="","",MNR!H$3) ->  | F177: =IF(MNR!I$3="","",MNR!I$3) ->  | G177: =IF(MNR!J$3="","",MNR!J$3) ->  | H177: =IF(MNR!K$3="","",MNR!K$3) ->  | I177: =IF(MNR!L$3="","",MNR!L$3) ->  | J177: =IF(MNR!M$3="","",MNR!M$3) ->  | K177: =IF(MNR!N$3="","",MNR!N$3) ->  | L177: =IF(MNR!O$3="","",MNR!O$3) ->  | M177: =IF(MNR!P$3="","",MNR!P$3) ->  | N177: =IF(MNR!Q$3="","",MNR!Q$3) ->  | O177: =IF(MNR!R$3="","",MNR!R$3) ->  | P177: =IF(MNR!S$3="","",MNR!S$3) ->  | Q177: =IF(MNR!T$3="","",MNR!T$3) ->  | R177: =IF(MNR!U$3="","",MNR!U$3) ->  | S177: =IF(MNR!V$3="","",MNR!V$3) ->  | T177: =IF(MNR!W$3="","",MNR!W$3) ->  | U177: =IF(MNR!X$3="","",MNR!X$3) ->  | V177: =IF(MNR!Y$3="","",MNR!Y$3) ->  | W177: =IF(MNR!Z$3="","",MNR!Z$3) ->  | X177: =IF(MNR!AA$3="","",MNR!AA$3) ->  | Y177: =IF(MNR!AB$3="","",MNR!AB$3) ->  | Z177: =IF(MNR!AC$3="","",MNR!AC$3) ->  | AA177: =IF(MNR!AD$3="","",MNR!AD$3) ->  | AB177: =IF(MNR!AE$3="","",MNR!AE$3) ->  | AC177: =IF(MNR!AF$3="","",MNR!AF$3) ->  | AD177: =IF(MNR!AG$3="","",MNR!AG$3) ->  | AE177: =IF(MNR!AH$3="","",MNR!AH$3) ->  | AF177: =IF(MNR!AI$3="","",MNR!AI$3) ->  | AG177: =IF(MNR!AJ$3="","",MNR!AJ$3) ->  | AH177: =IF(MNR!AK$3="","",MNR!AK$3) ->  | AI177: =IF(MNR!AL$3="","",MNR!AL$3) ->  | AJ177: =IF(MNR!AM$3="","",MNR!AM$3) ->  | AK177: =IF(MNR!AN$3="","",MNR!AN$3) ->  | AL177: =IF(MNR!AO$3="","",MNR!AO$3) ->  | AM177: =IF(MNR!AP$3="","",MNR!AP$3) -> 
C178: Comp. Esp. 4 | D178: Criterio Evaluación 4.1 | E178: =IF(MNR!H$3="","",MNR!H$3) ->  | F178: =IF(MNR!I$3="","",MNR!I$3) ->  | G178: =IF(MNR!J$3="","",MNR!J$3) ->  | H178: =IF(MNR!K$3="","",MNR!K$3) ->  | I178: =IF(MNR!L$3="","",MNR!L$3) ->  | J178: =IF(MNR!M$3="","",MNR!M$3) ->  | K178: =IF(MNR!N$3="","",MNR!N$3) ->  | L178: =IF(MNR!O$3="","",MNR!O$3) ->  | M178: =IF(MNR!P$3="","",MNR!P$3) ->  | N178: =IF(MNR!Q$3="","",MNR!Q$3) ->  | O178: =IF(MNR!R$3="","",MNR!R$3) ->  | P178: =IF(MNR!S$3="","",MNR!S$3) ->  | Q178: =IF(MNR!T$3="","",MNR!T$3) ->  | R178: =IF(MNR!U$3="","",MNR!U$3) ->  | S178: =IF(MNR!V$3="","",MNR!V$3) ->  | T178: =IF(MNR!W$3="","",MNR!W$3) ->  | U178: =IF(MNR!X$3="","",MNR!X$3) ->  | V178: =IF(MNR!Y$3="","",MNR!Y$3) ->  | W178: =IF(MNR!Z$3="","",MNR!Z$3) ->  | X178: =IF(MNR!AA$3="","",MNR!AA$3) ->  | Y178: =IF(MNR!AB$3="","",MNR!AB$3) ->  | Z178: =IF(MNR!AC$3="","",MNR!AC$3) ->  | AA178: =IF(MNR!AD$3="","",MNR!AD$3) ->  | AB178: =IF(MNR!AE$3="","",MNR!AE$3) ->  | AC178: =IF(MNR!AF$3="","",MNR!AF$3) ->  | AD178: =IF(MNR!AG$3="","",MNR!AG$3) ->  | AE178: =IF(MNR!AH$3="","",MNR!AH$3) ->  | AF178: =IF(MNR!AI$3="","",MNR!AI$3) ->  | AG178: =IF(MNR!AJ$3="","",MNR!AJ$3) ->  | AH178: =IF(MNR!AK$3="","",MNR!AK$3) ->  | AI178: =IF(MNR!AL$3="","",MNR!AL$3) ->  | AJ178: =IF(MNR!AM$3="","",MNR!AM$3) ->  | AK178: =IF(MNR!AN$3="","",MNR!AN$3) ->  | AL178: =IF(MNR!AO$3="","",MNR!AO$3) ->  | AM178: =IF(MNR!AP$3="","",MNR!AP$3) -> 
C179: Comp. Esp. 5 | D179: Criterio Evaluación 5.1 | E179: =IF(MNR!H$3="","",MNR!H$3) ->  | F179: =IF(MNR!I$3="","",MNR!I$3) ->  | G179: =IF(MNR!J$3="","",MNR!J$3) ->  | H179: =IF(MNR!K$3="","",MNR!K$3) ->  | I179: =IF(MNR!L$3="","",MNR!L$3) ->  | J179: =IF(MNR!M$3="","",MNR!M$3) ->  | K179: =IF(MNR!N$3="","",MNR!N$3) ->  | L179: =IF(MNR!O$3="","",MNR!O$3) ->  | M179: =IF(MNR!P$3="","",MNR!P$3) ->  | N179: =IF(MNR!Q$3="","",MNR!Q$3) ->  | O179: =IF(MNR!R$3="","",MNR!R$3) ->  | P179: =IF(MNR!S$3="","",MNR!S$3) ->  | Q179: =IF(MNR!T$3="","",MNR!T$3) ->  | R179: =IF(MNR!U$3="","",MNR!U$3) ->  | S179: =IF(MNR!V$3="","",MNR!V$3) ->  | T179: =IF(MNR!W$3="","",MNR!W$3) ->  | U179: =IF(MNR!X$3="","",MNR!X$3) ->  | V179: =IF(MNR!Y$3="","",MNR!Y$3) ->  | W179: =IF(MNR!Z$3="","",MNR!Z$3) ->  | X179: =IF(MNR!AA$3="","",MNR!AA$3) ->  | Y179: =IF(MNR!AB$3="","",MNR!AB$3) ->  | Z179: =IF(MNR!AC$3="","",MNR!AC$3) ->  | AA179: =IF(MNR!AD$3="","",MNR!AD$3) ->  | AB179: =IF(MNR!AE$3="","",MNR!AE$3) ->  | AC179: =IF(MNR!AF$3="","",MNR!AF$3) ->  | AD179: =IF(MNR!AG$3="","",MNR!AG$3) ->  | AE179: =IF(MNR!AH$3="","",MNR!AH$3) ->  | AF179: =IF(MNR!AI$3="","",MNR!AI$3) ->  | AG179: =IF(MNR!AJ$3="","",MNR!AJ$3) ->  | AH179: =IF(MNR!AK$3="","",MNR!AK$3) ->  | AI179: =IF(MNR!AL$3="","",MNR!AL$3) ->  | AJ179: =IF(MNR!AM$3="","",MNR!AM$3) ->  | AK179: =IF(MNR!AN$3="","",MNR!AN$3) ->  | AL179: =IF(MNR!AO$3="","",MNR!AO$3) ->  | AM179: =IF(MNR!AP$3="","",MNR!AP$3) -> 
C180: Comp. Esp. 6 | D180: Criterio Evaluación 6.1 | E180: =IF(MNR!H$3="","",MNR!H$3) ->  | F180: =IF(MNR!I$3="","",MNR!I$3) ->  | G180: =IF(MNR!J$3="","",MNR!J$3) ->  | H180: =IF(MNR!K$3="","",MNR!K$3) ->  | I180: =IF(MNR!L$3="","",MNR!L$3) ->  | J180: =IF(MNR!M$3="","",MNR!M$3) ->  | K180: =IF(MNR!N$3="","",MNR!N$3) ->  | L180: =IF(MNR!O$3="","",MNR!O$3) ->  | M180: =IF(MNR!P$3="","",MNR!P$3) ->  | N180: =IF(MNR!Q$3="","",MNR!Q$3) ->  | O180: =IF(MNR!R$3="","",MNR!R$3) ->  | P180: =IF(MNR!S$3="","",MNR!S$3) ->  | Q180: =IF(MNR!T$3="","",MNR!T$3) ->  | R180: =IF(MNR!U$3="","",MNR!U$3) ->  | S180: =IF(MNR!V$3="","",MNR!V$3) ->  | T180: =IF(MNR!W$3="","",MNR!W$3) ->  | U180: =IF(MNR!X$3="","",MNR!X$3) ->  | V180: =IF(MNR!Y$3="","",MNR!Y$3) ->  | W180: =IF(MNR!Z$3="","",MNR!Z$3) ->  | X180: =IF(MNR!AA$3="","",MNR!AA$3) ->  | Y180: =IF(MNR!AB$3="","",MNR!AB$3) ->  | Z180: =IF(MNR!AC$3="","",MNR!AC$3) ->  | AA180: =IF(MNR!AD$3="","",MNR!AD$3) ->  | AB180: =IF(MNR!AE$3="","",MNR!AE$3) ->  | AC180: =IF(MNR!AF$3="","",MNR!AF$3) ->  | AD180: =IF(MNR!AG$3="","",MNR!AG$3) ->  | AE180: =IF(MNR!AH$3="","",MNR!AH$3) ->  | AF180: =IF(MNR!AI$3="","",MNR!AI$3) ->  | AG180: =IF(MNR!AJ$3="","",MNR!AJ$3) ->  | AH180: =IF(MNR!AK$3="","",MNR!AK$3) ->  | AI180: =IF(MNR!AL$3="","",MNR!AL$3) ->  | AJ180: =IF(MNR!AM$3="","",MNR!AM$3) ->  | AK180: =IF(MNR!AN$3="","",MNR!AN$3) ->  | AL180: =IF(MNR!AO$3="","",MNR!AO$3) ->  | AM180: =IF(MNR!AP$3="","",MNR!AP$3) -> 
B181: Música | C181: Comp. Esp. 1 | D181: Criterio Evaluación 1.1 | E181: =IF(MUS!H4="","",MUS!H4) ->  | F181: =IF(MUS!I4="","",MUS!I4) ->  | G181: =IF(MUS!J4="","",MUS!J4) ->  | H181: =IF(MUS!K4="","",MUS!K4) ->  | I181: =IF(MUS!L4="","",MUS!L4) ->  | J181: =IF(MUS!M4="","",MUS!M4) ->  | K181: =IF(MUS!N4="","",MUS!N4) ->  | L181: =IF(MUS!O4="","",MUS!O4) ->  | M181: =IF(MUS!P4="","",MUS!P4) ->  | N181: =IF(MUS!Q4="","",MUS!Q4) ->  | O181: =IF(MUS!R4="","",MUS!R4) ->  | P181: =IF(MUS!S4="","",MUS!S4) ->  | Q181: =IF(MUS!T4="","",MUS!T4) ->  | R181: =IF(MUS!U4="","",MUS!U4) ->  | S181: =IF(MUS!V4="","",MUS!V4) ->  | T181: =IF(MUS!W4="","",MUS!W4) ->  | U181: =IF(MUS!X4="","",MUS!X4) ->  | V181: =IF(MUS!Y4="","",MUS!Y4) ->  | W181: =IF(MUS!Z4="","",MUS!Z4) ->  | X181: =IF(MUS!AA4="","",MUS!AA4) ->  | Y181: =IF(MUS!AB4="","",MUS!AB4) ->  | Z181: =IF(MUS!AC4="","",MUS!AC4) ->  | AA181: =IF(MUS!AD4="","",MUS!AD4) ->  | AB181: =IF(MUS!AE4="","",MUS!AE4) ->  | AC181: =IF(MUS!AF4="","",MUS!AF4) ->  | AD181: =IF(MUS!AG4="","",MUS!AG4) ->  | AE181: =IF(MUS!AH4="","",MUS!AH4) ->  | AF181: =IF(MUS!AI4="","",MUS!AI4) ->  | AG181: =IF(MUS!AJ4="","",MUS!AJ4) ->  | AH181: =IF(MUS!AK4="","",MUS!AK4) ->  | AI181: =IF(MUS!AL4="","",MUS!AL4) ->  | AJ181: =IF(MUS!AM4="","",MUS!AM4) ->  | AK181: =IF(MUS!AN4="","",MUS!AN4) ->  | AL181: =IF(MUS!AO4="","",MUS!AO4) ->  | AM181: =IF(MUS!AP4="","",MUS!AP4) -> 
D182: Criterio Evaluación 1.2 | E182: =IF(MUS!H5="","",MUS!H5) ->  | F182: =IF(MUS!I5="","",MUS!I5) ->  | G182: =IF(MUS!J5="","",MUS!J5) ->  | H182: =IF(MUS!K5="","",MUS!K5) ->  | I182: =IF(MUS!L5="","",MUS!L5) ->  | J182: =IF(MUS!M5="","",MUS!M5) ->  | K182: =IF(MUS!N5="","",MUS!N5) ->  | L182: =IF(MUS!O5="","",MUS!O5) ->  | M182: =IF(MUS!P5="","",MUS!P5) ->  | N182: =IF(MUS!Q5="","",MUS!Q5) ->  | O182: =IF(MUS!R5="","",MUS!R5) ->  | P182: =IF(MUS!S5="","",MUS!S5) ->  | Q182: =IF(MUS!T5="","",MUS!T5) ->  | R182: =IF(MUS!U5="","",MUS!U5) ->  | S182: =IF(MUS!V5="","",MUS!V5) ->  | T182: =IF(MUS!W5="","",MUS!W5) ->  | U182: =IF(MUS!X5="","",MUS!X5) ->  | V182: =IF(MUS!Y5="","",MUS!Y5) ->  | W182: =IF(MUS!Z5="","",MUS!Z5) ->  | X182: =IF(MUS!AA5="","",MUS!AA5) ->  | Y182: =IF(MUS!AB5="","",MUS!AB5) ->  | Z182: =IF(MUS!AC5="","",MUS!AC5) ->  | AA182: =IF(MUS!AD5="","",MUS!AD5) ->  | AB182: =IF(MUS!AE5="","",MUS!AE5) ->  | AC182: =IF(MUS!AF5="","",MUS!AF5) ->  | AD182: =IF(MUS!AG5="","",MUS!AG5) ->  | AE182: =IF(MUS!AH5="","",MUS!AH5) ->  | AF182: =IF(MUS!AI5="","",MUS!AI5) ->  | AG182: =IF(MUS!AJ5="","",MUS!AJ5) ->  | AH182: =IF(MUS!AK5="","",MUS!AK5) ->  | AI182: =IF(MUS!AL5="","",MUS!AL5) ->  | AJ182: =IF(MUS!AM5="","",MUS!AM5) ->  | AK182: =IF(MUS!AN5="","",MUS!AN5) ->  | AL182: =IF(MUS!AO5="","",MUS!AO5) ->  | AM182: =IF(MUS!AP5="","",MUS!AP5) -> 
D183: Criterio Evaluación 1.3 | E183: =IF(MUS!H6="","",MUS!H6) ->  | F183: =IF(MUS!I6="","",MUS!I6) ->  | G183: =IF(MUS!J6="","",MUS!J6) ->  | H183: =IF(MUS!K6="","",MUS!K6) ->  | I183: =IF(MUS!L6="","",MUS!L6) ->  | J183: =IF(MUS!M6="","",MUS!M6) ->  | K183: =IF(MUS!N6="","",MUS!N6) ->  | L183: =IF(MUS!O6="","",MUS!O6) ->  | M183: =IF(MUS!P6="","",MUS!P6) ->  | N183: =IF(MUS!Q6="","",MUS!Q6) ->  | O183: =IF(MUS!R6="","",MUS!R6) ->  | P183: =IF(MUS!S6="","",MUS!S6) ->  | Q183: =IF(MUS!T6="","",MUS!T6) ->  | R183: =IF(MUS!U6="","",MUS!U6) ->  | S183: =IF(MUS!V6="","",MUS!V6) ->  | T183: =IF(MUS!W6="","",MUS!W6) ->  | U183: =IF(MUS!X6="","",MUS!X6) ->  | V183: =IF(MUS!Y6="","",MUS!Y6) ->  | W183: =IF(MUS!Z6="","",MUS!Z6) ->  | X183: =IF(MUS!AA6="","",MUS!AA6) ->  | Y183: =IF(MUS!AB6="","",MUS!AB6) ->  | Z183: =IF(MUS!AC6="","",MUS!AC6) ->  | AA183: =IF(MUS!AD6="","",MUS!AD6) ->  | AB183: =IF(MUS!AE6="","",MUS!AE6) ->  | AC183: =IF(MUS!AF6="","",MUS!AF6) ->  | AD183: =IF(MUS!AG6="","",MUS!AG6) ->  | AE183: =IF(MUS!AH6="","",MUS!AH6) ->  | AF183: =IF(MUS!AI6="","",MUS!AI6) ->  | AG183: =IF(MUS!AJ6="","",MUS!AJ6) ->  | AH183: =IF(MUS!AK6="","",MUS!AK6) ->  | AI183: =IF(MUS!AL6="","",MUS!AL6) ->  | AJ183: =IF(MUS!AM6="","",MUS!AM6) ->  | AK183: =IF(MUS!AN6="","",MUS!AN6) ->  | AL183: =IF(MUS!AO6="","",MUS!AO6) ->  | AM183: =IF(MUS!AP6="","",MUS!AP6) -> 
